Workbook

Sheet CoverSheet
A3: Gas Pipeline Businesses
A4: Price-Quality Regulation 1 October 2022 Reset
A5: Default Price Path Draft Asset Stranding Model
A17: Published 10 February 2022 v1

Sheet Description
A1: Description
B2: This model has been prepared and published for consultation purposes only.
A4: How this workbook may be operated
A5: This workbook may be operated in a number of ways, as follows:
A6: 1 | B6: Running a particular case,i.e, for a chosen GPB and chosen stranding year
C7: Select the case using the Dashboard by entering the data at the named ranges "GPB_name" and "Stranding Year". Other parameters can also be specified, using Columns A and B
C8: After making the selections on the dashboard, run the macro "Update results for the case selected on this dashboard". This runs the ThreeGoalSeeks macro, which updates the results on the Dashboard. Until this macro is run, the Dashboard results will most likely be invalid.
C9: Results may be observed on the charts on the dashboard.
C10: All the values in each of the worksheets from Existing to Total will apply for the chosen combination of GPB and stranding year. Other dashboard selections will also apply.
A11: 2 | B11: Running the reporting macro
C12: The reporting macro can be run from the button " Run the reporting macro" at Row 31 on the Reporting sheet. The dashboard entries for choice of GPB and stranding year will have no impact on the results from this method, as the macro will step through all combinations of the five GPBs and four stranding years, ie, 20 different cases.
C13: Parameters other than "GPB_name" and "Stranding Year" can also be specified before running the macro, using Columns A and B.
C14: The reported results include two sets of charts, one set starting at Row 60 and the other at Row 73. The first set represents results for the X (as in CPI minus X) as nil and the second set relate to an X set to an alternative X such that the percentage MAR increase from 2022 to 2023 is equal to the average increase from 2023 to 2026.
A15: 3 | B15: Running a sensitivity test
C16: A sensitivity test to changing some of the true/false flags and other variables set in the Dashboard may be useful. The following steps may be followed:
B17: 1 | C17: Run the reporting macro on the Reporting sheet, having first set the Dashboard variables for the base case of the sensitivity test.
B18: 2 | C18: Change the the Dashboard setting to reflect the new settings.
B19: 3 | C19: On the reporting sheet, set the sheet up such that all 10 charts at Rows 59 to 81 are visible, as is the macro button at D58.
B20: 4 | C20: Run the reporting macro using the button at D58.
B21: 5 | C21: An elapsed time box will appear. Click ok, while noting the movement in the various chart lines.
B22: 6 | C22: If, for example, this method is used to testing the sensitivity of the results to the flag for turning revaluations on or off, it will be noted that this only has a modest impact on the level of price rises.
B23: 7 | C23: Reset the Dashboard levels to the base case, if required.

Sheet Table of Contents
A1: Table of Contents
B4: Sheet Name | C4: Link
B5: Inputs_AS | C5: Inputs
B6: Existing | C6: Existing assets
C7: Inputs
C8: Calculations
B9: Additional | C9: Additional assets
B10: OpexTax | C10: Opex and Tax
C11: Inputs
C12: Calculations
B13: Total | C13: Total
C14: Inputs
C15: Calculations
B16: Inputs_finmod | C16: Inputs
B17: GPB data | C17: GPB data
B18: Timing | C18: Timing
C19: Inputs
C20: Calculations
C21: Outputs
B22: RAB | C22: Regulatory asset base
C23: Inputs
C24: Calculations
C25: Outputs
B26: Tax | C26: Tax calculations
C27: Inputs
C28: Calculations
C29: Outputs
B30: BBAR | C30: Building blocks allowable revenue
C31: Inputs
C32: Calculations
C33: Outputs
B34: Rev | C34: Revenue growth index
C35: Inputs
C36: Calculations
C37: Outputs
B38: MAR | C38: Maximum allowable revenue
C39: Inputs
C40: Calculations
C41: Outputs
B42: Reporting | C42: Reporting
C43: Inputs
C44: Calculations
B45: Dashboard | C45: Dashboard
C46: Working area
B47: Outputs to Chartbook | C47: Outputs to chartbook
C48: Chapter 6

Sheet Inputs_AS
A1: Inputs
B2: Chosen supplier | D2: =GPB_name -> First Gas transmission
B3: Chosen supplier number | D3: =MATCH(GPB_name,GPBnames,0) -> 5
B4: Post-tax WACC | D4: 0.056 | E4: Do not enter values in any of the 6 cells to the left of this note
B5: Vanilla WACC | D5: 0.0607 | E5: that contain formualas rather than values. The cells with a red
B6: Cost of debt | D6: 0.0401 | E6: font colour are input cells containing values and can be
B7: Leverage | D7: 0.42 | E7: amended by users.
B8: Tax rate | D8: 0.28
B9: Stranding year opex÷2027 opex | D9: 0.3
B10: Stranding year | D10: =StrandingYear -> 2070
B11: Year from which capital recovery starts ramp-down | D11: =MARrampDownStart -> 2029
B12: Remaining life of additional assets | D12: 45
B13: Stranding year MAR ÷ 2023 MAR | D13: =Dashboard!B10 -> 0.2
B14: Mitigation | D14: =Mitigation -> TRUE
D15: GasNet | E15: Powerco | F15: Vector | G15: First Gas distribution | H15: First Gas transmission
B16: 2022 MAR from 2017 financial model | D16: 4383.998268 | E16: 51435.56862 | F16: 50702.2772 | G16: 24646.15131 | H16: 131623.3864
E18: 2021 | F18: 2022 | G18: 2023 | H18: 2024 | I18: 2025 | J18: 2026 | K18: 2027 | L18: 2028 | M18: 2029 | N18: 2030 | O18: 2031 | P18: 2032 | Q18: 2033 | R18: 2034 | S18: 2035 | T18: 2036 | U18: 2037 | V18: 2038 | W18: 2039 | X18: 2040 | Y18: 2041 | Z18: 2042 | AA18: 2043 | AB18: 2044 | AC18: 2045 | AD18: 2046 | AE18: 2047 | AF18: 2048 | AG18: 2049 | AH18: 2050 | AI18: 2051 | AJ18: 2052 | AK18: 2053 | AL18: 2054 | AM18: 2055 | AN18: 2056 | AO18: 2057 | AP18: 2058 | AQ18: 2059 | AR18: 2060 | AS18: 2061 | AT18: 2062 | AU18: 2063 | AV18: 2064 | AW18: 2065 | AX18: 2066 | AY18: 2067 | AZ18: 2068 | BA18: 2069 | BB18: 2070
B20: F'cast changes in CPI used for revaluations, June year-ends | E20: =[1]Output!G8 -> 0.03342884432 | F20: =[1]Output!H8 -> 0.052 | G20: =[1]Output!I8 -> 0.025 | H20: =[1]Output!J8 -> 0.021 | I20: =[1]Output!K8 -> 0.02 | J20: =[1]Output!L8 -> 0.02 | K20: =[1]Output!M8 -> 0.02 | L20: =[1]Output!N8 -> 0.02 | M20: =[1]Output!O8 -> 0.02 | N20: =[1]Output!P8 -> 0.02 | O20: =[1]Output!Q8 -> 0.02 | P20: =[1]Output!R8 -> 0.02 | Q20: =[1]Output!S8 -> 0.02 | R20: =[1]Output!T8 -> 0.02 | S20: =[1]Output!U8 -> 0.02 | T20: =[1]Output!V8 -> 0.02 | U20: =[1]Output!W8 -> 0.02 | V20: =[1]Output!X8 -> 0.02 | W20: =[1]Output!Y8 -> 0.02 | X20: =[1]Output!Z8 -> 0.02 | Y20: =[1]Output!AA8 -> 0.02 | Z20: =[1]Output!AB8 -> 0.02 | AA20: =[1]Output!AC8 -> 0.02 | AB20: =[1]Output!AD8 -> 0.02 | AC20: =[1]Output!AE8 -> 0.02 | AD20: =[1]Output!AF8 -> 0.02 | AE20: =[1]Output!AG8 -> 0.02 | AF20: =[1]Output!AH8 -> 0.02 | AG20: =[1]Output!AI8 -> 0.02 | AH20: =[1]Output!AJ8 -> 0.02 | AI20: =[1]Output!AK8 -> 0.02 | AJ20: =[1]Output!AL8 -> 0.02 | AK20: =[1]Output!AM8 -> 0.02 | AL20: =[1]Output!AN8 -> 0.02 | AM20: =[1]Output!AO8 -> 0.02 | AN20: =[1]Output!AP8 -> 0.02 | AO20: =[1]Output!AQ8 -> 0.02 | AP20: =[1]Output!AR8 -> 0.02 | AQ20: =[1]Output!AS8 -> 0.02 | AR20: =[1]Output!AT8 -> 0.02 | AS20: =[1]Output!AU8 -> 0.02 | AT20: =[1]Output!AV8 -> 0.02 | AU20: =[1]Output!AW8 -> 0.02 | AV20: =[1]Output!AX8 -> 0.02 | AW20: =[1]Output!AY8 -> 0.02 | AX20: =[1]Output!AZ8 -> 0.02 | AY20: =[1]Output!BA8 -> 0.02 | AZ20: =[1]Output!BB8 -> 0.02 | BA20: =[1]Output!BC8 -> 0.02 | BB20: =[1]Output!BD8 -> 0.02
B21: F'cast changes in CPI used for revaluations, September year-ends | E21: =[1]Output!G9 -> 0.04933586338 | F21: =[1]Output!H9 -> 0.04 | G21: =[1]Output!I9 -> 0.023 | H21: =[1]Output!J9 -> 0.02 | I21: =[1]Output!K9 -> 0.02 | J21: =[1]Output!L9 -> 0.02 | K21: =[1]Output!M9 -> 0.02 | L21: =[1]Output!N9 -> 0.02 | M21: =[1]Output!O9 -> 0.02 | N21: =[1]Output!P9 -> 0.02 | O21: =[1]Output!Q9 -> 0.02 | P21: =[1]Output!R9 -> 0.02 | Q21: =[1]Output!S9 -> 0.02 | R21: =[1]Output!T9 -> 0.02 | S21: =[1]Output!U9 -> 0.02 | T21: =[1]Output!V9 -> 0.02 | U21: =[1]Output!W9 -> 0.02 | V21: =[1]Output!X9 -> 0.02 | W21: =[1]Output!Y9 -> 0.02 | X21: =[1]Output!Z9 -> 0.02 | Y21: =[1]Output!AA9 -> 0.02 | Z21: =[1]Output!AB9 -> 0.02 | AA21: =[1]Output!AC9 -> 0.02 | AB21: =[1]Output!AD9 -> 0.02 | AC21: =[1]Output!AE9 -> 0.02 | AD21: =[1]Output!AF9 -> 0.02 | AE21: =[1]Output!AG9 -> 0.02 | AF21: =[1]Output!AH9 -> 0.02 | AG21: =[1]Output!AI9 -> 0.02 | AH21: =[1]Output!AJ9 -> 0.02 | AI21: =[1]Output!AK9 -> 0.02 | AJ21: =[1]Output!AL9 -> 0.02 | AK21: =[1]Output!AM9 -> 0.02 | AL21: =[1]Output!AN9 -> 0.02 | AM21: =[1]Output!AO9 -> 0.02 | AN21: =[1]Output!AP9 -> 0.02 | AO21: =[1]Output!AQ9 -> 0.02 | AP21: =[1]Output!AR9 -> 0.02 | AQ21: =[1]Output!AS9 -> 0.02 | AR21: =[1]Output!AT9 -> 0.02 | AS21: =[1]Output!AU9 -> 0.02 | AT21: =[1]Output!AV9 -> 0.02 | AU21: =[1]Output!AW9 -> 0.02 | AV21: =[1]Output!AX9 -> 0.02 | AW21: =[1]Output!AY9 -> 0.02 | AX21: =[1]Output!AZ9 -> 0.02 | AY21: =[1]Output!BA9 -> 0.02 | AZ21: =[1]Output!BB9 -> 0.02 | BA21: =[1]Output!BC9 -> 0.02 | BB21: =[1]Output!BD9 -> 0.02
B22: F'cast changes in CPI used for revaluations, chosen GPB's year ends | E22: =IF(OR($D$3=1,$D$3=3),E20,E21) -> 0.04933586338 | F22: =IF(OR($D$3=1,$D$3=3),F20,F21) -> 0.04 | G22: 0.023 | H22: 0.02 | I22: 0.02 | J22: 0.02 | K22: 0.02 | L22: 0.02 | M22: 0.02 | N22: 0.02 | O22: 0.02 | P22: 0.02 | Q22: 0.02 | R22: 0.02 | S22: 0.02 | T22: 0.02 | U22: 0.02 | V22: 0.02 | W22: 0.02 | X22: 0.02 | Y22: 0.02 | Z22: 0.02 | AA22: 0.02 | AB22: 0.02 | AC22: 0.02 | AD22: 0.02 | AE22: 0.02 | AF22: 0.02 | AG22: 0.02 | AH22: 0.02 | AI22: 0.02 | AJ22: 0.02 | AK22: 0.02 | AL22: 0.02 | AM22: 0.02 | AN22: 0.02 | AO22: 0.02 | AP22: 0.02 | AQ22: 0.02 | AR22: 0.02 | AS22: 0.02 | AT22: 0.02 | AU22: 0.02 | AV22: 0.02 | AW22: 0.02 | AX22: 0.02 | AY22: 0.02 | AZ22: 0.02 | BA22: 0.02 | BB22: 0.02
B23: Inflation rate, lagged, 8 index, September year-end | E23: =[1]Output!G10 -> 0.01882640587 | F23: =[1]Output!H10 -> 0.01463882889 | G23: =[1]Output!I10 -> 0.04925236518 | H23: =[1]Output!J10 -> 0.03836140997 | I23: =[1]Output!K10 -> 0.02248782285 | J23: =[1]Output!L10 -> 0.02024771097 | K23: =[1]Output!M10 -> 0.02 | L23: =[1]Output!N10 -> 0.02 | M23: =[1]Output!O10 -> 0.02 | N23: =[1]Output!P10 -> 0.02 | O23: =[1]Output!Q10 -> 0.02 | P23: =[1]Output!R10 -> 0.02 | Q23: =[1]Output!S10 -> 0.02 | R23: =[1]Output!T10 -> 0.02 | S23: =[1]Output!U10 -> 0.02 | T23: =[1]Output!V10 -> 0.02 | U23: =[1]Output!W10 -> 0.02 | V23: =[1]Output!X10 -> 0.02 | W23: =[1]Output!Y10 -> 0.02 | X23: =[1]Output!Z10 -> 0.02 | Y23: =[1]Output!AA10 -> 0.02 | Z23: =[1]Output!AB10 -> 0.02 | AA23: =[1]Output!AC10 -> 0.02 | AB23: =[1]Output!AD10 -> 0.02 | AC23: =[1]Output!AE10 -> 0.02 | AD23: =[1]Output!AF10 -> 0.02 | AE23: =[1]Output!AG10 -> 0.02 | AF23: =[1]Output!AH10 -> 0.02 | AG23: =[1]Output!AI10 -> 0.02 | AH23: =[1]Output!AJ10 -> 0.02 | AI23: =[1]Output!AK10 -> 0.02 | AJ23: =[1]Output!AL10 -> 0.02 | AK23: =[1]Output!AM10 -> 0.02 | AL23: =[1]Output!AN10 -> 0.02 | AM23: =[1]Output!AO10 -> 0.02 | AN23: =[1]Output!AP10 -> 0.02 | AO23: =[1]Output!AQ10 -> 0.02 | AP23: =[1]Output!AR10 -> 0.02 | AQ23: =[1]Output!AS10 -> 0.02 | AR23: =[1]Output!AT10 -> 0.02 | AS23: =[1]Output!AU10 -> 0.02 | AT23: =[1]Output!AV10 -> 0.02 | AU23: =[1]Output!AW10 -> 0.02 | AV23: =[1]Output!AX10 -> 0.02 | AW23: =[1]Output!AY10 -> 0.02 | AX23: =[1]Output!AZ10 -> 0.02 | AY23: =[1]Output!BA10 -> 0.02 | AZ23: =[1]Output!BB10 -> 0.02 | BA23: =[1]Output!BC10 -> 0.02 | BB23: =[1]Output!BD10 -> 0.02
B24: Inflation rate, not lagged, 8 index, September year-end | E24: =[1]Output!G11 -> 0.02811532047 | F24: =[1]Output!H11 -> 0.05138887601 | G24: =[1]Output!I11 -> 0.02746210288 | H24: =[1]Output!J11 -> 0.02074756236 | I24: =[1]Output!K11 -> 0.02 | J24: =[1]Output!L11 -> 0.02 | K24: =[1]Output!M11 -> 0.02 | L24: =[1]Output!N11 -> 0.02 | M24: =[1]Output!O11 -> 0.02 | N24: =[1]Output!P11 -> 0.02 | O24: =[1]Output!Q11 -> 0.02 | P24: =[1]Output!R11 -> 0.02 | Q24: =[1]Output!S11 -> 0.02 | R24: =[1]Output!T11 -> 0.02 | S24: =[1]Output!U11 -> 0.02 | T24: =[1]Output!V11 -> 0.02 | U24: =[1]Output!W11 -> 0.02 | V24: =[1]Output!X11 -> 0.02 | W24: =[1]Output!Y11 -> 0.02 | X24: =[1]Output!Z11 -> 0.02 | Y24: =[1]Output!AA11 -> 0.02 | Z24: =[1]Output!AB11 -> 0.02 | AA24: =[1]Output!AC11 -> 0.02 | AB24: =[1]Output!AD11 -> 0.02 | AC24: =[1]Output!AE11 -> 0.02 | AD24: =[1]Output!AF11 -> 0.02 | AE24: =[1]Output!AG11 -> 0.02 | AF24: =[1]Output!AH11 -> 0.02 | AG24: =[1]Output!AI11 -> 0.02 | AH24: =[1]Output!AJ11 -> 0.02 | AI24: =[1]Output!AK11 -> 0.02 | AJ24: =[1]Output!AL11 -> 0.02 | AK24: =[1]Output!AM11 -> 0.02 | AL24: =[1]Output!AN11 -> 0.02 | AM24: =[1]Output!AO11 -> 0.02 | AN24: =[1]Output!AP11 -> 0.02 | AO24: =[1]Output!AQ11 -> 0.02 | AP24: =[1]Output!AR11 -> 0.02 | AQ24: =[1]Output!AS11 -> 0.02 | AR24: =[1]Output!AT11 -> 0.02 | AS24: =[1]Output!AU11 -> 0.02 | AT24: =[1]Output!AV11 -> 0.02 | AU24: =[1]Output!AW11 -> 0.02 | AV24: =[1]Output!AX11 -> 0.02 | AW24: =[1]Output!AY11 -> 0.02 | AX24: =[1]Output!AZ11 -> 0.02 | AY24: =[1]Output!BA11 -> 0.02 | AZ24: =[1]Output!BB11 -> 0.02 | BA24: =[1]Output!BC11 -> 0.02 | BB24: =[1]Output!BD11 -> 0.02
B25: Inflation rate, not lagged for FGT, lagged for other GPBs | E25: =IF(GPB_name="First Gas transmission",E24,E23) -> 0.02811532047 | F25: 0.05138887601 | G25: 0.02746210288 | H25: 0.02074756236 | I25: 0.02 | J25: 0.02 | K25: 0.02 | L25: 0.02 | M25: 0.02 | N25: 0.02 | O25: 0.02 | P25: 0.02 | Q25: 0.02 | R25: 0.02 | S25: 0.02 | T25: 0.02 | U25: 0.02 | V25: 0.02 | W25: 0.02 | X25: 0.02 | Y25: 0.02 | Z25: 0.02 | AA25: 0.02 | AB25: 0.02 | AC25: 0.02 | AD25: 0.02 | AE25: 0.02 | AF25: 0.02 | AG25: 0.02 | AH25: 0.02 | AI25: 0.02 | AJ25: 0.02 | AK25: 0.02 | AL25: 0.02 | AM25: 0.02 | AN25: 0.02 | AO25: 0.02 | AP25: 0.02 | AQ25: 0.02 | AR25: 0.02 | AS25: 0.02 | AT25: 0.02 | AU25: 0.02 | AV25: 0.02 | AW25: 0.02 | AX25: 0.02 | AY25: 0.02 | AZ25: 0.02 | BA25: 0.02 | BB25: 0.02
B27: Existing assets 2020 closing RAB, broken down by expiry year
B28: as received in responses to our requests for information. Amounts in $000s. | I28: Chosen GPB
B29: Expiry year | D29: GasNet | E29: Powerco | F29: Vector | G29: First Gas distribution | H29: First Gas transmission | I29: =GPB_name -> First Gas transmission
B30: 2021 | D30: 1 | E30: 473.7018167 | F30: 1345.749 | G30: 34.61677199 | H30: 1336.104253 | I30: =INDEX(D30:H30,1,D$3) -> 1336.104253
B31: 2022 | D31: 39 | E31: 368.1073438 | F31: 966.364 | G31: 228.1873519 | H31: 1613.233183 | I31: 1613.233183 | J31: Note rows may be hidden immediately below this text.
B32: 2023 | D32: 48 | E32: 648.4479801 | F32: 1510.518 | G32: 213.9978738 | H32: 4387.006796 | I32: 4387.006796
B33: 2024 | D33: 19 | E33: 1115.049825 | F33: 440.565 | G33: 348.7421922 | H33: 4053.607027 | I33: 4053.607027
B34: 2025 | D34: 90 | E34: 1111.855666 | F34: 424.578 | G34: 341.7498898 | H34: 1364.983383 | I34: 1364.983383
B35: 2026 | D35: 24 | E35: 1246.695025 | F35: 352.318 | G35: 361.6722347 | H35: 741.4545246 | I35: 741.4545246
B36: 2027 | D36: 17 | E36: 945.9782686 | F36: 1855.957 | G36: 587.9626007 | H36: 3757.951525 | I36: 3757.951525
B37: 2028 | D37: 99 | E37: 1955.852923 | F37: 1391.56 | G37: 651.0141205 | H37: 4931.591375 | I37: 4931.591375
B38: 2029 | D38: 163 | E38: 8902.534677 | F38: 1125.121 | G38: 667.416967 | H38: 5259.39943 | I38: 5259.39943
B39: 2030 | D39: 307 | E39: 2750.312519 | F39: 966.999 | G39: 424.4785516 | H39: 1846.314316 | I39: 1846.314316
B40: 2031 | D40: 287 | E40: 8036.33152 | F40: 370.51 | G40: 731.4915865 | H40: 950.2487371 | I40: 950.2487371
B41: 2032 | D41: 316 | E41: 1950.26993 | F41: 625.511 | G41: 1057.693602 | H41: 2113.267297 | I41: 2113.267297
B42: 2033 | D42: 406 | E42: 4215.864422 | F42: 864.8 | G42: 1252.182287 | H42: 36015.71054 | I42: 36015.71054
B43: 2034 | D43: 366 | E43: 6939.905172 | F43: 1340.488 | G43: 1122.715699 | H43: 1856.010704 | I43: 1856.010704
B44: 2035 | D44: 516 | E44: 5096.238036 | F44: 739.809 | G44: 3277.921834 | H44: 125.9218295 | I44: 125.9218295
B45: 2036 | D45: 1 | E45: 5381.320139 | F45: 568.207 | G45: 3085.945578 | H45: 10016.15182 | I45: 10016.15182
B46: 2037 | D46: 2 | E46: 6797.291911 | F46: 805.728 | G46: 3904.310964 | H46: 4406.318036 | I46: 4406.318036
B47: 2038 | D47: 26 | E47: 8304.388489 | F47: 885.323 | G47: 4771.632746 | H47: 1068.049329 | I47: 1068.049329
B48: 2039 | D48: 72 | E48: 11334.1582 | F48: 6145.335 | G48: 5750.976585 | H48: 550.7768622 | I48: 550.7768622
B49: 2040 | D49: 55 | E49: 9045.326529 | F49: 2181.302 | G49: 2337.893945 | H49: 27062.9898 | I49: 27062.9898
B50: 2041 | D50: 4 | E50: 13939.06824 | F50: 1950.386 | G50: 3230.130503 | H50: 1348.632627 | I50: 1348.632627
B51: 2042 | D51: 75 | E51: 14739.5887 | F51: 1482.738 | G51: 2685.651812 | H51: 13.30130839 | I51: 13.30130839
B52: 2043 | D52: 310 | E52: 14358.49035 | F52: 1133.071 | G52: 2234.429906 | H52: 11808.27003 | I52: 11808.27003
B53: 2044 | D53: 18 | E53: 14048.05095 | F53: 2051.789 | G53: 2857.502891 | H53: 13909.71999 | I53: 13909.71999
B54: 2045 | D54: 41 | E54: 12678.12881 | F54: 1000.57 | G54: 2624.944998 | H54: 5816.779882 | I54: 5816.779882
B55: 2046 | D55: 852 | E55: 11457.26541 | F55: 2036.031 | G55: 3018.485696 | H55: 37199.36876 | I55: 37199.36876
B56: 2047 | D56: 652 | E56: 10228.72343 | F56: 2340.845 | G56: 4676.035015 | H56: 101554.3749 | I56: 101554.3749
B57: 2048 | D57: 778 | E57: 8641.67711 | F57: 4611.768 | G57: 5341.916769 | H57: 37285.46137 | I57: 37285.46137
B58: 2049 | D58: 1135 | E58: 11829.92382 | F58: 6983.023 | G58: 5591.957171 | H58: 48813.05917 | I58: 48813.05917
B59: 2050 | D59: 860 | E59: 7076.723603 | F59: 9673.907 | G59: 4669.821343 | H59: 13079.84059 | I59: 13079.84059
B60: 2051 | D60: 489 | E60: 5552.75192 | F60: 5090.681 | G60: 2378.584894 | H60: 1183.385459 | I60: 1183.385459
B61: 2052 | D61: 490 | E61: 15360.65727 | F61: 5593.829 | G61: 5017.994967 | H61: 28656.90348 | I61: 28656.90348
B62: 2053 | D62: 981 | E62: 9727.61131 | F62: 8872.99 | G62: 3478.290323 | H62: 13614.16278 | I62: =INDEX(D62:H62,1,D$3) -> 13614.16278
B63: 2054 | D63: 763 | E63: 8222.705223 | F63: 9911.88 | G63: 2197.400845 | H63: 13068.37652 | I63: 13068.37652
B64: 2055 | D64: 483 | E64: 6767.678917 | F64: 11572.603 | G64: 2954.45217 | H64: 286637.912 | I64: 286637.912
B65: 2056 | D65: 1031 | E65: 6439.352897 | F65: 16146.492 | G65: 566.3036027 | H65: 0 | I65: 0
B66: 2057 | D66: 383 | E66: 8748.326252 | F66: 27097.606 | G66: 587.3878419 | H66: 4013.195266 | I66: 4013.195266
B67: 2058 | D67: 445 | E67: 6176.338907 | F67: 17587.652 | G67: 4546.259093 | H67: 854.6862886 | I67: 854.6862886
B68: 2059 | D68: 231 | E68: 5876.452541 | F68: 7861.66 | G68: 2556.788694 | H68: 1942.739924 | I68: 1942.739924
B69: 2060 | D69: 513 | E69: 8793.213885 | F69: 10827.587 | G69: 1.902772416 | H69: 1286.523085 | I69: 1286.523085
B70: 2061 | D70: 345 | E70: 7912.765301 | F70: 4892.764 | G70: 24.48971736 | H70: 0 | I70: 0
B71: 2062 | D71: 296 | E71: 5588.966054 | F71: 4204.628 | G71: 31.34423484 | H71: 3501.911095 | I71: 3501.911095
B72: 2063 | D72: 385 | E72: 33738.89405 | F72: 5308.853 | G72: 1766.68113 | H72: 133.7665539 | I72: 133.7665539
B73: 2064 | D73: 328 | E73: 7943.49308 | F73: 12474.099 | G73: 0.3878883157 | H73: 0 | I73: 0
B74: 2065 | D74: 479 | E74: 6479.376783 | F74: 11417.496 | G74: 33.93295623 | H74: -572.0378424 | I74: -572.0378424
B75: 2066 | D75: 382 | E75: 8194.420751 | F75: 12587.631 | G75: 0.923385794 | H75: 0 | I75: 0
B76: 2067 | D76: 350 | E76: 9315.586831 | F76: 17310.022 | G76: 1.53339796 | H76: 141.9616949 | I76: 141.9616949
B77: 2068 | D77: 431 | E77: 4079.951557 | F77: 2126.64 | G77: 0 | H77: 553.9733892 | I77: 553.9733892
B78: 2069 | D78: 561 | E78: 1231.795087 | F78: 22613.561 | G78: 121.5221815 | H78: 733.9714687 | I78: 733.9714687
B79: 2070 | D79: 374 | E79: 387.1331608 | F79: 3888.905 | G79: 3125.553716 | H79: 13538.6529 | I79: 13538.6529
B80: 2071 | D80: 490 | E80: 426.9142336 | F80: 12589.858 | G80: 2887.375247 | H80: 0 | I80: 0
B81: 2072 | D81: 452 | E81: 834.1533722 | F81: 12598.131 | G81: 2141.584597 | H81: 1640.131698 | I81: 1640.131698
B82: 2073 | D82: 516 | E82: 605.9962551 | F82: 10320.116 | G82: 6180.341417 | H82: 1649.178458 | I82: 1649.178458
B83: 2074 | D83: 542 | E83: 326.465489 | F83: 19834.172 | G83: 6786.323259 | H83: 0 | I83: 0
B84: 2075 | D84: 543 | E84: 125.4855364 | F84: 11197.455 | G84: 6508.240727 | H84: 0 | I84: 0
B85: 2076 | D85: 415 | E85: 281.2908533 | F85: 14940.052 | G85: 0 | H85: 0 | I85: 0
B86: 2077 | D86: 698 | E86: 441.664778 | F86: 15296.279 | G86: 10224.15433 | H86: 0 | I86: 0
B87: 2078 | D87: 434 | E87: 163.7274292 | F87: 20243.667 | G87: 6107.20268 | H87: 39.08529926 | I87: 39.08529926
B88: 2079 | D88: 1055 | E88: 502.6915554 | F88: 16849.956 | G88: 11085.87787 | H88: 0 | I88: 0
B89: 2080 | D89: 442 | E89: 242.2490683 | F89: 15195.547 | G89: 13985.25994 | H89: 0 | I89: 0
B90: 2081 | D90: 500 | E90: 594.9580029 | F90: 2136.21 | G90: 1151.959917 | H90: 0 | I90: 0
B91: 2082 | D91: 0 | E91: 227.1572386 | F91: 805.25 | G91: 629.1594151 | H91: 0 | I91: 0
B92: 2083 | D92: 2 | E92: 557.6177936 | F92: -9.593 | G92: 502.3904558 | H92: 0 | I92: 0
B93: 2084 | D93: 0 | E93: 1990.096836 | F93: 355.527 | G93: 75.19698708 | H93: 0 | I93: 0
B94: 2085 | D94: 0 | E94: 2085.946722 | F94: 4112.447 | G94: 220.8317559 | H94: 0 | I94: =INDEX(D94:H94,1,D$3) -> 0
B95: 2086 | D95: 155 | E95: 893.9916262 | F95: 1023.163 | G95: 0 | H95: 0 | I95: 0
B96: 2087 | D96: 2 | E96: 810.9873224 | F96: 257.215 | G96: 5099.085888 | H96: 0 | I96: 0
B97: 2088 | D97: 140 | E97: 3.408931119 | F97: 239.53 | G97: 1099.114241 | H97: 8411.006054 | I97: 8411.006054
B98: 2089 | D98: 0 | E98: 0 | F98: 211.36 | G98: 1983.95989 | H98: -386.7202342 | I98: -386.7202342
B99: 2090 | D99: 219 | E99: 0 | F99: 501.209 | G99: 169.5262301 | H99: =614.596164581328+17445.662 -> 18060.25816 | I99: 18060.25816
D100: =SUM(D30:D99) -> 23924 | E100: 383269.5456 | F100: 434256 | G100: 174312.7981 | H100: 782988.9229 | I100: 782988.9229

Sheet Existing
A1: Existing assets
A2: =GPB_name -> First Gas transmission
A3: Inputs
B4: Mitigation | G4: =Inputs_AS!D14 -> TRUE
B5: Stranding year | G5: =Inputs_AS!D10 -> 2070
B6: Adjustment Factor | G6: =AdjFactor -> 0.812895939
B7: Apply revaluations from 2023 onwards | G7: =Reval -> TRUE
B9: Forecast changes in CPI used for revaluations
E10: 2021 | F10: 2022 | G10: 2023 | H10: 2024 | I10: 2025 | J10: 2026 | K10: 2027 | L10: 2028 | M10: 2029 | N10: 2030 | O10: 2031 | P10: 2032 | Q10: 2033 | R10: 2034 | S10: 2035 | T10: 2036 | U10: 2037 | V10: 2038 | W10: 2039 | X10: 2040 | Y10: 2041 | Z10: 2042 | AA10: 2043 | AB10: 2044 | AC10: 2045 | AD10: 2046 | AE10: 2047 | AF10: 2048 | AG10: 2049 | AH10: 2050 | AI10: 2051 | AJ10: 2052 | AK10: 2053 | AL10: 2054 | AM10: 2055 | AN10: 2056 | AO10: 2057 | AP10: 2058 | AQ10: 2059 | AR10: 2060 | AS10: 2061 | AT10: 2062 | AU10: 2063 | AV10: 2064 | AW10: 2065 | AX10: 2066 | AY10: 2067 | AZ10: 2068 | BA10: 2069 | BB10: 2070 | BC10: 2071 | BD10: 2072
B11: Forecast CPI increases (revaluations) | E11: =Inputs_AS!E22 -> 0.04933586338 | F11: =Inputs_AS!F22 -> 0.04 | G11: =IF(AND($G$7,G10<>$G$5),Inputs_AS!G22,0) -> 0.023 | H11: =IF(AND($G$7,H10<>$G$5),Inputs_AS!H22,0) -> 0.02 | I11: =IF(AND($G$7,I10<>$G$5),Inputs_AS!I22,0) -> 0.02 | J11: =IF(AND($G$7,J10<>$G$5),Inputs_AS!J22,0) -> 0.02 | K11: =IF(AND($G$7,K10<>$G$5),Inputs_AS!K22,0) -> 0.02 | L11: =IF(AND($G$7,L10<>$G$5),Inputs_AS!L22,0) -> 0.02 | M11: =IF(AND($G$7,M10<>$G$5),Inputs_AS!M22,0) -> 0.02 | N11: =IF(AND($G$7,N10<>$G$5),Inputs_AS!N22,0) -> 0.02 | O11: =IF(AND($G$7,O10<>$G$5),Inputs_AS!O22,0) -> 0.02 | P11: =IF(AND($G$7,P10<>$G$5),Inputs_AS!P22,0) -> 0.02 | Q11: =IF(AND($G$7,Q10<>$G$5),Inputs_AS!Q22,0) -> 0.02 | R11: =IF(AND($G$7,R10<>$G$5),Inputs_AS!R22,0) -> 0.02 | S11: =IF(AND($G$7,S10<>$G$5),Inputs_AS!S22,0) -> 0.02 | T11: =IF(AND($G$7,T10<>$G$5),Inputs_AS!T22,0) -> 0.02 | U11: =IF(AND($G$7,U10<>$G$5),Inputs_AS!U22,0) -> 0.02 | V11: =IF(AND($G$7,V10<>$G$5),Inputs_AS!V22,0) -> 0.02 | W11: =IF(AND($G$7,W10<>$G$5),Inputs_AS!W22,0) -> 0.02 | X11: =IF(AND($G$7,X10<>$G$5),Inputs_AS!X22,0) -> 0.02 | Y11: =IF(AND($G$7,Y10<>$G$5),Inputs_AS!Y22,0) -> 0.02 | Z11: =IF(AND($G$7,Z10<>$G$5),Inputs_AS!Z22,0) -> 0.02 | AA11: =IF(AND($G$7,AA10<>$G$5),Inputs_AS!AA22,0) -> 0.02 | AB11: =IF(AND($G$7,AB10<>$G$5),Inputs_AS!AB22,0) -> 0.02 | AC11: =IF(AND($G$7,AC10<>$G$5),Inputs_AS!AC22,0) -> 0.02 | AD11: =IF(AND($G$7,AD10<>$G$5),Inputs_AS!AD22,0) -> 0.02 | AE11: =IF(AND($G$7,AE10<>$G$5),Inputs_AS!AE22,0) -> 0.02 | AF11: =IF(AND($G$7,AF10<>$G$5),Inputs_AS!AF22,0) -> 0.02 | AG11: =IF(AND($G$7,AG10<>$G$5),Inputs_AS!AG22,0) -> 0.02 | AH11: =IF(AND($G$7,AH10<>$G$5),Inputs_AS!AH22,0) -> 0.02 | AI11: =IF(AND($G$7,AI10<>$G$5),Inputs_AS!AI22,0) -> 0.02 | AJ11: =IF(AND($G$7,AJ10<>$G$5),Inputs_AS!AJ22,0) -> 0.02 | AK11: =IF(AND($G$7,AK10<>$G$5),Inputs_AS!AK22,0) -> 0.02 | AL11: =IF(AND($G$7,AL10<>$G$5),Inputs_AS!AL22,0) -> 0.02 | AM11: =IF(AND($G$7,AM10<>$G$5),Inputs_AS!AM22,0) -> 0.02 | AN11: =IF(AND($G$7,AN10<>$G$5),Inputs_AS!AN22,0) -> 0.02 | AO11: =IF(AND($G$7,AO10<>$G$5),Inputs_AS!AO22,0) -> 0.02 | AP11: =IF(AND($G$7,AP10<>$G$5),Inputs_AS!AP22,0) -> 0.02 | AQ11: =IF(AND($G$7,AQ10<>$G$5),Inputs_AS!AQ22,0) -> 0.02 | AR11: =IF(AND($G$7,AR10<>$G$5),Inputs_AS!AR22,0) -> 0.02 | AS11: =IF(AND($G$7,AS10<>$G$5),Inputs_AS!AS22,0) -> 0.02 | AT11: =IF(AND($G$7,AT10<>$G$5),Inputs_AS!AT22,0) -> 0.02 | AU11: =IF(AND($G$7,AU10<>$G$5),Inputs_AS!AU22,0) -> 0.02 | AV11: =IF(AND($G$7,AV10<>$G$5),Inputs_AS!AV22,0) -> 0.02 | AW11: =IF(AND($G$7,AW10<>$G$5),Inputs_AS!AW22,0) -> 0.02 | AX11: =IF(AND($G$7,AX10<>$G$5),Inputs_AS!AX22,0) -> 0.02 | AY11: =IF(AND($G$7,AY10<>$G$5),Inputs_AS!AY22,0) -> 0.02 | AZ11: =IF(AND($G$7,AZ10<>$G$5),Inputs_AS!AZ22,0) -> 0.02 | BA11: =IF(AND($G$7,BA10<>$G$5),Inputs_AS!BA22,0) -> 0.02 | BB11: =IF(AND($G$7,BB10<>$G$5),Inputs_AS!BB22,0) -> 0 | BC11: 0
A13: Calculations
B14: Panel of opening RAB by ID year by expiry year
C15: ID years: | D15: 2020 | E15: 2021 | F15: 2022 | G15: 2023 | H15: 2024 | I15: 2025 | J15: 2026 | K15: 2027 | L15: 2028 | M15: 2029 | N15: 2030 | O15: 2031 | P15: 2032 | Q15: 2033 | R15: 2034 | S15: 2035 | T15: 2036 | U15: 2037 | V15: 2038 | W15: 2039 | X15: 2040 | Y15: 2041 | Z15: 2042 | AA15: 2043 | AB15: 2044 | AC15: 2045 | AD15: 2046 | AE15: 2047 | AF15: 2048 | AG15: 2049 | AH15: 2050 | AI15: 2051 | AJ15: 2052 | AK15: 2053 | AL15: 2054 | AM15: 2055 | AN15: 2056 | AO15: 2057 | AP15: 2058 | AQ15: 2059 | AR15: 2060 | AS15: 2061 | AT15: 2062 | AU15: 2063 | AV15: 2064 | AW15: 2065 | AX15: 2066 | AY15: 2067 | AZ15: 2068 | BA15: 2069 | BB15: 2070 | BC15: 2071 | BD15: 2072
B16: Expiry year per RFI | C16: Opening RAB per RFI | D16: Expiry year post accln
B17: 2021 | C17: =Inputs_AS!I30 -> 1336.104253 | D17: =B17 -> 2021 | E17: =C17 -> 1336.104253 | F17: =IF(F$15>$B17,0,E17*(1-1/($B17-F$15+2)+E$11)) -> 0 | G17: 0 | H17: =IF(H$15>$D17+1,0,G17*(1-1/($D17-H$15+2)+G$11)) -> 0 | I17: =IF(I$15>$D17+1,0,H17*(1-1/($D17-I$15+2)+H$11)) -> 0 | J17: =IF(J$15>$D17+1,0,I17*(1-1/($D17-J$15+2)+I$11)) -> 0 | K17: 0 | L17: 0 | M17: 0 | N17: 0 | O17: 0 | P17: 0 | Q17: 0 | R17: 0 | S17: 0 | T17: 0 | U17: 0 | V17: 0 | W17: 0 | X17: 0 | Y17: 0 | Z17: 0 | AA17: 0 | AB17: 0 | AC17: 0 | AD17: 0 | AE17: 0 | AF17: 0 | AG17: 0 | AH17: 0 | AI17: 0 | AJ17: 0 | AK17: 0 | AL17: 0 | AM17: 0 | AN17: 0 | AO17: 0 | AP17: 0 | AQ17: 0 | AR17: 0 | AS17: 0 | AT17: 0 | AU17: 0 | AV17: 0 | AW17: 0 | AX17: 0 | AY17: 0 | AZ17: 0 | BA17: 0 | BB17: 0 | BC17: 0 | BD17: 0
B18: 2022 | C18: =Inputs_AS!I31 -> 1613.233183 | D18: =B18 -> 2022 | E18: 1613.233183 | F18: =IF(F$15>$B18,0,E18*(1-1/($B18-F$15+2)+E$11)) -> 886.2068436 | G18: 0 | H18: =IF(H$15>$D18+1,0,G18*(1-1/($D18-H$15+2)+G$11)) -> 0 | I18: 0 | J18: 0 | K18: 0 | L18: 0 | M18: 0 | N18: 0 | O18: 0 | P18: 0 | Q18: 0 | R18: 0 | S18: 0 | T18: 0 | U18: 0 | V18: 0 | W18: 0 | X18: 0 | Y18: 0 | Z18: 0 | AA18: 0 | AB18: 0 | AC18: 0 | AD18: 0 | AE18: 0 | AF18: 0 | AG18: 0 | AH18: 0 | AI18: 0 | AJ18: 0 | AK18: 0 | AL18: 0 | AM18: 0 | AN18: 0 | AO18: 0 | AP18: 0 | AQ18: 0 | AR18: 0 | AS18: 0 | AT18: 0 | AU18: 0 | AV18: 0 | AW18: 0 | AX18: 0 | AY18: 0 | AZ18: 0 | BA18: 0 | BB18: 0 | BC18: 0 | BD18: 0
B19: 2023 | C19: =Inputs_AS!I32 -> 4387.006796 | D19: =IF($G$4,ROUND(MIN(G$5,2023+(B19-2023)*$G$6),2),B19) -> 2023 | E19: 4387.006796 | F19: =IF(F$15>$B19,0,E19*(1-1/($B19-F$15+2)+E$11)) -> 3141.107965 | G19: =IF(G$15>$B19,0,F19*(1-1/($B19-G$15+2)+F$11)) -> 1696.198301 | H19: =IF(H$15>$D19+1,0,G19*(1-1/($D19-H$15+2)+G$11)) -> 39.01256093 | I19: 0 | J19: 0 | K19: 0 | L19: 0 | M19: 0 | N19: 0 | O19: 0 | P19: 0 | Q19: 0 | R19: 0 | S19: 0 | T19: 0 | U19: 0 | V19: 0 | W19: 0 | X19: 0 | Y19: 0 | Z19: 0 | AA19: 0 | AB19: 0 | AC19: 0 | AD19: 0 | AE19: 0 | AF19: 0 | AG19: 0 | AH19: 0 | AI19: 0 | AJ19: 0 | AK19: 0 | AL19: 0 | AM19: 0 | AN19: 0 | AO19: 0 | AP19: 0 | AQ19: 0 | AR19: 0 | AS19: 0 | AT19: 0 | AU19: 0 | AV19: 0 | AW19: 0 | AX19: 0 | AY19: 0 | AZ19: 0 | BA19: 0 | BB19: 0 | BC19: 0 | BD19: 0
B20: 2024 | C20: =Inputs_AS!I33 -> 4053.607027 | D20: =IF($G$4,ROUND(MIN(G$5,2023+(B20-2023)*$G$6),2),B20) -> 2023.81 | E20: 4053.607027 | F20: =IF(F$15>$B20,0,E20*(1-1/($B20-F$15+2)+E$11)) -> 3240.193473 | G20: 2289.736721 | H20: =IF(H$15>$D20+1,0,G20*(1-1/($D20-H$15+2)+G$11)) -> 1077.352753 | I20: 0 | J20: 0 | K20: 0 | L20: 0 | M20: 0 | N20: 0 | O20: 0 | P20: 0 | Q20: 0 | R20: 0 | S20: 0 | T20: 0 | U20: 0 | V20: 0 | W20: 0 | X20: 0 | Y20: 0 | Z20: 0 | AA20: 0 | AB20: 0 | AC20: 0 | AD20: 0 | AE20: 0 | AF20: 0 | AG20: 0 | AH20: 0 | AI20: 0 | AJ20: 0 | AK20: 0 | AL20: 0 | AM20: 0 | AN20: 0 | AO20: 0 | AP20: 0 | AQ20: 0 | AR20: 0 | AS20: 0 | AT20: 0 | AU20: 0 | AV20: 0 | AW20: 0 | AX20: 0 | AY20: 0 | AZ20: 0 | BA20: 0 | BB20: 0 | BC20: 0 | BD20: 0
B21: 2025 | C21: =Inputs_AS!I34 -> 1364.983383 | D21: 2024.63 | E21: 1364.983383 | F21: =IF(F$15>$B21,0,E21*(1-1/($B21-F$15+2)+E$11)) -> 1159.32934 | G21: 915.8701786 | H21: =IF(H$15>$D21+1,0,G21*(1-1/($D21-H$15+2)+G$11)) -> 588.6955811 | I21: 239.3065595 | J21: 0 | K21: 0 | L21: 0 | M21: 0 | N21: 0 | O21: 0 | P21: 0 | Q21: 0 | R21: 0 | S21: 0 | T21: 0 | U21: 0 | V21: 0 | W21: 0 | X21: 0 | Y21: 0 | Z21: 0 | AA21: 0 | AB21: 0 | AC21: 0 | AD21: 0 | AE21: 0 | AF21: 0 | AG21: 0 | AH21: 0 | AI21: 0 | AJ21: 0 | AK21: 0 | AL21: 0 | AM21: 0 | AN21: 0 | AO21: 0 | AP21: 0 | AQ21: 0 | AR21: 0 | AS21: 0 | AT21: 0 | AU21: 0 | AV21: 0 | AW21: 0 | AX21: 0 | AY21: 0 | AZ21: 0 | BA21: 0 | BB21: 0 | BC21: 0 | BD21: 0
B22: 2026 | C22: =Inputs_AS!I35 -> 741.4545246 | D22: 2025.44 | E22: 741.4545246 | F22: =IF(F$15>$B22,0,E22*(1-1/($B22-F$15+2)+E$11)) -> 654.4590696 | G22: 549.7456185 | H22: =IF(H$15>$D22+1,0,G22*(1-1/($D22-H$15+2)+G$11)) -> 402.5799949 | I22: 245.6397936 | J22: 79.96939947 | K22: 0 | L22: 0 | M22: 0 | N22: 0 | O22: 0 | P22: 0 | Q22: 0 | R22: 0 | S22: 0 | T22: 0 | U22: 0 | V22: 0 | W22: 0 | X22: 0 | Y22: 0 | Z22: 0 | AA22: 0 | AB22: 0 | AC22: 0 | AD22: 0 | AE22: 0 | AF22: 0 | AG22: 0 | AH22: 0 | AI22: 0 | AJ22: 0 | AK22: 0 | AL22: 0 | AM22: 0 | AN22: 0 | AO22: 0 | AP22: 0 | AQ22: 0 | AR22: 0 | AS22: 0 | AT22: 0 | AU22: 0 | AV22: 0 | AW22: 0 | AX22: 0 | AY22: 0 | AZ22: 0 | BA22: 0 | BB22: 0 | BC22: 0 | BD22: 0
B23: 2027 | C23: =Inputs_AS!I36 -> 3757.951525 | D23: 2026.25 | E23: 3757.951525 | F23: =IF(F$15>$B23,0,E23*(1-1/($B23-F$15+2)+E$11)) -> 3406.50309 | G23: 2975.012699 | H23: =IF(H$15>$D23+1,0,G23*(1-1/($D23-H$15+2)+G$11)) -> 2343.435003 | I23: 1669.246779 | J23: 960.7442572 | K23: 211.3637366 | L23: 0 | M23: 0 | N23: 0 | O23: 0 | P23: 0 | Q23: 0 | R23: 0 | S23: 0 | T23: 0 | U23: 0 | V23: 0 | W23: 0 | X23: 0 | Y23: 0 | Z23: 0 | AA23: 0 | AB23: 0 | AC23: 0 | AD23: 0 | AE23: 0 | AF23: 0 | AG23: 0 | AH23: 0 | AI23: 0 | AJ23: 0 | AK23: 0 | AL23: 0 | AM23: 0 | AN23: 0 | AO23: 0 | AP23: 0 | AQ23: 0 | AR23: 0 | AS23: 0 | AT23: 0 | AU23: 0 | AV23: 0 | AW23: 0 | AX23: 0 | AY23: 0 | AZ23: 0 | BA23: 0 | BB23: 0 | BC23: 0 | BD23: 0
B24: 2028 | C24: =Inputs_AS!I37 -> 4931.591375 | D24: 2027.06 | E24: 4931.591375 | F24: =IF(F$15>$B24,0,E24*(1-1/($B24-F$15+2)+E$11)) -> 4558.446771 | G24: 4089.57796 | H24: =IF(H$15>$D24+1,0,G24*(1-1/($D24-H$15+2)+G$11)) -> 3375.421265 | I24: 2611.545142 | J24: 1810.32992 | K24: 967.7355865 | L24: 74.13219776 | M24: 0 | N24: 0 | O24: 0 | P24: 0 | Q24: 0 | R24: 0 | S24: 0 | T24: 0 | U24: 0 | V24: 0 | W24: 0 | X24: 0 | Y24: 0 | Z24: 0 | AA24: 0 | AB24: 0 | AC24: 0 | AD24: 0 | AE24: 0 | AF24: 0 | AG24: 0 | AH24: 0 | AI24: 0 | AJ24: 0 | AK24: 0 | AL24: 0 | AM24: 0 | AN24: 0 | AO24: 0 | AP24: 0 | AQ24: 0 | AR24: 0 | AS24: 0 | AT24: 0 | AU24: 0 | AV24: 0 | AW24: 0 | AX24: 0 | AY24: 0 | AZ24: 0 | BA24: 0 | BB24: 0 | BC24: 0 | BD24: 0
B25: 2029 | C25: =Inputs_AS!I38 -> 5259.39943 | D25: 2027.88 | E25: 5259.39943 | F25: =IF(F$15>$B25,0,E25*(1-1/($B25-F$15+2)+E$11)) -> 4934.498728 | G25: 4515.066336 | H25: =IF(H$15>$D25+1,0,G25*(1-1/($D25-H$15+2)+G$11)) -> 3851.044437 | I25: 3138.916876 | J25: 2392.696018 | K25: 1609.75271 | L25: 785.6963228 | M25: 0 | N25: 0 | O25: 0 | P25: 0 | Q25: 0 | R25: 0 | S25: 0 | T25: 0 | U25: 0 | V25: 0 | W25: 0 | X25: 0 | Y25: 0 | Z25: 0 | AA25: 0 | AB25: 0 | AC25: 0 | AD25: 0 | AE25: 0 | AF25: 0 | AG25: 0 | AH25: 0 | AI25: 0 | AJ25: 0 | AK25: 0 | AL25: 0 | AM25: 0 | AN25: 0 | AO25: 0 | AP25: 0 | AQ25: 0 | AR25: 0 | AS25: 0 | AT25: 0 | AU25: 0 | AV25: 0 | AW25: 0 | AX25: 0 | AY25: 0 | AZ25: 0 | BA25: 0 | BB25: 0 | BC25: 0 | BD25: 0
B26: 2030 | C26: =Inputs_AS!I39 -> 1846.314316 | D26: 2028.69 | E26: 1846.314316 | F26: =IF(F$15>$B26,0,E26*(1-1/($B26-F$15+2)+E$11)) -> 1752.772396 | G26: 1628.130803 | H26: =IF(H$15>$D26+1,0,G26*(1-1/($D26-H$15+2)+G$11)) -> 1422.209979 | I26: 1200.705148 | J26: 968.7053605 | K26: 725.5576898 | L26: 470.3447954 | M26: 201.4411615 | N26: 0 | O26: 0 | P26: 0 | Q26: 0 | R26: 0 | S26: 0 | T26: 0 | U26: 0 | V26: 0 | W26: 0 | X26: 0 | Y26: 0 | Z26: 0 | AA26: 0 | AB26: 0 | AC26: 0 | AD26: 0 | AE26: 0 | AF26: 0 | AG26: 0 | AH26: 0 | AI26: 0 | AJ26: 0 | AK26: 0 | AL26: 0 | AM26: 0 | AN26: 0 | AO26: 0 | AP26: 0 | AQ26: 0 | AR26: 0 | AS26: 0 | AT26: 0 | AU26: 0 | AV26: 0 | AW26: 0 | AX26: 0 | AY26: 0 | AZ26: 0 | BA26: 0 | BB26: 0 | BC26: 0 | BD26: 0
B27: 2031 | C27: =Inputs_AS!I40 -> 950.2487371 | D27: 2029.5 | E27: 950.2487371 | F27: =IF(F$15>$B27,0,E27*(1-1/($B27-F$15+2)+E$11)) -> 910.7438302 | G27: 856.0992004 | H27: =IF(H$15>$D27+1,0,G27*(1-1/($D27-H$15+2)+G$11)) -> 761.6429219 | I27: 659.6999462 | J27: 552.9485004 | K27: 441.1300259 | L27: 323.9154761 | M27: 200.8275952 | N27: 70.95908364 | O27: 0 | P27: 0 | Q27: 0 | R27: 0 | S27: 0 | T27: 0 | U27: 0 | V27: 0 | W27: 0 | X27: 0 | Y27: 0 | Z27: 0 | AA27: 0 | AB27: 0 | AC27: 0 | AD27: 0 | AE27: 0 | AF27: 0 | AG27: 0 | AH27: 0 | AI27: 0 | AJ27: 0 | AK27: 0 | AL27: 0 | AM27: 0 | AN27: 0 | AO27: 0 | AP27: 0 | AQ27: 0 | AR27: 0 | AS27: 0 | AT27: 0 | AU27: 0 | AV27: 0 | AW27: 0 | AX27: 0 | AY27: 0 | AZ27: 0 | BA27: 0 | BB27: 0 | BC27: 0 | BD27: 0
B28: 2032 | C28: =Inputs_AS!I41 -> 2113.267297 | D28: 2030.32 | E28: 2113.267297 | F28: =IF(F$15>$B28,0,E28*(1-1/($B28-F$15+2)+E$11)) -> 2041.421556 | G28: 1937.49464 | H28: =IF(H$15>$D28+1,0,G28*(1-1/($D28-H$15+2)+G$11)) -> 1749.185065 | I28: 1545.209058 | J28: 1331.618135 | K28: 1107.946337 | L28: 873.6362042 | M28: 627.9654933 | N28: 369.8500215 | O28: 97.05761172 | P28: 0 | Q28: 0 | R28: 0 | S28: 0 | T28: 0 | U28: 0 | V28: 0 | W28: 0 | X28: 0 | Y28: 0 | Z28: 0 | AA28: 0 | AB28: 0 | AC28: 0 | AD28: 0 | AE28: 0 | AF28: 0 | AG28: 0 | AH28: 0 | AI28: 0 | AJ28: 0 | AK28: 0 | AL28: 0 | AM28: 0 | AN28: 0 | AO28: 0 | AP28: 0 | AQ28: 0 | AR28: 0 | AS28: 0 | AT28: 0 | AU28: 0 | AV28: 0 | AW28: 0 | AX28: 0 | AY28: 0 | AZ28: 0 | BA28: 0 | BB28: 0 | BC28: 0 | BD28: 0
B29: 2033 | C29: =Inputs_AS!I42 -> 36015.71054 | D29: 2031.13 | E29: 36015.71054 | F29: =IF(F$15>$B29,0,E29*(1-1/($B29-F$15+2)+E$11)) -> 35022.13745 | G29: 33504.51149 | H29: =IF(H$15>$D29+1,0,G29*(1-1/($D29-H$15+2)+G$11)) -> 30605.39877 | I29: 27453.00505 | J29: 24151.71381 | K29: 20694.8274 | L29: 17074.64453 | M29: 13281.84093 | N29: 9304.078089 | O29: 5122.047872 | P29: 691.703102 | Q29: 0 | R29: 0 | S29: 0 | T29: 0 | U29: 0 | V29: 0 | W29: 0 | X29: 0 | Y29: 0 | Z29: 0 | AA29: 0 | AB29: 0 | AC29: 0 | AD29: 0 | AE29: 0 | AF29: 0 | AG29: 0 | AH29: 0 | AI29: 0 | AJ29: 0 | AK29: 0 | AL29: 0 | AM29: 0 | AN29: 0 | AO29: 0 | AP29: 0 | AQ29: 0 | AR29: 0 | AS29: 0 | AT29: 0 | AU29: 0 | AV29: 0 | AW29: 0 | AX29: 0 | AY29: 0 | AZ29: 0 | BA29: 0 | BB29: 0 | BC29: 0 | BD29: 0
B30: 2034 | C30: =Inputs_AS!I43 -> 1856.010704 | D30: 2031.94 | E30: 1856.010704 | F30: =IF(F$15>$B30,0,E30*(1-1/($B30-F$15+2)+E$11)) -> 1815.006401 | G30: 1747.99078 | H30: =IF(H$15>$D30+1,0,G30*(1-1/($D30-H$15+2)+G$11)) -> 1612.340365 | I30: 1464.235901 | J30: 1309.108037 | K30: 1146.657916 | L30: 976.5510209 | M30: 798.3996484 | N30: 611.7281367 | O30: 415.8919047 | P30: 209.8324723 | Q30: 0 | R30: 0 | S30: 0 | T30: 0 | U30: 0 | V30: 0 | W30: 0 | X30: 0 | Y30: 0 | Z30: 0 | AA30: 0 | AB30: 0 | AC30: 0 | AD30: 0 | AE30: 0 | AF30: 0 | AG30: 0 | AH30: 0 | AI30: 0 | AJ30: 0 | AK30: 0 | AL30: 0 | AM30: 0 | AN30: 0 | AO30: 0 | AP30: 0 | AQ30: 0 | AR30: 0 | AS30: 0 | AT30: 0 | AU30: 0 | AV30: 0 | AW30: 0 | AX30: 0 | AY30: 0 | AZ30: 0 | BA30: 0 | BB30: 0 | BC30: 0 | BD30: 0
B31: 2035 | C31: =Inputs_AS!I44 -> 125.9218295 | D31: 2032.75 | E31: 125.9218295 | F31: =IF(F$15>$B31,0,E31*(1-1/($B31-F$15+2)+E$11)) -> 123.739503 | G31: 119.8505472 | H31: =IF(H$15>$D31+1,0,G31*(1-1/($D31-H$15+2)+G$11)) -> 111.4582217 | I31: 102.2557736 | J31: 92.61451496 | K31: 82.51654527 | L31: 71.9422028 | M31: 60.86935941 | N31: 49.27214462 | O31: 37.11834895 | P31: 24.36313449 | Q31: 10.92860604 | R31: 0 | S31: 0 | T31: 0 | U31: 0 | V31: 0 | W31: 0 | X31: 0 | Y31: 0 | Z31: 0 | AA31: 0 | AB31: 0 | AC31: 0 | AD31: 0 | AE31: 0 | AF31: 0 | AG31: 0 | AH31: 0 | AI31: 0 | AJ31: 0 | AK31: 0 | AL31: 0 | AM31: 0 | AN31: 0 | AO31: 0 | AP31: 0 | AQ31: 0 | AR31: 0 | AS31: 0 | AT31: 0 | AU31: 0 | AV31: 0 | AW31: 0 | AX31: 0 | AY31: 0 | AZ31: 0 | BA31: 0 | BB31: 0 | BC31: 0 | BD31: 0
B32: 2036 | C32: =Inputs_AS!I45 -> 10016.15182 | D32: 2033.57 | E32: 10016.15182 | F32: =IF(F$15>$B32,0,E32*(1-1/($B32-F$15+2)+E$11)) -> 9884.297825 | G32: 9620.716549 | H32: =IF(H$15>$D32+1,0,G32*(1-1/($D32-H$15+2)+G$11)) -> 9010.470424 | I32: 8338.222839 | J32: 7633.699643 | K32: 6895.626886 | L32: 6122.62438 | M32: 5313.170569 | N32: 4465.543393 | O32: 3577.711287 | P32: 2647.105488 | Q32: 1670.045462 | R32: 639.7231472 | S32: 0 | T32: 0 | U32: 0 | V32: 0 | W32: 0 | X32: 0 | Y32: 0 | Z32: 0 | AA32: 0 | AB32: 0 | AC32: 0 | AD32: 0 | AE32: 0 | AF32: 0 | AG32: 0 | AH32: 0 | AI32: 0 | AJ32: 0 | AK32: 0 | AL32: 0 | AM32: 0 | AN32: 0 | AO32: 0 | AP32: 0 | AQ32: 0 | AR32: 0 | AS32: 0 | AT32: 0 | AU32: 0 | AV32: 0 | AW32: 0 | AX32: 0 | AY32: 0 | AZ32: 0 | BA32: 0 | BB32: 0 | BC32: 0 | BD32: 0
B33: 2037 | C33: =Inputs_AS!I46 -> 4406.318036 | D33: 2034.38 | E33: 4406.318036 | F33: =IF(F$15>$B33,0,E33*(1-1/($B33-F$15+2)+E$11)) -> 4364.512362 | G33: 4266.310834 | H33: =IF(H$15>$D33+1,0,G33*(1-1/($D33-H$15+2)+G$11)) -> 4019.82283 | I33: 3746.983537 | J33: 3460.942135 | K33: 3161.190601 | L33: 2847.184031 | M33: 2518.330417 | N33: 2173.97439 | O33: 1813.369419 | P33: 1435.625524 | Q33: 1039.596755 | R33: 623.583331 | S33: 184.1830186 | T33: 0 | U33: 0 | V33: 0 | W33: 0 | X33: 0 | Y33: 0 | Z33: 0 | AA33: 0 | AB33: 0 | AC33: 0 | AD33: 0 | AE33: 0 | AF33: 0 | AG33: 0 | AH33: 0 | AI33: 0 | AJ33: 0 | AK33: 0 | AL33: 0 | AM33: 0 | AN33: 0 | AO33: 0 | AP33: 0 | AQ33: 0 | AR33: 0 | AS33: 0 | AT33: 0 | AU33: 0 | AV33: 0 | AW33: 0 | AX33: 0 | AY33: 0 | AZ33: 0 | BA33: 0 | BB33: 0 | BC33: 0 | BD33: 0
B34: 2038 | C34: =Inputs_AS!I47 -> 1068.049329 | D34: 2035.19 | E34: 1068.049329 | F34: =IF(F$15>$B34,0,E34*(1-1/($B34-F$15+2)+E$11)) -> 1061.406391 | G34: 1041.426977 | H34: =IF(H$15>$D34+1,0,G34*(1-1/($D34-H$15+2)+G$11)) -> 986.4239991 | I34: 925.2317245 | J34: 861.0525587 | K34: 793.7738495 | L34: 723.2756758 | M34: 649.429141 | N34: 572.0937821 | O34: 491.1133989 | P34: 406.3088078 | Q34: 317.4639081 | R34: 224.2947198 | S34: 126.3629339 | T34: 22.70285317 | U34: 0 | V34: 0 | W34: 0 | X34: 0 | Y34: 0 | Z34: 0 | AA34: 0 | AB34: 0 | AC34: 0 | AD34: 0 | AE34: 0 | AF34: 0 | AG34: 0 | AH34: 0 | AI34: 0 | AJ34: 0 | AK34: 0 | AL34: 0 | AM34: 0 | AN34: 0 | AO34: 0 | AP34: 0 | AQ34: 0 | AR34: 0 | AS34: 0 | AT34: 0 | AU34: 0 | AV34: 0 | AW34: 0 | AX34: 0 | AY34: 0 | AZ34: 0 | BA34: 0 | BB34: 0 | BC34: 0 | BD34: 0
B35: 2039 | C35: =Inputs_AS!I48 -> 550.7768622 | D35: 2036.01 | E35: 550.7768622 | F35: =IF(F$15>$B35,0,E35*(1-1/($B35-F$15+2)+E$11)) -> 548.9616584 | G35: 540.4222548 | H35: =IF(H$15>$D35+1,0,G35*(1-1/($D35-H$15+2)+G$11)) -> 514.2779299 | I35: 485.034055 | J35: 454.3488864 | K35: 422.1689353 | L35: 388.4375952 | M35: 353.0945163 | N35: 316.0746943 | O35: 277.3070734 | P35: 236.7122709 | Q35: 194.198558 | R35: 149.6539611 | S35: 102.9281164 | T35: 53.77866061 | U35: 1.608035198 | V35: 0 | W35: 0 | X35: 0 | Y35: 0 | Z35: 0 | AA35: 0 | AB35: 0 | AC35: 0 | AD35: 0 | AE35: 0 | AF35: 0 | AG35: 0 | AH35: 0 | AI35: 0 | AJ35: 0 | AK35: 0 | AL35: 0 | AM35: 0 | AN35: 0 | AO35: 0 | AP35: 0 | AQ35: 0 | AR35: 0 | AS35: 0 | AT35: 0 | AU35: 0 | AV35: 0 | AW35: 0 | AX35: 0 | AY35: 0 | AZ35: 0 | BA35: 0 | BB35: 0 | BC35: 0 | BD35: 0
B36: 2040 | C36: =Inputs_AS!I49 -> 27062.9898 | D36: 2036.82 | E36: 27062.9898 | F36: =IF(F$15>$B36,0,E36*(1-1/($B36-F$15+2)+E$11)) -> 27045.01628 | G36: 26703.39502 | H36: =IF(H$15>$D36+1,0,G36*(1-1/($D36-H$15+2)+G$11)) -> 25515.72459 | I36: 24179.74931 | J36: 22777.24841 | K36: 21305.78421 | L36: 19762.7886 | M36: 18145.54044 | N36: 16451.13374 | O36: 14676.43087 | P36: 12817.99015 | Q36: 10871.94615 | R36: 8833.794584 | S36: 6697.958804 | T36: 4456.755284 | U36: 2097.12375 | V36: 0 | W36: 0 | X36: 0 | Y36: 0 | Z36: 0 | AA36: 0 | AB36: 0 | AC36: 0 | AD36: 0 | AE36: 0 | AF36: 0 | AG36: 0 | AH36: 0 | AI36: 0 | AJ36: 0 | AK36: 0 | AL36: 0 | AM36: 0 | AN36: 0 | AO36: 0 | AP36: 0 | AQ36: 0 | AR36: 0 | AS36: 0 | AT36: 0 | AU36: 0 | AV36: 0 | AW36: 0 | AX36: 0 | AY36: 0 | AZ36: 0 | BA36: 0 | BB36: 0 | BC36: 0 | BD36: 0
B37: 2041 | C37: =Inputs_AS!I50 -> 1348.632627 | D37: 2037.63 | E37: 1348.632627 | F37: =IF(F$15>$B37,0,E37*(1-1/($B37-F$15+2)+E$11)) -> 1350.94798 | G37: 1337.438501 | H37: =IF(H$15>$D37+1,0,G37*(1-1/($D37-H$15+2)+G$11)) -> 1282.630904 | I37: 1220.612237 | J37: 1155.471126 | K37: 1087.094315 | L37: 1015.362916 | M37: 940.1515553 | N37: 861.3272183 | O37: 778.747596 | P37: 692.2586428 | Q37: 601.6907474 | R37: 506.8523159 | S37: 407.5180197 | T37: 303.4044628 | U37: 194.1096384 | V37: 78.90616346 | W37: 0 | X37: 0 | Y37: 0 | Z37: 0 | AA37: 0 | AB37: 0 | AC37: 0 | AD37: 0 | AE37: 0 | AF37: 0 | AG37: 0 | AH37: 0 | AI37: 0 | AJ37: 0 | AK37: 0 | AL37: 0 | AM37: 0 | AN37: 0 | AO37: 0 | AP37: 0 | AQ37: 0 | AR37: 0 | AS37: 0 | AT37: 0 | AU37: 0 | AV37: 0 | AW37: 0 | AX37: 0 | AY37: 0 | AZ37: 0 | BA37: 0 | BB37: 0 | BC37: 0 | BD37: 0
B38: 2042 | C38: =Inputs_AS!I51 -> 13.30130839 | D38: 2038.45 | E38: 13.30130839 | F38: =IF(F$15>$B38,0,E38*(1-1/($B38-F$15+2)+E$11)) -> 13.352935 | G38: 13.25119835 | H38: =IF(H$15>$D38+1,0,G38*(1-1/($D38-H$15+2)+G$11)) -> 12.75043194 | I38: 12.1801699 | J38: 11.58085497 | K38: 10.95144196 | L38: 10.29083691 | M38: 9.597890596 | N38: 8.871389978 | O38: 8.110046351 | P38: 7.312478479 | Q38: 6.477187313 | R38: 5.602515972 | S38: 4.68658171 | T38: 3.727148915 | U38: 2.721358874 | V38: 1.665027328 | W38: 0.5500331654 | X38: 0 | Y38: 0 | Z38: 0 | AA38: 0 | AB38: 0 | AC38: 0 | AD38: 0 | AE38: 0 | AF38: 0 | AG38: 0 | AH38: 0 | AI38: 0 | AJ38: 0 | AK38: 0 | AL38: 0 | AM38: 0 | AN38: 0 | AO38: 0 | AP38: 0 | AQ38: 0 | AR38: 0 | AS38: 0 | AT38: 0 | AU38: 0 | AV38: 0 | AW38: 0 | AX38: 0 | AY38: 0 | AZ38: 0 | BA38: 0 | BB38: 0 | BC38: 0 | BD38: 0
B39: 2043 | C39: =Inputs_AS!I52 -> 11808.27003 | D39: 2039.26 | E39: 11808.27003 | F39: =IF(F$15>$B39,0,E39*(1-1/($B39-F$15+2)+E$11)) -> 11877.43818 | G39: 11812.65216 | H39: =IF(H$15>$D39+1,0,G39*(1-1/($D39-H$15+2)+G$11)) -> 11399.94848 | I39: 10926.8436 | J39: 10429.33568 | K39: 9906.552429 | L39: 9357.582993 | M39: 8781.473397 | N39: 8177.220681 | O39: 7543.765028 | P39: 6879.978878 | Q39: 6184.651231 | R39: 5456.463921 | S39: 4693.953595 | T39: 3895.446052 | U39: 3058.931017 | V39: 2181.78724 | W39: 1260.030401 | X39: 285.2068811 | Y39: 0 | Z39: 0 | AA39: 0 | AB39: 0 | AC39: 0 | AD39: 0 | AE39: 0 | AF39: 0 | AG39: 0 | AH39: 0 | AI39: 0 | AJ39: 0 | AK39: 0 | AL39: 0 | AM39: 0 | AN39: 0 | AO39: 0 | AP39: 0 | AQ39: 0 | AR39: 0 | AS39: 0 | AT39: 0 | AU39: 0 | AV39: 0 | AW39: 0 | AX39: 0 | AY39: 0 | AZ39: 0 | BA39: 0 | BB39: 0 | BC39: 0 | BD39: 0
B40: 2044 | C40: =Inputs_AS!I53 -> 13909.71999 | D40: 2040.07 | E40: 13909.71999 | F40: =IF(F$15>$B40,0,E40*(1-1/($B40-F$15+2)+E$11)) -> 14016.39637 | G40: 13967.64369 | H40: =IF(H$15>$D40+1,0,G40*(1-1/($D40-H$15+2)+G$11)) -> 13515.9253 | I40: 12994.4497 | J40: 12445.72328 | K40: 11868.77688 | L40: 11262.6004 | M40: 10626.13853 | N40: 9958.285284 | O40: 9257.87689 | P40: 8523.682204 | Q40: 7754.389343 | R40: 6948.586257 | S40: 6104.731072 | T40: 5221.103935 | U40: 4295.722476 | V40: 3326.176858 | W40: 2309.255164 | X40: 1239.858063 | Y40: 105.909371 | Z40: 0 | AA40: 0 | AB40: 0 | AC40: 0 | AD40: 0 | AE40: 0 | AF40: 0 | AG40: 0 | AH40: 0 | AI40: 0 | AJ40: 0 | AK40: 0 | AL40: 0 | AM40: 0 | AN40: 0 | AO40: 0 | AP40: 0 | AQ40: 0 | AR40: 0 | AS40: 0 | AT40: 0 | AU40: 0 | AV40: 0 | AW40: 0 | AX40: 0 | AY40: 0 | AZ40: 0 | BA40: 0 | BB40: 0 | BC40: 0 | BD40: 0
B41: 2045 | C41: =Inputs_AS!I54 -> 5816.779882 | D41: 2040.88 | E41: 5816.779882 | F41: =IF(F$15>$B41,0,E41*(1-1/($B41-F$15+2)+E$11)) -> 5871.084545 | G41: 5861.299404 | H41: =IF(H$15>$D41+1,0,G41*(1-1/($D41-H$15+2)+G$11)) -> 5685.65911 | I41: 5481.382409 | J41: 5266.283611 | K41: 5039.979333 | L41: 4802.070631 | M41: 4552.141537 | N41: 4289.75723 | O41: 4014.461699 | P41: 3725.774674 | Q41: 3423.187467 | R41: 3106.157132 | S41: 2774.097898 | T41: 2426.367952 | U41: 2062.2477 | V41: 1680.900912 | W41: 1281.297046 | X41: 862.0281793 | Y41: 420.7431156 | Z41: 0 | AA41: 0 | AB41: 0 | AC41: 0 | AD41: 0 | AE41: 0 | AF41: 0 | AG41: 0 | AH41: 0 | AI41: 0 | AJ41: 0 | AK41: 0 | AL41: 0 | AM41: 0 | AN41: 0 | AO41: 0 | AP41: 0 | AQ41: 0 | AR41: 0 | AS41: 0 | AT41: 0 | AU41: 0 | AV41: 0 | AW41: 0 | AX41: 0 | AY41: 0 | AZ41: 0 | BA41: 0 | BB41: 0 | BC41: 0 | BD41: 0
B42: 2046 | C42: =Inputs_AS!I55 -> 37199.36876 | D42: 2041.7 | E42: 37199.36876 | F42: =IF(F$15>$B42,0,E42*(1-1/($B42-F$15+2)+E$11)) -> 37603.88678 | G42: 37603.88678 | H42: =IF(H$15>$D42+1,0,G42*(1-1/($D42-H$15+2)+G$11)) -> 36559.94944 | I42: 35336.07092 | J42: 34046.40415 | K42: 32688.6254 | L42: 31260.31985 | M42: 29758.97388 | N42: 28181.96548 | O42: 26526.55239 | P42: 24789.85674 | Q42: 22968.84483 | R42: 21060.29958 | S42: 19060.78148 | T42: 16966.57095 | U42: 14773.57834 | V42: 12477.19406 | W42: 10072.0158 | X42: 7551.289685 | Y42: 4905.541521 | Z42: 2118.039692 | AA42: 0 | AB42: 0 | AC42: 0 | AD42: 0 | AE42: 0 | AF42: 0 | AG42: 0 | AH42: 0 | AI42: 0 | AJ42: 0 | AK42: 0 | AL42: 0 | AM42: 0 | AN42: 0 | AO42: 0 | AP42: 0 | AQ42: 0 | AR42: 0 | AS42: 0 | AT42: 0 | AU42: 0 | AV42: 0 | AW42: 0 | AX42: 0 | AY42: 0 | AZ42: 0 | BA42: 0 | BB42: 0 | BC42: 0 | BD42: 0
B43: 2047 | C43: =Inputs_AS!I56 -> 101554.3749 | D43: 2042.51 | E43: 101554.3749 | F43: =IF(F$15>$B43,0,E43*(1-1/($B43-F$15+2)+E$11)) -> 102803.3746 | G43: 102961.5336 | H43: =IF(H$15>$D43+1,0,G43*(1-1/($D43-H$15+2)+G$11)) -> 100309.5839 | I43: 97174.33095 | J43: 93867.98878 | K43: 90384.52681 | L43: 86717.68513 | M43: 82860.95662 | N43: 78807.56537 | O43: 74550.44019 | P43: 70082.18119 | Q43: 65395.01672 | R43: 60480.7461 | S43: 55330.66112 | T43: 49935.43402 | U43: 44284.95042 | V43: 38368.04568 | W43: 32172.05892 | X43: 25682.00588 | Y43: 18878.83521 | Z43: 11734.96362 | AA43: 4198.163807 | AB43: 0 | AC43: 0 | AD43: 0 | AE43: 0 | AF43: 0 | AG43: 0 | AH43: 0 | AI43: 0 | AJ43: 0 | AK43: 0 | AL43: 0 | AM43: 0 | AN43: 0 | AO43: 0 | AP43: 0 | AQ43: 0 | AR43: 0 | AS43: 0 | AT43: 0 | AU43: 0 | AV43: 0 | AW43: 0 | AX43: 0 | AY43: 0 | AZ43: 0 | BA43: 0 | BB43: 0 | BC43: 0 | BD43: 0
B44: 2048 | C44: =Inputs_AS!I57 -> 37285.46137 | D44: 2043.32 | E44: 37285.46137 | F44: =IF(F$15>$B44,0,E44*(1-1/($B44-F$15+2)+E$11)) -> 37793.34817 | G44: 37905.32847 | H44: =IF(H$15>$D44+1,0,G44*(1-1/($D44-H$15+2)+G$11)) -> 36999.22755 | I44: 35918.38397 | J44: 34777.62204 | K44: 33574.83267 | L44: 32307.82859 | M44: 30974.3388 | N44: 29572.0019 | O44: 28098.35801 | P44: 26550.83883 | Q44: 24926.75505 | R44: 23223.27999 | S44: 21437.42776 | T44: 19566.02312 | U44: 17605.65811 | V44: 15552.62672 | W44: 13402.8206 | X44: 11151.54983 | Y44: 8793.203552 | Z44: 6320.512336 | AA44: 3722.563817 | AB44: 976.8909897 | AC44: 0 | AD44: 0 | AE44: 0 | AF44: 0 | AG44: 0 | AH44: 0 | AI44: 0 | AJ44: 0 | AK44: 0 | AL44: 0 | AM44: 0 | AN44: 0 | AO44: 0 | AP44: 0 | AQ44: 0 | AR44: 0 | AS44: 0 | AT44: 0 | AU44: 0 | AV44: 0 | AW44: 0 | AX44: 0 | AY44: 0 | AZ44: 0 | BA44: 0 | BB44: 0 | BC44: 0 | BD44: 0
B45: 2049 | C45: =Inputs_AS!I58 -> 48813.05917 | D45: 2044.14 | E45: 48813.05917 | F45: =IF(F$15>$B45,0,E45*(1-1/($B45-F$15+2)+E$11)) -> 49538.08465 | G45: 49750.39072 | H45: =IF(H$15>$D45+1,0,G45*(1-1/($D45-H$15+2)+G$11)) -> 48647.56793 | I45: 47319.30983 | J45: 45916.17716 | K45: 44435.53638 | L45: 42874.65856 | M45: 41230.71307 | N45: 39500.76023 | O45: 37681.74239 | P45: 35770.47325 | Q45: 33763.62448 | R45: 31657.70879 | S45: 29449.05787 | T45: 27133.79269 | U45: 24707.78225 | V45: 22166.58381 | W45: 19505.35193 | X45: 16718.69155 | Y45: 13800.40166 | Z45: 10742.97934 | AA45: 7536.507926 | AB45: 4165.505409 | AC45: 594.863404 | AD45: 0 | AE45: 0 | AF45: 0 | AG45: 0 | AH45: 0 | AI45: 0 | AJ45: 0 | AK45: 0 | AL45: 0 | AM45: 0 | AN45: 0 | AO45: 0 | AP45: 0 | AQ45: 0 | AR45: 0 | AS45: 0 | AT45: 0 | AU45: 0 | AV45: 0 | AW45: 0 | AX45: 0 | AY45: 0 | AZ45: 0 | BA45: 0 | BB45: 0 | BC45: 0 | BD45: 0
B46: 2050 | C46: =Inputs_AS!I59 -> 13079.84059 | D46: 2044.95 | E46: 13079.84059 | F46: =IF(F$15>$B46,0,E46*(1-1/($B46-F$15+2)+E$11)) -> 13289.15113 | G46: 13362.47059 | H46: =IF(H$15>$D46+1,0,G46*(1-1/($D46-H$15+2)+G$11)) -> 13087.56468 | I46: 12753.07157 | J46: 12399.3945 | K46: 12025.85886 | L46: 11631.76607 | M46: 11216.39214 | N46: 10778.98593 | O46: 10318.76716 | P46: 9834.923966 | Q46: 9326.609975 | R46: 8792.940632 | S46: 8232.988513 | T46: 7645.777186 | U46: 7030.272912 | V46: 6385.373017 | W46: 5709.888903 | X46: 5002.519932 | Y46: 4261.810678 | Z46: 3486.075038 | AA46: 2673.245896 | AB46: 1820.525764 | AC46: 923.3333236 | AD46: 0 | AE46: 0 | AF46: 0 | AG46: 0 | AH46: 0 | AI46: 0 | AJ46: 0 | AK46: 0 | AL46: 0 | AM46: 0 | AN46: 0 | AO46: 0 | AP46: 0 | AQ46: 0 | AR46: 0 | AS46: 0 | AT46: 0 | AU46: 0 | AV46: 0 | AW46: 0 | AX46: 0 | AY46: 0 | AZ46: 0 | BA46: 0 | BB46: 0 | BC46: 0 | BD46: 0
B47: 2051 | C47: =Inputs_AS!I60 -> 1183.385459 | D47: 2045.76 | E47: 1183.385459 | F47: =IF(F$15>$B47,0,E47*(1-1/($B47-F$15+2)+E$11)) -> 1203.595078 | G47: 1211.619045 | H47: =IF(H$15>$D47+1,0,G47*(1-1/($D47-H$15+2)+G$11)) -> 1188.492215 | I47: 1160.043597 | J47: 1129.933642 | K47: 1098.103912 | L47: 1064.49393 | M47: 1029.041062 | N47: 991.6803815 | O47: 952.3445153 | P47: 910.9634541 | Q47: 867.464332 | R47: 821.7711527 | S47: 773.8044478 | T47: 723.4808388 | U47: 670.7124594 | V47: 615.4061697 | W47: 557.4624472 | X47: 496.773752 | Y47: 433.2219856 | Z47: 366.674275 | AA47: 296.9753498 | AB47: 223.932051 | AC47: 147.2758909 | AD47: 66.54192527 | AE47: 0 | AF47: 0 | AG47: 0 | AH47: 0 | AI47: 0 | AJ47: 0 | AK47: 0 | AL47: 0 | AM47: 0 | AN47: 0 | AO47: 0 | AP47: 0 | AQ47: 0 | AR47: 0 | AS47: 0 | AT47: 0 | AU47: 0 | AV47: 0 | AW47: 0 | AX47: 0 | AY47: 0 | AZ47: 0 | BA47: 0 | BB47: 0 | BC47: 0 | BD47: 0
B48: 2052 | C48: =Inputs_AS!I61 -> 28656.90348 | D48: 2046.57 | E48: 28656.90348 | F48: =IF(F$15>$B48,0,E48*(1-1/($B48-F$15+2)+E$11)) -> 29175.18832 | G48: 29401.06074 | H48: =IF(H$15>$D48+1,0,G48*(1-1/($D48-H$15+2)+G$11)) -> 28880.66077 | I48: 28232.95957 | J48: 27546.71227 | K48: 26820.56203 | L48: 26053.1054 | M48: 25242.88977 | N48: 24388.41048 | O48: 23488.10751 | P48: 22540.36167 | Q48: 21543.48992 | R48: 20495.73996 | S48: 19395.28336 | T48: 18240.20705 | U48: 17028.50237 | V48: 15758.05044 | W48: 14426.6022 | X48: 13031.75009 | Y48: 11570.88574 | Z48: 10041.13363 | AA48: 8439.239318 | AB48: 6761.363422 | AC48: 5002.651356 | AD48: 3156.147435 | AE48: 1208.985393 | AF48: 0 | AG48: 0 | AH48: 0 | AI48: 0 | AJ48: 0 | AK48: 0 | AL48: 0 | AM48: 0 | AN48: 0 | AO48: 0 | AP48: 0 | AQ48: 0 | AR48: 0 | AS48: 0 | AT48: 0 | AU48: 0 | AV48: 0 | AW48: 0 | AX48: 0 | AY48: 0 | AZ48: 0 | BA48: 0 | BB48: 0 | BC48: 0 | BD48: 0
B49: 2053 | C49: =Inputs_AS!I62 -> 13614.16278 | D49: 2047.39 | E49: =C49 -> 13614.16278 | F49: =IF(F$15>$B49,0,E49*(1-1/($B49-F$15+2)+E$11)) -> 13873.27886 | G49: 13994.67005 | H49: =IF(H$15>$D49+1,0,G49*(1-1/($D49-H$15+2)+G$11)) -> 13765.3592 | I49: 13476.28101 | J49: 13169.65097 | K49: 12844.85055 | L49: 12501.24029 | M49: 12138.15866 | N49: 11754.92087 | O49: 11350.8175 | P49: 10925.11289 | Q49: 10477.04328 | R49: 10005.8146 | S49: 9510.59979 | T49: 8990.535476 | U49: 8444.717818 | V49: 7872.197089 | W49: 7271.970474 | X49: 6642.972133 | Y49: 5984.058973 | Z49: 5293.989277 | AA49: 4571.388737 | AB49: 3814.692442 | AC49: 3022.035849 | AD49: 2191.020563 | AE49: 1318.095969 | AF49: 396.187407 | AG49: 0 | AH49: 0 | AI49: 0 | AJ49: 0 | AK49: 0 | AL49: 0 | AM49: 0 | AN49: 0 | AO49: 0 | AP49: 0 | AQ49: 0 | AR49: 0 | AS49: 0 | AT49: 0 | AU49: 0 | AV49: 0 | AW49: 0 | AX49: 0 | AY49: 0 | AZ49: 0 | BA49: 0 | BB49: 0 | BC49: 0 | BD49: 0
B50: 2054 | C50: =Inputs_AS!I63 -> 13068.37652 | D50: 2048.2 | E50: 13068.37652 | F50: =IF(F$15>$B50,0,E50*(1-1/($B50-F$15+2)+E$11)) -> 13328.75214 | G50: 13458.00065 | H50: =IF(H$15>$D50+1,0,G50*(1-1/($D50-H$15+2)+G$11)) -> 13253.87052 | I50: 12993.00068 | J50: 12715.95984 | K50: 12422.17732 | L50: 12111.06333 | M50: 11782.00803 | N50: 11434.38046 | O50: 11067.52742 | P50: 10680.77207 | Q50: 10273.41239 | R50: 9844.719378 | S50: 9393.934859 | T50: 8920.268848 | U50: 8422.896282 | V50: 7900.952873 | W50: 7353.52971 | X50: 6779.666019 | Y50: 6178.33912 | Z50: 5548.449912 | AA50: 4888.800867 | AB50: 4198.060615 | AC50: 3474.702479 | AD50: 2716.886414 | AE50: 1922.197138 | AF50: 1086.915109 | AG50: 202.8908203 | AH50: 0 | AI50: 0 | AJ50: 0 | AK50: 0 | AL50: 0 | AM50: 0 | AN50: 0 | AO50: 0 | AP50: 0 | AQ50: 0 | AR50: 0 | AS50: 0 | AT50: 0 | AU50: 0 | AV50: 0 | AW50: 0 | AX50: 0 | AY50: 0 | AZ50: 0 | BA50: 0 | BB50: 0 | BC50: 0 | BD50: 0
B51: 2055 | C51: =Inputs_AS!I64 -> 286637.912 | D51: 2049.01 | E51: 286637.912 | F51: =IF(F$15>$B51,0,E51*(1-1/($B51-F$15+2)+E$11)) -> 292589.7862 | G51: 295687.7957 | H51: =IF(H$15>$D51+1,0,G51*(1-1/($D51-H$15+2)+G$11)) -> 291541.2697 | I51: 286163.2804 | J51: 280444.5916 | K51: 274373.1589 | L51: 267936.5387 | M51: 261121.8693 | N51: 253915.8502 | O51: 246304.7195 | P51: 238274.2268 | Q51: 229809.6044 | R51: 220895.5316 | S51: 211516.0949 | T51: 201654.7383 | U51: 191294.2043 | V51: 180416.4601 | W51: 169002.6028 | X51: 157032.7363 | Y51: 144485.805 | Z51: 131339.3607 | AA51: 117569.224 | AB51: 103148.9645 | AC51: 88049.05456 | AD51: 72235.37406 | AE51: 55666.27255 | AF51: 38285.81974 | AG51: 20003.86462 | AH51: 598.1353581 | AI51: 0 | AJ51: 0 | AK51: 0 | AL51: 0 | AM51: 0 | AN51: 0 | AO51: 0 | AP51: 0 | AQ51: 0 | AR51: 0 | AS51: 0 | AT51: 0 | AU51: 0 | AV51: 0 | AW51: 0 | AX51: 0 | AY51: 0 | AZ51: 0 | BA51: 0 | BB51: 0 | BC51: 0 | BD51: 0
B52: 2056 | C52: =Inputs_AS!I65 -> 0 | D52: 2049.83 | E52: 0 | F52: =IF(F$15>$B52,0,E52*(1-1/($B52-F$15+2)+E$11)) -> 0 | G52: 0 | H52: =IF(H$15>$D52+1,0,G52*(1-1/($D52-H$15+2)+G$11)) -> 0 | I52: 0 | J52: 0 | K52: 0 | L52: 0 | M52: 0 | N52: 0 | O52: 0 | P52: 0 | Q52: 0 | R52: 0 | S52: 0 | T52: 0 | U52: 0 | V52: 0 | W52: 0 | X52: 0 | Y52: 0 | Z52: 0 | AA52: 0 | AB52: 0 | AC52: 0 | AD52: 0 | AE52: 0 | AF52: 0 | AG52: 0 | AH52: 0 | AI52: 0 | AJ52: 0 | AK52: 0 | AL52: 0 | AM52: 0 | AN52: 0 | AO52: 0 | AP52: 0 | AQ52: 0 | AR52: 0 | AS52: 0 | AT52: 0 | AU52: 0 | AV52: 0 | AW52: 0 | AX52: 0 | AY52: 0 | AZ52: 0 | BA52: 0 | BB52: 0 | BC52: 0 | BD52: 0
B53: 2057 | C53: =Inputs_AS!I66 -> 4013.195266 | D53: 2050.64 | E53: 4013.195266 | F53: =IF(F$15>$B53,0,E53*(1-1/($B53-F$15+2)+E$11)) -> 4102.724983 | G53: 4152.869399 | H53: =IF(H$15>$D53+1,0,G53*(1-1/($D53-H$15+2)+G$11)) -> 4103.382972 | I53: 4036.992492 | J53: 3966.193585 | K53: 3890.829719 | L53: 3810.739263 | M53: 3725.755264 | N53: 3635.705208 | O53: 3540.410753 | P53: 3439.687439 | Q53: 3333.344353 | R53: 3221.183754 | S53: 3103.00064 | T53: 2978.582249 | U53: 2847.707458 | V53: 2710.146071 | W53: 2565.657931 | X53: 2413.991823 | Y53: 2254.884046 | Z53: 2088.056535 | AA53: 1913.21429 | AB53: 1730.041737 | AC53: 1538.197318 | AD53: 1337.305042 | AE53: 1126.94032 | AF53: 906.6040573 | AG53: 675.6690897 | AH53: 433.2472102 | AI53: 177.7370263 | AJ53: 0 | AK53: 0 | AL53: 0 | AM53: 0 | AN53: 0 | AO53: 0 | AP53: 0 | AQ53: 0 | AR53: 0 | AS53: 0 | AT53: 0 | AU53: 0 | AV53: 0 | AW53: 0 | AX53: 0 | AY53: 0 | AZ53: 0 | BA53: 0 | BB53: 0 | BC53: 0 | BD53: 0
B54: 2058 | C54: =Inputs_AS!I67 -> 854.6862886 | D54: 2051.45 | E54: 854.6862886 | F54: =IF(F$15>$B54,0,E54*(1-1/($B54-F$15+2)+E$11)) -> 874.3612301 | G54: 885.7042947 | H54: =IF(H$15>$D54+1,0,G54*(1-1/($D54-H$15+2)+G$11)) -> 876.0006448 | I54: 862.7297739 | J54: 848.5552337 | K54: 833.444855 | L54: 817.3654278 | M54: 800.2826575 | N54: 782.1611184 | O54: 762.9642019 | P54: 742.6540593 | Q54: 721.1915385 | R54: 698.5361128 | S54: 674.6457991 | T54: 649.4770647 | U54: 622.9847176 | V54: 595.1217765 | W54: 565.839314 | X54: 535.0862628 | Y54: 502.8091718 | Z54: 468.9518904 | AA54: 433.4551493 | AB54: 396.2559825 | AC54: 357.286903 | AD54: 316.4746675 | AE54: 273.7383209 | AF54: 228.9858725 | AG54: 182.1080905 | AH54: 132.9652986 | AI54: 81.3530541 | AJ54: 26.87456063 | AK54: 0 | AL54: 0 | AM54: 0 | AN54: 0 | AO54: 0 | AP54: 0 | AQ54: 0 | AR54: 0 | AS54: 0 | AT54: 0 | AU54: 0 | AV54: 0 | AW54: 0 | AX54: 0 | AY54: 0 | AZ54: 0 | BA54: 0 | BB54: 0 | BC54: 0 | BD54: 0
B55: 2059 | C55: =Inputs_AS!I68 -> 1942.739924 | D55: 2052.26 | E55: 1942.739924 | F55: =IF(F$15>$B55,0,E55*(1-1/($B55-F$15+2)+E$11)) -> 1988.772832 | G55: 2015.987618 | H55: =IF(H$15>$D55+1,0,G55*(1-1/($D55-H$15+2)+G$11)) -> 1995.733138 | I55: 1967.440927 | J55: 1937.170463 | K55: 1904.851126 | L55: 1870.410025 | M55: 1833.771906 | N55: 1794.859054 | O55: 1753.591186 | P55: 1709.885328 | Q55: 1663.655691 | R55: 1614.813519 | S55: 1563.266927 | T55: 1508.920715 | U55: 1451.676144 | V55: 1391.430692 | W55: 1328.07774 | X55: 1261.506213 | Y55: 1191.600122 | Z55: 1118.237988 | AA55: 1041.292091 | AB55: 960.6274758 | AC55: 876.1005571 | AD55: 787.5571255 | AE55: 694.8293251 | AF55: 597.7308117 | AG55: 496.0483915 | AH55: 389.526075 | AI55: 277.8300704 | AJ55: 160.4530123 | AK55: 36.318412 | AL55: 0 | AM55: 0 | AN55: 0 | AO55: 0 | AP55: 0 | AQ55: 0 | AR55: 0 | AS55: 0 | AT55: 0 | AU55: 0 | AV55: 0 | AW55: 0 | AX55: 0 | AY55: 0 | AZ55: 0 | BA55: 0 | BB55: 0 | BC55: 0 | BD55: 0
B56: 2060 | C56: =Inputs_AS!I69 -> 1286.523085 | D56: 2053.08 | E56: 1286.523085 | F56: =IF(F$15>$B56,0,E56*(1-1/($B56-F$15+2)+E$11)) -> 1317.831735 | G56: 1336.754447 | H56: =IF(H$15>$D56+1,0,G56*(1-1/($D56-H$15+2)+G$11)) -> 1324.489682 | I56: 1306.947238 | J56: 1288.143018 | K56: 1268.031839 | L56: 1246.567076 | M56: 1223.7006 | N56: 1199.382722 | O56: 1173.562124 | P56: 1146.185788 | Q56: 1117.198915 | R56: 1086.544842 | S56: 1054.16494 | T56: 1019.998504 | U56: 983.9826279 | V56: 946.0520564 | W56: 906.1390144 | X56: 864.1730006 | Y56: 820.0805373 | Z56: 773.7848592 | AA56: 725.2055184 | AB56: 674.2578672 | AC56: 620.8523631 | AD56: 564.8935995 | AE56: 506.2788973 | AF56: 444.8961564 | AG56: 380.6203696 | AH56: 313.3075074 | AI56: 242.7826018 | AJ56: 168.8127338 | AK56: 91.02902028 | AL56: 8.563470797 | AM56: 0 | AN56: 0 | AO56: 0 | AP56: 0 | AQ56: 0 | AR56: 0 | AS56: 0 | AT56: 0 | AU56: 0 | AV56: 0 | AW56: 0 | AX56: 0 | AY56: 0 | AZ56: 0 | BA56: 0 | BB56: 0 | BC56: 0 | BD56: 0
B57: 2061 | C57: =Inputs_AS!I70 -> 0 | D57: 2053.89 | E57: 0 | F57: =IF(F$15>$B57,0,E57*(1-1/($B57-F$15+2)+E$11)) -> 0 | G57: 0 | H57: =IF(H$15>$D57+1,0,G57*(1-1/($D57-H$15+2)+G$11)) -> 0 | I57: 0 | J57: 0 | K57: 0 | L57: 0 | M57: 0 | N57: 0 | O57: 0 | P57: 0 | Q57: 0 | R57: 0 | S57: 0 | T57: 0 | U57: 0 | V57: 0 | W57: 0 | X57: 0 | Y57: 0 | Z57: 0 | AA57: 0 | AB57: 0 | AC57: 0 | AD57: 0 | AE57: 0 | AF57: 0 | AG57: 0 | AH57: 0 | AI57: 0 | AJ57: 0 | AK57: 0 | AL57: 0 | AM57: 0 | AN57: 0 | AO57: 0 | AP57: 0 | AQ57: 0 | AR57: 0 | AS57: 0 | AT57: 0 | AU57: 0 | AV57: 0 | AW57: 0 | AX57: 0 | AY57: 0 | AZ57: 0 | BA57: 0 | BB57: 0 | BC57: 0 | BD57: 0
B58: 2062 | C58: =Inputs_AS!I71 -> 3501.911095 | D58: 2054.7 | E58: 3501.911095 | F58: =IF(F$15>$B58,0,E58*(1-1/($B58-F$15+2)+E$11)) -> 3591.302066 | G58: 3647.361416 | H58: =IF(H$15>$D58+1,0,G58*(1-1/($D58-H$15+2)+G$11)) -> 3619.710624 | I58: 3577.918381 | J58: 3532.932176 | K58: 3484.636875 | L58: 3432.913693 | M58: 3377.640065 | N58: 3318.689493 | O58: 3255.931396 | P58: 3189.230939 | Q58: 3118.448851 | R58: 3043.441227 | S58: 2964.059304 | T58: 2880.149219 | U58: 2791.551735 | V58: 2698.101929 | W58: 2599.62883 | X58: 2495.95501 | Y58: 2386.896084 | Z58: 2272.260122 | AA58: 2151.846922 | AB58: 2025.447094 | AC58: 1892.8409 | AD58: 1753.796699 | AE58: 1608.06885 | AF58: 1455.394727 | AG58: 1295.490319 | AH58: 1128.043362 | AI58: 952.7018847 | AJ58: 769.0533937 | AK58: 576.582193 | AL58: 374.5648765 | AM58: 161.7238937 | AN58: 0 | AO58: 0 | AP58: 0 | AQ58: 0 | AR58: 0 | AS58: 0 | AT58: 0 | AU58: 0 | AV58: 0 | AW58: 0 | AX58: 0 | AY58: 0 | AZ58: 0 | BA58: 0 | BB58: 0 | BC58: 0 | BD58: 0
B59: 2063 | C59: =Inputs_AS!I72 -> 133.7665539 | D59: 2055.52 | E59: 133.7665539 | F59: =IF(F$15>$B59,0,E59*(1-1/($B59-F$15+2)+E$11)) -> 137.2551923 | G59: 139.4774192 | H59: =IF(H$15>$D59+1,0,G59*(1-1/($D59-H$15+2)+G$11)) -> 138.524379 | I59: 137.0351993 | J59: 135.4283398 | K59: 133.699543 | L59: 131.8444165 | M59: 129.8584291 | N59: 127.7369047 | O59: 125.4750175 | P59: 123.0677852 | Q59: 120.5100632 | R59: 117.7965373 | S59: 114.9217159 | T59: 111.8799218 | U59: 108.6652823 | V59: 105.271719 | W59: 101.6929353 | X59: 97.92240271 | Y59: 93.95334454 | Z59: 89.77871655 | AA59: 85.39118368 | AB59: 80.7830914 | AC59: 75.94642964 | AD59: 70.87278621 | AE59: 65.55328507 | AF59: 59.9785015 | AG59: 54.13834131 | AH59: 48.02186062 | AI59: 41.61698179 | AJ59: 34.91001313 | AK59: 27.88475916 | AL59: 20.52064776 | AM59: 12.78794653 | AN59: 4.630582742 | AO59: 0 | AP59: 0 | AQ59: 0 | AR59: 0 | AS59: 0 | AT59: 0 | AU59: 0 | AV59: 0 | AW59: 0 | AX59: 0 | AY59: 0 | AZ59: 0 | BA59: 0 | BB59: 0 | BC59: 0 | BD59: 0
B60: 2064 | C60: =Inputs_AS!I73 -> 0 | D60: 2056.33 | E60: 0 | F60: =IF(F$15>$B60,0,E60*(1-1/($B60-F$15+2)+E$11)) -> 0 | G60: 0 | H60: =IF(H$15>$D60+1,0,G60*(1-1/($D60-H$15+2)+G$11)) -> 0 | I60: 0 | J60: 0 | K60: 0 | L60: 0 | M60: 0 | N60: 0 | O60: 0 | P60: 0 | Q60: 0 | R60: 0 | S60: 0 | T60: 0 | U60: 0 | V60: 0 | W60: 0 | X60: 0 | Y60: 0 | Z60: 0 | AA60: 0 | AB60: 0 | AC60: 0 | AD60: 0 | AE60: 0 | AF60: 0 | AG60: 0 | AH60: 0 | AI60: 0 | AJ60: 0 | AK60: 0 | AL60: 0 | AM60: 0 | AN60: 0 | AO60: 0 | AP60: 0 | AQ60: 0 | AR60: 0 | AS60: 0 | AT60: 0 | AU60: 0 | AV60: 0 | AW60: 0 | AX60: 0 | AY60: 0 | AZ60: 0 | BA60: 0 | BB60: 0 | BC60: 0 | BD60: 0
B61: 2065 | C61: =Inputs_AS!I74 -> -572.0378424 | D61: 2057.14 | E61: -572.0378424 | F61: =IF(F$15>$B61,0,E61*(1-1/($B61-F$15+2)+E$11)) -> -587.5478712 | G61: -597.6964254 | H61: =IF(H$15>$D61+1,0,G61*(1-1/($D61-H$15+2)+G$11)) -> -594.4344384 | I61: -588.9114565 | J61: -582.9192735 | K61: -576.4407806 | L61: -569.4583315 | M61: -561.9537247 | N61: -553.9081827 | O61: -545.3023314 | P61: -536.1161771 | Q61: -526.329083 | R61: -515.9197425 | S61: -504.8661514 | T61: -493.1455767 | U61: -480.7345237 | V61: -467.6086974 | W61: -453.7429618 | X61: -439.1112923 | Y61: -423.6867214 | Z61: -407.4412772 | AA61: -390.3459096 | AB61: -372.3704031 | AC61: -353.4832707 | AD61: -333.6516217 | AE61: -312.840995 | AF61: -291.0151403 | AG61: -268.1357252 | AH61: -244.1619271 | AI61: -219.0498429 | AJ61: -192.75159 | AK61: -165.2138547 | AL61: -136.3753585 | AM61: -106.1619578 | AN61: -74.47565628 | AO61: -41.16346086 | AP61: -5.878431078 | AQ61: 0 | AR61: 0 | AS61: 0 | AT61: 0 | AU61: 0 | AV61: 0 | AW61: 0 | AX61: 0 | AY61: 0 | AZ61: 0 | BA61: 0 | BB61: 0 | BC61: 0 | BD61: 0
B62: 2066 | C62: =Inputs_AS!I75 -> 0 | D62: 2057.95 | E62: 0 | F62: =IF(F$15>$B62,0,E62*(1-1/($B62-F$15+2)+E$11)) -> 0 | G62: 0 | H62: =IF(H$15>$D62+1,0,G62*(1-1/($D62-H$15+2)+G$11)) -> 0 | I62: 0 | J62: 0 | K62: 0 | L62: 0 | M62: 0 | N62: 0 | O62: 0 | P62: 0 | Q62: 0 | R62: 0 | S62: 0 | T62: 0 | U62: 0 | V62: 0 | W62: 0 | X62: 0 | Y62: 0 | Z62: 0 | AA62: 0 | AB62: 0 | AC62: 0 | AD62: 0 | AE62: 0 | AF62: 0 | AG62: 0 | AH62: 0 | AI62: 0 | AJ62: 0 | AK62: 0 | AL62: 0 | AM62: 0 | AN62: 0 | AO62: 0 | AP62: 0 | AQ62: 0 | AR62: 0 | AS62: 0 | AT62: 0 | AU62: 0 | AV62: 0 | AW62: 0 | AX62: 0 | AY62: 0 | AZ62: 0 | BA62: 0 | BB62: 0 | BC62: 0 | BD62: 0
B63: 2067 | C63: =Inputs_AS!I76 -> 141.9616949 | D63: 2058.77 | E63: 141.9616949 | F63: =IF(F$15>$B63,0,E63*(1-1/($B63-F$15+2)+E$11)) -> 145.9450361 | G63: 148.6101193 | H63: =IF(H$15>$D63+1,0,G63*(1-1/($D63-H$15+2)+G$11)) -> 147.9865388 | I63: 146.8091005 | J63: 145.5229903 | K63: 144.1242114 | L63: 142.6086422 | M63: 140.9720318 | N63: 139.209996 | O63: 137.318012 | P63: 135.2914138 | Q63: 133.1253871 | R63: 130.8149629 | S63: 128.3550122 | T63: 125.7402387 | U63: 122.9651723 | V63: 120.0241607 | W63: 116.9113614 | X63: 113.6207316 | Y63: 110.1460176 | Z63: 106.4807431 | AA63: 102.6181946 | AB63: 98.55140557 | AC63: 94.2731372 | AD63: 89.77585538 | AE63: 85.05170252 | AF63: 80.0924623 | AG63: 74.88951441 | AH63: 69.43377504 | AI63: 63.71561584 | AJ63: 57.72474961 | AK63: 51.4500619 | AL63: 44.87934941 | AM63: 37.99888624 | AN63: 30.79264044 | AO63: 23.24068411 | AP63: 15.31535912 | AQ63: 6.968921039 | AR63: 0 | AS63: 0 | AT63: 0 | AU63: 0 | AV63: 0 | AW63: 0 | AX63: 0 | AY63: 0 | AZ63: 0 | BA63: 0 | BB63: 0 | BC63: 0 | BD63: 0
B64: 2068 | C64: =Inputs_AS!I77 -> 553.9733892 | D64: 2059.58 | E64: 553.9733892 | F64: =IF(F$15>$B64,0,E64*(1-1/($B64-F$15+2)+E$11)) -> 569.7630324 | G64: 580.430936 | H64: =IF(H$15>$D64+1,0,G64*(1-1/($D64-H$15+2)+G$11)) -> 578.335639 | I64: 574.0921921 | J64: 569.4387861 | K64: 564.3602747 | L64: 558.8410396 | M64: 552.864974 | N64: 546.4154662 | O64: 539.4753823 | P64: 532.0270474 | Q64: 524.0522263 | R64: 515.5321023 | S64: 506.4472552 | T64: 496.7776368 | U64: 486.5025452 | V64: 475.6005967 | W64: 464.0496947 | X64: 451.8269956 | Y64: 438.908871 | Z64: 425.2708651 | AA64: 410.8876459 | AB64: 395.7329503 | AC64: 379.7795182 | AD64: 362.9990162 | AE64: 345.3619447 | AF64: 326.8375234 | AG64: 307.3935487 | AH64: 286.9962082 | AI64: 265.6098367 | AJ64: 243.1965807 | AK64: 219.7159225 | AL64: 195.1239715 | AM64: 169.3723519 | AN64: 142.4063309 | AO64: 114.1613722 | AP64: 84.55594816 | AQ64: 53.4734438 | AR64: 20.69896091 | AS64: 0 | AT64: 0 | AU64: 0 | AV64: 0 | AW64: 0 | AX64: 0 | AY64: 0 | AZ64: 0 | BA64: 0 | BB64: 0 | BC64: 0 | BD64: 0
B65: 2069 | C65: =Inputs_AS!I78 -> 733.9714687 | D65: 2060.39 | E65: 733.9714687 | F65: =IF(F$15>$B65,0,E65*(1-1/($B65-F$15+2)+E$11)) -> 755.2035752 | G65: 769.6783104 | H65: =IF(H$15>$D65+1,0,G65*(1-1/($D65-H$15+2)+G$11)) -> 767.3319845 | I65: 762.1562389 | J65: 756.4552516 | K65: 750.2095261 | L65: 743.3989587 | M65: 736.0028181 | N65: 727.9997248 | O65: 719.3676286 | P65: 710.0837858 | Q65: 700.1247339 | R65: 689.4662657 | S65: 678.0834017 | T65: 665.9503596 | U65: 653.0405224 | V65: 639.3264036 | W65: 624.7796096 | X65: 609.3707976 | Y65: 593.0696302 | Z65: 575.8447242 | AA65: 557.6635926 | AB65: 538.49258 | AC65: 518.2967858 | AD65: 497.0399768 | AE65: 474.6844815 | AF65: 451.1910634 | AG65: 426.5187634 | AH65: 400.6247025 | AI65: 373.463825 | AJ65: 344.9885563 | AK65: 315.148332 | AL65: 283.888923 | AM65: 251.1514209 | AN65: 216.8706276 | AO65: 180.9723022 | AP65: 143.3679892 | AQ65: 103.9439067 | AR65: 62.53161051 | AS65: 18.79547257 | AT65: 0 | AU65: 0 | AV65: 0 | AW65: 0 | AX65: 0 | AY65: 0 | AZ65: 0 | BA65: 0 | BB65: 0 | BC65: 0 | BD65: 0
B66: 2070 | C66: =Inputs_AS!I79 -> 13538.6529 | D66: 2061.21 | E66: 13538.6529 | F66: =IF(F$15>$B66,0,E66*(1-1/($B66-F$15+2)+E$11)) -> 13935.82097 | G66: 14208.8493 | H66: =IF(H$15>$D66+1,0,G66*(1-1/($D66-H$15+2)+G$11)) -> 14173.27463 | I66: 14085.8091 | J66: 13988.97626 | K66: 13882.42669 | L66: 13765.80012 | M66: 13638.725 | N66: 13500.81823 | O66: 13351.6847 | P66: 13190.91689 | Q66: 13018.09449 | R66: 12832.78385 | S66: 12634.53758 | T66: 12422.89399 | U66: 12197.37652 | V66: 11957.49316 | W66: 11702.73583 | X66: 11432.57961 | Y66: 11146.48201 | Z66: 10843.88209 | AA66: 10524.19951 | AB66: 10186.83345 | AC66: 9831.16136 | AD66: 9456.537559 | AE66: 9062.291533 | AF66: 8647.725955 | AG66: 8212.114256 | AH66: 7754.697627 | AI66: 7274.681209 | AJ66: 6771.229141 | AK66: 6243.457921 | AL66: 5690.427197 | AM66: 5111.12646 | AN66: 4504.454889 | AO66: 3869.188932 | AP66: 3203.926083 | AQ66: 2506.977031 | AR66: 1776.126843 | AS66: 1007.972075 | AT66: 195.0967438 | AU66: 0 | AV66: 0 | AW66: 0 | AX66: 0 | AY66: 0 | AZ66: 0 | BA66: 0 | BB66: 0 | BC66: 0 | BD66: 0
B67: 2071 | C67: =Inputs_AS!I80 -> 0 | D67: 2062.02 | E67: 0 | F67: =IF(F$15>$B67,0,E67*(1-1/($B67-F$15+2)+E$11)) -> 0 | G67: 0 | H67: =IF(H$15>$D67+1,0,G67*(1-1/($D67-H$15+2)+G$11)) -> 0 | I67: 0 | J67: 0 | K67: 0 | L67: 0 | M67: 0 | N67: 0 | O67: 0 | P67: 0 | Q67: 0 | R67: 0 | S67: 0 | T67: 0 | U67: 0 | V67: 0 | W67: 0 | X67: 0 | Y67: 0 | Z67: 0 | AA67: 0 | AB67: 0 | AC67: 0 | AD67: 0 | AE67: 0 | AF67: 0 | AG67: 0 | AH67: 0 | AI67: 0 | AJ67: 0 | AK67: 0 | AL67: 0 | AM67: 0 | AN67: 0 | AO67: 0 | AP67: 0 | AQ67: 0 | AR67: 0 | AS67: 0 | AT67: 0 | AU67: 0 | AV67: 0 | AW67: 0 | AX67: 0 | AY67: 0 | AZ67: 0 | BA67: 0 | BB67: 0 | BC67: 0 | BD67: 0
B68: 2072 | C68: =Inputs_AS!I81 -> 1640.131698 | D68: 2062.83 | E68: 1640.131698 | F68: =IF(F$15>$B68,0,E68*(1-1/($B68-F$15+2)+E$11)) -> 1689.508017 | G68: 1723.96073 | H68: =IF(H$15>$D68+1,0,G68*(1-1/($D68-H$15+2)+G$11)) -> 1721.388934 | I68: 1712.598311 | J68: 1702.745247 | K68: 1691.789704 | L68: 1679.690399 | M68: 1666.404765 | N68: 1651.888911 | O68: 1636.097575 | P68: 1618.984084 | Q68: 1600.500301 | R68: 1580.596577 | S68: 1559.221698 | T68: 1536.322826 | U68: 1511.845444 | V68: 1485.733287 | W68: 1457.928274 | X68: 1428.370437 | Y68: 1396.997836 | Z68: 1363.746473 | AA68: 1328.550194 | AB68: 1291.340584 | AC68: 1252.046842 | AD68: 1210.595647 | AE68: 1166.911001 | AF68: 1120.914045 | AG68: 1072.522848 | AH68: 1021.652142 | AI68: 968.2130123 | AJ68: 912.1125015 | AK68: 853.253103 | AL68: 791.5320983 | AM68: 726.840655 | AN68: 659.0625581 | AO68: 588.0723459 | AP68: 513.7324245 | AQ68: 435.8883038 | AR68: 354.3600442 | AS68: 268.9250403 | AT68: 179.2770251 | AU68: 84.89697813 | AV68: 0 | AW68: 0 | AX68: 0 | AY68: 0 | AZ68: 0 | BA68: 0 | BB68: 0 | BC68: 0 | BD68: 0
B69: 2073 | C69: =Inputs_AS!I82 -> 1649.178458 | D69: 2063.64 | E69: 1649.178458 | F69: =IF(F$15>$B69,0,E69*(1-1/($B69-F$15+2)+E$11)) -> 1699.425526 | G69: 1734.721287 | H69: =IF(H$15>$D69+1,0,G69*(1-1/($D69-H$15+2)+G$11)) -> 1732.959903 | I69: 1724.977371 | J69: 1715.96084 | K69: 1705.871132 | L69: 1694.667855 | M69: 1682.30936 | N69: 1668.752704 | O69: 1653.953603 | P69: 1637.866397 | Q69: 1620.443995 | R69: 1601.637831 | S69: 1581.397812 | T69: 1559.672266 | U69: 1536.407881 | V69: 1511.549646 | W69: 1485.040787 | X69: 1456.822696 | Y69: 1426.834852 | Z69: 1395.014745 | AA69: 1361.297781 | AB69: 1325.617184 | AC69: 1287.903889 | AD69: 1248.086413 | AE69: 1206.090715 | AF69: 1161.84004 | AG69: 1115.254723 | AH69: 1066.251971 | AI69: 1014.745591 | AJ69: 960.6456652 | AK69: 903.8581303 | AL69: 844.2842508 | AM69: 781.8199123 | AN69: 716.3546599 | AO69: 647.7703341 | AP69: 575.9390478 | AQ69: 500.7200204 | AR69: 421.9542753 | AS69: 339.4549394 | AT69: 252.9871867 | AU69: 162.2184506 | AV69: 66.54913024 | AW69: 0 | AX69: 0 | AY69: 0 | AZ69: 0 | BA69: 0 | BB69: 0 | BC69: 0 | BD69: 0
B70: 2074 | C70: =Inputs_AS!I83 -> 0 | D70: 2064.46 | E70: 0 | F70: =IF(F$15>$B70,0,E70*(1-1/($B70-F$15+2)+E$11)) -> 0 | G70: 0 | H70: =IF(H$15>$D70+1,0,G70*(1-1/($D70-H$15+2)+G$11)) -> 0 | I70: 0 | J70: 0 | K70: 0 | L70: 0 | M70: 0 | N70: 0 | O70: 0 | P70: 0 | Q70: 0 | R70: 0 | S70: 0 | T70: 0 | U70: 0 | V70: 0 | W70: 0 | X70: 0 | Y70: 0 | Z70: 0 | AA70: 0 | AB70: 0 | AC70: 0 | AD70: 0 | AE70: 0 | AF70: 0 | AG70: 0 | AH70: 0 | AI70: 0 | AJ70: 0 | AK70: 0 | AL70: 0 | AM70: 0 | AN70: 0 | AO70: 0 | AP70: 0 | AQ70: 0 | AR70: 0 | AS70: 0 | AT70: 0 | AU70: 0 | AV70: 0 | AW70: 0 | AX70: 0 | AY70: 0 | AZ70: 0 | BA70: 0 | BB70: 0 | BC70: 0 | BD70: 0
B71: 2075 | C71: =Inputs_AS!I84 -> 0 | D71: 2065.27 | E71: 0 | F71: =IF(F$15>$B71,0,E71*(1-1/($B71-F$15+2)+E$11)) -> 0 | G71: 0 | H71: =IF(H$15>$D71+1,0,G71*(1-1/($D71-H$15+2)+G$11)) -> 0 | I71: 0 | J71: 0 | K71: 0 | L71: 0 | M71: 0 | N71: 0 | O71: 0 | P71: 0 | Q71: 0 | R71: 0 | S71: 0 | T71: 0 | U71: 0 | V71: 0 | W71: 0 | X71: 0 | Y71: 0 | Z71: 0 | AA71: 0 | AB71: 0 | AC71: 0 | AD71: 0 | AE71: 0 | AF71: 0 | AG71: 0 | AH71: 0 | AI71: 0 | AJ71: 0 | AK71: 0 | AL71: 0 | AM71: 0 | AN71: 0 | AO71: 0 | AP71: 0 | AQ71: 0 | AR71: 0 | AS71: 0 | AT71: 0 | AU71: 0 | AV71: 0 | AW71: 0 | AX71: 0 | AY71: 0 | AZ71: 0 | BA71: 0 | BB71: 0 | BC71: 0 | BD71: 0
B72: 2076 | C72: =Inputs_AS!I85 -> 0 | D72: 2066.08 | E72: 0 | F72: =IF(F$15>$B72,0,E72*(1-1/($B72-F$15+2)+E$11)) -> 0 | G72: 0 | H72: =IF(H$15>$D72+1,0,G72*(1-1/($D72-H$15+2)+G$11)) -> 0 | I72: 0 | J72: 0 | K72: 0 | L72: 0 | M72: 0 | N72: 0 | O72: 0 | P72: 0 | Q72: 0 | R72: 0 | S72: 0 | T72: 0 | U72: 0 | V72: 0 | W72: 0 | X72: 0 | Y72: 0 | Z72: 0 | AA72: 0 | AB72: 0 | AC72: 0 | AD72: 0 | AE72: 0 | AF72: 0 | AG72: 0 | AH72: 0 | AI72: 0 | AJ72: 0 | AK72: 0 | AL72: 0 | AM72: 0 | AN72: 0 | AO72: 0 | AP72: 0 | AQ72: 0 | AR72: 0 | AS72: 0 | AT72: 0 | AU72: 0 | AV72: 0 | AW72: 0 | AX72: 0 | AY72: 0 | AZ72: 0 | BA72: 0 | BB72: 0 | BC72: 0 | BD72: 0
B73: 2077 | C73: =Inputs_AS!I86 -> 0 | D73: 2066.9 | E73: 0 | F73: =IF(F$15>$B73,0,E73*(1-1/($B73-F$15+2)+E$11)) -> 0 | G73: 0 | H73: =IF(H$15>$D73+1,0,G73*(1-1/($D73-H$15+2)+G$11)) -> 0 | I73: 0 | J73: 0 | K73: 0 | L73: 0 | M73: 0 | N73: 0 | O73: 0 | P73: 0 | Q73: 0 | R73: 0 | S73: 0 | T73: 0 | U73: 0 | V73: 0 | W73: 0 | X73: 0 | Y73: 0 | Z73: 0 | AA73: 0 | AB73: 0 | AC73: 0 | AD73: 0 | AE73: 0 | AF73: 0 | AG73: 0 | AH73: 0 | AI73: 0 | AJ73: 0 | AK73: 0 | AL73: 0 | AM73: 0 | AN73: 0 | AO73: 0 | AP73: 0 | AQ73: 0 | AR73: 0 | AS73: 0 | AT73: 0 | AU73: 0 | AV73: 0 | AW73: 0 | AX73: 0 | AY73: 0 | AZ73: 0 | BA73: 0 | BB73: 0 | BC73: 0 | BD73: 0
B74: 2078 | C74: =Inputs_AS!I87 -> 39.08529926 | D74: 2067.71 | E74: 39.08529926 | F74: =IF(F$15>$B74,0,E74*(1-1/($B74-F$15+2)+E$11)) -> 40.33972177 | G74: 41.24559623 | H74: =IF(H$15>$D74+1,0,G74*(1-1/($D74-H$15+2)+G$11)) -> 41.29191293 | I74: 41.19420136 | J74: 41.07564198 | K74: 40.93542122 | L74: 40.77270022 | M74: 40.58661406 | N74: 40.37627094 | O74: 40.14075138 | P74: 39.87910735 | Q74: 39.59036132 | R74: 39.27350539 | S74: 38.92750026 | T74: 38.55127423 | U74: 38.14372208 | V74: 37.703704 | W74: 37.23004431 | X74: 36.72153027 | Y74: 36.17691071 | Z74: 35.59489459 | AA74: 34.97414948 | AB74: 34.31329993 | AC74: 33.61092571 | AD74: 32.86555984 | AE74: 32.07568654 | AF74: 31.23973889 | AG74: 30.35609626 | AH74: 29.42308138 | AI74: 28.43895716 | AJ74: 27.40192279 | AK74: 26.3101095 | AL74: 25.16157525 | AM74: 23.95429858 | AN74: 22.68617094 | AO74: 21.35498712 | AP74: 19.95843297 | AQ74: 18.49406914 | AR74: 16.959309 | AS74: 15.35138738 | AT74: 13.6673143 | AU74: 11.90380301 | AV74: 10.05715 | AW74: 8.123016991 | AX74: 6.09598488 | AY74: 3.968463663 | AZ74: 1.727093952 | BA74: 0 | BB74: 0 | BC74: 0 | BD74: 0
B75: 2079 | C75: =Inputs_AS!I88 -> 0 | D75: 2068.52 | E75: 0 | F75: =IF(F$15>$B75,0,E75*(1-1/($B75-F$15+2)+E$11)) -> 0 | G75: 0 | H75: =IF(H$15>$D75+1,0,G75*(1-1/($D75-H$15+2)+G$11)) -> 0 | I75: 0 | J75: 0 | K75: 0 | L75: 0 | M75: 0 | N75: 0 | O75: 0 | P75: 0 | Q75: 0 | R75: 0 | S75: 0 | T75: 0 | U75: 0 | V75: 0 | W75: 0 | X75: 0 | Y75: 0 | Z75: 0 | AA75: 0 | AB75: 0 | AC75: 0 | AD75: 0 | AE75: 0 | AF75: 0 | AG75: 0 | AH75: 0 | AI75: 0 | AJ75: 0 | AK75: 0 | AL75: 0 | AM75: 0 | AN75: 0 | AO75: 0 | AP75: 0 | AQ75: 0 | AR75: 0 | AS75: 0 | AT75: 0 | AU75: 0 | AV75: 0 | AW75: 0 | AX75: 0 | AY75: 0 | AZ75: 0 | BA75: 0 | BB75: 0 | BC75: 0 | BD75: 0
B76: 2080 | C76: =Inputs_AS!I89 -> 0 | D76: 2069.34 | E76: 0 | F76: =IF(F$15>$B76,0,E76*(1-1/($B76-F$15+2)+E$11)) -> 0 | G76: 0 | H76: =IF(H$15>$D76+1,0,G76*(1-1/($D76-H$15+2)+G$11)) -> 0 | I76: 0 | J76: 0 | K76: 0 | L76: 0 | M76: 0 | N76: 0 | O76: 0 | P76: 0 | Q76: 0 | R76: 0 | S76: 0 | T76: 0 | U76: 0 | V76: 0 | W76: 0 | X76: 0 | Y76: 0 | Z76: 0 | AA76: 0 | AB76: 0 | AC76: 0 | AD76: 0 | AE76: 0 | AF76: 0 | AG76: 0 | AH76: 0 | AI76: 0 | AJ76: 0 | AK76: 0 | AL76: 0 | AM76: 0 | AN76: 0 | AO76: 0 | AP76: 0 | AQ76: 0 | AR76: 0 | AS76: 0 | AT76: 0 | AU76: 0 | AV76: 0 | AW76: 0 | AX76: 0 | AY76: 0 | AZ76: 0 | BA76: 0 | BB76: 0 | BC76: 0 | BD76: 0
B77: 2081 | C77: =Inputs_AS!I90 -> 0 | D77: 2070 | E77: 0 | F77: =IF(F$15>$B77,0,E77*(1-1/($B77-F$15+2)+E$11)) -> 0 | G77: 0 | H77: =IF(H$15>$D77+1,0,G77*(1-1/($D77-H$15+2)+G$11)) -> 0 | I77: 0 | J77: 0 | K77: 0 | L77: 0 | M77: 0 | N77: 0 | O77: 0 | P77: 0 | Q77: 0 | R77: 0 | S77: 0 | T77: 0 | U77: 0 | V77: 0 | W77: 0 | X77: 0 | Y77: 0 | Z77: 0 | AA77: 0 | AB77: 0 | AC77: 0 | AD77: 0 | AE77: 0 | AF77: 0 | AG77: 0 | AH77: 0 | AI77: 0 | AJ77: 0 | AK77: 0 | AL77: 0 | AM77: 0 | AN77: 0 | AO77: 0 | AP77: 0 | AQ77: 0 | AR77: 0 | AS77: 0 | AT77: 0 | AU77: 0 | AV77: 0 | AW77: 0 | AX77: 0 | AY77: 0 | AZ77: 0 | BA77: 0 | BB77: 0 | BC77: 0 | BD77: 0
B78: 2082 | C78: =Inputs_AS!I91 -> 0 | D78: 2070 | E78: 0 | F78: =IF(F$15>$B78,0,E78*(1-1/($B78-F$15+2)+E$11)) -> 0 | G78: 0 | H78: =IF(H$15>$D78+1,0,G78*(1-1/($D78-H$15+2)+G$11)) -> 0 | I78: 0 | J78: 0 | K78: 0 | L78: 0 | M78: 0 | N78: 0 | O78: 0 | P78: 0 | Q78: 0 | R78: 0 | S78: 0 | T78: 0 | U78: 0 | V78: 0 | W78: 0 | X78: 0 | Y78: 0 | Z78: 0 | AA78: 0 | AB78: 0 | AC78: 0 | AD78: 0 | AE78: 0 | AF78: 0 | AG78: 0 | AH78: 0 | AI78: 0 | AJ78: 0 | AK78: 0 | AL78: 0 | AM78: 0 | AN78: 0 | AO78: 0 | AP78: 0 | AQ78: 0 | AR78: 0 | AS78: 0 | AT78: 0 | AU78: 0 | AV78: 0 | AW78: 0 | AX78: 0 | AY78: 0 | AZ78: 0 | BA78: 0 | BB78: 0 | BC78: 0 | BD78: 0
B79: 2083 | C79: =Inputs_AS!I92 -> 0 | D79: 2070 | E79: 0 | F79: =IF(F$15>$B79,0,E79*(1-1/($B79-F$15+2)+E$11)) -> 0 | G79: 0 | H79: =IF(H$15>$D79+1,0,G79*(1-1/($D79-H$15+2)+G$11)) -> 0 | I79: 0 | J79: 0 | K79: 0 | L79: 0 | M79: 0 | N79: 0 | O79: 0 | P79: 0 | Q79: 0 | R79: 0 | S79: 0 | T79: 0 | U79: 0 | V79: 0 | W79: 0 | X79: 0 | Y79: 0 | Z79: 0 | AA79: 0 | AB79: 0 | AC79: 0 | AD79: 0 | AE79: 0 | AF79: 0 | AG79: 0 | AH79: 0 | AI79: 0 | AJ79: 0 | AK79: 0 | AL79: 0 | AM79: 0 | AN79: 0 | AO79: 0 | AP79: 0 | AQ79: 0 | AR79: 0 | AS79: 0 | AT79: 0 | AU79: 0 | AV79: 0 | AW79: 0 | AX79: 0 | AY79: 0 | AZ79: 0 | BA79: 0 | BB79: 0 | BC79: 0 | BD79: 0
B80: 2084 | C80: =Inputs_AS!I93 -> 0 | D80: 2070 | E80: 0 | F80: =IF(F$15>$B80,0,E80*(1-1/($B80-F$15+2)+E$11)) -> 0 | G80: 0 | H80: =IF(H$15>$D80+1,0,G80*(1-1/($D80-H$15+2)+G$11)) -> 0 | I80: 0 | J80: 0 | K80: 0 | L80: 0 | M80: 0 | N80: 0 | O80: 0 | P80: 0 | Q80: 0 | R80: 0 | S80: 0 | T80: 0 | U80: 0 | V80: 0 | W80: 0 | X80: 0 | Y80: 0 | Z80: 0 | AA80: 0 | AB80: 0 | AC80: 0 | AD80: 0 | AE80: 0 | AF80: 0 | AG80: 0 | AH80: 0 | AI80: 0 | AJ80: 0 | AK80: 0 | AL80: 0 | AM80: 0 | AN80: 0 | AO80: 0 | AP80: 0 | AQ80: 0 | AR80: 0 | AS80: 0 | AT80: 0 | AU80: 0 | AV80: 0 | AW80: 0 | AX80: 0 | AY80: 0 | AZ80: 0 | BA80: 0 | BB80: 0 | BC80: 0 | BD80: 0
B81: 2085 | C81: =Inputs_AS!I94 -> 0 | D81: 2070 | E81: =C81 -> 0 | F81: =IF(F$15>$B81,0,E81*(1-1/($B81-F$15+2)+E$11)) -> 0 | G81: 0 | H81: =IF(H$15>$D81+1,0,G81*(1-1/($D81-H$15+2)+G$11)) -> 0 | I81: 0 | J81: 0 | K81: 0 | L81: 0 | M81: 0 | N81: 0 | O81: 0 | P81: 0 | Q81: 0 | R81: 0 | S81: 0 | T81: 0 | U81: 0 | V81: 0 | W81: 0 | X81: 0 | Y81: 0 | Z81: 0 | AA81: 0 | AB81: 0 | AC81: 0 | AD81: 0 | AE81: 0 | AF81: 0 | AG81: 0 | AH81: 0 | AI81: 0 | AJ81: 0 | AK81: 0 | AL81: 0 | AM81: 0 | AN81: 0 | AO81: 0 | AP81: 0 | AQ81: 0 | AR81: 0 | AS81: 0 | AT81: 0 | AU81: 0 | AV81: 0 | AW81: 0 | AX81: 0 | AY81: 0 | AZ81: 0 | BA81: 0 | BB81: 0 | BC81: 0 | BD81: 0
B82: 2086 | C82: =Inputs_AS!I95 -> 0 | D82: 2070 | E82: 0 | F82: =IF(F$15>$B82,0,E82*(1-1/($B82-F$15+2)+E$11)) -> 0 | G82: 0 | H82: =IF(H$15>$D82+1,0,G82*(1-1/($D82-H$15+2)+G$11)) -> 0 | I82: 0 | J82: 0 | K82: 0 | L82: 0 | M82: 0 | N82: 0 | O82: 0 | P82: 0 | Q82: 0 | R82: 0 | S82: 0 | T82: 0 | U82: 0 | V82: 0 | W82: 0 | X82: 0 | Y82: 0 | Z82: 0 | AA82: 0 | AB82: 0 | AC82: 0 | AD82: 0 | AE82: 0 | AF82: 0 | AG82: 0 | AH82: 0 | AI82: 0 | AJ82: 0 | AK82: 0 | AL82: 0 | AM82: 0 | AN82: 0 | AO82: 0 | AP82: 0 | AQ82: 0 | AR82: 0 | AS82: 0 | AT82: 0 | AU82: 0 | AV82: 0 | AW82: 0 | AX82: 0 | AY82: 0 | AZ82: 0 | BA82: 0 | BB82: 0 | BC82: 0 | BD82: 0
B83: 2087 | C83: =Inputs_AS!I96 -> 0 | D83: 2070 | E83: 0 | F83: =IF(F$15>$B83,0,E83*(1-1/($B83-F$15+2)+E$11)) -> 0 | G83: 0 | H83: =IF(H$15>$D83+1,0,G83*(1-1/($D83-H$15+2)+G$11)) -> 0 | I83: 0 | J83: 0 | K83: 0 | L83: 0 | M83: 0 | N83: 0 | O83: 0 | P83: 0 | Q83: 0 | R83: 0 | S83: 0 | T83: 0 | U83: 0 | V83: 0 | W83: 0 | X83: 0 | Y83: 0 | Z83: 0 | AA83: 0 | AB83: 0 | AC83: 0 | AD83: 0 | AE83: 0 | AF83: 0 | AG83: 0 | AH83: 0 | AI83: 0 | AJ83: 0 | AK83: 0 | AL83: 0 | AM83: 0 | AN83: 0 | AO83: 0 | AP83: 0 | AQ83: 0 | AR83: 0 | AS83: 0 | AT83: 0 | AU83: 0 | AV83: 0 | AW83: 0 | AX83: 0 | AY83: 0 | AZ83: 0 | BA83: 0 | BB83: 0 | BC83: 0 | BD83: 0
B84: 2088 | C84: =Inputs_AS!I97 -> 8411.006054 | D84: =IF($G$4,ROUND(MIN(G$5,2023+(B84-2023)*$G$6),2),B84) -> 2070 | E84: 8411.006054 | F84: =IF(F$15>$B84,0,E84*(1-1/($B84-F$15+2)+E$11)) -> 8702.279035 | G84: 8920.485434 | H84: =IF(H$15>$D84+1,0,G84*(1-1/($D84-H$15+2)+G$11)) -> 8939.813153 | I84: 8928.400625 | J84: 8912.872972 | K84: 8893.066588 | L84: 8868.81277 | M84: 8839.937565 | N84: 8806.261613 | O84: 8767.599976 | P84: 8723.761976 | Q84: 8674.551011 | R84: 8619.764373 | S84: 8559.193056 | T84: 8492.621555 | U84: 8419.827656 | V84: 8340.582219 | W84: 8254.648947 | X84: 8161.784147 | Y84: 8061.73647 | Z84: 7954.246651 | AA84: 7839.047216 | AB84: 7715.862189 | AC84: 7584.406759 | AD84: 7444.386942 | AE84: 7295.499203 | AF84: 7137.430053 | AG84: 6969.855609 | AH84: 6792.441102 | AI84: 6604.840348 | AJ84: 6406.695138 | AK84: 6197.634559 | AL84: 5977.27422 | AM84: 5745.215338 | AN84: 5501.043686 | AO84: 5244.328314 | AP84: 4974.620001 | AQ84: 4691.449324 | AR84: 4394.3242 | AS84: 4082.726666 | AT84: 3756.108533 | AU84: 3413.885311 | AV84: 3055.427353 | AW84: 2680.046278 | AX84: 2286.972824 | AY84: 1875.317716 | AZ84: 1443.994641 | BA84: 991.5429869 | BB84: 515.6023532 | BC84: 0 | BD84: 0
B85: 2089 | C85: =Inputs_AS!I98 -> -386.7202342 | D85: 2070 | E85: -386.7202342 | F85: =IF(F$15>$B85,0,E85*(1-1/($B85-F$15+2)+E$11)) -> -400.1947698 | G85: -410.3173433 | H85: =IF(H$15>$D85+1,0,G85*(1-1/($D85-H$15+2)+G$11)) -> -411.2063642 | I85: -410.68142 | J85: -409.9671914 | K85: -409.0561532 | L85: -407.9405455 | M85: -406.612367 | N85: -405.0633675 | O85: -403.2850405 | P85: -401.2686153 | Q85: -399.0050488 | R85: -396.4850169 | S85: -393.6989059 | T85: -390.6368033 | U85: -387.2884879 | V85: -383.6434198 | W85: -379.69073 | X85: -375.4192093 | Y85: -370.8172964 | Z85: -365.8730658 | AA85: -360.5742145 | AB85: -354.9080482 | AC85: -348.8614667 | AD85: -342.4209473 | AE85: -335.5725283 | AF85: -328.3017902 | AG85: -320.5938352 | AH85: -312.4332648 | AI85: -303.8041556 | AJ85: -294.6900309 | AK85: -285.0738299 | AL85: -274.9378715 | AM85: -264.263813 | AN85: -253.0326009 | AO85: -241.2244129 | AP85: -228.8185859 | AQ85: -215.793528 | AR85: -202.1266045 | AS85: -187.7939908 | AT85: -172.7704715 | AU85: -157.0291619 | AV85: -140.5410999 | AW85: -123.2746219 | AX85: -105.194344 | AY85: -86.25936209 | AZ85: -66.41970881 | BA85: -45.60820005 | BB85: -23.71626402 | BC85: 0 | BD85: 0
B86: 2090 | C86: =Inputs_AS!I99 -> 18060.25816 | D86: 2070 | E86: 18060.25816 | F86: =IF(F$15>$B86,0,E86*(1-1/($B86-F$15+2)+E$11)) -> 18693.27291 | G86: 19170.08682 | H86: =IF(H$15>$D86+1,0,G86*(1-1/($D86-H$15+2)+G$11)) -> 19211.62201 | I86: 19187.09654 | J86: 19153.72767 | K86: 19111.16383 | L86: 19059.04248 | M86: 18996.98978 | N86: 18924.6203 | O86: 18841.5366 | P86: 18747.32891 | Q86: 18641.57475 | R86: 18523.83849 | S86: 18393.67098 | T86: 18250.60909 | U86: 18094.1753 | V86: 17923.87718 | W86: 17739.20693 | X86: 17539.64085 | Y86: 17324.6388 | Z86: 17093.64362 | AA86: 16846.0805 | AB86: 16581.35638 | AC86: 16298.8592 | AD86: 15997.95718 | AE86: 15677.99804 | AF86: 15338.30808 | AG86: 14978.19128 | AH86: 14596.92823 | AI86: 14193.77498 | AJ86: 13767.96173 | AK86: 13318.6914 | AL86: 12845.13792 | AM86: 12346.44433 | AN86: 11821.72045 | AO86: 11270.04016 | AP86: 10690.4381 | AQ86: 10081.90547 | AR86: 9443.384787 | AS86: 8773.762957 | AT86: 8071.861921 | AU86: 7336.425612 | AV86: 6566.100923 | AW86: 5759.408524 | AX86: 4914.695274 | AY86: 4030.050124 | AZ86: 3103.138596 | BA86: 2130.821836 | BB86: 1108.027355 | BC86: 0 | BD86: 0
B87: Total opening RAB of existing assets | E87: =SUM(E17:E86) -> 782988.9229 | F87: 788134.4901 | G87: 785794.8076 | H87: 762483.1621 | I87: 737219.793 | J87: 711862.8811 | K87: 685461.5641 | L87: 658287.8567 | M87: 630832.9892 | N87: 602912.5968 | O87: 573800.9071 | P87: 543407.8249 | Q87: 515527.5133 | R87: 487176.8829 | S87: 457852.3827 | T87: 428014.4793 | U87: 396974.569 | V87: 364869.0886 | W87: 333441.57 | X87: 300561.8903 | Y87: 266809.4666 | Z87: 232823.6584 | AA87: 198500.9135 | AB87: 168418.1701 | AC87: 143153.135 | AD87: 120861.0419 | AE87: 99088.51083 | AF87: 77138.77442 | AG87: 55889.19713 | AH87: 34505.10032 | AI87: 32038.65099 | AJ87: =SUM(AJ17:AJ86) -> 30164.61807 | AK87: 28411.04624 | AL87: 26690.04527 | AM87: 24998.00973 | AN87: 23292.51434 | AO87: 21676.74156 | AP87: 19987.15637 | AQ87: 18184.02696 | AR87: 16288.21343 | AS87: 14319.19455 | AT87: 12296.22825 | AU87: 10852.30099 | AV87: 9557.593456 | AW87: 8324.303197 | AX87: 7102.569739 | AY87: 5823.076942 | AZ87: 4482.440622 | BA87: 3076.756623 | BB87: 1599.913444 | BC87: 0 | BD87: 0

Sheet Additional
A1: Additional assets
A2: Inputs
D3: =Inputs_AS!D2 -> First Gas transmission | F3: Timing of "additional assets" against the timeliine: In this workbook, additional assets
B4: Chosen supplier number | D4: =Inputs_AS!D3 -> 5 | F4: are recorded as occurring in the year in which they enter the RAB. This is the year after
B5: Post-tax WACC | D5: =Inputs_AS!D5 -> 0.0607 | F5: the year during which they are dommissioned.
B6: Stranding year | D6: =Inputs_AS!D10 -> 2070
B7: Adjustment factor | D7: =AdjFactor -> 0.812895939
B8: Remaining life of additional assets, Business As Usual (BAU) | D8: =Inputs_AS!D12 -> 45
B9: Mitigation | D9: =Mitigation -> TRUE
B10: Stranding year BBAR ÷ 2023 BBAR | D10: =Inputs_AS!D13 -> 0.2
B11: Apply revaluations from 2023 onwards | D11: =Reval -> TRUE
E14: 2021 | F14: 2022 | G14: 2023 | H14: 2024 | I14: 2025 | J14: 2026 | K14: 2027 | L14: 2028 | M14: 2029 | N14: 2030 | O14: 2031 | P14: 2032 | Q14: 2033 | R14: 2034 | S14: 2035 | T14: 2036 | U14: 2037 | V14: 2038 | W14: 2039 | X14: 2040 | Y14: 2041 | Z14: 2042 | AA14: 2043 | AB14: 2044 | AC14: 2045 | AD14: 2046 | AE14: 2047 | AF14: 2048 | AG14: 2049 | AH14: 2050 | AI14: 2051 | AJ14: 2052 | AK14: 2053 | AL14: 2054 | AM14: 2055 | AN14: 2056 | AO14: 2057 | AP14: 2058 | AQ14: 2059 | AR14: 2060 | AS14: 2061 | AT14: 2062 | AU14: 2063 | AV14: 2064 | AW14: 2065 | AX14: 2066 | AY14: 2067 | AZ14: 2068 | BA14: 2069 | BB14: 2070 | BC14: 2071 | BD14: 2072
B15: Forecast changes in CPI used for revaluations, chosen GPB's year ends | E15: =Inputs_AS!E22 -> 0.04933586338 | F15: =Inputs_AS!F22 -> 0.04 | G15: =IF(AND($D$11,G14<>$D$6),Inputs_AS!G22,0) -> 0.023 | H15: =IF(AND($D$11,H14<>$D$6),Inputs_AS!H22,0) -> 0.02 | I15: =IF(AND($D$11,I14<>$D$6),Inputs_AS!I22,0) -> 0.02 | J15: =IF(AND($D$11,J14<>$D$6),Inputs_AS!J22,0) -> 0.02 | K15: =IF(AND($D$11,K14<>$D$6),Inputs_AS!K22,0) -> 0.02 | L15: =IF(AND($D$11,L14<>$D$6),Inputs_AS!L22,0) -> 0.02 | M15: =IF(AND($D$11,M14<>$D$6),Inputs_AS!M22,0) -> 0.02 | N15: =IF(AND($D$11,N14<>$D$6),Inputs_AS!N22,0) -> 0.02 | O15: =IF(AND($D$11,O14<>$D$6),Inputs_AS!O22,0) -> 0.02 | P15: =IF(AND($D$11,P14<>$D$6),Inputs_AS!P22,0) -> 0.02 | Q15: =IF(AND($D$11,Q14<>$D$6),Inputs_AS!Q22,0) -> 0.02 | R15: =IF(AND($D$11,R14<>$D$6),Inputs_AS!R22,0) -> 0.02 | S15: =IF(AND($D$11,S14<>$D$6),Inputs_AS!S22,0) -> 0.02 | T15: =IF(AND($D$11,T14<>$D$6),Inputs_AS!T22,0) -> 0.02 | U15: =IF(AND($D$11,U14<>$D$6),Inputs_AS!U22,0) -> 0.02 | V15: =IF(AND($D$11,V14<>$D$6),Inputs_AS!V22,0) -> 0.02 | W15: =IF(AND($D$11,W14<>$D$6),Inputs_AS!W22,0) -> 0.02 | X15: =IF(AND($D$11,X14<>$D$6),Inputs_AS!X22,0) -> 0.02 | Y15: =IF(AND($D$11,Y14<>$D$6),Inputs_AS!Y22,0) -> 0.02 | Z15: =IF(AND($D$11,Z14<>$D$6),Inputs_AS!Z22,0) -> 0.02 | AA15: =IF(AND($D$11,AA14<>$D$6),Inputs_AS!AA22,0) -> 0.02 | AB15: =IF(AND($D$11,AB14<>$D$6),Inputs_AS!AB22,0) -> 0.02 | AC15: =IF(AND($D$11,AC14<>$D$6),Inputs_AS!AC22,0) -> 0.02 | AD15: =IF(AND($D$11,AD14<>$D$6),Inputs_AS!AD22,0) -> 0.02 | AE15: =IF(AND($D$11,AE14<>$D$6),Inputs_AS!AE22,0) -> 0.02 | AF15: =IF(AND($D$11,AF14<>$D$6),Inputs_AS!AF22,0) -> 0.02 | AG15: =IF(AND($D$11,AG14<>$D$6),Inputs_AS!AG22,0) -> 0.02 | AH15: =IF(AND($D$11,AH14<>$D$6),Inputs_AS!AH22,0) -> 0.02 | AI15: =IF(AND($D$11,AI14<>$D$6),Inputs_AS!AI22,0) -> 0.02 | AJ15: =IF(AND($D$11,AJ14<>$D$6),Inputs_AS!AJ22,0) -> 0.02 | AK15: =IF(AND($D$11,AK14<>$D$6),Inputs_AS!AK22,0) -> 0.02 | AL15: =IF(AND($D$11,AL14<>$D$6),Inputs_AS!AL22,0) -> 0.02 | AM15: =IF(AND($D$11,AM14<>$D$6),Inputs_AS!AM22,0) -> 0.02 | AN15: =IF(AND($D$11,AN14<>$D$6),Inputs_AS!AN22,0) -> 0.02 | AO15: =IF(AND($D$11,AO14<>$D$6),Inputs_AS!AO22,0) -> 0.02 | AP15: =IF(AND($D$11,AP14<>$D$6),Inputs_AS!AP22,0) -> 0.02 | AQ15: =IF(AND($D$11,AQ14<>$D$6),Inputs_AS!AQ22,0) -> 0.02 | AR15: =IF(AND($D$11,AR14<>$D$6),Inputs_AS!AR22,0) -> 0.02 | AS15: =IF(AND($D$11,AS14<>$D$6),Inputs_AS!AS22,0) -> 0.02 | AT15: =IF(AND($D$11,AT14<>$D$6),Inputs_AS!AT22,0) -> 0.02 | AU15: =IF(AND($D$11,AU14<>$D$6),Inputs_AS!AU22,0) -> 0.02 | AV15: =IF(AND($D$11,AV14<>$D$6),Inputs_AS!AV22,0) -> 0.02 | AW15: =IF(AND($D$11,AW14<>$D$6),Inputs_AS!AW22,0) -> 0.02 | AX15: =IF(AND($D$11,AX14<>$D$6),Inputs_AS!AX22,0) -> 0.02 | AY15: =IF(AND($D$11,AY14<>$D$6),Inputs_AS!AY22,0) -> 0.02 | AZ15: =IF(AND($D$11,AZ14<>$D$6),Inputs_AS!AZ22,0) -> 0.02 | BA15: =IF(AND($D$11,BA14<>$D$6),Inputs_AS!BA22,0) -> 0.02 | BB15: =IF(AND($D$11,BB14<>$D$6),Inputs_AS!BB22,0) -> 0 | BC15: 0
A17: Calculations
B18: Reduced remaining life of additional assets | D18: =D8*D7 -> 36.58031725
C20: Additional assets | I20: Chosen GPB
B21: Capex year | C21: Expiry year, BAU | D21: GasNet | E21: Powerco | F21: Vector | G21: First Gas distribution | H21: First Gas transmission | I21: =GPB_name -> First Gas transmission
B22: 2021 | C22: =B22+D$8 -> 2066 | D22: ='[2]Reflation outputs'!B16 -> 800.4730001 | E22: ='[2]Reflation outputs'!C16 -> 18279.35708 | F22: ='[2]Reflation outputs'!D16 -> 15525.51039 | G22: ='[2]Reflation outputs'!E16 -> 13007.79958 | H22: ='[2]Reflation outputs'!F16 -> 35101.66749 | I22: =IF(B22>$D$6,0,INDEX(D22:H22,1,D$4)) -> 35101.66749
B23: 2022 | C23: 2067 | D23: ='[2]Reflation outputs'!B17 -> 810.66374 | E23: ='[2]Reflation outputs'!C17 -> 18254.94431 | F23: ='[2]Reflation outputs'!D17 -> 7050.395188 | G23: ='[2]Reflation outputs'!E17 -> 21831.00225 | H23: ='[2]Reflation outputs'!F17 -> 53794.2602 | I23: =IF(B23>$D$6,0,INDEX(D23:H23,1,D$4)) -> 53794.2602
B24: 2023 | C24: 2068 | D24: ='[2]Reflation outputs'!B18 -> 1030.175855 | E24: ='[2]Reflation outputs'!C18 -> 18972.8606 | F24: ='[2]Reflation outputs'!D18 -> 6627.664979 | G24: ='[2]Reflation outputs'!E18 -> 14495.48827 | H24: ='[2]Reflation outputs'!F18 -> 58641.39746 | I24: =IF(B24>$D$6,0,INDEX(D24:H24,1,D$4)) -> 58641.39746
B25: 2024 | C25: 2069 | D25: ='[2]Reflation outputs'!B19 -> 967.9419475 | E25: ='[2]Reflation outputs'!C19 -> 19067.5832 | F25: ='[2]Reflation outputs'!D19 -> 5966.442061 | G25: ='[2]Reflation outputs'!E19 -> 14557.51815 | H25: ='[2]Reflation outputs'!F19 -> 48315.70818 | I25: 48315.70818
B26: 2025 | C26: 2070 | D26: ='[2]Reflation outputs'!B20 -> 998.0541497 | E26: ='[2]Reflation outputs'!C20 -> 20001.43564 | F26: ='[2]Reflation outputs'!D20 -> 6635.746939 | G26: ='[2]Reflation outputs'!E20 -> 14658.45746 | H26: ='[2]Reflation outputs'!F20 -> 41557.54469 | I26: 41557.54469
B27: 2026 | C27: 2071 | D27: ='[2]Reflation outputs'!B21 -> 1025.555467 | E27: ='[2]Reflation outputs'!C21 -> 21763.78953 | F27: ='[2]Reflation outputs'!D21 -> 7614.341354 | G27: ='[2]Reflation outputs'!E21 -> 14603.92335 | H27: ='[2]Reflation outputs'!F21 -> 43513.37103 | I27: 43513.37103
B28: 2027 | C28: 2072 | D28: ='[2]Reflation outputs'!B22 -> 1052.534608 | E28: ='[2]Reflation outputs'!C22 -> 21883.41421 | F28: ='[2]Reflation outputs'!D22 -> 8534.788375 | G28: ='[2]Reflation outputs'!E22 -> 14996.4779 | H28: ='[2]Reflation outputs'!F22 -> 45771.86572 | I28: 45771.86572
B29: 2028 | C29: 2073 | D29: 518.1002986 | E29: 8605.497647 | F29: 6017.269233 | G29: 5350.67998 | H29: 35322.42548 | I29: 35322.42548
B30: 2029 | C30: 2074 | D30: 531.3805279 | E30: 8854.055513 | F30: 4590.368799 | G30: 5586.310799 | H30: 36761.50735 | I30: 36761.50735
B31: 2030 | C31: 2075 | D31: 545.0011632 | E31: 8648.466412 | F31: 5557.461911 | G31: 5557.461911 | H31: 40914.86386 | I31: 40914.86386
B32: 2031 | C32: 2076 | D32: 518.367519 | E32: 8963.344785 | F32: 5782.557626 | G32: 5353.273384 | H32: 39250.65587 | I32: 39250.65587
B33: 2032 | C33: 2077 | D33: 492.4797092 | E33: 8581.622037 | F33: 5572.744464 | G33: 5155.941008 | H33: 36944.08045 | I33: 36944.08045
B34: 2033 | C34: 2078 | D34: 466.5918994 | E34: 8199.89929 | F34: 5362.931303 | G34: 4958.608631 | H34: 34637.50503 | I34: 34637.50503
B35: 2034 | C35: 2079 | D35: 440.7040895 | E35: 7818.176542 | F35: 5153.118141 | G35: 4761.276255 | H35: 32330.92961 | I35: 32330.92961
B36: 2035 | C36: 2080 | D36: 414.8162797 | E36: 7436.453794 | F36: 4943.30498 | G36: 4563.943878 | H36: 30024.35419 | I36: 30024.35419
B37: 2036 | C37: 2081 | D37: 388.9284699 | E37: 7054.731047 | F37: 4733.491818 | G37: 4366.611502 | H37: 27717.77877 | I37: 27717.77877
B38: 2037 | C38: 2082 | D38: 363.04066 | E38: 6673.008299 | F38: 4523.678657 | G38: 4169.279125 | H38: 25411.20335 | I38: 25411.20335
B39: 2038 | C39: 2083 | D39: 337.1528502 | E39: 6291.285551 | F39: 4313.865495 | G39: 3971.946749 | H39: 23104.62793 | I39: 23104.62793
B40: 2039 | C40: 2084 | D40: 311.2650404 | E40: 5909.562804 | F40: 4104.052334 | G40: 3774.614372 | H40: 20798.05251 | I40: 20798.05251
B41: 2040 | C41: 2085 | D41: 285.3772305 | E41: 5527.840056 | F41: 3894.239172 | G41: 3577.281996 | H41: 18491.4771 | I41: 18491.4771
B42: 2041 | C42: 2086 | D42: 259.4894207 | E42: 5146.117308 | F42: 3684.426011 | G42: 3379.949619 | H42: 16184.90168 | I42: 16184.90168
B43: 2042 | C43: 2087 | D43: 233.6016109 | E43: 4764.394561 | F43: 3474.612849 | G43: 3182.617242 | H43: 13878.32626 | I43: 13878.32626
B44: 2043 | C44: 2088 | D44: 207.713801 | E44: 4382.671813 | F44: 3264.799688 | G44: 2985.284866 | H44: 11571.75084 | I44: 11571.75084
B45: 2044 | C45: 2089 | D45: 181.8259912 | E45: 4000.949065 | F45: 3054.986526 | G45: 2787.952489 | H45: 9265.175419 | I45: 9265.175419
B46: 2045 | C46: 2090 | D46: 155.9381814 | E46: 3619.226318 | F46: 2845.173364 | G46: 2590.620113 | H46: 6958.6 | I46: 6958.6
B47: 2046 | C47: 2091 | D47: 155.9381814 | E47: 3619.226318 | F47: 2845.173364 | G47: 2590.620113 | H47: 6958.6 | I47: 6958.6
B48: 2047 | C48: 2092 | D48: 155.9381814 | E48: 3619.226318 | F48: 2845.173364 | G48: 2590.620113 | H48: 6958.6 | I48: 6958.6
B49: 2048 | C49: 2093 | D49: 155.9381814 | E49: 3619.226318 | F49: 2845.173364 | G49: 2590.620113 | H49: 6958.6 | I49: 6958.6
B50: 2049 | C50: 2094 | D50: 155.9381814 | E50: 3619.226318 | F50: 2845.173364 | G50: 2590.620113 | H50: 6958.6 | I50: 6958.6
B51: 2050 | C51: 2095 | D51: 155.9381814 | E51: 3619.226318 | F51: 2845.173364 | G51: 2590.620113 | H51: 6958.6 | I51: 6958.6
B52: 2051 | C52: 2096 | D52: 155.9381814 | E52: 3619.226318 | F52: 2845.173364 | G52: 2590.620113 | H52: 6958.6 | I52: 6958.6
B53: 2052 | C53: 2097 | D53: 155.9381814 | E53: 3619.226318 | F53: 2845.173364 | G53: 2590.620113 | H53: 6958.6 | I53: 6958.6
B54: 2053 | C54: 2098 | D54: 155.9381814 | E54: 3619.226318 | F54: 2845.173364 | G54: 2590.620113 | H54: 6958.6 | I54: 6958.6
B55: 2054 | C55: =B55+D$8 -> 2099 | D55: 155.9381814 | E55: 3619.226318 | F55: 2845.173364 | G55: 2590.620113 | H55: 6958.6 | I55: 6958.6
B56: 2055 | C56: 2100 | D56: 155.9381814 | E56: 3619.226318 | F56: 2845.173364 | G56: 2590.620113 | H56: 6958.6 | I56: 6958.6
B57: 2056 | C57: 2101 | D57: 155.9381814 | E57: 3619.226318 | F57: 2845.173364 | G57: 2590.620113 | H57: 6958.6 | I57: 6958.6
B58: 2057 | C58: 2102 | D58: 155.9381814 | E58: 3619.226318 | F58: 2845.173364 | G58: 2590.620113 | H58: 6958.6 | I58: 6958.6
B59: 2058 | C59: 2103 | D59: 155.9381814 | E59: 3619.226318 | F59: 2845.173364 | G59: 2590.620113 | H59: 6958.6 | I59: 6958.6
B60: 2059 | C60: 2104 | D60: 155.9381814 | E60: 3619.226318 | F60: 2845.173364 | G60: 2590.620113 | H60: 6958.6 | I60: 6958.6
B61: 2060 | C61: 2105 | D61: 155.9381814 | E61: 3619.226318 | F61: 2845.173364 | G61: 2590.620113 | H61: 6958.6 | I61: 6958.6
B62: 2061 | C62: 2106 | D62: 155.9381814 | E62: 3619.226318 | F62: 2845.173364 | G62: 2590.620113 | H62: 6958.6 | I62: 6958.6
B63: 2062 | C63: 2107 | D63: 155.9381814 | E63: 3619.226318 | F63: 2845.173364 | G63: 2590.620113 | H63: 6958.6 | I63: 6958.6
B64: 2063 | C64: 2108 | D64: 155.9381814 | E64: 3619.226318 | F64: 2845.173364 | G64: 2590.620113 | H64: 6958.6 | I64: 6958.6
B65: 2064 | C65: 2109 | D65: 155.9381814 | E65: 3619.226318 | F65: 2845.173364 | G65: 2590.620113 | H65: 6958.6 | I65: 6958.6
B66: 2065 | C66: 2110 | D66: 155.9381814 | E66: 3619.226318 | F66: 2845.173364 | G66: 2590.620113 | H66: 6958.6 | I66: 6958.6
B67: 2066 | C67: 2111 | D67: 155.9381814 | E67: 3619.226318 | F67: 2845.173364 | G67: 2590.620113 | H67: 6958.6 | I67: 6958.6
B68: 2067 | C68: 2112 | D68: 155.9381814 | E68: 3619.226318 | F68: 2845.173364 | G68: 2590.620113 | H68: 6958.6 | I68: 6958.6
B69: 2068 | C69: 2113 | D69: 155.9381814 | E69: 3619.226318 | F69: 2845.173364 | G69: 2590.620113 | H69: 6958.6 | I69: 6958.6
B70: 2069 | C70: 2114 | D70: 155.9381814 | E70: 3619.226318 | F70: 2845.173364 | G70: 2590.620113 | H70: 6958.6 | I70: 6958.6
B71: 2070 | C71: 2115 | D71: 155.9381814 | E71: 3619.226318 | F71: 2845.173364 | G71: 2590.620113 | H71: 6958.6 | I71: 6958.6
I72: =IF(B72>$D$6,0,INDEX(D72:H72,1,D$4)) -> 0
B74: Opening RAB and revaluation rate by ID year
B75: ID year | E75: 2021 | F75: 2022 | G75: 2023 | H75: 2024 | I75: 2025 | J75: 2026 | K75: 2027 | L75: 2028 | M75: 2029 | N75: 2030 | O75: 2031 | P75: 2032 | Q75: 2033 | R75: 2034 | S75: 2035 | T75: 2036 | U75: 2037 | V75: 2038 | W75: 2039 | X75: 2040 | Y75: 2041 | Z75: 2042 | AA75: 2043 | AB75: 2044 | AC75: 2045 | AD75: 2046 | AE75: 2047 | AF75: 2048 | AG75: 2049 | AH75: 2050 | AI75: 2051 | AJ75: 2052 | AK75: 2053 | AL75: 2054 | AM75: 2055 | AN75: 2056 | AO75: 2057 | AP75: 2058 | AQ75: 2059 | AR75: 2060 | AS75: 2061 | AT75: 2062 | AU75: 2063 | AV75: 2064 | AW75: 2065 | AX75: 2066 | AY75: 2067 | AZ75: 2068 | BA75: 2069 | BB75: 2070 | BC75: 2071 | BD75: 2072
B76: Forecast changes in CPI used for revaluations, chosen GPB's year ends | E76: =E15 -> 0.04933586338 | F76: 0.04 | G76: 0.023 | H76: 0.02 | I76: 0.02 | J76: 0.02 | K76: 0.02 | L76: 0.02 | M76: 0.02 | N76: 0.02 | O76: 0.02 | P76: 0.02 | Q76: 0.02 | R76: 0.02 | S76: 0.02 | T76: 0.02 | U76: 0.02 | V76: 0.02 | W76: 0.02 | X76: 0.02 | Y76: 0.02 | Z76: 0.02 | AA76: 0.02 | AB76: 0.02 | AC76: 0.02 | AD76: 0.02 | AE76: 0.02 | AF76: 0.02 | AG76: 0.02 | AH76: 0.02 | AI76: 0.02 | AJ76: 0.02 | AK76: =AK15 -> 0.02 | AL76: 0.02 | AM76: 0.02 | AN76: 0.02 | AO76: 0.02 | AP76: 0.02 | AQ76: 0.02 | AR76: 0.02 | AS76: 0.02 | AT76: 0.02 | AU76: 0.02 | AV76: 0.02 | AW76: 0.02 | AX76: 0.02 | AY76: 0.02 | AZ76: 0.02 | BA76: 0.02 | BB76: 0 | BC76: 0
B77: Opening RAB of assets entering RAB, ie previous year's capex | F77: =TRANSPOSE(I22:I71) -> 35101.66749 | G77: 53794.2602 | H77: 58641.39746 | I77: 48315.70818 | J77: 41557.54469 | K77: 43513.37103 | L77: 45771.86572 | M77: 35322.42548 | N77: 36761.50735 | O77: 40914.86386 | P77: 39250.65587 | Q77: 36944.08045 | R77: 34637.50503 | S77: 32330.92961 | T77: 30024.35419 | U77: 27717.77877 | V77: 25411.20335 | W77: 23104.62793 | X77: 20798.05251 | Y77: 18491.4771 | Z77: 16184.90168 | AA77: 13878.32626 | AB77: 11571.75084 | AC77: 9265.175419 | AD77: 6958.6 | AE77: 6958.6 | AF77: 6958.6 | AG77: 6958.6 | AH77: 6958.6 | AI77: 6958.6 | AJ77: 6958.6 | AK77: 6958.6 | AL77: 6958.6 | AM77: 6958.6 | AN77: 6958.6 | AO77: 6958.6 | AP77: 6958.6 | AQ77: 6958.6 | AR77: 6958.6 | AS77: 6958.6 | AT77: 6958.6 | AU77: 6958.6 | AV77: 6958.6 | AW77: 6958.6 | AX77: 6958.6 | AY77: 6958.6 | AZ77: 6958.6 | BA77: 6958.6 | BB77: 6958.6 | BC77: 6958.6 | BD77: 0
B78: Present value of capex entering the RAB from Y/E 2023 | E78: =G77+NPV(D5,H77:BB77) -> 506884.3703
B79: Opening regulatory tax asset value
B81: Panel of additional assets opening RAB by ID year and expiry year
B82: First year in RAB | C82: Expiry year, BAU | D82: Expiry year, applicable acceleration
B83: 2022 | C83: =C23 -> 2067 | D83: =ROUND(IF($D$9,MIN(B83+$D$18,$D$6),C83),0) -> 2059 | F83: =IF(OR(F$75<$B83,AND($D$9,F$75>$D$6+1),F$75>$D83+1),0,IF(F$75=$B83,F$77,E83*(1-1/($D83-F$75+2)+E$76))) -> 35101.66749 | G83: 35582.0061 | H83: 35438.7164 | I83: 35163.08194 | J83: 34861.6841 | K83: 34533.57413 | L83: 34177.77367 | M83: 33793.27371 | N83: 33379.03358 | O83: 32933.9798 | P83: 32457.00492 | Q83: 31946.96627 | R83: 31402.68463 | S83: 30822.94276 | T83: 30206.4839 | U83: 29552.01008 | V83: 28858.18028 | W83: 28123.60842 | X83: 27346.86114 | Y83: 26526.45531 | Z83: 25660.85519 | AA83: 24748.46922 | AB83: 23787.6463 | AC83: 22776.67133 | AD83: 21713.76 | AE83: 20597.05235 | AF83: 19424.60475 | AG83: 18194.37978 | AH83: 16904.23285 | AI83: 15551.89423 | AJ83: 14134.94386 | AK83: 12650.77476 | AL83: =IF(OR(AL$75<$B83,AND($D$9,AL$75>$D$6+1),AL$75>$D83+1),0,IF(AL$75=$B83,AL$77,AK83*(1-1/($D83-AL$75+2)+AK$76))) -> 11096.53672 | AM83: 9469.044664 | AN83: 7764.616624 | AO83: 5978.754801 | AP83: 4105.41163 | AQ83: 2134.814048 | AR83: 42.69628095 | AS83: 0 | AT83: 0 | AU83: 0 | AV83: 0 | AW83: 0 | AX83: 0 | AY83: 0 | AZ83: 0 | BA83: 0 | BB83: 0 | BC83: =IF(OR(BC$75<$B83,AND($D$9,BC$75>$D$6+1),BC$75>$D83+1),0,IF(BC$75=$B83,BC$77,BB83*(1-1/($D83-BC$75+2)+BC$76))) -> 0 | BD83: 0
B84: 2023 | C84: 2068 | D84: 2060 | F84: =IF(OR(F$75<$B84,AND($D$9,F$75>$D$6+1),F$75>$D84+1),0,IF(F$75=$B84,F$77,E84*(1-1/($D84-F$75+2)+E$76))) -> 0 | G84: 53794.2602 | H84: 53615.88976 | I84: 53239.12946 | J84: 52825.04734 | K84: 52372.26122 | L84: 51879.34582 | M84: 51344.83135 | N84: 50767.20199 | O84: 50144.89436 | P84: 49476.29577 | Q84: 48759.74252 | R84: 47993.51799 | S84: 47175.85065 | T84: 46304.91187 | U84: 45378.81363 | V84: 44395.606 | W84: 43353.27438 | X84: 42249.73649 | Y84: 41082.839 | Z84: 39850.35383 | AA84: 38549.97387 | AB84: 37179.30813 | AC84: 35735.87617 | AD84: 34217.10143 | AE84: 32620.30336 | AF84: 30942.68776 | AG84: 29181.33477 | AH84: 27333.18356 | AI84: 25395.01237 | AJ84: 23363.41138 | AK84: 21234.74501 | AL84: =IF(OR(AL$75<$B84,AND($D$9,AL$75>$D$6+1),AL$75>$D84+1),0,IF(AL$75=$B84,AL$77,AK84*(1-1/($D84-AL$75+2)+AK$76))) -> 19005.09678 | AM84: 16670.18489 | AN84: 14225.22444 | AO84: 11664.68404 | AP84: 8981.806711 | AQ84: 6167.507275 | AR84: 3207.103783 | AS84: 64.14207566 | AT84: 0 | AU84: 0 | AV84: 0 | AW84: 0 | AX84: 0 | AY84: 0 | AZ84: 0 | BA84: 0 | BB84: 0 | BC84: 0 | BD84: 0
B85: 2024 | C85: 2069 | D85: 2061 | F85: =IF(OR(F$75<$B85,AND($D$9,F$75>$D$6+1),F$75>$D85+1),0,IF(F$75=$B85,F$77,E85*(1-1/($D85-F$75+2)+E$76))) -> 0 | G85: 0 | H85: 58641.39746 | I85: 58271.03074 | J85: 57861.55864 | K85: 57411.52429 | L85: 56919.42551 | M85: 56383.71327 | N85: 55802.79016 | O85: 55175.00878 | P85: 54498.66996 | Q85: 53772.02103 | R85: 52993.25382 | S85: 52160.50269 | T85: 51271.84228 | U85: 50325.28519 | V85: 49318.77948 | W85: 48250.20593 | X85: 47117.37501 | Y85: 45918.02364 | Z85: 44649.81156 | AA85: 43310.31721 | AB85: 41897.03318 | AC85: 40407.36089 | AD85: 38838.60452 | AE85: 37187.96383 | AF85: 35452.52552 | AG85: 33629.25278 | AH85: 31714.97224 | AI85: 29706.35733 | AJ85: 27599.90654 | AK85: 25391.91401 | AL85: =IF(OR(AL$75<$B85,AND($D$9,AL$75>$D$6+1),AL$75>$D85+1),0,IF(AL$75=$B85,AL$77,AK85*(1-1/($D85-AL$75+2)+AK$76))) -> 23078.42851 | AM85: 20655.19352 | AN85: 18117.55546 | AO85: 15460.31399 | AP85: 12677.45747 | AQ85: 9761.642254 | AR85: 6702.994348 | AS85: 3485.557061 | AT85: 69.71114122 | AU85: 0 | AV85: 0 | AW85: 0 | AX85: 0 | AY85: 0 | AZ85: 0 | BA85: 0 | BB85: 0 | BC85: 0 | BD85: 0
B86: 2025 | C86: 2070 | D86: 2062 | F86: =IF(OR(F$75<$B86,AND($D$9,F$75>$D$6+1),F$75>$D86+1),0,IF(F$75=$B86,F$77,E86*(1-1/($D86-F$75+2)+E$76))) -> 0 | G86: 0 | H86: 0 | I86: 48315.70818 | J86: 48010.55634 | K86: 47673.18487 | L86: 47302.39343 | M86: 46896.94434 | N86: 46455.56134 | O86: 45976.92828 | P86: 45459.68784 | Q86: 44902.44005 | R86: 44303.74085 | S86: 43662.10046 | T86: 42975.98174 | U86: 42243.79835 | V86: 41463.91284 | W86: 40634.63459 | X86: 39754.2175 | Y86: 38820.85761 | Z86: 37832.69033 | AA86: 36787.78745 | AB86: 35684.15383 | AC86: 34519.72355 | AD86: 33292.3556 | AE86: 31999.82885 | AF86: 30639.83613 | AG86: 29209.97711 | AH86: 27707.74971 | AI86: 26130.53934 | AJ86: 24475.60519 | AK86: 22740.06227 | AL86: =IF(OR(AL$75<$B86,AND($D$9,AL$75>$D$6+1),AL$75>$D86+1),0,IF(AL$75=$B86,AL$77,AK86*(1-1/($D86-AL$75+2)+AK$76))) -> 20920.85729 | AM86: 19014.73474 | AN86: 17018.18759 | AO86: 14927.38169 | AP86: 12738.03237 | AQ86: 10445.18655 | AR86: 8042.79364 | AS86: 5522.718299 | AT86: 2871.813516 | AU86: 57.43627031 | AV86: 0 | AW86: 0 | AX86: 0 | AY86: 0 | AZ86: 0 | BA86: 0 | BB86: 0 | BC86: 0 | BD86: 0
B87: 2026 | C87: 2071 | D87: 2063 | F87: =IF(OR(F$75<$B87,AND($D$9,F$75>$D$6+1),F$75>$D87+1),0,IF(F$75=$B87,F$77,E87*(1-1/($D87-F$75+2)+E$76))) -> 0 | G87: 0 | H87: 0 | I87: 0 | J87: 41557.54469 | K87: 41295.07598 | L87: 41004.89437 | M87: 40685.96741 | N87: 40337.23055 | O87: 39957.58602 | P87: 39545.90181 | Q87: 39101.01041 | R87: 38621.7077 | S87: 38106.7516 | T87: 37554.86071 | U87: 36964.7129 | V87: 36334.94372 | W87: 35664.14476 | X87: 34950.86186 | Y87: 34193.59319 | Z87: 33390.78709 | AA87: 32540.83978 | AB87: 31642.09278 | AC87: 30692.82999 | AD87: 29691.27449 | AE87: 28635.58473 | AF87: 27523.85026 | AG87: 26354.08663 | AH87: 25124.22925 | AI87: 23832.12603 | AJ87: 22475.52809 | AK87: 21052.07798 | AL87: =IF(OR(AL$75<$B87,AND($D$9,AL$75>$D$6+1),AL$75>$D87+1),0,IF(AL$75=$B87,AL$77,AK87*(1-1/($D87-AL$75+2)+AK$76))) -> 19559.29427 | AM87: 17994.55072 | AN87: 16355.04721 | AO87: 14637.76726 | AP87: 12839.41299 | AQ87: 10956.29909 | AR87: 8984.165252 | AS87: 6917.807244 | AT87: 4750.227641 | AU87: 2470.118373 | AV87: 49.40236747 | AW87: 0 | AX87: 0 | AY87: 0 | AZ87: 0 | BA87: 0 | BB87: 0 | BC87: 0 | BD87: 0
B88: 2027 | C88: 2072 | D88: 2064 | F88: =IF(OR(F$75<$B88,AND($D$9,F$75>$D$6+1),F$75>$D88+1),0,IF(F$75=$B88,F$77,E88*(1-1/($D88-F$75+2)+E$76))) -> 0 | G88: 0 | H88: 0 | I88: 0 | J88: 0 | K88: 43513.37103 | L88: 43238.54974 | M88: 42934.71128 | N88: 42600.77464 | O88: 42235.62514 | P88: 41838.11337 | Q88: 41407.05402 | R88: 40941.22467 | S88: 40439.36449 | T88: 39900.17297 | U88: 39322.30839 | V88: 38704.3864 | W88: 38044.97834 | X88: 37342.60951 | Y88: 36595.75732 | Z88: 35802.84924 | AA88: 34962.26061 | AB88: 34072.31216 | AC88: 33131.26734 | AD88: 32137.32932 | AE88: 31088.63752 | AF88: 29983.26375 | AG88: 28819.20762 | AH88: 27594.3913 | AI88: 26306.65304 | AJ88: 24953.73945 | AK88: 23533.29582 | AL88: =IF(OR(AL$75<$B88,AND($D$9,AL$75>$D$6+1),AL$75>$D88+1),0,IF(AL$75=$B88,AL$77,AK88*(1-1/($D88-AL$75+2)+AK$76))) -> 22042.85375 | AM88: 20479.81503 | AN88: 18841.42983 | AO88: 17124.76622 | AP88: 15326.66577 | AQ88: 13443.6754 | AR88: 11471.93635 | AS88: 9406.987803 | AT88: 7243.380608 | AU88: 4973.788018 | AV88: 2586.369769 | AW88: 51.72739539 | AX88: 0 | AY88: 0 | AZ88: 0 | BA88: 0 | BB88: 0 | BC88: 0 | BD88: 0
B89: 2028 | C89: 2073 | D89: 2065 | F89: =IF(OR(F$75<$B89,AND($D$9,F$75>$D$6+1),F$75>$D89+1),0,IF(F$75=$B89,F$77,E89*(1-1/($D89-F$75+2)+E$76))) -> 0 | G89: 0 | H89: 0 | I89: 0 | J89: 0 | K89: 0 | L89: 45771.86572 | M89: 45482.78026 | N89: 45163.17153 | O89: 44811.90242 | P89: 44427.8004 | Q89: 44009.65639 | R89: 43556.22357 | S89: 43066.21606 | T89: 42538.3076 | U89: 41971.13017 | V89: 41363.27242 | W89: 40713.27814 | X89: 40019.64451 | Y89: 39280.8203 | Z89: 38495.2039 | AA89: 37661.14115 | AB89: 36776.92305 | AC89: 35840.78319 | AD89: 34850.89489 | AE89: 33805.36805 | AF89: 32702.24551 | AG89: 31539.499 | AH89: 30315.02434 | AI89: 29026.6358 | AJ89: 27672.05946 | AK89: 26248.92498 | AL89: =IF(OR(AL$75<$B89,AND($D$9,AL$75>$D$6+1),AL$75>$D89+1),0,IF(AL$75=$B89,AL$77,AK89*(1-1/($D89-AL$75+2)+AK$76))) -> 24754.7554 | AM89: 23186.95423 | AN89: 21542.78838 | AO89: 19819.36531 | AP89: 18013.60092 | AQ89: 16122.17282 | AR89: 14141.44873 | AS89: 12067.36958 | AT89: 9895.243058 | AU89: 7619.337155 | AV89: 5231.944846 | AW89: 2720.61132 | AX89: 54.4122264 | AY89: 0 | AZ89: 0 | BA89: 0 | BB89: 0 | BC89: 0 | BD89: 0
B90: 2029 | C90: 2074 | D90: 2066 | F90: =IF(OR(F$75<$B90,AND($D$9,F$75>$D$6+1),F$75>$D90+1),0,IF(F$75=$B90,F$77,E90*(1-1/($D90-F$75+2)+E$76))) -> 0 | G90: 0 | H90: 0 | I90: 0 | J90: 0 | K90: 0 | L90: 0 | M90: 35322.42548 | N90: 35099.33648 | O90: 34852.69249 | P90: 34581.616 | Q90: 34285.20215 | R90: 33962.51789 | S90: 33612.60104 | T90: 33234.45928 | U90: 32827.06913 | V90: 32389.37488 | W90: 31920.28738 | X90: 31418.68286 | Y90: 30883.4016 | Z90: 30313.24649 | AA90: 29706.98156 | AB90: 29063.3303 | AC90: 28380.97384 | AD90: 27658.54906 | AE90: 26894.64627 | AF90: 26087.80688 | AG90: 25236.52055 | AH90: 24339.22205 | AI90: 23394.28754 | AJ90: 22400.03032 | AK90: 21354.69557 | AL90: =IF(OR(AL$75<$B90,AND($D$9,AL$75>$D$6+1),AL$75>$D90+1),0,IF(AL$75=$B90,AL$77,AK90*(1-1/($D90-AL$75+2)+AK$76))) -> 20256.45409 | AM90: 19103.39439 | AN90: 17893.51275 | AO90: 16624.70003 | AP90: 15294.72402 | AQ90: 13901.20472 | AR90: 12441.57823 | AS90: 10913.04147 | AT90: 9312.462058 | AU90: 7636.218888 | AV90: 5879.888543 | AW90: 4037.523466 | AX90: 2099.512203 | AY90: 41.99024405 | AZ90: 0 | BA90: 0 | BB90: 0 | BC90: 0 | BD90: 0
B91: 2030 | C91: 2075 | D91: 2067 | F91: =IF(OR(F$75<$B91,AND($D$9,F$75>$D$6+1),F$75>$D91+1),0,IF(F$75=$B91,F$77,E91*(1-1/($D91-F$75+2)+E$76))) -> 0 | G91: 0 | H91: 0 | I91: 0 | J91: 0 | K91: 0 | L91: 0 | M91: 0 | N91: 36761.50735 | O91: 36529.3294 | P91: 36272.63682 | Q91: 35990.51631 | R91: 35682.02617 | S91: 35346.19534 | T91: 34982.02241 | U91: 34588.47466 | V91: 34164.48691 | W91: 33708.96042 | X91: 33220.76168 | Y91: 32698.72114 | Z91: 32141.63182 | AA91: 31548.24784 | AB91: 30917.28289 | AC91: 30247.40842 | AD91: 29537.25188 | AE91: 28785.39456 | AF91: 27990.36937 | AG91: 27150.65829 | AH91: 26264.68944 | AI91: 25330.83382 | AJ91: 24347.40145 | AK91: 23312.63689 | AL91: =IF(OR(AL$75<$B91,AND($D$9,AL$75>$D$6+1),AL$75>$D91+1),0,IF(AL$75=$B91,AL$77,AK91*(1-1/($D91-AL$75+2)+AK$76))) -> 22224.71383 | AM91: 21081.72855 | AN91: 19881.69169 | AO91: 18622.51789 | AP91: 17302.01207 | AQ91: 15917.85111 | AR91: 14467.55801 | AS91: 12948.46441 | AT91: 11357.65307 | AU91: 9691.863955 | AV91: 7947.328443 | AW91: 6119.442901 | AX91: 4202.017459 | AY91: 2185.049079 | AZ91: 43.70098157 | BA91: 0 | BB91: 0 | BC91: 0 | BD91: 0
B92: 2031 | C92: 2076 | D92: 2068 | F92: =IF(OR(F$75<$B92,AND($D$9,F$75>$D$6+1),F$75>$D92+1),0,IF(F$75=$B92,F$77,E92*(1-1/($D92-F$75+2)+E$76))) -> 0 | G92: 0 | H92: 0 | I92: 0 | J92: 0 | K92: 0 | L92: 0 | M92: 0 | N92: 0 | O92: 40914.86386 | P92: 40656.4542 | Q92: 40370.76019 | R92: 40056.76539 | S92: 39713.42169 | T92: 39339.64831 | U92: 38934.33072 | V92: 38496.3195 | W92: 38024.42913 | X92: 37517.43674 | Y92: 36974.08076 | Z92: 36393.05949 | AA92: 35773.02959 | AB92: 35112.60443 | AC92: 34410.35234 | AD92: 33664.79471 | AE92: 32874.40387 | AF92: 32037.60087 | AG92: 31152.75284 | AH92: 30218.17026 | AI92: 29232.10365 | AJ92: 28192.73996 | AK92: 27098.19829 | AL92: =IF(OR(AL$75<$B92,AND($D$9,AL$75>$D$6+1),AL$75>$D92+1),0,IF(AL$75=$B92,AL$77,AK92*(1-1/($D92-AL$75+2)+AK$76))) -> 25946.52487 | AM92: 24735.68704 | AN92: 23463.56599 | AO92: 22127.94762 | AP92: 20726.51094 | AQ92: 19256.81289 | AR92: 17716.26786 | AS92: 16102.11901 | AT92: 14411.39651 | AU92: 12640.85351 | AV92: 10786.86166 | AW92: 8845.226564 | AX92: 6810.824455 | AY92: 4676.766126 | AZ92: 2431.918385 | BA92: 48.63836771 | BB92: 0 | BC92: 0 | BD92: 0
B93: 2032 | C93: 2077 | D93: 2069 | F93: =IF(OR(F$75<$B93,AND($D$9,F$75>$D$6+1),F$75>$D93+1),0,IF(F$75=$B93,F$77,E93*(1-1/($D93-F$75+2)+E$76))) -> 0 | G93: 0 | H93: 0 | I93: 0 | J93: 0 | K93: 0 | L93: 0 | M93: 0 | N93: 0 | O93: 0 | P93: 39250.65587 | Q93: 39002.75699 | R93: 38728.68356 | S93: 38427.46047 | T93: 38098.08223 | U93: 37739.51205 | V93: 37350.68071 | W93: 36930.48555 | X93: 36477.78928 | Y93: 35991.41876 | Z93: 35470.16372 | AA93: 34912.77544 | AB93: 34317.96519 | AC93: 33684.40276 | AD93: 33010.7147 | AE93: 32295.48255 | AF93: 31537.24078 | AG93: 30734.47466 | AH93: 29885.61774 | AI93: 28989.0492 | AJ93: 28043.09076 | AK93: 27046.00308 | AL93: =IF(OR(AL$75<$B93,AND($D$9,AL$75>$D$6+1),AL$75>$D93+1),0,IF(AL$75=$B93,AL$77,AK93*(1-1/($D93-AL$75+2)+AK$76))) -> 25995.98179 | AM93: 24891.15256 | AN93: 23729.56544 | AO93: 22509.18779 | AP93: 21227.89556 | AQ93: 19883.46218 | AR93: 18473.54395 | AS93: 16995.66043 | AT93: 15447.16693 | AU93: 13825.2144 | AV93: 12126.68806 | AW93: 10348.10714 | AX93: 8485.447859 | AY93: 6533.794851 | AZ93: 4486.539131 | BA93: 2333.000348 | BB93: 46.66000696 | BC93: 0 | BD93: 0
B94: 2033 | C94: 2078 | D94: 2070 | F94: =IF(OR(F$75<$B94,AND($D$9,F$75>$D$6+1),F$75>$D94+1),0,IF(F$75=$B94,F$77,E94*(1-1/($D94-F$75+2)+E$76))) -> 0 | G94: 0 | H94: 0 | I94: 0 | J94: 0 | K94: 0 | L94: 0 | M94: 0 | N94: 0 | O94: 0 | P94: 0 | Q94: 36944.08045 | R94: 36710.74941 | S94: 36452.78199 | T94: 36169.26035 | U94: 35859.23812 | V94: 35521.7394 | W94: 35155.75785 | X94: 34760.25557 | Y94: 34334.16212 | Z94: 33876.37329 | AA94: 33385.74995 | AB94: 32861.11674 | AC94: 32301.26067 | AD94: 31704.92971 | AE94: 31070.83111 | AF94: 30397.62977 | AG94: 29683.94629 | AH94: 28928.35493 | AI94: 28129.38132 | AJ94: 27285.49988 | AK94: 26395.13094 | AL94: =IF(OR(AL$75<$B94,AND($D$9,AL$75>$D$6+1),AL$75>$D94+1),0,IF(AL$75=$B94,AL$77,AK94*(1-1/($D94-AL$75+2)+AK$76))) -> 25456.63739 | AM94: 24468.32088 | AN94: 23428.41724 | AO94: 22335.09111 | AP94: 21186.42928 | AQ94: 19980.43253 | AR94: 18715.00514 | AS94: 17387.94114 | AT94: 15996.90585 | AU94: 14539.40998 | AV94: 13012.77193 | AW94: 11414.05995 | AX94: 9739.997827 | AY94: 7986.798218 | AZ94: 6149.834628 | BA94: 4222.886444 | BB94: 2195.900951 | BC94: 0 | BD94: 0
B95: 2034 | C95: 2079 | D95: 2070 | F95: =IF(OR(F$75<$B95,AND($D$9,F$75>$D$6+1),F$75>$D95+1),0,IF(F$75=$B95,F$77,E95*(1-1/($D95-F$75+2)+E$76))) -> 0 | G95: 0 | H95: 0 | I95: 0 | J95: 0 | K95: 0 | L95: 0 | M95: 0 | N95: 0 | O95: 0 | P95: 0 | Q95: 0 | R95: 34637.50503 | S95: 34394.10634 | T95: 34126.59663 | U95: 33834.08294 | V95: 33515.64452 | W95: 33170.33181 | X95: 32797.16558 | Y95: 32395.13581 | Z95: 31963.20067 | AA95: 31500.28535 | AB95: 31005.28086 | AC95: 30477.04274 | AD95: 29914.38965 | AE95: 29316.10185 | AF95: 28680.91965 | AG95: 28007.54153 | AH95: 27294.62229 | AI95: 26540.77082 | AJ95: 25744.5477 | AK95: 24904.46246 | AL95: =IF(OR(AL$75<$B95,AND($D$9,AL$75>$D$6+1),AL$75>$D95+1),0,IF(AL$75=$B95,AL$77,AK95*(1-1/($D95-AL$75+2)+AK$76))) -> 24018.97046 | AM95: 23086.46925 | AN95: 22105.29431 | AO95: 21073.71391 | AP95: 19989.92291 | AQ95: 18852.03499 | AR95: 17658.07277 | AS95: 16405.95488 | AT95: 15093.47849 | AU95: 13718.2949 | AV95: 12277.87393 | AW95: 10769.44942 | AX95: 9189.930173 | AY95: 7535.742742 | AZ95: 5802.521911 | BA95: 3984.398379 | BB95: 2071.887157 | BC95: 0 | BD95: 0
B96: 2035 | C96: 2080 | D96: 2070 | F96: =IF(OR(F$75<$B96,AND($D$9,F$75>$D$6+1),F$75>$D96+1),0,IF(F$75=$B96,F$77,E96*(1-1/($D96-F$75+2)+E$76))) -> 0 | G96: 0 | H96: 0 | I96: 0 | J96: 0 | K96: 0 | L96: 0 | M96: 0 | N96: 0 | O96: 0 | P96: 0 | Q96: 0 | R96: 0 | S96: 32330.92961 | T96: 32079.46682 | U96: 31804.49997 | V96: 31505.1635 | W96: 31180.56484 | X96: 30829.78349 | Y96: 30451.87001 | Z96: 30045.84508 | AA96: 29610.69836 | AB96: 29145.38738 | AC96: 28648.83634 | AD96: 28119.93474 | AE96: 27557.53605 | AF96: 26960.4561 | AG96: 26327.47148 | AH96: 25657.31766 | AI96: 24948.68698 | AJ96: 24200.22637 | AK96: 23410.53478 | AL96: =IF(OR(AL$75<$B96,AND($D$9,AL$75>$D$6+1),AL$75>$D96+1),0,IF(AL$75=$B96,AL$77,AK96*(1-1/($D96-AL$75+2)+AK$76))) -> 22578.16021 | AM96: 21701.59634 | AN96: 20779.27849 | AO96: 19809.57883 | AP96: 18790.80049 | AQ96: 17721.17031 | AR96: 16598.82952 | AS96: 15421.82161 | AT96: 14188.07588 | AU96: 12895.38452 | AV96: 11541.36915 | AW96: 10123.42951 | AX96: 8638.659849 | AY96: 7083.701076 | AZ96: 5454.449829 | BA96: 3745.388882 | BB96: 1947.602219 | BC96: 0 | BD96: 0
B97: 2036 | C97: 2081 | D97: 2070 | F97: =IF(OR(F$75<$B97,AND($D$9,F$75>$D$6+1),F$75>$D97+1),0,IF(F$75=$B97,F$77,E97*(1-1/($D97-F$75+2)+E$76))) -> 0 | G97: 0 | H97: 0 | I97: 0 | J97: 0 | K97: 0 | L97: 0 | M97: 0 | N97: 0 | O97: 0 | P97: 0 | Q97: 0 | R97: 0 | S97: 0 | T97: 30024.35419 | U97: 29767.00258 | V97: 29486.84256 | W97: 29183.03873 | X97: 28854.72954 | Y97: 28501.0264 | Z97: 28121.01272 | AA97: 27713.74288 | AB97: 27278.24121 | AC97: 26813.5008 | AD97: 26318.48232 | AE97: 25792.11268 | AF97: 25233.28357 | AG97: 24640.84996 | AH97: 24013.62832 | AI97: 23350.39478 | AJ97: 22649.88293 | AK97: 21910.78149 | AL97: =IF(OR(AL$75<$B97,AND($D$9,AL$75>$D$6+1),AL$75>$D97+1),0,IF(AL$75=$B97,AL$77,AK97*(1-1/($D97-AL$75+2)+AK$76))) -> 21131.73148 | AM97: 20311.32308 | AN97: 19448.09185 | AO97: 18540.51423 | AP97: 17587.00207 | AQ97: 16585.8958 | AR97: 15535.45573 | AS97: 14433.85069 | AT97: 13279.14263 | AU97: 12069.26519 | AV97: 10801.99235 | AW97: 9474.890432 | AX97: 8085.239835 | AY97: 6629.896665 | AZ97: 5105.020432 | BA97: 3505.447363 | BB97: 1822.832629 | BC97: 0 | BD97: 0
B98: 2037 | C98: 2082 | D98: 2070 | F98: =IF(OR(F$75<$B98,AND($D$9,F$75>$D$6+1),F$75>$D98+1),0,IF(F$75=$B98,F$77,E98*(1-1/($D98-F$75+2)+E$76))) -> 0 | G98: 0 | H98: 0 | I98: 0 | J98: 0 | K98: 0 | L98: 0 | M98: 0 | N98: 0 | O98: 0 | P98: 0 | Q98: 0 | R98: 0 | S98: 0 | T98: 0 | U98: 27717.77877 | V98: 27456.90556 | W98: 27174.01623 | X98: 26868.30855 | Y98: 26538.95509 | Z98: 26185.10235 | AA98: 25805.86984 | AB98: 25400.34902 | AC98: 24967.60234 | AD98: 24506.66199 | AE98: 24016.52875 | AF98: 23496.17062 | AG98: 22944.5214 | AH98: 22360.47904 | AI98: 21742.9039 | AJ98: 21090.61679 | AK98: 20402.39666 | AL98: =IF(OR(AL$75<$B98,AND($D$9,AL$75>$D$6+1),AL$75>$D98+1),0,IF(AL$75=$B98,AL$77,AK98*(1-1/($D98-AL$75+2)+AK$76))) -> 19676.97811 | AM98: 18913.04837 | AN98: 18109.24382 | AO98: 17264.14577 | AP98: 16376.27542 | AQ98: 15444.08743 | AR98: 14465.96189 | AS98: 13440.19369 | AT98: 12364.97819 | AU98: 11238.39129 | AV98: 10058.36021 | AW98: 8822.618809 | AX98: 7528.634717 | AY98: 6173.480468 | AZ98: 4753.57996 | BA98: 3264.124906 | BB98: 1697.344951 | BC98: 0 | BD98: 0
B99: 2038 | C99: 2083 | D99: 2070 | F99: =IF(OR(F$75<$B99,AND($D$9,F$75>$D$6+1),F$75>$D99+1),0,IF(F$75=$B99,F$77,E99*(1-1/($D99-F$75+2)+E$76))) -> 0 | G99: 0 | H99: 0 | I99: 0 | J99: 0 | K99: 0 | L99: 0 | M99: 0 | N99: 0 | O99: 0 | P99: 0 | Q99: 0 | R99: 0 | S99: 0 | T99: 0 | U99: 0 | V99: 25411.20335 | W99: 25149.39095 | X99: 24866.46031 | Y99: 24561.64563 | Z99: 24234.15702 | AA99: 23883.17958 | AB99: 23507.87247 | AC99: 23107.36797 | AD99: 22680.77041 | AE99: 22227.155 | AF99: 21745.56665 | AG99: 21235.01856 | AH99: 20694.49081 | AI99: 20122.92869 | AJ99: 19519.24083 | AK99: 18882.29718 | AL99: =IF(OR(AL$75<$B99,AND($D$9,AL$75>$D$6+1),AL$75>$D99+1),0,IF(AL$75=$B99,AL$77,AK99*(1-1/($D99-AL$75+2)+AK$76))) -> 18210.92661 | AM99: 17503.91417 | AN99: 16759.99781 | AO99: 15977.86458 | AP99: 15156.14583 | AQ99: 14293.41138 | AR99: 13388.16199 | AS99: 12438.8196 | AT99: 11443.71403 | AU99: 10401.06453 | AV99: 9308.952752 | AW99: 8165.281414 | AX99: 6967.706807 | AY99: 5713.519581 | AZ99: 4399.410078 | BA99: 3020.928253 | BB99: 1570.882692 | BC99: 0 | BD99: 0
B100: 2039 | C100: 2084 | D100: 2070 | F100: =IF(OR(F$75<$B100,AND($D$9,F$75>$D$6+1),F$75>$D100+1),0,IF(F$75=$B100,F$77,E100*(1-1/($D100-F$75+2)+E$76))) -> 0 | G100: 0 | H100: 0 | I100: 0 | J100: 0 | K100: 0 | L100: 0 | M100: 0 | N100: 0 | O100: 0 | P100: 0 | Q100: 0 | R100: 0 | S100: 0 | T100: 0 | U100: 0 | V100: 0 | W100: 23104.62793 | X100: 22844.70087 | Y100: 22564.66905 | Z100: 22263.8068 | AA100: 21941.36546 | AB100: 21596.57257 | AC100: 21228.63097 | AD100: 20836.71778 | AE100: 20419.98342 | AF100: 19977.55045 | AG100: 19508.51231 | AH100: 19011.93199 | AI100: 18486.84054 | AJ100: 17932.23532 | AK100: 17347.07817 | AL100: =IF(OR(AL$75<$B100,AND($D$9,AL$75>$D$6+1),AL$75>$D100+1),0,IF(AL$75=$B100,AL$77,AK100*(1-1/($D100-AL$75+2)+AK$76))) -> 16730.29317 | AM100: 16080.76414 | AN100: 15397.33166 | AO100: 14678.78952 | AP100: 13923.88034 | AQ100: 13131.29023 | AR100: 12299.64185 | AS100: 11427.48543 | AT100: 10513.28659 | AU100: 9555.409372 | AV100: 8552.091388 | AW100: 7501.405874 | AX100: 6401.199679 | AY100: 5248.983737 | AZ100: 4041.717478 | BA100: 2775.312668 | BB100: 1443.162587 | BC100: 0 | BD100: 0
B101: 2040 | C101: 2085 | D101: 2070 | F101: =IF(OR(F$75<$B101,AND($D$9,F$75>$D$6+1),F$75>$D101+1),0,IF(F$75=$B101,F$77,E101*(1-1/($D101-F$75+2)+E$76))) -> 0 | G101: 0 | H101: 0 | I101: 0 | J101: 0 | K101: 0 | L101: 0 | M101: 0 | N101: 0 | O101: 0 | P101: 0 | Q101: 0 | R101: 0 | S101: 0 | T101: 0 | U101: 0 | V101: 0 | W101: 0 | X101: 20798.05251 | Y101: 20543.10864 | Z101: 20269.20053 | AA101: 19975.64659 | AB101: 19661.74357 | AC101: 19326.76572 | AD101: 18969.96389 | AE101: 18590.56461 | AF101: 18187.76905 | AG101: 17760.75186 | AH101: 17308.65999 | AI101: 16830.61129 | AJ101: 16325.69295 | AK101: 15792.95981 | AL101: =IF(OR(AL$75<$B101,AND($D$9,AL$75>$D$6+1),AL$75>$D101+1),0,IF(AL$75=$B101,AL$77,AK101*(1-1/($D101-AL$75+2)+AK$76))) -> 15231.43235 | AM101: 14640.09439 | AN101: 14017.89038 | AO101: 13363.72216 | AP101: 12676.44502 | AQ101: 11954.86277 | AR101: 11197.72146 | AS101: 10403.70121 | AT101: 9571.405113 | AU101: 8699.343758 | AV101: 7785.912663 | AW101: 6829.357679 | AX101: 5827.718553 | AY101: 4778.729213 | AZ101: 3679.621494 | BA101: 2526.673426 | BB101: 1313.870182 | BC101: 0 | BD101: 0
B102: 2041 | C102: 2086 | D102: 2070 | F102: =IF(OR(F$75<$B102,AND($D$9,F$75>$D$6+1),F$75>$D102+1),0,IF(F$75=$B102,F$77,E102*(1-1/($D102-F$75+2)+E$76))) -> 0 | G102: 0 | H102: 0 | I102: 0 | J102: 0 | K102: 0 | L102: 0 | M102: 0 | N102: 0 | O102: 0 | P102: 0 | Q102: 0 | R102: 0 | S102: 0 | T102: 0 | U102: 0 | V102: 0 | W102: 0 | X102: 0 | Y102: 18491.4771 | Z102: 18244.92407 | AA102: 17980.68724 | AB102: 17698.13358 | AC102: 17396.60982 | AD102: 17075.44164 | AE102: 16733.93281 | AF102: 16371.36426 | AG102: 15986.9931 | AH102: 15580.05146 | AI102: 15149.74528 | AJ102: 14695.25292 | AK102: 14215.72361 | AL102: =IF(OR(AL$75<$B102,AND($D$9,AL$75>$D$6+1),AL$75>$D102+1),0,IF(AL$75=$B102,AL$77,AK102*(1-1/($D102-AL$75+2)+AK$76))) -> 13710.27566 | AM102: 13177.99437 | AN102: 12617.92961 | AO102: 12029.0929 | AP102: 11410.45383 | AQ102: 10760.93569 | AR102: 10079.40976 | AS102: 9364.687981 | AT102: 8615.512943 | AU102: 7830.543986 | AV102: 7008.336867 | AW102: 6147.312623 | AX102: 5245.706772 | AY102: 4301.479553 | AZ102: 3312.139256 | BA102: 2274.335622 | BB102: 1182.654524 | BC102: 0 | BD102: 0
B103: 2042 | C103: 2087 | D103: 2070 | F103: =IF(OR(F$75<$B103,AND($D$9,F$75>$D$6+1),F$75>$D103+1),0,IF(F$75=$B103,F$77,E103*(1-1/($D103-F$75+2)+E$76))) -> 0 | G103: 0 | H103: 0 | I103: 0 | J103: 0 | K103: 0 | L103: 0 | M103: 0 | N103: 0 | O103: 0 | P103: 0 | Q103: 0 | R103: 0 | S103: 0 | T103: 0 | U103: 0 | V103: 0 | W103: 0 | X103: 0 | Y103: 0 | Z103: 16184.90168 | AA103: 15950.49965 | AB103: 15699.84894 | AC103: 15432.37004 | AD103: 15147.46474 | AE103: 14844.51545 | AF103: 14522.88428 | AG103: 14181.91221 | AH103: 13820.91808 | AI103: 13439.19749 | AJ103: 13036.02157 | AK103: 12610.6356 | AL103: =IF(OR(AL$75<$B103,AND($D$9,AL$75>$D$6+1),AL$75>$D103+1),0,IF(AL$75=$B103,AL$77,AK103*(1-1/($D103-AL$75+2)+AK$76))) -> 12162.25744 | AM103: 11690.07568 | AN103: 11193.24747 | AO103: 10670.89592 | AP103: 10122.10699 | AQ103: 9545.925512 | AR103: 8941.350229 | AS103: 8307.327213 | AT103: 7642.741036 | AU103: 6946.402408 | AV103: 6217.030155 | AW103: 5453.223593 | AX103: 4653.417466 | AY103: 3815.802322 | AZ103: 2938.167788 | BA103: 2017.541881 | BB103: 1049.121778 | BC103: =IF(OR(BC$75<$B103,AND($D$9,BC$75>$D$6+1),BC$75>$D103+1),0,IF(BC$75=$B103,BC$77,BB103*(1-1/($D103-BC$75+2)+BC$76))) -> 0 | BD103: 0
B104: 2043 | C104: 2088 | D104: 2070 | F104: =IF(OR(F$75<$B104,AND($D$9,F$75>$D$6+1),F$75>$D104+1),0,IF(F$75=$B104,F$77,E104*(1-1/($D104-F$75+2)+E$76))) -> 0 | G104: 0 | H104: 0 | I104: 0 | J104: 0 | K104: 0 | L104: 0 | M104: 0 | N104: 0 | O104: 0 | P104: 0 | Q104: 0 | R104: 0 | S104: 0 | T104: 0 | U104: 0 | V104: 0 | W104: 0 | X104: 0 | Y104: 0 | Z104: 0 | AA104: 13878.32626 | AB104: 13660.23827 | AC104: 13427.50829 | AD104: 13179.61583 | AE104: 12916.02351 | AF104: 12636.17633 | AG104: 12339.50089 | AH104: 12025.4045 | AI104: 11693.27428 | AJ104: 11342.47606 | AK104: 10972.35315 | AL104: =IF(OR(AL$75<$B104,AND($D$9,AL$75>$D$6+1),AL$75>$D104+1),0,IF(AL$75=$B104,AL$77,AK104*(1-1/($D104-AL$75+2)+AK$76))) -> 10582.22504 | AM104: 10171.38572 | AN104: 9739.101823 | AO104: 9284.610404 | AP104: 8807.116155 | AQ104: 8305.788005 | AR104: 7779.754764 | AS104: 7228.099426 | AT104: 6649.851472 | AU104: 6043.976116 | AV104: 5409.358624 | AW104: 4744.780279 | AX104: 4048.879171 | AY104: 3320.08092 | AZ104: 2556.462309 | BA104: 1755.437452 | BB104: 912.827475 | BC104: 0 | BD104: 0
B105: 2044 | C105: 2089 | D105: 2070 | F105: =IF(OR(F$75<$B105,AND($D$9,F$75>$D$6+1),F$75>$D105+1),0,IF(F$75=$B105,F$77,E105*(1-1/($D105-F$75+2)+E$76))) -> 0 | G105: 0 | H105: 0 | I105: 0 | J105: 0 | K105: 0 | L105: 0 | M105: 0 | N105: 0 | O105: 0 | P105: 0 | Q105: 0 | R105: 0 | S105: 0 | T105: 0 | U105: 0 | V105: 0 | W105: 0 | X105: 0 | Y105: 0 | Z105: 0 | AA105: 0 | AB105: 11571.75084 | AC105: 11374.60249 | AD105: 11164.60983 | AE105: 10941.31763 | AF105: 10704.25575 | AG105: 10452.93844 | AH105: 10186.86364 | AI105: 9905.512173 | AJ105: 9608.346808 | AK105: 9294.81128 | AL105: =IF(OR(AL$75<$B105,AND($D$9,AL$75>$D$6+1),AL$75>$D105+1),0,IF(AL$75=$B105,AL$77,AK105*(1-1/($D105-AL$75+2)+AK$76))) -> 8964.329101 | AM105: 8616.302207 | AN105: 8250.109363 | AO105: 7865.104259 | AP105: 7460.613183 | AQ105: 7035.932125 | AR105: 6590.323091 | AS105: 6123.009271 | AT105: 5633.16853 | AU105: 5119.924286 | AV105: 4582.332236 | AW105: 4019.35999 | AX105: 3429.853858 | AY105: 2812.480163 | AZ105: 2165.609726 | BA105: 1487.052012 | BB105: 773.2670461 | BC105: 0 | BD105: 0
B106: 2045 | C106: 2090 | D106: 2070 | F106: =IF(OR(F$75<$B106,AND($D$9,F$75>$D$6+1),F$75>$D106+1),0,IF(F$75=$B106,F$77,E106*(1-1/($D106-F$75+2)+E$76))) -> 0 | G106: 0 | H106: 0 | I106: 0 | J106: 0 | K106: 0 | L106: 0 | M106: 0 | N106: 0 | O106: 0 | P106: 0 | Q106: 0 | R106: 0 | S106: 0 | T106: 0 | U106: 0 | V106: 0 | W106: 0 | X106: 0 | Y106: 0 | Z106: 0 | AA106: 0 | AB106: 0 | AC106: 9265.175419 | AD106: 9094.126027 | AE106: 8912.243506 | AF106: 8719.144897 | AG106: 8514.434538 | AH106: 8297.703477 | AI106: 8068.52881 | AJ106: 7826.472946 | AK106: 7571.082776 | AL106: =IF(OR(AL$75<$B106,AND($D$9,AL$75>$D$6+1),AL$75>$D106+1),0,IF(AL$75=$B106,AL$77,AK106*(1-1/($D106-AL$75+2)+AK$76))) -> 7301.888722 | AM106: 7018.40363 | AN106: 6720.121476 | AO106: 6406.515807 | AP106: 6077.037851 | AQ106: 5731.114158 | AR106: 5368.143595 | AS106: 4987.493413 | AT106: 4588.49394 | AU106: 4170.431158 | AV106: 3732.535887 | AW106: 3273.967192 | AX106: 2793.785337 | AY106: 2290.903977 | AZ106: 1763.996062 | BA106: 1211.277296 | BB106: 629.8641939 | BC106: 0 | BD106: 0
B107: 2046 | C107: 2091 | D107: 2070 | F107: =IF(OR(F$75<$B107,AND($D$9,F$75>$D$6+1),F$75>$D107+1),0,IF(F$75=$B107,F$77,E107*(1-1/($D107-F$75+2)+E$76))) -> 0 | G107: 0 | H107: 0 | I107: 0 | J107: 0 | K107: 0 | L107: 0 | M107: 0 | N107: 0 | O107: 0 | P107: 0 | Q107: 0 | R107: 0 | S107: 0 | T107: 0 | U107: 0 | V107: 0 | W107: 0 | X107: 0 | Y107: 0 | Z107: 0 | AA107: 0 | AB107: 0 | AC107: 0 | AD107: 6958.6 | AE107: 6819.428 | AF107: 6671.673727 | AG107: 6515.03443 | AH107: 6349.19719 | AI107: 6173.838411 | AJ107: 5988.623259 | AK107: 5793.205026 | AL107: =IF(OR(AL$75<$B107,AND($D$9,AL$75>$D$6+1),AL$75>$D107+1),0,IF(AL$75=$B107,AL$77,AK107*(1-1/($D107-AL$75+2)+AK$76))) -> 5587.224403 | AM107: 5370.308632 | AN107: 5142.070515 | AO107: 4902.107224 | AP107: 4649.998853 | AQ107: 4385.30661 | AR107: 4107.570525 | AS107: 3816.306433 | AT107: 3511.001919 | AU107: 3191.110633 | AV107: 2856.044016 | AW107: 2505.158609 | AX107: 2137.735346 | AY107: 1752.942984 | AZ107: 1349.766097 | BA107: 926.8393869 | BB107: 481.9564812 | BC107: 0 | BD107: 0
B108: 2047 | C108: 2092 | D108: 2070 | F108: =IF(OR(F$75<$B108,AND($D$9,F$75>$D$6+1),F$75>$D108+1),0,IF(F$75=$B108,F$77,E108*(1-1/($D108-F$75+2)+E$76))) -> 0 | G108: 0 | H108: 0 | I108: 0 | J108: 0 | K108: 0 | L108: 0 | M108: 0 | N108: 0 | O108: 0 | P108: 0 | Q108: 0 | R108: 0 | S108: 0 | T108: 0 | U108: 0 | V108: 0 | W108: 0 | X108: 0 | Y108: 0 | Z108: 0 | AA108: 0 | AB108: 0 | AC108: 0 | AD108: 0 | AE108: 6958.6 | AF108: 6807.830333 | AG108: 6647.994317 | AH108: 6478.772643 | AI108: 6299.835113 | AJ108: 6110.84006 | AK108: 5911.4337 | AL108: =IF(OR(AL$75<$B108,AND($D$9,AL$75>$D$6+1),AL$75>$D108+1),0,IF(AL$75=$B108,AL$77,AK108*(1-1/($D108-AL$75+2)+AK$76))) -> 5701.249391 | AM108: 5479.906767 | AN108: 5247.01073 | AO108: 5002.150229 | AP108: 4744.896789 | AQ108: 4474.802664 | AR108: 4191.398495 | AS108: 3894.190238 | AT108: 3582.655019 | AU108: 3256.235339 | AV108: 2914.330629 | AW108: 2556.284294 | AX108: 2181.362598 | AY108: 1788.71733 | AZ108: 1377.312344 | BA108: 945.7544764 | BB108: 491.7923277 | BC108: 0 | BD108: 0
B109: 2048 | C109: 2093 | D109: 2070 | F109: =IF(OR(F$75<$B109,AND($D$9,F$75>$D$6+1),F$75>$D109+1),0,IF(F$75=$B109,F$77,E109*(1-1/($D109-F$75+2)+E$76))) -> 0 | G109: 0 | H109: 0 | I109: 0 | J109: 0 | K109: 0 | L109: 0 | M109: 0 | N109: 0 | O109: 0 | P109: 0 | Q109: 0 | R109: 0 | S109: 0 | T109: 0 | U109: 0 | V109: 0 | W109: 0 | X109: 0 | Y109: 0 | Z109: 0 | AA109: 0 | AB109: 0 | AC109: 0 | AD109: 0 | AE109: 0 | AF109: 6958.6 | AG109: 6795.224174 | AH109: 6622.254831 | AI109: 6439.35446 | AJ109: 6246.173826 | AK109: 6042.351312 | AL109: =IF(OR(AL$75<$B109,AND($D$9,AL$75>$D$6+1),AL$75>$D109+1),0,IF(AL$75=$B109,AL$77,AK109*(1-1/($D109-AL$75+2)+AK$76))) -> 5827.512154 | AM109: 5601.267564 | AN109: 5363.213693 | AO109: 5112.930387 | AP109: 4849.979682 | AQ109: 4573.903915 | AR109: 4284.223334 | AS109: 3980.432952 | AT109: 3661.998316 | AU109: 3328.34958 | AV109: 2978.872874 | AW109: 2612.897064 | AX109: 2229.672161 | AY109: 1828.331172 | AZ109: 1407.815003 | BA109: 966.6996352 | BB109: 502.6838103 | BC109: 0 | BD109: 0
B110: 2049 | C110: 2094 | D110: 2070 | F110: =IF(OR(F$75<$B110,AND($D$9,F$75>$D$6+1),F$75>$D110+1),0,IF(F$75=$B110,F$77,E110*(1-1/($D110-F$75+2)+E$76))) -> 0 | G110: 0 | H110: 0 | I110: 0 | J110: 0 | K110: 0 | L110: 0 | M110: 0 | N110: 0 | O110: 0 | P110: 0 | Q110: 0 | R110: 0 | S110: 0 | T110: 0 | U110: 0 | V110: 0 | W110: 0 | X110: 0 | Y110: 0 | Z110: 0 | AA110: 0 | AB110: 0 | AC110: 0 | AD110: 0 | AE110: 0 | AF110: 0 | AG110: 6958.6 | AH110: 6781.472 | AI110: 6594.174202 | AJ110: 6396.348976 | AK110: 6187.626009 | AL110: =IF(OR(AL$75<$B110,AND($D$9,AL$75>$D$6+1),AL$75>$D110+1),0,IF(AL$75=$B110,AL$77,AK110*(1-1/($D110-AL$75+2)+AK$76))) -> 5967.621529 | AM110: 5735.937399 | AN110: 5492.16006 | AO110: 5235.859257 | AP110: 4966.586495 | AQ110: 4683.87311 | AR110: 4387.227813 | AS110: 4076.133477 | AT110: 3750.042799 | AU110: 3408.372233 | AV110: 3050.493148 | AW110: 2675.718276 | AX110: 2283.279595 | AY110: 1872.289268 | AZ110: 1441.662737 | BA110: 989.9417457 | BB110: 514.7697078 | BC110: 0 | BD110: 0
B111: 2050 | C111: 2095 | D111: 2070 | F111: =IF(OR(F$75<$B111,AND($D$9,F$75>$D$6+1),F$75>$D111+1),0,IF(F$75=$B111,F$77,E111*(1-1/($D111-F$75+2)+E$76))) -> 0 | G111: 0 | H111: 0 | I111: 0 | J111: 0 | K111: 0 | L111: 0 | M111: 0 | N111: 0 | O111: 0 | P111: 0 | Q111: 0 | R111: 0 | S111: 0 | T111: 0 | U111: 0 | V111: 0 | W111: 0 | X111: 0 | Y111: 0 | Z111: 0 | AA111: 0 | AB111: 0 | AC111: 0 | AD111: 0 | AE111: 0 | AF111: 0 | AG111: 0 | AH111: 6958.6 | AI111: 6766.410095 | AJ111: 6563.417792 | AK111: 6349.243107 | AL111: =IF(OR(AL$75<$B111,AND($D$9,AL$75>$D$6+1),AL$75>$D111+1),0,IF(AL$75=$B111,AL$77,AK111*(1-1/($D111-AL$75+2)+AK$76))) -> 6123.492241 | AM111: 5885.756659 | AN111: 5635.612001 | AO111: 5372.616775 | AP111: 5096.310769 | AQ111: 4806.213079 | AR111: 4501.819584 | AS111: 4182.59965 | AT111: 3847.991678 | AU111: 3497.396881 | AV111: 3130.170208 | AW111: 2745.60644 | AX111: 2342.917495 | AY111: 1921.192346 | AZ111: 1479.318107 | BA111: 1015.798433 | BB111: 528.2151852 | BC111: 0 | BD111: 0
B112: 2051 | C112: 2096 | D112: 2070 | F112: =IF(OR(F$75<$B112,AND($D$9,F$75>$D$6+1),F$75>$D112+1),0,IF(F$75=$B112,F$77,E112*(1-1/($D112-F$75+2)+E$76))) -> 0 | G112: 0 | H112: 0 | I112: 0 | J112: 0 | K112: 0 | L112: 0 | M112: 0 | N112: 0 | O112: 0 | P112: 0 | Q112: 0 | R112: 0 | S112: 0 | T112: 0 | U112: 0 | V112: 0 | W112: 0 | X112: 0 | Y112: 0 | Z112: 0 | AA112: 0 | AB112: 0 | AC112: 0 | AD112: 0 | AE112: 0 | AF112: 0 | AG112: 0 | AH112: 0 | AI112: 6958.6 | AJ112: 6749.842 | AK112: 6529.583998 | AL112: =IF(OR(AL$75<$B112,AND($D$9,AL$75>$D$6+1),AL$75>$D112+1),0,IF(AL$75=$B112,AL$77,AK112*(1-1/($D112-AL$75+2)+AK$76))) -> 6297.421011 | AM112: 6052.932901 | AN112: 5795.683253 | AO112: 5525.218035 | AP112: 5241.063964 | AQ112: 4942.726477 | AR112: 4629.687134 | AS112: 4301.400228 | AT112: 3957.28821 | AU112: 3596.735284 | AV112: 3219.078079 | AW112: 2823.591344 | AX112: 2409.464613 | AY112: 1975.760983 | AZ112: 1521.335957 | BA112: 1044.65069 | BB112: 543.218359 | BC112: 0 | BD112: 0
B113: 2052 | C113: 2097 | D113: 2070 | F113: =IF(OR(F$75<$B113,AND($D$9,F$75>$D$6+1),F$75>$D113+1),0,IF(F$75=$B113,F$77,E113*(1-1/($D113-F$75+2)+E$76))) -> 0 | G113: 0 | H113: 0 | I113: 0 | J113: 0 | K113: 0 | L113: 0 | M113: 0 | N113: 0 | O113: 0 | P113: 0 | Q113: 0 | R113: 0 | S113: 0 | T113: 0 | U113: 0 | V113: 0 | W113: 0 | X113: 0 | Y113: 0 | Z113: 0 | AA113: 0 | AB113: 0 | AC113: 0 | AD113: 0 | AE113: 0 | AF113: 0 | AG113: 0 | AH113: 0 | AI113: 0 | AJ113: 6958.6 | AK113: 6731.529895 | AL113: =IF(OR(AL$75<$B113,AND($D$9,AL$75>$D$6+1),AL$75>$D113+1),0,IF(AL$75=$B113,AL$77,AK113*(1-1/($D113-AL$75+2)+AK$76))) -> 6492.18661 | AM113: 6240.137012 | AN113: 5974.931189 | AO113: 5696.101067 | AP113: 5403.158726 | AQ113: 5095.594306 | AR113: 4772.873334 | AS113: 4434.433224 | AT113: 4079.678567 | AU113: 3707.974519 | AV113: 3318.637195 | AW113: 2910.918911 | AX113: 2483.984137 | AY113: 2036.866993 | AZ113: 1568.387584 | BA113: 1076.959475 | BB113: 560.0189268 | BC113: 0 | BD113: 0
B114: 2053 | C114: 2098 | D114: 2070 | F114: =IF(OR(F$75<$B114,AND($D$9,F$75>$D$6+1),F$75>$D114+1),0,IF(F$75=$B114,F$77,E114*(1-1/($D114-F$75+2)+E$76))) -> 0 | G114: 0 | H114: 0 | I114: 0 | J114: 0 | K114: 0 | L114: 0 | M114: 0 | N114: 0 | O114: 0 | P114: 0 | Q114: 0 | R114: 0 | S114: 0 | T114: 0 | U114: 0 | V114: 0 | W114: 0 | X114: 0 | Y114: 0 | Z114: 0 | AA114: 0 | AB114: 0 | AC114: 0 | AD114: 0 | AE114: 0 | AF114: 0 | AG114: 0 | AH114: 0 | AI114: 0 | AJ114: 0 | AK114: 6958.6 | AL114: =IF(OR(AL$75<$B114,AND($D$9,AL$75>$D$6+1),AL$75>$D114+1),0,IF(AL$75=$B114,AL$77,AK114*(1-1/($D114-AL$75+2)+AK$76))) -> 6711.183111 | AM114: 6450.631296 | AN114: 6176.479466 | AO114: 5888.243758 | AP114: 5585.419793 | AQ114: 5267.480512 | AR114: 4933.873413 | AS114: 4584.016935 | AT114: 4217.29558 | AU114: 3833.053094 | AV114: 3430.582519 | AW114: 3009.110952 | AX114: 2567.774679 | AY114: 2105.575237 | AZ114: 1621.292933 | BA114: 1113.287814 | BB114: 578.9096631 | BC114: 0 | BD114: 0
B115: 2054 | C115: =C55 -> 2099 | D115: =ROUND(IF($D$9,MIN(B115+$D$18,$D$6),C115),0) -> 2070 | F115: =IF(OR(F$75<$B115,AND($D$9,F$75>$D$6+1),F$75>$D115+1),0,IF(F$75=$B115,F$77,E115*(1-1/($D115-F$75+2)+E$76))) -> 0 | G115: 0 | H115: 0 | I115: 0 | J115: 0 | K115: 0 | L115: 0 | M115: 0 | N115: 0 | O115: 0 | P115: 0 | Q115: 0 | R115: 0 | S115: 0 | T115: 0 | U115: 0 | V115: 0 | W115: 0 | X115: 0 | Y115: 0 | Z115: 0 | AA115: 0 | AB115: 0 | AC115: 0 | AD115: 0 | AE115: 0 | AF115: 0 | AG115: 0 | AH115: 0 | AI115: 0 | AJ115: 0 | AK115: 0 | AL115: =IF(OR(AL$75<$B115,AND($D$9,AL$75>$D$6+1),AL$75>$D115+1),0,IF(AL$75=$B115,AL$77,AK115*(1-1/($D115-AL$75+2)+AK$76))) -> 6958.6 | AM115: 6688.442588 | AN115: 6404.183778 | AO115: 6105.321869 | AP115: 5791.333887 | AQ115: 5461.673342 | AR115: 5115.767364 | AS115: 4753.012951 | AT115: 4372.771915 | AU115: 3974.363807 | AV115: 3557.055607 | AW115: 3120.045918 | AX115: 2662.439184 | AY115: 2183.200131 | AZ115: 1681.064101 | BA115: 1154.330682 | BB115: 600.2519549 | BC115: 0 | BD115: 0
B116: 2055 | C116: 2100 | D116: 2070 | F116: =IF(OR(F$75<$B116,AND($D$9,F$75>$D$6+1),F$75>$D116+1),0,IF(F$75=$B116,F$77,E116*(1-1/($D116-F$75+2)+E$76))) -> 0 | G116: 0 | H116: 0 | I116: 0 | J116: 0 | K116: 0 | L116: 0 | M116: 0 | N116: 0 | O116: 0 | P116: 0 | Q116: 0 | R116: 0 | S116: 0 | T116: 0 | U116: 0 | V116: 0 | W116: 0 | X116: 0 | Y116: 0 | Z116: 0 | AA116: 0 | AB116: 0 | AC116: 0 | AD116: 0 | AE116: 0 | AF116: 0 | AG116: 0 | AH116: 0 | AI116: 0 | AJ116: 0 | AK116: 0 | AL116: =IF(OR(AL$75<$B116,AND($D$9,AL$75>$D$6+1),AL$75>$D116+1),0,IF(AL$75=$B116,AL$77,AK116*(1-1/($D116-AL$75+2)+AK$76))) -> 0 | AM116: 6958.6 | AN116: 6662.8595 | AO116: 6351.926057 | AP116: 6025.255574 | AQ116: 5682.279487 | AR116: 5322.401786 | AS116: 4944.995114 | AT116: 4549.395505 | AU116: 4134.895026 | AV116: 3700.731048 | AW116: 3246.069805 | AX116: 2769.979567 | AY116: 2271.383245 | AZ116: 1748.965099 | BA116: 1200.956034 | BB116: 624.4971379 | BC116: 0 | BD116: 0
B117: 2056 | C117: 2101 | D117: 2070 | F117: =IF(OR(F$75<$B117,AND($D$9,F$75>$D$6+1),F$75>$D117+1),0,IF(F$75=$B117,F$77,E117*(1-1/($D117-F$75+2)+E$76))) -> 0 | G117: 0 | H117: 0 | I117: 0 | J117: 0 | K117: 0 | L117: 0 | M117: 0 | N117: 0 | O117: 0 | P117: 0 | Q117: 0 | R117: 0 | S117: 0 | T117: 0 | U117: 0 | V117: 0 | W117: 0 | X117: 0 | Y117: 0 | Z117: 0 | AA117: 0 | AB117: 0 | AC117: 0 | AD117: 0 | AE117: 0 | AF117: 0 | AG117: 0 | AH117: 0 | AI117: 0 | AJ117: 0 | AK117: 0 | AL117: =IF(OR(AL$75<$B117,AND($D$9,AL$75>$D$6+1),AL$75>$D117+1),0,IF(AL$75=$B117,AL$77,AK117*(1-1/($D117-AL$75+2)+AK$76))) -> 0 | AM117: 0 | AN117: 6958.6 | AO117: 6633.865333 | AP117: 6292.695116 | AQ117: 5934.495548 | AR117: 5558.644163 | AS117: 5164.485759 | AT117: 4751.326898 | AU117: 4318.428225 | AV117: 3864.993262 | AW117: 3390.151232 | AX117: 2892.929052 | AY117: 2372.201822 | AZ117: 1826.595403 | BA117: 1254.262177 | BB117: 652.216332 | BC117: 0 | BD117: 0
B118: 2057 | C118: 2102 | D118: 2070 | F118: =IF(OR(F$75<$B118,AND($D$9,F$75>$D$6+1),F$75>$D118+1),0,IF(F$75=$B118,F$77,E118*(1-1/($D118-F$75+2)+E$76))) -> 0 | G118: 0 | H118: 0 | I118: 0 | J118: 0 | K118: 0 | L118: 0 | M118: 0 | N118: 0 | O118: 0 | P118: 0 | Q118: 0 | R118: 0 | S118: 0 | T118: 0 | U118: 0 | V118: 0 | W118: 0 | X118: 0 | Y118: 0 | Z118: 0 | AA118: 0 | AB118: 0 | AC118: 0 | AD118: 0 | AE118: 0 | AF118: 0 | AG118: 0 | AH118: 0 | AI118: 0 | AJ118: 0 | AK118: 0 | AL118: =IF(OR(AL$75<$B118,AND($D$9,AL$75>$D$6+1),AL$75>$D118+1),0,IF(AL$75=$B118,AL$77,AK118*(1-1/($D118-AL$75+2)+AK$76))) -> 0 | AM118: 0 | AN118: 0 | AO118: 6958.6 | AP118: 6600.729143 | AQ118: 6224.99533 | AR118: 5830.745626 | AS118: 5417.292754 | AT118: 4983.909334 | AU118: 4529.819817 | AV118: 4054.188736 | AW118: 3556.102691 | AX118: 3034.540963 | AY118: 2488.32359 | AZ118: 1916.009164 | BA118: 1315.659626 | BB118: 684.1430056 | BC118: 0 | BD118: 0
B119: 2058 | C119: 2103 | D119: 2070 | F119: =IF(OR(F$75<$B119,AND($D$9,F$75>$D$6+1),F$75>$D119+1),0,IF(F$75=$B119,F$77,E119*(1-1/($D119-F$75+2)+E$76))) -> 0 | G119: 0 | H119: 0 | I119: 0 | J119: 0 | K119: 0 | L119: 0 | M119: 0 | N119: 0 | O119: 0 | P119: 0 | Q119: 0 | R119: 0 | S119: 0 | T119: 0 | U119: 0 | V119: 0 | W119: 0 | X119: 0 | Y119: 0 | Z119: 0 | AA119: 0 | AB119: 0 | AC119: 0 | AD119: 0 | AE119: 0 | AF119: 0 | AG119: 0 | AH119: 0 | AI119: 0 | AJ119: 0 | AK119: 0 | AL119: =IF(OR(AL$75<$B119,AND($D$9,AL$75>$D$6+1),AL$75>$D119+1),0,IF(AL$75=$B119,AL$77,AK119*(1-1/($D119-AL$75+2)+AK$76))) -> 0 | AM119: 0 | AN119: 0 | AO119: 0 | AP119: 6958.6 | AQ119: 6562.495077 | AR119: 6146.870389 | AS119: 5711.001398 | AT119: 5254.121286 | AU119: 4775.412457 | AV119: 4273.994149 | AW119: 3748.90344 | AX119: 3199.064268 | AY119: 2623.2327 | AZ119: 2019.889179 | BA119: 1386.99057 | BB119: 721.2350962 | BC119: 0 | BD119: 0
B120: 2059 | C120: 2104 | D120: 2070 | F120: =IF(OR(F$75<$B120,AND($D$9,F$75>$D$6+1),F$75>$D120+1),0,IF(F$75=$B120,F$77,E120*(1-1/($D120-F$75+2)+E$76))) -> 0 | G120: 0 | H120: 0 | I120: 0 | J120: 0 | K120: 0 | L120: 0 | M120: 0 | N120: 0 | O120: 0 | P120: 0 | Q120: 0 | R120: 0 | S120: 0 | T120: 0 | U120: 0 | V120: 0 | W120: 0 | X120: 0 | Y120: 0 | Z120: 0 | AA120: 0 | AB120: 0 | AC120: 0 | AD120: 0 | AE120: 0 | AF120: 0 | AG120: 0 | AH120: 0 | AI120: 0 | AJ120: 0 | AK120: 0 | AL120: =IF(OR(AL$75<$B120,AND($D$9,AL$75>$D$6+1),AL$75>$D120+1),0,IF(AL$75=$B120,AL$77,AK120*(1-1/($D120-AL$75+2)+AK$76))) -> 0 | AM120: 0 | AN120: 0 | AO120: 0 | AP120: 0 | AQ120: 6958.6 | AR120: 6517.888667 | AS120: 6055.711107 | AT120: 5571.254218 | AU120: 5063.651056 | AV120: 4531.967695 | AW120: 3975.183093 | AX120: 3392.156239 | AY120: 2781.568116 | AZ120: 2141.807449 | BA120: 1470.707782 | BB120: 764.7680466 | BC120: 0 | BD120: 0
B121: 2060 | C121: 2105 | D121: 2070 | F121: =IF(OR(F$75<$B121,AND($D$9,F$75>$D$6+1),F$75>$D121+1),0,IF(F$75=$B121,F$77,E121*(1-1/($D121-F$75+2)+E$76))) -> 0 | G121: 0 | H121: 0 | I121: 0 | J121: 0 | K121: 0 | L121: 0 | M121: 0 | N121: 0 | O121: 0 | P121: 0 | Q121: 0 | R121: 0 | S121: 0 | T121: 0 | U121: 0 | V121: 0 | W121: 0 | X121: 0 | Y121: 0 | Z121: 0 | AA121: 0 | AB121: 0 | AC121: 0 | AD121: 0 | AE121: 0 | AF121: 0 | AG121: 0 | AH121: 0 | AI121: 0 | AJ121: 0 | AK121: 0 | AL121: =IF(OR(AL$75<$B121,AND($D$9,AL$75>$D$6+1),AL$75>$D121+1),0,IF(AL$75=$B121,AL$77,AK121*(1-1/($D121-AL$75+2)+AK$76))) -> 0 | AM121: 0 | AN121: 0 | AO121: 0 | AP121: 0 | AQ121: 0 | AR121: 6958.6 | AS121: 6465.172 | AT121: 5947.95824 | AU121: 5406.033156 | AV121: 4838.399675 | AW121: 4243.967715 | AX121: 3621.519116 | AY121: 2969.645675 | AZ121: 2286.62717 | BA121: 1570.150657 | BB121: 816.4783415 | BC121: 0 | BD121: 0
B122: 2061 | C122: 2106 | D122: 2070 | F122: =IF(OR(F$75<$B122,AND($D$9,F$75>$D$6+1),F$75>$D122+1),0,IF(F$75=$B122,F$77,E122*(1-1/($D122-F$75+2)+E$76))) -> 0 | G122: 0 | H122: 0 | I122: 0 | J122: 0 | K122: 0 | L122: 0 | M122: 0 | N122: 0 | O122: 0 | P122: 0 | Q122: 0 | R122: 0 | S122: 0 | T122: 0 | U122: 0 | V122: 0 | W122: 0 | X122: 0 | Y122: 0 | Z122: 0 | AA122: 0 | AB122: 0 | AC122: 0 | AD122: 0 | AE122: 0 | AF122: 0 | AG122: 0 | AH122: 0 | AI122: 0 | AJ122: 0 | AK122: 0 | AL122: =IF(OR(AL$75<$B122,AND($D$9,AL$75>$D$6+1),AL$75>$D122+1),0,IF(AL$75=$B122,AL$77,AK122*(1-1/($D122-AL$75+2)+AK$76))) -> 0 | AM122: 0 | AN122: 0 | AO122: 0 | AP122: 0 | AQ122: 0 | AR122: 0 | AS122: 6958.6 | AT122: 6401.912 | AU122: 5818.626684 | AV122: 5207.670883 | AW122: 4567.871317 | AX122: 3897.916857 | AY122: 3196.291823 | AZ122: 2461.144704 | BA122: 1689.98603 | BB122: 878.7927355 | BC122: 0 | BD122: 0
B123: 2062 | C123: 2107 | D123: 2070 | F123: =IF(OR(F$75<$B123,AND($D$9,F$75>$D$6+1),F$75>$D123+1),0,IF(F$75=$B123,F$77,E123*(1-1/($D123-F$75+2)+E$76))) -> 0 | G123: 0 | H123: 0 | I123: 0 | J123: 0 | K123: 0 | L123: 0 | M123: 0 | N123: 0 | O123: 0 | P123: 0 | Q123: 0 | R123: 0 | S123: 0 | T123: 0 | U123: 0 | V123: 0 | W123: 0 | X123: 0 | Y123: 0 | Z123: 0 | AA123: 0 | AB123: 0 | AC123: 0 | AD123: 0 | AE123: 0 | AF123: 0 | AG123: 0 | AH123: 0 | AI123: 0 | AJ123: 0 | AK123: 0 | AL123: =IF(OR(AL$75<$B123,AND($D$9,AL$75>$D$6+1),AL$75>$D123+1),0,IF(AL$75=$B123,AL$77,AK123*(1-1/($D123-AL$75+2)+AK$76))) -> 0 | AM123: 0 | AN123: 0 | AO123: 0 | AP123: 0 | AQ123: 0 | AR123: 0 | AS123: 0 | AT123: 6958.6 | AU123: 6324.594222 | AV123: 5660.511829 | AW123: 4965.077518 | AX123: 4236.866149 | AY123: 3474.230242 | AZ123: 2675.157287 | BA123: 1836.941337 | BB123: 955.2094951 | BC123: =IF(OR(BC$75<$B123,AND($D$9,BC$75>$D$6+1),BC$75>$D123+1),0,IF(BC$75=$B123,BC$77,BB123*(1-1/($D123-BC$75+2)+BC$76))) -> 0 | BD123: 0
B124: 2063 | C124: 2108 | D124: 2070 | F124: =IF(OR(F$75<$B124,AND($D$9,F$75>$D$6+1),F$75>$D124+1),0,IF(F$75=$B124,F$77,E124*(1-1/($D124-F$75+2)+E$76))) -> 0 | G124: 0 | H124: 0 | I124: 0 | J124: 0 | K124: 0 | L124: 0 | M124: 0 | N124: 0 | O124: 0 | P124: 0 | Q124: 0 | R124: 0 | S124: 0 | T124: 0 | U124: 0 | V124: 0 | W124: 0 | X124: 0 | Y124: 0 | Z124: 0 | AA124: 0 | AB124: 0 | AC124: 0 | AD124: 0 | AE124: 0 | AF124: 0 | AG124: 0 | AH124: 0 | AI124: 0 | AJ124: 0 | AK124: 0 | AL124: =IF(OR(AL$75<$B124,AND($D$9,AL$75>$D$6+1),AL$75>$D124+1),0,IF(AL$75=$B124,AL$77,AK124*(1-1/($D124-AL$75+2)+AK$76))) -> 0 | AM124: 0 | AN124: 0 | AO124: 0 | AP124: 0 | AQ124: 0 | AR124: 0 | AS124: 0 | AT124: 0 | AU124: 6958.6 | AV124: 6227.947 | AW124: 5462.799226 | AX124: 4661.588673 | AY124: 3822.502712 | AZ124: 2943.327088 | BA124: 2021.0846 | BB124: 1050.963992 | BC124: 0 | BD124: 0
B125: 2064 | C125: 2109 | D125: 2070 | F125: =IF(OR(F$75<$B125,AND($D$9,F$75>$D$6+1),F$75>$D125+1),0,IF(F$75=$B125,F$77,E125*(1-1/($D125-F$75+2)+E$76))) -> 0 | G125: 0 | H125: 0 | I125: 0 | J125: 0 | K125: 0 | L125: 0 | M125: 0 | N125: 0 | O125: 0 | P125: 0 | Q125: 0 | R125: 0 | S125: 0 | T125: 0 | U125: 0 | V125: 0 | W125: 0 | X125: 0 | Y125: 0 | Z125: 0 | AA125: 0 | AB125: 0 | AC125: 0 | AD125: 0 | AE125: 0 | AF125: 0 | AG125: 0 | AH125: 0 | AI125: 0 | AJ125: 0 | AK125: 0 | AL125: =IF(OR(AL$75<$B125,AND($D$9,AL$75>$D$6+1),AL$75>$D125+1),0,IF(AL$75=$B125,AL$77,AK125*(1-1/($D125-AL$75+2)+AK$76))) -> 0 | AM125: 0 | AN125: 0 | AO125: 0 | AP125: 0 | AQ125: 0 | AR125: 0 | AS125: 0 | AT125: 0 | AU125: 0 | AV125: 6958.6 | AW125: 6103.686286 | AX125: 5208.478964 | AY125: 4270.95275 | AZ125: 3288.633618 | BA125: 2258.195084 | BB125: 1174.261444 | BC125: 0 | BD125: 0
B126: 2065 | C126: 2110 | D126: 2070 | F126: =IF(OR(F$75<$B126,AND($D$9,F$75>$D$6+1),F$75>$D126+1),0,IF(F$75=$B126,F$77,E126*(1-1/($D126-F$75+2)+E$76))) -> 0 | G126: 0 | H126: 0 | I126: 0 | J126: 0 | K126: 0 | L126: 0 | M126: 0 | N126: 0 | O126: 0 | P126: 0 | Q126: 0 | R126: 0 | S126: 0 | T126: 0 | U126: 0 | V126: 0 | W126: 0 | X126: 0 | Y126: 0 | Z126: 0 | AA126: 0 | AB126: 0 | AC126: 0 | AD126: 0 | AE126: 0 | AF126: 0 | AG126: 0 | AH126: 0 | AI126: 0 | AJ126: 0 | AK126: 0 | AL126: =IF(OR(AL$75<$B126,AND($D$9,AL$75>$D$6+1),AL$75>$D126+1),0,IF(AL$75=$B126,AL$77,AK126*(1-1/($D126-AL$75+2)+AK$76))) -> 0 | AM126: 0 | AN126: 0 | AO126: 0 | AP126: 0 | AQ126: 0 | AR126: 0 | AS126: 0 | AT126: 0 | AU126: 0 | AV126: 0 | AW126: 6958.6 | AX126: 5938.005333 | AY126: 4869.164373 | AZ126: 3749.256567 | BA126: 2574.48951 | BB126: 1338.734545 | BC126: 0 | BD126: 0
B127: 2066 | C127: 2111 | D127: 2070 | F127: =IF(OR(F$75<$B127,AND($D$9,F$75>$D$6+1),F$75>$D127+1),0,IF(F$75=$B127,F$77,E127*(1-1/($D127-F$75+2)+E$76))) -> 0 | G127: 0 | H127: 0 | I127: 0 | J127: 0 | K127: 0 | L127: 0 | M127: 0 | N127: 0 | O127: 0 | P127: 0 | Q127: 0 | R127: 0 | S127: 0 | T127: 0 | U127: 0 | V127: 0 | W127: 0 | X127: 0 | Y127: 0 | Z127: 0 | AA127: 0 | AB127: 0 | AC127: 0 | AD127: 0 | AE127: 0 | AF127: 0 | AG127: 0 | AH127: 0 | AI127: 0 | AJ127: 0 | AK127: 0 | AL127: =IF(OR(AL$75<$B127,AND($D$9,AL$75>$D$6+1),AL$75>$D127+1),0,IF(AL$75=$B127,AL$77,AK127*(1-1/($D127-AL$75+2)+AK$76))) -> 0 | AM127: 0 | AN127: 0 | AO127: 0 | AP127: 0 | AQ127: 0 | AR127: 0 | AS127: 0 | AT127: 0 | AU127: 0 | AV127: 0 | AW127: 0 | AX127: 6958.6 | AY127: 5706.052 | AZ127: 4393.66004 | BA127: 3016.979894 | BB127: 1568.829545 | BC127: 0 | BD127: 0
B128: 2067 | C128: 2112 | D128: 2070 | F128: =IF(OR(F$75<$B128,AND($D$9,F$75>$D$6+1),F$75>$D128+1),0,IF(F$75=$B128,F$77,E128*(1-1/($D128-F$75+2)+E$76))) -> 0 | G128: 0 | H128: 0 | I128: 0 | J128: 0 | K128: 0 | L128: 0 | M128: 0 | N128: 0 | O128: 0 | P128: 0 | Q128: 0 | R128: 0 | S128: 0 | T128: 0 | U128: 0 | V128: 0 | W128: 0 | X128: 0 | Y128: 0 | Z128: 0 | AA128: 0 | AB128: 0 | AC128: 0 | AD128: 0 | AE128: 0 | AF128: 0 | AG128: 0 | AH128: 0 | AI128: 0 | AJ128: 0 | AK128: 0 | AL128: =IF(OR(AL$75<$B128,AND($D$9,AL$75>$D$6+1),AL$75>$D128+1),0,IF(AL$75=$B128,AL$77,AK128*(1-1/($D128-AL$75+2)+AK$76))) -> 0 | AM128: 0 | AN128: 0 | AO128: 0 | AP128: 0 | AQ128: 0 | AR128: 0 | AS128: 0 | AT128: 0 | AU128: 0 | AV128: 0 | AW128: 0 | AX128: 0 | AY128: 6958.6 | AZ128: 5358.122 | BA128: 3679.243773 | BB128: 1913.206762 | BC128: 0 | BD128: 0
B129: 2068 | C129: 2113 | D129: 2070 | F129: =IF(OR(F$75<$B129,AND($D$9,F$75>$D$6+1),F$75>$D129+1),0,IF(F$75=$B129,F$77,E129*(1-1/($D129-F$75+2)+E$76))) -> 0 | G129: 0 | H129: 0 | I129: 0 | J129: 0 | K129: 0 | L129: 0 | M129: 0 | N129: 0 | O129: 0 | P129: 0 | Q129: 0 | R129: 0 | S129: 0 | T129: 0 | U129: 0 | V129: 0 | W129: 0 | X129: 0 | Y129: 0 | Z129: 0 | AA129: 0 | AB129: 0 | AC129: 0 | AD129: 0 | AE129: 0 | AF129: 0 | AG129: 0 | AH129: 0 | AI129: 0 | AJ129: 0 | AK129: 0 | AL129: =IF(OR(AL$75<$B129,AND($D$9,AL$75>$D$6+1),AL$75>$D129+1),0,IF(AL$75=$B129,AL$77,AK129*(1-1/($D129-AL$75+2)+AK$76))) -> 0 | AM129: 0 | AN129: 0 | AO129: 0 | AP129: 0 | AQ129: 0 | AR129: 0 | AS129: 0 | AT129: 0 | AU129: 0 | AV129: 0 | AW129: 0 | AX129: 0 | AY129: 0 | AZ129: 6958.6 | BA129: 4778.238667 | BB129: 2484.684107 | BC129: 0 | BD129: 0
B130: 2069 | C130: 2114 | D130: 2070 | F130: =IF(OR(F$75<$B130,AND($D$9,F$75>$D$6+1),F$75>$D130+1),0,IF(F$75=$B130,F$77,E130*(1-1/($D130-F$75+2)+E$76))) -> 0 | G130: 0 | H130: 0 | I130: 0 | J130: 0 | K130: 0 | L130: 0 | M130: 0 | N130: 0 | O130: 0 | P130: 0 | Q130: 0 | R130: 0 | S130: 0 | T130: 0 | U130: 0 | V130: 0 | W130: 0 | X130: 0 | Y130: 0 | Z130: 0 | AA130: 0 | AB130: 0 | AC130: 0 | AD130: 0 | AE130: 0 | AF130: 0 | AG130: 0 | AH130: 0 | AI130: 0 | AJ130: 0 | AK130: 0 | AL130: =IF(OR(AL$75<$B130,AND($D$9,AL$75>$D$6+1),AL$75>$D130+1),0,IF(AL$75=$B130,AL$77,AK130*(1-1/($D130-AL$75+2)+AK$76))) -> 0 | AM130: 0 | AN130: 0 | AO130: 0 | AP130: 0 | AQ130: 0 | AR130: 0 | AS130: 0 | AT130: 0 | AU130: 0 | AV130: 0 | AW130: 0 | AX130: 0 | AY130: 0 | AZ130: 0 | BA130: 6958.6 | BB130: 3618.472 | BC130: 0 | BD130: 0
B131: 2070 | C131: 2115 | D131: 2070 | F131: =IF(OR(F$75<$B131,AND($D$9,F$75>$D$6+1),F$75>$D131+1),0,IF(F$75=$B131,F$77,E131*(1-1/($D131-F$75+2)+E$76))) -> 0 | G131: 0 | H131: 0 | I131: 0 | J131: 0 | K131: 0 | L131: 0 | M131: 0 | N131: 0 | O131: 0 | P131: 0 | Q131: 0 | R131: 0 | S131: 0 | T131: 0 | U131: 0 | V131: 0 | W131: 0 | X131: 0 | Y131: 0 | Z131: 0 | AA131: 0 | AB131: 0 | AC131: 0 | AD131: 0 | AE131: 0 | AF131: 0 | AG131: 0 | AH131: 0 | AI131: 0 | AJ131: 0 | AK131: 0 | AL131: =IF(OR(AL$75<$B131,AND($D$9,AL$75>$D$6+1),AL$75>$D131+1),0,IF(AL$75=$B131,AL$77,AK131*(1-1/($D131-AL$75+2)+AK$76))) -> 0 | AM131: 0 | AN131: 0 | AO131: 0 | AP131: 0 | AQ131: 0 | AR131: 0 | AS131: 0 | AT131: 0 | AU131: 0 | AV131: 0 | AW131: 0 | AX131: 0 | AY131: 0 | AZ131: 0 | BA131: 0 | BB131: 6958.6 | BC131: 0 | BD131: 0
D132: Total opening RAB of additional assets: | F132: =SUM(F83:F131) -> 35101.66749 | G132: 89376.26631 | H132: 147696.0036 | I132: 194988.9503 | J132: 235116.3911 | K132: 276798.9915 | L132: 320294.2483 | M132: 352844.6471 | N132: 386366.6076 | O132: 423532.8106 | P132: 458464.8369 | Q132: 490492.2068 | R132: 519590.6007 | S132: 545711.2252 | T132: 568806.4513 | U132: 588830.0477 | V132: 605737.442 | W132: 619486.0154 | X132: 630035.433 | Y132: 637348.0185 | Z132: 641389.1769 | AA132: 642127.8749 | AB132: 639537.1877 | AC132: 633594.9234 | AD132: 624284.3392 | AE132: 613901.5403 | AF132: 602393.307 | AG132: 589703.3895 | AH132: 575772.2056 | AI132: 560536.481 | AJ132: 543928.8154 | AK132: 525877.1496 | AL132: =SUM(AL83:AL131) -> 506304.0935 | AM132: 485126.0534 | AN132: 462252.0449 | AO132: 437581.966 | AP132: 411003.7886 | AQ132: 382387.9487 | AR132: 351569.5099 | AS132: 320534.0372 | AT132: 290339.0107 | AU132: 261266.3241 | AV132: 232671.6704 | AW132: 204039.5197 | AX132: 175313.2192 | AY132: 146398.2244 | AZ132: 116300.4391 | BA132: 84419.19138 | BB132: 49664.78739 | BC132: 0 | BD132: 0

Sheet OpexTax
A1: Opex and Tax | L1: =GPB_name -> First Gas transmission
A2: Inputs
A3: Supplier number | D3: =SupplierNum -> 5
A4: Stranding Year | D4: =Inputs_AS!D10 -> 2070
A6: Opex
A8: 2026 & 2027 opex | D8: =Inputs_finmod!K48 -> 58702.29709
A9: Stranding year opex÷2027 opex | D9: =Inputs_AS!D9 -> 0.3
A10: Stranding year opex | D10: =D8*D9 -> 17610.68913
A11: Annual opex decrement | D11: =(D8-D10)/(D4-2027) -> 955.6187899
A13: Tax
A14: Opening regulatory tax asset value, 2021 | B14: =Tax!D106 -> 209289.5997
A15: Tax dv rate | B15: =Tax!D107 -> 0.134389424
B17: 2021 | C17: 2022 | D17: 2023 | E17: 2024 | F17: 2025 | G17: 2026 | H17: 2027 | I17: 2028 | J17: 2029 | K17: 2030 | L17: 2031 | M17: 2032 | N17: 2033 | O17: 2034 | P17: 2035 | Q17: 2036 | R17: 2037 | S17: 2038 | T17: 2039 | U17: 2040 | V17: 2041 | W17: 2042 | X17: 2043 | Y17: 2044 | Z17: 2045 | AA17: 2046 | AB17: 2047 | AC17: 2048 | AD17: 2049 | AE17: 2050 | AF17: 2051 | AG17: 2052 | AH17: 2053 | AI17: 2054 | AJ17: 2055 | AK17: 2056 | AL17: 2057 | AM17: 2058 | AN17: 2059 | AO17: 2060 | AP17: 2061 | AQ17: 2062 | AR17: 2063 | AS17: 2064 | AT17: 2065 | AU17: 2066 | AV17: 2067 | AW17: 2068 | AX17: 2069 | AY17: 2070
A18: Capex | B18: =Additional!F77 -> 35101.66749 | C18: =Additional!G77 -> 53794.2602 | D18: =Additional!H77 -> 58641.39746 | E18: =Additional!I77 -> 48315.70818 | F18: =Additional!J77 -> 41557.54469 | G18: =Additional!K77 -> 43513.37103 | H18: =Additional!L77 -> 45771.86572 | I18: =Additional!M77 -> 35322.42548 | J18: =Additional!N77 -> 36761.50735 | K18: =Additional!O77 -> 40914.86386 | L18: =Additional!P77 -> 39250.65587 | M18: =Additional!Q77 -> 36944.08045 | N18: =Additional!R77 -> 34637.50503 | O18: =Additional!S77 -> 32330.92961 | P18: =Additional!T77 -> 30024.35419 | Q18: =Additional!U77 -> 27717.77877 | R18: =Additional!V77 -> 25411.20335 | S18: =Additional!W77 -> 23104.62793 | T18: =Additional!X77 -> 20798.05251 | U18: =Additional!Y77 -> 18491.4771 | V18: =Additional!Z77 -> 16184.90168 | W18: =Additional!AA77 -> 13878.32626 | X18: =Additional!AB77 -> 11571.75084 | Y18: =Additional!AC77 -> 9265.175419 | Z18: =Additional!AD77 -> 6958.6 | AA18: =Additional!AE77 -> 6958.6 | AB18: =Additional!AF77 -> 6958.6 | AC18: =Additional!AG77 -> 6958.6 | AD18: =Additional!AH77 -> 6958.6 | AE18: =Additional!AI77 -> 6958.6 | AF18: =Additional!AJ77 -> 6958.6 | AG18: =Additional!AK77 -> 6958.6 | AH18: =Additional!AL77 -> 6958.6 | AI18: =Additional!AM77 -> 6958.6 | AJ18: =Additional!AN77 -> 6958.6 | AK18: =Additional!AO77 -> 6958.6 | AL18: =Additional!AP77 -> 6958.6 | AM18: =Additional!AQ77 -> 6958.6 | AN18: =Additional!AR77 -> 6958.6 | AO18: =Additional!AS77 -> 6958.6 | AP18: =Additional!AT77 -> 6958.6 | AQ18: =Additional!AU77 -> 6958.6 | AR18: =Additional!AV77 -> 6958.6 | AS18: =Additional!AW77 -> 6958.6 | AT18: =Additional!AX77 -> 6958.6 | AU18: =Additional!AY77 -> 6958.6 | AV18: =Additional!AZ77 -> 6958.6 | AW18: =Additional!BA77 -> 6958.6 | AX18: =Additional!BB77 -> 6958.6 | AY18: =Additional!BC77 -> 6958.6
A20: Calculations
H21: 2027 | I21: 2028 | J21: 2029 | K21: 2030 | L21: 2031 | M21: 2032 | N21: 2033 | O21: 2034 | P21: 2035 | Q21: 2036 | R21: 2037 | S21: 2038 | T21: 2039 | U21: 2040 | V21: 2041 | W21: 2042 | X21: 2043 | Y21: 2044 | Z21: 2045 | AA21: 2046 | AB21: 2047 | AC21: 2048 | AD21: 2049 | AE21: 2050 | AF21: 2051 | AG21: 2052 | AH21: 2053 | AI21: 2054 | AJ21: 2055 | AK21: 2056 | AL21: 2057 | AM21: 2058 | AN21: 2059 | AO21: 2060 | AP21: 2061 | AQ21: 2062 | AR21: 2063 | AS21: 2064 | AT21: 2065 | AU21: 2066 | AV21: 2067 | AW21: 2068 | AX21: 2069 | AY21: 2070
A22: Opex profile | D22: =TRANSPOSE(Inputs_finmod!K45:K48) -> 53479.72467 | E22: 55287.28331 | F22: 56850.15601 | G22: 58702.29709 | H22: =G22 -> 58702.29709 | I22: =IF(I21>$D$4,0,H22-$D$11) -> 57746.6783 | J22: 56791.05951 | K22: 55835.44072 | L22: 54879.82193 | M22: 53924.20314 | N22: 52968.58435 | O22: 52012.96556 | P22: 51057.34677 | Q22: 50101.72798 | R22: 49146.10919 | S22: 48190.4904 | T22: 47234.87161 | U22: 46279.25282 | V22: 45323.63403 | W22: 44368.01524 | X22: 43412.39645 | Y22: 42456.77766 | Z22: 41501.15887 | AA22: 40545.54008 | AB22: 39589.92129 | AC22: 38634.3025 | AD22: 37678.68371 | AE22: 36723.06492 | AF22: 35767.44613 | AG22: 34811.82735 | AH22: 33856.20856 | AI22: 32900.58977 | AJ22: 31944.97098 | AK22: 30989.35219 | AL22: 30033.7334 | AM22: 29078.11461 | AN22: 28122.49582 | AO22: 27166.87703 | AP22: 26211.25824 | AQ22: 25255.63945 | AR22: 24300.02066 | AS22: 23344.40187 | AT22: 22388.78308 | AU22: 21433.16429 | AV22: 20477.5455 | AW22: 19521.92671 | AX22: 18566.30792 | AY22: 17610.68913
A23: Opening tax asset value | B23: =B14 -> 209289.5997 | C23: =B26 -> 216264.9584 | D23: 240995.4954 | E23: 267249.6471 | F23: 279649.8291 | G23: 283625.3943 | H23: 289022.512 | I23: =H26 -> 295952.8088 | J23: 291502.3067 | K23: 289088.987 | L23: 291153.3484 | M23: 291276.0734 | N23: 289075.7301 | O23: 284864.5143 | P23: 278912.6659 | Q23: 271454.1076 | R23: 262691.3252 | S23: 252799.5926 | T23: 241930.6289 | U23: 230215.7635 | V23: 217768.6768 | W23: 204687.7714 | X23: 191058.2259 | Y23: 176953.7718 | Z23: 162438.2318 | AA23: 147566.8514 | AB23: 134694.0272 | AC23: 123551.1745 | AD23: 113905.8033 | AE23: 105556.668 | AF23: 98329.56817 | AG23: 92073.71414 | AH23: 86658.58073 | AI23: 81971.18397 | AJ23: 77913.72377 | AK23: 74401.54331 | AL23: 71361.36276 | AM23: 68729.75032 | AN23: 66451.79876 | AO23: 64479.97979 | AP23: 62773.15245 | AQ23: 61295.70464 | AR23: 60016.8102 | AS23: 58909.78564 | AT23: 57951.53348 | AU23: 57122.06027 | AV23: 56404.05949 | AW23: 55782.55042 | AX23: 55244.5656 | AY23: 54778.88025
A24: Tax depreciation | B24: =B23*$B$15 -> 28126.30876 | C24: 29063.72321 | D24: 32387.24583 | E24: 35915.52615 | F24: 37581.97947 | G24: 38116.25339 | H24: 38841.56892 | I24: 39772.92752 | J24: 39174.82711 | K24: 38850.50246 | L24: 39127.9308 | M24: 39144.42375 | N24: 38848.72088 | O24: 38282.77801 | P24: 37482.91253 | Q24: 36480.56117 | R24: 35302.93589 | S24: 33973.59165 | T24: 32512.91788 | U24: 30938.56387 | V24: 29265.80705 | W24: 27507.87171 | X24: 25676.20494 | Y24: 23780.71548 | Z24: 21829.98041 | AA24: 19831.42416 | AB24: 18101.45274 | AC24: 16603.97118 | AD24: 15307.7353 | AE24: 14185.69982 | AF24: 13214.45403 | AG24: 12373.73341 | AH24: =AH23*$B$15 -> 11645.99675 | AI24: 11016.0602 | AJ24: 10470.78046 | AK24: 9998.780553 | AL24: 9590.21244 | AM24: 9236.55156 | AN24: 8930.418962 | AO24: 8665.427347 | AP24: 8436.047803 | AQ24: 8237.494444 | AR24: 8065.624556 | AS24: 7916.852163 | AT24: 7788.073207 | AU24: 7676.600781 | AV24: 7580.109069 | AW24: 7496.584823 | AX24: 7424.285353 | AY24: 7361.702166
A25: Capex | B25: =B18 -> 35101.66749 | C25: 53794.2602 | D25: 58641.39746 | E25: 48315.70818 | F25: 41557.54469 | G25: 43513.37103 | H25: 45771.86572 | I25: 35322.42548 | J25: 36761.50735 | K25: 40914.86386 | L25: 39250.65587 | M25: 36944.08045 | N25: 34637.50503 | O25: 32330.92961 | P25: 30024.35419 | Q25: 27717.77877 | R25: 25411.20335 | S25: 23104.62793 | T25: 20798.05251 | U25: 18491.4771 | V25: 16184.90168 | W25: 13878.32626 | X25: 11571.75084 | Y25: 9265.175419 | Z25: 6958.6 | AA25: 6958.6 | AB25: 6958.6 | AC25: 6958.6 | AD25: 6958.6 | AE25: 6958.6 | AF25: 6958.6 | AG25: 6958.6 | AH25: =AH18 -> 6958.6 | AI25: 6958.6 | AJ25: 6958.6 | AK25: 6958.6 | AL25: 6958.6 | AM25: 6958.6 | AN25: 6958.6 | AO25: 6958.6 | AP25: 6958.6 | AQ25: 6958.6 | AR25: 6958.6 | AS25: 6958.6 | AT25: 6958.6 | AU25: 6958.6 | AV25: 6958.6 | AW25: 6958.6 | AX25: 6958.6 | AY25: 6958.6
A26: Closing tax asset value | B26: =B23+B25-B24 -> 216264.9584 | C26: 240995.4954 | D26: 267249.6471 | E26: 279649.8291 | F26: 283625.3943 | G26: 289022.512 | H26: 295952.8088 | I26: 291502.3067 | J26: 289088.987 | K26: 291153.3484 | L26: 291276.0734 | M26: 289075.7301 | N26: 284864.5143 | O26: 278912.6659 | P26: 271454.1076 | Q26: 262691.3252 | R26: 252799.5926 | S26: 241930.6289 | T26: 230215.7635 | U26: 217768.6768 | V26: 204687.7714 | W26: 191058.2259 | X26: 176953.7718 | Y26: 162438.2318 | Z26: 147566.8514 | AA26: 134694.0272 | AB26: 123551.1745 | AC26: 113905.8033 | AD26: 105556.668 | AE26: 98329.56817 | AF26: 92073.71414 | AG26: 86658.58073 | AH26: =AH23+AH25-AH24 -> 81971.18397 | AI26: 77913.72377 | AJ26: 74401.54331 | AK26: 71361.36276 | AL26: 68729.75032 | AM26: 66451.79876 | AN26: 64479.97979 | AO26: 62773.15245 | AP26: 61295.70464 | AQ26: 60016.8102 | AR26: 58909.78564 | AS26: 57951.53348 | AT26: 57122.06027 | AU26: 56404.05949 | AV26: 55782.55042 | AW26: 55244.5656 | AX26: 54778.88025 | AY26: 54375.77808

Sheet Total
A1: Total
A2: Inputs
B3: Chosen supplier | D3: =Inputs_AS!D2 -> First Gas transmission
B4: Chosen supplier number | D4: =Inputs_AS!D3 -> 5
B5: Post-tax WACC | D5: =Inputs_AS!D4 -> 0.056
B6: Vanilla WACC | D6: =Inputs_AS!D5 -> 0.0607
B7: Cost of debt | D7: =Inputs_AS!D6 -> 0.0401
B8: Leverage | D8: =Inputs_AS!D7 -> 0.42
B9: Tax rate | D9: =Inputs_AS!D8 -> 0.28
B10: Stranding year | D10: =Inputs_AS!D10 -> 2070
B11: Number of years in MAR ramp-up | D11: =Dashboard!B7 -> 6
B12: Start of MAR ramp-down | D12: =MARrampDownStart -> 2029
B13: Remaining life of additional assets | D13: =Inputs_AS!D12 -> 45
B15: Stranding year MAR ÷ 2023 MAR | D15: =Inputs_AS!D13 -> 0.2
B16: Apply revaluations from 2023 onwards | D16: =Reval -> TRUE
B17: Forecast changes in CPI used for revaluations
E18: 2021 | F18: 2022 | G18: 2023 | H18: 2024 | I18: 2025 | J18: 2026 | K18: 2027 | L18: 2028 | M18: 2029 | N18: 2030 | O18: 2031 | P18: 2032 | Q18: 2033 | R18: 2034 | S18: 2035 | T18: 2036 | U18: 2037 | V18: 2038 | W18: 2039 | X18: 2040 | Y18: 2041 | Z18: 2042 | AA18: 2043 | AB18: 2044 | AC18: 2045 | AD18: 2046 | AE18: 2047 | AF18: 2048 | AG18: 2049 | AH18: 2050 | AI18: 2051 | AJ18: 2052 | AK18: 2053 | AL18: 2054 | AM18: 2055 | AN18: 2056 | AO18: 2057 | AP18: 2058 | AQ18: 2059 | AR18: 2060 | AS18: 2061 | AT18: 2062 | AU18: 2063 | AV18: 2064 | AW18: 2065 | AX18: 2066 | AY18: 2067 | AZ18: 2068 | BA18: 2069 | BB18: 2070
B19: Forecast changes in CPI used for price path | G19: =Inputs_AS!G25 -> 0.02746210288 | H19: =Inputs_AS!H25 -> 0.02074756236 | I19: =Inputs_AS!I25 -> 0.02 | J19: =Inputs_AS!J25 -> 0.02
G20: =G18 -> 2023 | H20: =H18 -> 2024 | I20: =I18 -> 2025 | J20: =J18 -> 2026
B21: Constant price revenue growth | G21: =TRANSPOSE(Inputs_finmod!K54:K57) -> 0 | H21: 0 | I21: 0 | J21: 0
D23: ID years: | E23: 2021 | F23: 2022 | G23: 2023 | H23: 2024 | I23: 2025 | J23: 2026 | K23: 2027 | L23: 2028 | M23: 2029 | N23: 2030 | O23: 2031 | P23: 2032 | Q23: 2033 | R23: 2034 | S23: 2035 | T23: 2036 | U23: 2037 | V23: 2038 | W23: 2039 | X23: 2040 | Y23: 2041 | Z23: 2042 | AA23: 2043 | AB23: 2044 | AC23: 2045 | AD23: 2046 | AE23: 2047 | AF23: 2048 | AG23: 2049 | AH23: 2050 | AI23: 2051 | AJ23: 2052 | AK23: 2053 | AL23: 2054 | AM23: 2055 | AN23: 2056 | AO23: 2057 | AP23: 2058 | AQ23: 2059 | AR23: 2060 | AS23: 2061 | AT23: 2062 | AU23: 2063 | AV23: 2064 | AW23: 2065 | AX23: 2066 | AY23: 2067 | AZ23: 2068 | BA23: 2069 | BB23: 2070 | BC23: 2071
B24: Annual value of assets entering the RAB | F24: =Additional!F77 -> 35101.66749 | G24: =Additional!G77 -> 53794.2602 | H24: =Additional!H77 -> 58641.39746 | I24: =Additional!I77 -> 48315.70818 | J24: =Additional!J77 -> 41557.54469 | K24: =Additional!K77 -> 43513.37103 | L24: =Additional!L77 -> 45771.86572 | M24: =Additional!M77 -> 35322.42548 | N24: =Additional!N77 -> 36761.50735 | O24: =Additional!O77 -> 40914.86386 | P24: =Additional!P77 -> 39250.65587 | Q24: =Additional!Q77 -> 36944.08045 | R24: =Additional!R77 -> 34637.50503 | S24: =Additional!S77 -> 32330.92961 | T24: =Additional!T77 -> 30024.35419 | U24: =Additional!U77 -> 27717.77877 | V24: =Additional!V77 -> 25411.20335 | W24: =Additional!W77 -> 23104.62793 | X24: =Additional!X77 -> 20798.05251 | Y24: =Additional!Y77 -> 18491.4771 | Z24: =Additional!Z77 -> 16184.90168 | AA24: =Additional!AA77 -> 13878.32626 | AB24: =Additional!AB77 -> 11571.75084 | AC24: =Additional!AC77 -> 9265.175419 | AD24: =Additional!AD77 -> 6958.6 | AE24: =Additional!AE77 -> 6958.6 | AF24: =Additional!AF77 -> 6958.6 | AG24: =Additional!AG77 -> 6958.6 | AH24: =Additional!AH77 -> 6958.6 | AI24: =Additional!AI77 -> 6958.6 | AJ24: =Additional!AJ77 -> 6958.6 | AK24: =Additional!AK77 -> 6958.6 | AL24: =Additional!AL77 -> 6958.6 | AM24: =Additional!AM77 -> 6958.6 | AN24: =Additional!AN77 -> 6958.6 | AO24: =Additional!AO77 -> 6958.6 | AP24: =Additional!AP77 -> 6958.6 | AQ24: =Additional!AQ77 -> 6958.6 | AR24: =Additional!AR77 -> 6958.6 | AS24: =Additional!AS77 -> 6958.6 | AT24: =Additional!AT77 -> 6958.6 | AU24: =Additional!AU77 -> 6958.6 | AV24: =Additional!AV77 -> 6958.6 | AW24: =Additional!AW77 -> 6958.6 | AX24: =Additional!AX77 -> 6958.6 | AY24: =Additional!AY77 -> 6958.6 | AZ24: =Additional!AZ77 -> 6958.6 | BA24: =Additional!BA77 -> 6958.6 | BB24: =Additional!BB77 -> 6958.6 | BC24: =Additional!BC77 -> 6958.6
B25: Existing assets RAB, opening values | E25: =Existing!E87 -> 782988.9229 | F25: =Existing!F87 -> 788134.4901 | G25: =Existing!G87 -> 785794.8076 | H25: =Existing!H87 -> 762483.1621 | I25: =Existing!I87 -> 737219.793 | J25: =Existing!J87 -> 711862.8811 | K25: =Existing!K87 -> 685461.5641 | L25: =Existing!L87 -> 658287.8567 | M25: =Existing!M87 -> 630832.9892 | N25: =Existing!N87 -> 602912.5968 | O25: =Existing!O87 -> 573800.9071 | P25: =Existing!P87 -> 543407.8249 | Q25: =Existing!Q87 -> 515527.5133 | R25: =Existing!R87 -> 487176.8829 | S25: =Existing!S87 -> 457852.3827 | T25: =Existing!T87 -> 428014.4793 | U25: =Existing!U87 -> 396974.569 | V25: =Existing!V87 -> 364869.0886 | W25: =Existing!W87 -> 333441.57 | X25: =Existing!X87 -> 300561.8903 | Y25: =Existing!Y87 -> 266809.4666 | Z25: =Existing!Z87 -> 232823.6584 | AA25: =Existing!AA87 -> 198500.9135 | AB25: =Existing!AB87 -> 168418.1701 | AC25: =Existing!AC87 -> 143153.135 | AD25: =Existing!AD87 -> 120861.0419 | AE25: =Existing!AE87 -> 99088.51083 | AF25: =Existing!AF87 -> 77138.77442 | AG25: =Existing!AG87 -> 55889.19713 | AH25: =Existing!AH87 -> 34505.10032 | AI25: =Existing!AI87 -> 32038.65099 | AJ25: =Existing!AJ87 -> 30164.61807 | AK25: =Existing!AK87 -> 28411.04624 | AL25: =Existing!AL87 -> 26690.04527 | AM25: =Existing!AM87 -> 24998.00973 | AN25: =Existing!AN87 -> 23292.51434 | AO25: =Existing!AO87 -> 21676.74156 | AP25: =Existing!AP87 -> 19987.15637 | AQ25: =Existing!AQ87 -> 18184.02696 | AR25: =Existing!AR87 -> 16288.21343 | AS25: =Existing!AS87 -> 14319.19455 | AT25: =Existing!AT87 -> 12296.22825 | AU25: =Existing!AU87 -> 10852.30099 | AV25: =Existing!AV87 -> 9557.593456 | AW25: =Existing!AW87 -> 8324.303197 | AX25: =Existing!AX87 -> 7102.569739 | AY25: =Existing!AY87 -> 5823.076942 | AZ25: =Existing!AZ87 -> 4482.440622 | BA25: =Existing!BA87 -> 3076.756623 | BB25: =Existing!BB87 -> 1599.913444 | BC25: =Existing!BC87 -> 0
B26: Additional assets RAB, opening values | E26: 0 | F26: =Additional!F132 -> 35101.66749 | G26: =Additional!G132 -> 89376.26631 | H26: =Additional!H132 -> 147696.0036 | I26: =Additional!I132 -> 194988.9503 | J26: =Additional!J132 -> 235116.3911 | K26: =Additional!K132 -> 276798.9915 | L26: =Additional!L132 -> 320294.2483 | M26: =Additional!M132 -> 352844.6471 | N26: =Additional!N132 -> 386366.6076 | O26: =Additional!O132 -> 423532.8106 | P26: =Additional!P132 -> 458464.8369 | Q26: =Additional!Q132 -> 490492.2068 | R26: =Additional!R132 -> 519590.6007 | S26: =Additional!S132 -> 545711.2252 | T26: =Additional!T132 -> 568806.4513 | U26: =Additional!U132 -> 588830.0477 | V26: =Additional!V132 -> 605737.442 | W26: =Additional!W132 -> 619486.0154 | X26: =Additional!X132 -> 630035.433 | Y26: =Additional!Y132 -> 637348.0185 | Z26: =Additional!Z132 -> 641389.1769 | AA26: =Additional!AA132 -> 642127.8749 | AB26: =Additional!AB132 -> 639537.1877 | AC26: =Additional!AC132 -> 633594.9234 | AD26: =Additional!AD132 -> 624284.3392 | AE26: =Additional!AE132 -> 613901.5403 | AF26: =Additional!AF132 -> 602393.307 | AG26: =Additional!AG132 -> 589703.3895 | AH26: =Additional!AH132 -> 575772.2056 | AI26: =Additional!AI132 -> 560536.481 | AJ26: =Additional!AJ132 -> 543928.8154 | AK26: =Additional!AK132 -> 525877.1496 | AL26: =Additional!AL132 -> 506304.0935 | AM26: =Additional!AM132 -> 485126.0534 | AN26: =Additional!AN132 -> 462252.0449 | AO26: =Additional!AO132 -> 437581.966 | AP26: =Additional!AP132 -> 411003.7886 | AQ26: =Additional!AQ132 -> 382387.9487 | AR26: =Additional!AR132 -> 351569.5099 | AS26: =Additional!AS132 -> 320534.0372 | AT26: =Additional!AT132 -> 290339.0107 | AU26: =Additional!AU132 -> 261266.3241 | AV26: =Additional!AV132 -> 232671.6704 | AW26: =Additional!AW132 -> 204039.5197 | AX26: =Additional!AX132 -> 175313.2192 | AY26: =Additional!AY132 -> 146398.2244 | AZ26: =Additional!AZ132 -> 116300.4391 | BA26: =Additional!BA132 -> 84419.19138 | BB26: =Additional!BB132 -> 49664.78739 | BC26: =Additional!BC132 -> 0
B28: Opex and tax depreciation | F28: 2022 | G28: 2023 | H28: 2024 | I28: 2025 | J28: 2026 | K28: 2027 | L28: 2028 | M28: 2029 | N28: 2030 | O28: 2031 | P28: 2032 | Q28: 2033 | R28: 2034 | S28: 2035 | T28: 2036 | U28: 2037 | V28: 2038 | W28: 2039 | X28: 2040 | Y28: 2041 | Z28: 2042 | AA28: 2043 | AB28: 2044 | AC28: 2045 | AD28: 2046 | AE28: 2047 | AF28: 2048 | AG28: 2049 | AH28: 2050 | AI28: 2051 | AJ28: 2052 | AK28: 2053 | AL28: 2054 | AM28: 2055 | AN28: 2056 | AO28: 2057 | AP28: 2058 | AQ28: 2059 | AR28: 2060 | AS28: 2061 | AT28: 2062 | AU28: 2063 | AV28: 2064 | AW28: 2065 | AX28: 2066 | AY28: 2067 | AZ28: 2068 | BA28: 2069 | BB28: 2070
B29: Opex | G29: =OpexTax!D22 -> 53479.72467 | H29: =OpexTax!E22 -> 55287.28331 | I29: =OpexTax!F22 -> 56850.15601 | J29: =OpexTax!G22 -> 58702.29709 | K29: =OpexTax!H22 -> 58702.29709 | L29: =OpexTax!I22 -> 57746.6783 | M29: =OpexTax!J22 -> 56791.05951 | N29: =OpexTax!K22 -> 55835.44072 | O29: =OpexTax!L22 -> 54879.82193 | P29: =OpexTax!M22 -> 53924.20314 | Q29: =OpexTax!N22 -> 52968.58435 | R29: =OpexTax!O22 -> 52012.96556 | S29: =OpexTax!P22 -> 51057.34677 | T29: =OpexTax!Q22 -> 50101.72798 | U29: =OpexTax!R22 -> 49146.10919 | V29: =OpexTax!S22 -> 48190.4904 | W29: =OpexTax!T22 -> 47234.87161 | X29: =OpexTax!U22 -> 46279.25282 | Y29: =OpexTax!V22 -> 45323.63403 | Z29: =OpexTax!W22 -> 44368.01524 | AA29: =OpexTax!X22 -> 43412.39645 | AB29: =OpexTax!Y22 -> 42456.77766 | AC29: =OpexTax!Z22 -> 41501.15887 | AD29: =OpexTax!AA22 -> 40545.54008 | AE29: =OpexTax!AB22 -> 39589.92129 | AF29: =OpexTax!AC22 -> 38634.3025 | AG29: =OpexTax!AD22 -> 37678.68371 | AH29: =OpexTax!AE22 -> 36723.06492 | AI29: =OpexTax!AF22 -> 35767.44613 | AJ29: =OpexTax!AG22 -> 34811.82735 | AK29: =OpexTax!AH22 -> 33856.20856 | AL29: =OpexTax!AI22 -> 32900.58977 | AM29: =OpexTax!AJ22 -> 31944.97098 | AN29: =OpexTax!AK22 -> 30989.35219 | AO29: =OpexTax!AL22 -> 30033.7334 | AP29: =OpexTax!AM22 -> 29078.11461 | AQ29: =OpexTax!AN22 -> 28122.49582 | AR29: =OpexTax!AO22 -> 27166.87703 | AS29: =OpexTax!AP22 -> 26211.25824 | AT29: =OpexTax!AQ22 -> 25255.63945 | AU29: =OpexTax!AR22 -> 24300.02066 | AV29: =OpexTax!AS22 -> 23344.40187 | AW29: =OpexTax!AT22 -> 22388.78308 | AX29: =OpexTax!AU22 -> 21433.16429 | AY29: =OpexTax!AV22 -> 20477.5455 | AZ29: =OpexTax!AW22 -> 19521.92671 | BA29: =OpexTax!AX22 -> 18566.30792 | BB29: =OpexTax!AY22 -> 17610.68913
B30: Tax depreciation | F30: =OpexTax!C24 -> 29063.72321 | G30: =OpexTax!D24 -> 32387.24583 | H30: =OpexTax!E24 -> 35915.52615 | I30: =OpexTax!F24 -> 37581.97947 | J30: =OpexTax!G24 -> 38116.25339 | K30: =OpexTax!H24 -> 38841.56892 | L30: =OpexTax!I24 -> 39772.92752 | M30: =OpexTax!J24 -> 39174.82711 | N30: =OpexTax!K24 -> 38850.50246 | O30: =OpexTax!L24 -> 39127.9308 | P30: =OpexTax!M24 -> 39144.42375 | Q30: =OpexTax!N24 -> 38848.72088 | R30: =OpexTax!O24 -> 38282.77801 | S30: =OpexTax!P24 -> 37482.91253 | T30: =OpexTax!Q24 -> 36480.56117 | U30: =OpexTax!R24 -> 35302.93589 | V30: =OpexTax!S24 -> 33973.59165 | W30: =OpexTax!T24 -> 32512.91788 | X30: =OpexTax!U24 -> 30938.56387 | Y30: =OpexTax!V24 -> 29265.80705 | Z30: =OpexTax!W24 -> 27507.87171 | AA30: =OpexTax!X24 -> 25676.20494 | AB30: =OpexTax!Y24 -> 23780.71548 | AC30: =OpexTax!Z24 -> 21829.98041 | AD30: =OpexTax!AA24 -> 19831.42416 | AE30: =OpexTax!AB24 -> 18101.45274 | AF30: =OpexTax!AC24 -> 16603.97118 | AG30: =OpexTax!AD24 -> 15307.7353 | AH30: =OpexTax!AE24 -> 14185.69982 | AI30: =OpexTax!AF24 -> 13214.45403 | AJ30: =OpexTax!AG24 -> 12373.73341 | AK30: =OpexTax!AH24 -> 11645.99675 | AL30: =OpexTax!AI24 -> 11016.0602 | AM30: =OpexTax!AJ24 -> 10470.78046 | AN30: =OpexTax!AK24 -> 9998.780553 | AO30: =OpexTax!AL24 -> 9590.21244 | AP30: =OpexTax!AM24 -> 9236.55156 | AQ30: =OpexTax!AN24 -> 8930.418962 | AR30: =OpexTax!AO24 -> 8665.427347 | AS30: =OpexTax!AP24 -> 8436.047803 | AT30: =OpexTax!AQ24 -> 8237.494444 | AU30: =OpexTax!AR24 -> 8065.624556 | AV30: =OpexTax!AS24 -> 7916.852163 | AW30: =OpexTax!AT24 -> 7788.073207 | AX30: =OpexTax!AU24 -> 7676.600781 | AY30: =OpexTax!AV24 -> 7580.109069 | AZ30: =OpexTax!AW24 -> 7496.584823 | BA30: =OpexTax!AX24 -> 7424.285353 | BB30: =OpexTax!AY24 -> 7361.702166
A32: Calculations
E33: 2021 | F33: 2022 | G33: 2023 | H33: 2024 | I33: 2025 | J33: 2026 | K33: 2027 | L33: 2028 | M33: 2029 | N33: 2030 | O33: 2031 | P33: 2032 | Q33: 2033 | R33: 2034 | S33: 2035 | T33: 2036 | U33: 2037 | V33: 2038 | W33: 2039 | X33: 2040 | Y33: 2041 | Z33: 2042 | AA33: 2043 | AB33: 2044 | AC33: 2045 | AD33: 2046 | AE33: 2047 | AF33: 2048 | AG33: 2049 | AH33: 2050 | AI33: 2051 | AJ33: 2052 | AK33: 2053 | AL33: 2054 | AM33: 2055 | AN33: 2056 | AO33: 2057 | AP33: 2058 | AQ33: 2059 | AR33: 2060 | AS33: 2061 | AT33: 2062 | AU33: 2063 | AV33: 2064 | AW33: 2065 | AX33: 2066 | AY33: 2067 | AZ33: 2068 | BA33: 2069 | BB33: 2070 | BC33: 2071
B34: Total RAB and present value of assets
B35: Total RAB | E35: =E25+E26 -> 782988.9229 | F35: 823236.1575 | G35: 875171.0739 | H35: 910179.1658 | I35: 932208.7433 | J35: 946979.2722 | K35: 962260.5556 | L35: 978582.1049 | M35: 983677.6363 | N35: 989279.2044 | O35: 997333.7177 | P35: 1001872.662 | Q35: 1006019.72 | R35: 1006767.484 | S35: 1003563.608 | T35: 996820.9306 | U35: 985804.6166 | V35: 970606.5307 | W35: 952927.5853 | X35: 930597.3233 | Y35: 904157.4851 | Z35: 874212.8353 | AA35: 840628.7884 | AB35: 807955.3577 | AC35: 776748.0584 | AD35: 745145.3811 | AE35: 712990.0512 | AF35: 679532.0814 | AG35: 645592.5867 | AH35: 610277.3059 | AI35: 592575.132 | AJ35: 574093.4335 | AK35: =AK25+AK26 -> 554288.1958 | AL35: 532994.1388 | AM35: 510124.0631 | AN35: 485544.5593 | AO35: 459258.7076 | AP35: 430990.945 | AQ35: 400571.9757 | AR35: 367857.7233 | AS35: 334853.2317 | AT35: 302635.239 | AU35: 272118.6251 | AV35: 242229.2638 | AW35: 212363.8229 | AX35: 182415.789 | AY35: 152221.3014 | AZ35: 120782.8797 | BA35: 87495.948 | BB35: 51264.70084 | BC35: 0
B36: 2040 closing RAB | D36: =Y35-IF(D10=2040,Y26,0) -> 904157.4851
B37: 2050 closing RAB | D37: =AI35-IF(D10=2050,AI35) -> 592575.132
B38: 2060 closing RAB | D38: =AS35-IF(D10=2060,AS26,0) -> 334853.2317
B39: 2070 closing RAB | D39: =BC35 -> 0
B40: Value of existing assets as the 2020 closing value | D40: =E25 -> 782988.9229
B41: Total value of additional assets (simple sum) | D41: =SUM(F24:BC24) -> 960229.0305
B42: total value of assets to be recovered via DMR | D42: =D41+D40 -> 1743217.953
B44: Calculation of MAR profile using simplified BBAR formula
B45: Last year of MAR ramp-up | E45: =$D$11+2022 -> 2028
B46: First year of MAR ramp-down | E46: =D12 -> 2029
B47: Real RAB increase during MAR ramp-up | E47: =RealMARinc -> 0.07202364924
B48: 2023 MAR | E48: =G53 -> 144978.3786
B49: Stranding year MAR ÷ 2023 MAR | E49: =D15 -> 0.2
B50: MAR at end of ramp-up | E50: =OFFSET(F53,0,D11) -> 217993.6105
B51: =D10 & " MAR" -> 2070 MAR | E51: =E48*E49 -> 28995.67573
B52: MAR decrement | E52: =(E50-$E$51)/($D$10-E46) -> 4609.705725
B53: MAR, profiled on ability-to-pay, for given AdjFactor | F53: =Reporting!D24 -> 131623.3864 | G53: =F53*(1+RealMARinc)*(1+G21)*(1+G19) -> 144978.3786 | H53: =G53*(1+RealMARinc)*(1+H21)*(1+H19) -> 158644.8419 | I53: =H53*(1+RealMARinc)*(1+I21)*(1+I19) -> 173472.4428 | J53: =I53*(1+RealMARinc)*(1+J21)*(1+J19) -> 189685.8924 | K53: =IF(K33<$E45+1,J53*(1+RealMARinc),IF(K33<$E46+1,J53,J53-$E52)) -> 203347.7625 | L53: =IF(L33<$E45+1,K53*(1+RealMARinc),IF(L33<$E46+1,K53,K53-$E52)) -> 217993.6105 | M53: =IF(M33<$E45+1,L53*(1+RealMARinc),IF(M33<$E46+1,L53,L53-$E52)) -> 217993.6105 | N53: =IF(N33<$E45+1,M53*(1+RealMARinc),IF(N33<$E46+1,M53,M53-$E52)) -> 213383.9047 | O53: =IF(O33<$E45+1,N53*(1+RealMARinc),IF(O33<$E46+1,N53,N53-$E52)) -> 208774.199 | P53: =IF(P33>$D10,O53,O53-$E52) -> 204164.4933 | Q53: 199554.7876 | R53: 194945.0818 | S53: 190335.3761 | T53: 185725.6704 | U53: 181115.9647 | V53: 176506.2589 | W53: 171896.5532 | X53: 167286.8475 | Y53: 162677.1418 | Z53: 158067.436 | AA53: 153457.7303 | AB53: 148848.0246 | AC53: 144238.3189 | AD53: 139628.6131 | AE53: 135018.9074 | AF53: 130409.2017 | AG53: 125799.496 | AH53: 121189.7902 | AI53: 116580.0845 | AJ53: 111970.3788 | AK53: 107360.6731 | AL53: 102750.9673 | AM53: 98141.2616 | AN53: 93531.55588 | AO53: 88921.85015 | AP53: 84312.14443 | AQ53: 79702.4387 | AR53: 75092.73298 | AS53: 70483.02725 | AT53: 65873.32153 | AU53: 61263.6158 | AV53: 56653.91008 | AW53: 52044.20435 | AX53: 47434.49863 | AY53: 42824.7929 | AZ53: 38215.08718 | BA53: 33605.38145 | BB53: 28995.67573 | BC53: 28995.67573
F57: 2022 | G57: 2023 | H57: 2024 | I57: 2025 | J57: 2026 | K57: 2027 | L57: 2028 | M57: 2029 | N57: 2030 | O57: 2031 | P57: 2032 | Q57: 2033 | R57: 2034 | S57: 2035 | T57: 2036 | U57: 2037 | V57: 2038 | W57: 2039 | X57: 2040 | Y57: 2041 | Z57: 2042 | AA57: 2043 | AB57: 2044 | AC57: 2045 | AD57: 2046 | AE57: 2047 | AF57: 2048 | AG57: 2049 | AH57: 2050 | AI57: 2051 | AJ57: 2052 | AK57: 2053 | AL57: 2054 | AM57: 2055 | AN57: 2056 | AO57: 2057 | AP57: 2058 | AQ57: 2059 | AR57: 2060 | AS57: 2061 | AT57: 2062 | AU57: 2063 | AV57: 2064 | AW57: 2065 | AX57: 2066 | AY57: 2067 | AZ57: 2068 | BA57: 2069 | BB57: 2070 | BC57: 2071
B58: RAB | F58: =F35 -> 823236.1575 | G58: 875171.0739 | H58: 910179.1658 | I58: 932208.7433 | J58: 946979.2722 | K58: 962260.5556 | L58: 978582.1049 | M58: 983677.6363 | N58: 989279.2044 | O58: 997333.7177 | P58: 1001872.662 | Q58: 1006019.72 | R58: 1006767.484 | S58: 1003563.608 | T58: 996820.9306 | U58: 985804.6166 | V58: 970606.5307 | W58: 952927.5853 | X58: 930597.3233 | Y58: 904157.4851 | Z58: 874212.8353 | AA58: 840628.7884 | AB58: 807955.3577 | AC58: 776748.0584 | AD58: 745145.3811 | AE58: 712990.0512 | AF58: 679532.0814 | AG58: 645592.5867 | AH58: 610277.3059 | AI58: 592575.132 | AJ58: 574093.4335 | AK58: 554288.1958 | AL58: =AL35 -> 532994.1388 | AM58: 510124.0631 | AN58: 485544.5593 | AO58: 459258.7076 | AP58: 430990.945 | AQ58: 400571.9757 | AR58: 367857.7233 | AS58: 334853.2317 | AT58: 302635.239 | AU58: 272118.6251 | AV58: 242229.2638 | AW58: 212363.8229 | AX58: 182415.789 | AY58: 152221.3014 | AZ58: 120782.8797 | BA58: 87495.948 | BB58: 51264.70084 | BC58: 0
B60: Interest | F60: =F58*$D$8*$D$7 -> 13864.94337 | G60: =G58*$D$8*$D$7 -> 14739.63123 | H60: =H58*$D$8*$D$7 -> 15329.23751 | I60: 15700.25965 | J60: 15949.0249 | K60: 16206.39228 | L60: 16481.27981 | M60: 16567.09875 | N60: 16661.44036 | O60: 16797.09447 | P60: 16873.53937 | Q60: 16943.38413 | R60: 16955.97796 | S60: 16902.01828 | T60: 16788.45811 | U60: 16602.92135 | V60: 16346.95519 | W60: 16049.20639 | X60: 15673.12012 | Y60: 15227.82036 | Z60: 14723.49257 | AA60: 14157.87005 | AB60: 13607.58413 | AC60: 13081.9908 | AD60: 12549.73851 | AE60: 12008.17844 | AF60: 11444.67932 | AG60: 10873.07034 | AH60: 10278.29039 | AI60: 9980.150373 | AJ60: 9668.881607 | AK60: 9335.321794 | AL60: 8976.687285 | AM60: 8591.509471 | AN60: 8177.541467 | AO60: 7734.835153 | AP60: 7258.749496 | AQ60: 6746.433214 | AR60: 6195.459775 | AS60: 5639.598129 | AT60: 5096.982695 | AU60: 4583.021884 | AV60: 4079.625262 | AW60: 3576.631505 | AX60: 3072.246718 | AY60: 2563.711158 | AZ60: 2034.22526 | BA60: 1473.606756 | BB60: 863.4000915 | BC60: 0
B61: Deductibles | F61: =F60+F29+F30 -> 42928.66657 | G61: 100606.6017 | H61: 106532.047 | I61: 110132.3951 | J61: 112767.5754 | K61: 113750.2583 | L61: 114000.8856 | M61: 112532.9854 | N61: 111347.3835 | O61: 110804.8472 | P61: 109942.1663 | Q61: 108760.6894 | R61: 107251.7215 | S61: 105442.2776 | T61: 103370.7473 | U61: 101051.9664 | V61: 98511.03724 | W61: 95796.99588 | X61: 92890.93681 | Y61: 89817.26144 | Z61: 86599.37952 | AA61: 83246.47145 | AB61: 79845.07728 | AC61: 76413.13009 | AD61: 72926.70276 | AE61: 69699.55247 | AF61: 66682.953 | AG61: 63859.48936 | AH61: 61187.05513 | AI61: 58962.05054 | AJ61: 56854.44237 | AK61: 54837.5271 | AL61: =AL60+AL29+AL30 -> 52893.33725 | AM61: 51007.26091 | AN61: 49165.67421 | AO61: 47358.78099 | AP61: 45573.41566 | AQ61: 43799.34799 | AR61: 42027.76415 | AS61: 40286.90417 | AT61: 38590.11658 | AU61: 36948.6671 | AV61: 35340.87929 | AW61: 33753.48779 | AX61: 32182.01179 | AY61: 30621.36572 | AZ61: 29052.73679 | BA61: 27464.20003 | BB61: 25835.79139
B62: Depreciation Minus Revals (DMR) | F62: =IF(F33>$D$10,0,F53*(1-$D$9)-F58*$D$6-F29+F61*$D$9) -> 56818.43009 | G62: =IF(G33>$D$10,0,G53*(1-$D$9)-G58*$D$6-G29+G61*$D$9) -> 25951.67226 | H62: =IF(H33>$D$10,0,H53*(1-$D$9)-H58*$D$6-H29+H61*$D$9) -> 33518.10063 | I62: 42302.0027 | J62: 51964.82469 | K62: 61148.94853 | L62: 71729.03543 | M62: 71964.3434 | N62: 68928.99037 | O62: 65924.80191 | P62: 63044.368 | Q62: 60098.4587 | R62: 57267.18913 | S62: 54591.65075 | T62: 52057.53344 | U62: 49713.59573 | V62: 47561.29004 | W62: 45511.10111 | X62: 43689.48214 | Y62: 42070.38189 | Z62: 40623.64586 | AA62: 39360.01392 | AB62: 38027.53146 | AC62: 36597.49998 | AD62: 35176.21351 | AE62: 33861.07062 | AF62: 32683.9522 | AG62: 31590.14038 | AH62: 30622.12701 | AI62: 28710.27835 | AJ62: 26878.61782 | AK62: 25152.69014 | AL62: 23537.49692 | AM62: 22034.2398 | AN62: 20647.20208 | AO62: 19373.45384 | AP62: 18226.03541 | AQ62: 17212.35857 | AR62: 16338.70088 | AS62: 15491.26339 | AT62: 14608.42569 | AU62: 13637.80897 | AV62: 12638.54328 | AW62: 11643.53659 | AX62: 10657.99964 | AY62: 9690.454803 | AZ62: 8796.181565 | BA62: 8008.538693 | BB62: 7388.451644
B64: Sum of DMR until cessation date | D64: =SUM(F62:BB62) -> 1715070.674
B65: Difference between total asset value and total DMR | D65: =D42-D64 -> 28147.27942
B67: Sum of DMR during DPP3 | D67: =SUM(G62:J62) -> 153736.6003
H71: =D3 & " profile of MAR to " & D10 -> First Gas transmission profile of MAR to 2070

Sheet Inputs_finmod
A1: Inputs | B1: Values, not time series | C1: Early base year | D1: Standard base year | E1: Gap year | F1: 1st BBAR year | G1: 2nd BBAR year | H1: 3rd BBAR year | I1: 4th BBAR year | J1: 5th BBAR year
A2: All input data is entered into this worksheet. | B2: Exceptions to the principle that an inputs sheet should not include anything other than inputs have this grey background.
A3: Name of supplier currently chosen as the focus of this workbook | C3: =GPB_name -> First Gas transmission
A4: Supplier number (inferred from chosen name above) | C4: =HLOOKUP(GPB_name,Inputs_finmod!$B$21:$F$22,2,FALSE) -> 5
A6: Inputs that are the same for all suppliers
A7: BBAR year ending in calendar year: | C7: =D7-1 -> 2020 | D7: =E7-1 -> 2021 | E7: =F7-1 -> 2022 | F7: 2023 | G7: =F7+1 -> 2024 | H7: =G7+1 -> 2025 | I7: =H7+1 -> 2026 | J7: =I7+1 -> 2027
A8: Forecast changes in CPI used for revaluations, June year-ends | D8: =[1]Output!G8 -> 0.03342884432 | E8: =[1]Output!H8 -> 0.052 | F8: =[1]Output!I8 -> 0.025 | G8: =[1]Output!J8 -> 0.021 | H8: =[1]Output!K8 -> 0.02 | I8: =[1]Output!L8 -> 0.02 | J8: =[1]Output!M8 -> 0.02
A9: Forecast changes in CPI used for revaluations, September year-ends | D9: =[1]Output!G9 -> 0.04933586338 | E9: =[1]Output!H9 -> 0.04 | F9: =[1]Output!I9 -> 0.023 | G9: =[1]Output!J9 -> 0.02 | H9: =[1]Output!K9 -> 0.02 | I9: =[1]Output!L9 -> 0.02 | J9: =[1]Output!M9 -> 0.02
A10: Forecast changes in the CPI element of the price path | D10: =IF($C$3="First Gas Transmission",[1]Output!G11,[1]Output!G10) -> 0.02811532047 | E10: =IF($C$3="First Gas Transmission",[1]Output!H11,[1]Output!H10) -> 0.05138887601 | F10: =IF($C$3="First Gas Transmission",[1]Output!I11,[1]Output!I10) -> 0.02746210288 | G10: =IF($C$3="First Gas Transmission",[1]Output!J11,[1]Output!J10) -> 0.02074756236 | H10: =IF($C$3="First Gas Transmission",[1]Output!K11,[1]Output!K10) -> 0.02 | I10: =IF($C$3="First Gas Transmission",[1]Output!L11,[1]Output!L10) -> 0.02 | J10: =IF($C$3="First Gas Transmission",[1]Output!M11,[1]Output!M10) -> 0.02
A11: Corporate tax rate | C11: 0.28 | D11: 0.28 | E11: 0.28 | F11: 0.28 | G11: 0.28 | H11: 0.28 | I11: 0.28 | J11: 0.28
A12: Days from mid-year to year-end | B12: 182
A13: Days from revenue date to year-end | B13: 148
A14: Day prior to start of the regulatory period | B14: 2022-09-30
A15: Vanilla WACC (67th percentile) | B15: =Inputs_AS!D5 -> 0.0607
A16: Cost of debt | B16: =Inputs_AS!D6 -> 0.0401
A17: Leverage | B17: 0.42
A18: Remaining asset life for additional assets before adjustment | B18: 45
A19: Industry-wide X factor | B19: 0
A20: Inputs that are specific to individual suppliers | I20: Selected supplier #: | J20: =C4 -> 5 | K20: Value for selected supplier
A21: Name | B21: GasNet | C21: Powerco | D21: Vector | E21: First Gas distribution | F21: First Gas transmission | K21: =INDEX(B21:F21,,$J$20) -> First Gas transmission
A22: Supplier number | B22: 1 | C22: 2 | D22: 3 | E22: 4 | F22: 5
A23: Early base year adopted? | B23: TRUE | C23: TRUE | D23: TRUE | E23: TRUE | F23: TRUE | K23: =INDEX(B23:F23,,$J$20) -> TRUE
A24: Last day in the standard base year | B24: 2021-06-30 | C24: 2021-09-30 | D24: 2021-06-30 | E24: 2021-09-30 | F24: 2021-09-30 | K24: 2021-09-30
A25: Tax payable (payable) or deferred tax (deferred) | B25: deferred | C25: deferred | D25: deferred | E25: deferred | F25: payable | K25: payable
A26: Total revenue cap (TRC) or weighted avg price cap (WAPC) | B26: WAPC | C26: WAPC | D26: WAPC | E26: WAPC | F26: TRC_FQ | K26: TRC_FQ
A27: Adjustment factor (for accelerated depreciation) existing | B27: 1 | C27: 1 | D27: 1 | E27: 0.3669989727 | F27: 0.3669989727 | K27: =AdjFactor -> 0.812895939
A28: Adjustment factor (for accelerated depreciation) additional | B28: =B27 -> 1 | C28: =C27 -> 1 | D28: 1 | E28: 0.3669989727 | F28: 0.3669989727 | K28: =AdjFactor -> 0.812895939
A29: Initial conditions
A30: Opening RAB | B30: =[3]Output!B5 -> 23971 | C30: =[3]Output!C5 -> 383406.5398 | D30: =[3]Output!D5 -> 424027.9549 | E30: =[3]Output!E5 -> 164080.7203 | F30: =[3]Output!F5 -> 834976.3319 | K30: =INDEX(B30:F30,,$J$20) -> 834976.3319
A31: Total depreciation | B31: =[3]Output!B6 -> 815 | C31: =[3]Output!C6 -> 18774.39254 | D31: =[3]Output!D6 -> 12159 | E31: =[3]Output!E6 -> 6609.153494 | F31: =[3]Output!F6 -> 34953.91567 | K31: =INDEX(B31:F31,,$J$20) -> 34953.91567
A32: Closing RAB | B32: =[3]Output!B7 -> 24056 | C32: =[3]Output!C7 -> 387505.4907 | D32: =[3]Output!D7 -> 434256 | E32: =[3]Output!E7 -> 174405.3018 | F32: =[3]Output!F7 -> 849688.0929 | K32: 849688.0929
A33: Opening RAB excluding revaluations | B33: =[3]Output!B8 -> 21321 | C33: =[3]Output!C8 -> 345486.4593 | D33: =[3]Output!D8 -> 382656 | E33: =[3]Output!E8 -> 150920.5823 | F33: =[3]Output!F8 -> 0 | K33: 0
A34: Adjusted depreciation | B34: =[3]Output!B9 -> 726 | C34: =[3]Output!C9 -> 16056.71112 | D34: =[3]Output!D9 -> 10953 | E34: =[3]Output!E9 -> 5480.49213 | F34: =[3]Output!F9 -> 0 | K34: 0
A35: Tax depreciation | B35: =[3]Output!B10 -> 686 | C35: =[3]Output!C10 -> 15807.35387 | D35: =[3]Output!D10 -> 17821 | E35: =[3]Output!E10 -> 8341.556093 | F35: =[3]Output!F10 -> 26642.70332 | K35: 26642.70332
A36: Opening regulatory tax asset value | B36: =[3]Output!B11 -> 6503 | C36: =[3]Output!C11 -> 175593.7434 | D36: =[3]Output!D11 -> 179437 | E36: =[3]Output!E11 -> 65279.32682 | F36: =[3]Output!F11 -> 198250 | K36: 198250
A37: Amortisation of initial differences in asset values | B37: =[3]Output!B12 -> 474.8952951 | C37: =[3]Output!C12 -> 2292.498839 | D37: =[3]Output!D12 -> 2453.181818 | E37: =[3]Output!E12 -> 1682.628571 | F37: =[3]Output!F12 -> 0 | K37: 0
A38: Term credit spread differential allowance | B38: =[3]Output!B13 -> 0 | C38: =[3]Output!C13 -> 396.2463004 | D38: =[3]Output!D13 -> 494.6875116 | E38: =[3]Output!E13 -> 0 | F38: =[3]Output!F13 -> 0 | K38: 0
A39: Opening deferred tax balance | B39: =[3]Output!B14 -> -1282 | C39: =[3]Output!C14 -> -29314.04205 | D39: =[3]Output!D14 -> -31191 | E39: =[3]Output!E14 -> -7675.050712 | F39: =[3]Output!F14 -> 0 | K39: 0
A40: Capital expenditure ~ value of commissioned assets | B40: =[3]Output!B15 -> 559 | C40: =[3]Output!C15 -> 15767.35737 | D40: =[3]Output!D15 -> 16315 | E40: =[3]Output!E15 -> 14566.09597 | F40: =[3]Output!F15 -> 37682.30302 | K40: 37682.30302
A41: Alternative X factor (leave blank if no alternative) | B41: -0.08 | C41: -0.07 | D41: -0.05 | E41: -0.1 | F41: -0.1 | K41: =X_factor -> -0.08172267235
A42: Operating expenditure
A43: Operating expenditure in year ending 2021 | B43: ='[2]Reflation outputs'!B5 -> 1719.208286 | C43: ='[2]Reflation outputs'!C5 -> 18232 | D43: ='[2]Reflation outputs'!D5 -> 13123 | E43: ='[2]Reflation outputs'!E5 -> 8816.241216 | F43: ='[2]Reflation outputs'!F5 -> 44322 | K43: =INDEX(B43:F43,,$J$20) -> 44322
A44: Operating expenditure in year ending 2022 | B44: ='[2]Reflation outputs'!B6 -> 1807.380112 | C44: ='[2]Reflation outputs'!C6 -> 19349.86826 | D44: ='[2]Reflation outputs'!D6 -> 14591.09311 | E44: ='[2]Reflation outputs'!E6 -> 9686.917905 | F44: ='[2]Reflation outputs'!F6 -> 51210.56269 | K44: 51210.56269
A45: Operating expenditure in year ending 2023 | B45: ='[2]Reflation outputs'!B7 -> 2209.333103 | C45: ='[2]Reflation outputs'!C7 -> 19916.2428 | D45: ='[2]Reflation outputs'!D7 -> 15500.86062 | E45: ='[2]Reflation outputs'!E7 -> 10267.63456 | F45: ='[2]Reflation outputs'!F7 -> 53479.72467 | K45: 53479.72467
A46: Operating expenditure in year ending 2024 | B46: ='[2]Reflation outputs'!B8 -> 2280.613522 | C46: ='[2]Reflation outputs'!C8 -> 20406.7001 | D46: ='[2]Reflation outputs'!D8 -> 15918.01815 | E46: ='[2]Reflation outputs'!E8 -> 10795.70454 | F46: ='[2]Reflation outputs'!F8 -> 55287.28331 | K46: 55287.28331
A47: Operating expenditure in year ending 2025 | B47: ='[2]Reflation outputs'!B9 -> 2352.463016 | C47: ='[2]Reflation outputs'!C9 -> 21078.93564 | D47: ='[2]Reflation outputs'!D9 -> 16073.65778 | E47: ='[2]Reflation outputs'!E9 -> 11313.96133 | F47: ='[2]Reflation outputs'!F9 -> 56850.15601 | K47: 56850.15601
A48: Operating expenditure in year ending 2026 | B48: ='[2]Reflation outputs'!B10 -> 2413.65217 | C48: ='[2]Reflation outputs'!C10 -> 21672.41728 | D48: ='[2]Reflation outputs'!D10 -> 16541.41261 | E48: ='[2]Reflation outputs'!E10 -> 11765.78988 | F48: ='[2]Reflation outputs'!F10 -> 58702.29709 | K48: 58702.29709
A49: Operating expenditure in year ending 2027 | B49: ='[2]Reflation outputs'!B11 -> 2468.141809 | C49: ='[2]Reflation outputs'!C11 -> 22146.76068 | D49: ='[2]Reflation outputs'!D11 -> 17002.65605 | E49: ='[2]Reflation outputs'!E11 -> 12232.45553 | F49: ='[2]Reflation outputs'!F11 -> 59873.53087 | K49: 59873.53087
A50: Operating expenditure in year ending 2028 | B50: ='[2]Reflation outputs'!B12 -> 2521.774692 | C50: ='[2]Reflation outputs'!C12 -> 22619.2945 | D50: ='[2]Reflation outputs'!D12 -> 17076.81917 | E50: ='[2]Reflation outputs'!E12 -> 12545.76183 | F50: ='[2]Reflation outputs'!F12 -> 61649.45573 | K50: 61649.45573
A51: Constant price revenue growth
K52: =INDEX(B52:F52,,$J$20) -> 0
A53: Constant price revenue growth in year ending 2022 | B53: =[4]Output!B3 -> 0.001109051256 | C53: =[4]Output!C3 -> 0.01534142993 | D53: =[4]Output!D3 -> 0.01378072768 | E53: =[4]Output!E3 -> -0.006621538359 | K53: =INDEX(B53:F53,,$J$20) -> 0
A54: Constant price revenue growth in year ending 2023 | B54: =[4]Output!B4 -> 0.0007452748755 | C54: =[4]Output!C4 -> 0.01493318336 | D54: =[4]Output!D4 -> 0.01570962614 | E54: =[4]Output!E4 -> -0.006892505495 | K54: =INDEX(B54:F54,,$J$20) -> 0
A55: Constant price revenue growth in year ending 2024 | B55: =[4]Output!B5 -> 0.0005188765247 | C55: =[4]Output!C5 -> 0.01427319055 | D55: =[4]Output!D5 -> 0.01050317518 | E55: =[4]Output!E5 -> -0.007156717435 | K55: 0
A56: Constant price revenue growth in year ending 2025 | B56: =[4]Output!B6 -> 0.0003057413528 | C56: =[4]Output!C6 -> 0.01361786665 | D56: =[4]Output!D6 -> 0.01032279208 | E56: =[4]Output!E6 -> -0.007413905448 | K56: 0
A57: Constant price revenue growth in year ending 2026 | B57: =[4]Output!B7 -> 0.0001053972105 | C57: =[4]Output!C7 -> 0.01296971087 | D57: =[4]Output!D7 -> 0.01014377539 | E57: =[4]Output!E7 -> -0.007663666789 | K57: 0
A58: Constant price revenue growth in year ending 2027 | B58: =[4]Output!B8 -> -8.265491881e-05 | C58: =[4]Output!C8 -> 0.01233841492 | D58: =[4]Output!D8 -> 0.01000883144 | E58: =[4]Output!E8 -> -0.007905796045 | K58: 0
K59: 0
A60: Value of commissioned assets | B60: Data for first row of value of commissioned assets linked differently from rest of panel
K61: =INDEX(B61:F61,,$J$20) -> 0
A62: Value of commissioned assets, yr ending 2020 | B62: =B40 -> 559 | C62: =C40 -> 15767.35737 | D62: =D40 -> 16315 | E62: =E40 -> 14566.09597 | F62: =F40 -> 37682.30302 | K62: 37682.30302
A63: Value of commissioned assets, yr ending 2021 | B63: =Additional!D22 -> 800.4730001 | C63: =Additional!E22 -> 18279.35708 | D63: =Additional!F22 -> 15525.51039 | E63: =Additional!G22 -> 13007.79958 | F63: =Additional!H22 -> 35101.66749 | K63: 35101.66749
A64: Value of commissioned assets, yr ending 2022 | B64: =Additional!D23 -> 810.66374 | C64: =Additional!E23 -> 18254.94431 | D64: =Additional!F23 -> 7050.395188 | E64: =Additional!G23 -> 21831.00225 | F64: =Additional!H23 -> 53794.2602 | K64: 53794.2602
A65: Value of commissioned assets, yr ending 2023 | B65: =Additional!D24 -> 1030.175855 | C65: =Additional!E24 -> 18972.8606 | D65: =Additional!F24 -> 6627.664979 | E65: =Additional!G24 -> 14495.48827 | F65: =Additional!H24 -> 58641.39746 | K65: 58641.39746
A66: Value of commissioned assets, yr ending 2024 | B66: =Additional!D25 -> 967.9419475 | C66: =Additional!E25 -> 19067.5832 | D66: =Additional!F25 -> 5966.442061 | E66: =Additional!G25 -> 14557.51815 | F66: =Additional!H25 -> 48315.70818 | K66: 48315.70818
A67: Value of commissioned assets, yr ending 2025 | B67: =Additional!D26 -> 998.0541497 | C67: =Additional!E26 -> 20001.43564 | D67: =Additional!F26 -> 6635.746939 | E67: =Additional!G26 -> 14658.45746 | F67: =Additional!H26 -> 41557.54469 | K67: 41557.54469
A68: Value of commissioned assets, yr ending 2026 | B68: =Additional!D27 -> 1025.555467 | C68: =Additional!E27 -> 21763.78953 | D68: =Additional!F27 -> 7614.341354 | E68: =Additional!G27 -> 14603.92335 | F68: =Additional!H27 -> 43513.37103 | K68: 43513.37103
A69: Value of commissioned assets, yr ending 2027 | B69: =Additional!D28 -> 1052.534608 | C69: =Additional!E28 -> 21883.41421 | D69: =Additional!F28 -> 8534.788375 | E69: =Additional!G28 -> 14996.4779 | F69: =Additional!H28 -> 45771.86572 | K69: 45771.86572
A70: Value of commissioned assets, yr ending 2028 | B70: =Additional!D29 -> 518.1002986 | C70: =Additional!E29 -> 8605.497647 | D70: =Additional!F29 -> 6017.269233 | E70: =Additional!G29 -> 5350.67998 | F70: =Additional!H29 -> 35322.42548 | K70: 35322.42548
A71: Name | B71: GasNet | C71: Powerco | D71: Vector | E71: First Gas distribution | F71: First Gas transmission
A72: Value of disposed assets
A73: Value of disposed assets, yr ending 2020 | B73: =[3]Output!B17 -> 0 | C73: =[3]Output!C17 -> 563.5092671 | D73: =[3]Output!D17 -> 48 | E73: =[3]Output!E17 -> 0 | F73: =[3]Output!F17 -> 53.00725 | K73: 53.00725
A74: Value of disposed assets, yr ending 2021 | B74: =[3]Output!B18 -> 10.97464374 | C74: =[3]Output!C18 -> 394.2996835 | D74: =[3]Output!D18 -> 57.7843877 | E74: =[3]Output!E18 -> 7.118726439 | F74: =[3]Output!F18 -> 35.28124578 | K74: 35.28124578
A75: Value of disposed assets, yr ending 2022 | B75: =[3]Output!B19 -> 11.54532521 | C75: =[3]Output!C19 -> 410.0716708 | D75: =[3]Output!D19 -> 60.78917586 | E75: =[3]Output!E19 -> 7.403475497 | F75: =[3]Output!F19 -> 36.69249561 | K75: 36.69249561
A76: Value of disposed assets, yr ending 2023 | B76: =[3]Output!B20 -> 11.83395834 | C76: =[3]Output!C20 -> 419.5033192 | D76: =[3]Output!D20 -> 62.30890526 | E76: =[3]Output!E20 -> 7.573755433 | F76: =[3]Output!F20 -> 37.53642301 | K76: 37.53642301
A77: Value of disposed assets, yr ending 2024 | B77: =[3]Output!B21 -> 12.08247147 | C77: =[3]Output!C21 -> 427.8933856 | D77: =[3]Output!D21 -> 63.61739227 | E77: =[3]Output!E21 -> 7.725230542 | F77: =[3]Output!F21 -> 38.28715147 | K77: 38.28715147
A78: Value of disposed assets, yr ending 2025 | B78: =[3]Output!B22 -> 12.32412089 | C78: =[3]Output!C22 -> 436.4512533 | D78: =[3]Output!D22 -> 64.88974011 | E78: =[3]Output!E22 -> 7.879735153 | F78: =[3]Output!F22 -> 39.0528945 | K78: 39.0528945
A79: Value of disposed assets, yr ending 2026 | B79: =[3]Output!B23 -> 12.57060331 | C79: =[3]Output!C23 -> 445.1802784 | D79: =[3]Output!D23 -> 66.18753492 | E79: =[3]Output!E23 -> 8.037329856 | F79: =[3]Output!F23 -> 39.83395239 | K79: 39.83395239
A80: Value of disposed assets, yr ending 2027 | B80: =[3]Output!B24 -> 12.82201538 | C80: =[3]Output!C24 -> 454.083884 | D80: =[3]Output!D24 -> 67.51128562 | E80: =[3]Output!E24 -> 8.198076453 | F80: =[3]Output!F24 -> 40.63063143 | K80: 40.63063143
A81: Value of disposed assets, yr ending 2028 | B81: =[3]Output!B25 -> 13.07845569 | C81: =[3]Output!C25 -> 463.1655617 | D81: =[3]Output!D25 -> 68.86151133 | E81: =[3]Output!E25 -> 8.362037982 | F81: =[3]Output!F25 -> 41.44324406 | K81: 41.44324406
A82: Other regulated income
A83: Other regulated income, yr ending 2023 | B83: =[3]Output!B28 -> 39.79668655 | C83: =[3]Output!C28 -> 333.1946789 | D83: =[3]Output!D28 -> -60.61309043 | E83: =[3]Output!E28 -> 191.1458842 | K83: 0
A84: Other regulated income, yr ending 2024 | B84: =[3]Output!B29 -> 40.63241696 | C84: =[3]Output!C29 -> 339.8585725 | D84: =[3]Output!D29 -> -61.88596533 | E84: =[3]Output!E29 -> 194.9688019 | K84: 0
A85: Other regulated income, yr ending 2025 | B85: =[3]Output!B30 -> 41.4450653 | C85: =[3]Output!C30 -> 346.655744 | D85: =[3]Output!D30 -> -63.12368464 | E85: =[3]Output!E30 -> 198.8681779 | K85: 0
A86: Other regulated income, yr ending 2026 | B86: =[3]Output!B31 -> 42.27396661 | C86: =[3]Output!C31 -> 353.5888588 | D86: =[3]Output!D31 -> -64.38615833 | E86: =[3]Output!E31 -> 202.8455415 | K86: 0
A87: Other regulated income, yr ending 2027 | B87: =[3]Output!B32 -> 43.11944594 | C87: =[3]Output!C32 -> 360.660636 | D87: =[3]Output!D32 -> -65.6738815 | E87: =[3]Output!E32 -> 206.9024523 | K87: 0
A88: Other regulated income, yr ending 2028 | B88: =[3]Output!B33 -> 43.98183486 | C88: =[3]Output!C33 -> 367.8738487 | D88: =[3]Output!D33 -> -66.98735913 | E88: =[3]Output!E33 -> 211.0405013 | K88: 0

Sheet GPB data
A1: GPB data | B1: Values, not time series | C1: Early base year | D1: Standard base year | E1: Gap year | F1: 1st BBAR year | G1: 2nd BBAR year | H1: 3rd BBAR year | I1: 4th BBAR year | J1: 5th BBAR year
A2: Data from the Inputs sheet that relates to the selected supplier. The supplier's name is user-selected in cell C3 on the Inputs sheet. | C2: =TEXT(EOMONTH($B$17+1,-25)+1,"dd.mm.yy") & " to " & TEXT(EOMONTH($B$17,-12),"dd.mm.yy") -> 01.10.19 to 30.09.20 | D2: =TEXT(EOMONTH($B$17+1,-13)+1,"dd.mm.yy") & " to " & TEXT(EOMONTH($B$17,0),"dd.mm.yy") -> 01.10.20 to 30.09.21 | E2: =TEXT(EOMONTH($B$17+1,-1)+1,"dd.mm.yy") & " to " & TEXT(EOMONTH($B$17,12),"dd.mm.yy") -> 01.10.21 to 30.09.22 | F2: =TEXT(EOMONTH($B$17+1,11)+1,"dd.mm.yy") & " to " & TEXT(EOMONTH($B$17,24),"dd.mm.yy") -> 01.10.22 to 30.09.23 | G2: =TEXT(EOMONTH($B$17+1,23)+1,"dd.mm.yy") & " to " & TEXT(EOMONTH($B$17,36),"dd.mm.yy") -> 01.10.23 to 30.09.24 | H2: =TEXT(EOMONTH($B$17+1,35)+1,"dd.mm.yy") & " to " & TEXT(EOMONTH($B$17,36),"dd.mm.yy") -> 01.10.24 to 30.09.24 | I2: =TEXT(EOMONTH($B$17+1,47)+1,"dd.mm.yy") & " to " & TEXT(EOMONTH($B$17,36),"dd.mm.yy") -> 01.10.25 to 30.09.24 | J2: =TEXT(EOMONTH($B$17+1,59)+1,"dd.mm.yy") & " to " & TEXT(EOMONTH($B$17,36),"dd.mm.yy") -> 01.10.26 to 30.09.24
A3: Supplier | J3: =GPB_name -> First Gas transmission
A4: Supplier number | C4: =Inputs_finmod!C4 -> 5
A5: General data
A6: Non business-specific single inputs
A7: =Inputs_finmod!A15 -> Vanilla WACC (67th percentile) | B7: =Inputs_finmod!B15 -> 0.0607
A8: =Inputs_finmod!A16 -> Cost of debt | B8: =Inputs_finmod!B16 -> 0.0401
A9: =Inputs_finmod!A17 -> Leverage | B9: =Inputs_finmod!B17 -> 0.42
A10: =Inputs_finmod!A18 -> Remaining asset life for additional assets before adjustment | B10: =Inputs_finmod!B18 -> 45 | C10: years
A11: =Inputs_finmod!A19 -> Industry-wide X factor | B11: =Inputs_finmod!B19 -> 0
A12: =Inputs_finmod!A12 -> Days from mid-year to year-end | B12: =Inputs_finmod!B12 -> 182 | C12: days
A13: =Inputs_finmod!A13 -> Days from revenue date to year-end | B13: =Inputs_finmod!B13 -> 148 | C13: days
A14: =Inputs_finmod!A14 -> Day prior to start of the regulatory period | B14: =Inputs_finmod!B14 -> 2022-09-30
A15: General time-series data
A16: Early base year adopted? | B16: =Inputs_finmod!K23 -> TRUE
A17: Last day in the standard base year | B17: =Inputs_finmod!K24 -> 2021-09-30
A18: BBAR year ending in calendar year: | C18: =Inputs_finmod!C7 -> 2020 | D18: =Inputs_finmod!D7 -> 2021 | E18: =Inputs_finmod!E7 -> 2022 | F18: =Inputs_finmod!F7 -> 2023 | G18: =Inputs_finmod!G7 -> 2024 | H18: =Inputs_finmod!H7 -> 2025 | I18: =Inputs_finmod!I7 -> 2026 | J18: =Inputs_finmod!J7 -> 2027
A19: =Inputs_finmod!A8 -> Forecast changes in CPI used for revaluations, June year-ends | D19: =Inputs_finmod!D8 -> 0.03342884432 | E19: =Inputs_finmod!E8 -> 0.052 | F19: =Inputs_finmod!F8 -> 0.025 | G19: =Inputs_finmod!G8 -> 0.021 | H19: =Inputs_finmod!H8 -> 0.02 | I19: =Inputs_finmod!I8 -> 0.02 | J19: =Inputs_finmod!J8 -> 0.02
A20: =Inputs_finmod!A9 -> Forecast changes in CPI used for revaluations, September year-ends | D20: =Inputs_finmod!D9 -> 0.04933586338 | E20: =Inputs_finmod!E9 -> 0.04 | F20: =Inputs_finmod!F9 -> 0.023 | G20: =Inputs_finmod!G9 -> 0.02 | H20: =Inputs_finmod!H9 -> 0.02 | I20: =Inputs_finmod!I9 -> 0.02 | J20: =Inputs_finmod!J9 -> 0.02
A21: =Inputs_finmod!A10 -> Forecast changes in the CPI element of the price path | G21: =Inputs_finmod!G10 -> 0.02074756236 | H21: =Inputs_finmod!H10 -> 0.02 | I21: =Inputs_finmod!I10 -> 0.02 | J21: =Inputs_finmod!J10 -> 0.02
A22: =Inputs_finmod!A11 -> Corporate tax rate | C22: =Inputs_finmod!C11 -> 0.28 | D22: =Inputs_finmod!D11 -> 0.28 | E22: =Inputs_finmod!E11 -> 0.28 | F22: =Inputs_finmod!F11 -> 0.28 | G22: =Inputs_finmod!G11 -> 0.28 | H22: =Inputs_finmod!H11 -> 0.28 | I22: =Inputs_finmod!I11 -> 0.28 | J22: =Inputs_finmod!J11 -> 0.28
A23: Business-specific data
A24: BBAR year ending in calendar year: | D24: =D$18 -> 2021 | E24: =E$18 -> 2022 | F24: 2023 | G24: 2024 | H24: 2025 | I24: 2026 | J24: 2027
A25: ="Forecast changes in CPI used for revaluations, " & TEXT(B17, "mmm") & " year-ends" -> Forecast changes in CPI used for revaluations, Sep year-ends | D25: =IF(MONTH($B$17)=6,D19,D20) -> 0.04933586338 | E25: =IF(MONTH($B$17)=6,E19,E20) -> 0.04 | F25: 0.023 | G25: 0.02 | H25: 0.02 | I25: 0.02 | J25: 0.02
A26: Year-end timing, tax approach and form of control
A27: =Inputs_finmod!A25 -> Tax payable (payable) or deferred tax (deferred) | B27: =Inputs_finmod!K25 -> payable
A28: =Inputs_finmod!A26 -> Total revenue cap (TRC) or weighted avg price cap (WAPC) | B28: =Inputs_finmod!K26 -> TRC_FQ
A29: Adjustment factor (for accelerated depreciation) existing | B29: =Inputs_finmod!K27 -> 0.812895939
A30: Adjustment factor (for accelerated depreciation) additional | B30: =Inputs_finmod!K28 -> 0.812895939
C31: =C1 -> Early base year | D31: =D1 -> Standard base year
A32: =Inputs_finmod!A30 -> Opening RAB | B32: =Inputs_finmod!K30 -> 834976.3319 | C32: =IF(EarlyBaseYear,B32,"~") -> 834976.3319 | D32: =IF(EarlyBaseYear,"~",B32) -> ~
A33: =Inputs_finmod!A31 -> Total depreciation | B33: =Inputs_finmod!K31 -> 34953.91567 | C33: 34953.91567 | D33: ~
A34: =Inputs_finmod!A32 -> Closing RAB | B34: =Inputs_finmod!K32 -> 849688.0929 | C34: 849688.0929 | D34: ~
A35: =Inputs_finmod!A33 -> Opening RAB excluding revaluations | B35: =Inputs_finmod!K33 -> 0 | C35: 0 | D35: ~
A36: =Inputs_finmod!A34 -> Adjusted depreciation | B36: =Inputs_finmod!K34 -> 0 | C36: 0 | D36: ~
A37: =Inputs_finmod!A35 -> Tax depreciation | B37: =Inputs_finmod!K35 -> 26642.70332 | C37: 26642.70332 | D37: ~
A38: =Inputs_finmod!A36 -> Opening regulatory tax asset value | B38: =Inputs_finmod!K36 -> 198250 | C38: 198250 | D38: ~
A39: =Inputs_finmod!A38 -> Term credit spread differential allowance | B39: =IF(Inputs_finmod!K38>0,Inputs_finmod!K38,0) -> 0 | C39: 0 | D39: =IF(EarlyBaseYear,"~",B39) -> ~
A40: =Inputs_finmod!A39 -> Opening deferred tax balance | B40: =Inputs_finmod!K39 -> 0 | C40: 0 | D40: =IF(EarlyBaseYear,"~",B40) -> ~
A41: =Inputs_finmod!A37 -> Amortisation of initial differences in asset values | B41: =Inputs_finmod!K37 -> 0
A42: Alternative X factor (insert "blank" if no alternative) | B42: =Inputs_finmod!K41 -> -0.08172267235
A43: Operating expenditure
A44: =Inputs_finmod!A43 -> Operating expenditure in year ending 2021 | B44: =Inputs_finmod!K43 -> 44322
A45: =Inputs_finmod!A44 -> Operating expenditure in year ending 2022 | B45: =Inputs_finmod!K44 -> 51210.56269
A46: =Inputs_finmod!A45 -> Operating expenditure in year ending 2023 | B46: =Inputs_finmod!K45 -> 53479.72467 | C46: 1st BBAR year
A47: =Inputs_finmod!A46 -> Operating expenditure in year ending 2024 | B47: =Inputs_finmod!K46 -> 55287.28331
A48: =Inputs_finmod!A47 -> Operating expenditure in year ending 2025 | B48: =Inputs_finmod!K47 -> 56850.15601
A49: =Inputs_finmod!A48 -> Operating expenditure in year ending 2026 | B49: =Inputs_finmod!K48 -> 58702.29709
A50: =Inputs_finmod!A49 -> Operating expenditure in year ending 2027 | B50: =Inputs_finmod!K49 -> 59873.53087
A51: =Inputs_finmod!A50 -> Operating expenditure in year ending 2028 | B51: =Inputs_finmod!K50 -> 61649.45573
A52: Operating expenditure in each year | D52: =TRANSPOSE(B44:B50) -> 44322 | E52: 51210.56269 | F52: 53479.72467 | G52: 55287.28331 | H52: 56850.15601 | I52: 58702.29709 | J52: 59873.53087
A53: Constant price revenue growth
A55: =Inputs_finmod!A52 -> 0 | B55: =Inputs_finmod!K52 -> 0
A56: =Inputs_finmod!A53 -> Constant price revenue growth in year ending 2022 | B56: =Inputs_finmod!K53 -> 0
A57: =Inputs_finmod!A54 -> Constant price revenue growth in year ending 2023 | B57: =Inputs_finmod!K54 -> 0 | C57: 1st pricing year
A58: =Inputs_finmod!A55 -> Constant price revenue growth in year ending 2024 | B58: =Inputs_finmod!K55 -> 0
A59: =Inputs_finmod!A56 -> Constant price revenue growth in year ending 2025 | B59: =Inputs_finmod!K56 -> 0
A60: =Inputs_finmod!A57 -> Constant price revenue growth in year ending 2026 | B60: =Inputs_finmod!K57 -> 0
A61: =Inputs_finmod!A58 -> Constant price revenue growth in year ending 2027 | B61: =Inputs_finmod!K58 -> 0
A62: =Inputs_finmod!A59 -> 0 | B62: =Inputs_finmod!K59 -> 0
A63: Constant price revenue growth in each year | E63: =TRANSPOSE(B56:B61) -> 0 | F63: 0 | G63: 0 | H63: 0 | I63: 0 | J63: 0
A64: Value of commissioned assets
A66: =Inputs_finmod!A62 -> Value of commissioned assets, yr ending 2020 | B66: =Inputs_finmod!K62 -> 37682.30302
A67: =Inputs_finmod!A63 -> Value of commissioned assets, yr ending 2021 | B67: =Inputs_finmod!K63 -> 35101.66749
A68: =Inputs_finmod!A64 -> Value of commissioned assets, yr ending 2022 | B68: =Inputs_finmod!K64 -> 53794.2602
A69: =Inputs_finmod!A65 -> Value of commissioned assets, yr ending 2023 | B69: =Inputs_finmod!K65 -> 58641.39746 | C69: 1st BBAR year
A70: =Inputs_finmod!A66 -> Value of commissioned assets, yr ending 2024 | B70: =Inputs_finmod!K66 -> 48315.70818
A71: =Inputs_finmod!A67 -> Value of commissioned assets, yr ending 2025 | B71: =Inputs_finmod!K67 -> 41557.54469
A72: =Inputs_finmod!A68 -> Value of commissioned assets, yr ending 2026 | B72: =Inputs_finmod!K68 -> 43513.37103
A73: =Inputs_finmod!A69 -> Value of commissioned assets, yr ending 2027 | B73: =Inputs_finmod!K69 -> 45771.86572
A74: =Inputs_finmod!A70 -> Value of commissioned assets, yr ending 2028 | B74: =Inputs_finmod!K70 -> 35322.42548
A75: Value of commissioned assets in each year | C75: =TRANSPOSE(B66:B73) -> 37682.30302 | D75: 35101.66749 | E75: 53794.2602 | F75: 58641.39746 | G75: 48315.70818 | H75: 41557.54469 | I75: 43513.37103 | J75: 45771.86572
A76: Disposed assets
A77: =Inputs_finmod!A73 -> Value of disposed assets, yr ending 2020 | B77: =Inputs_finmod!K73 -> 53.00725
A78: =Inputs_finmod!A74 -> Value of disposed assets, yr ending 2021 | B78: =Inputs_finmod!K74 -> 35.28124578
A79: =Inputs_finmod!A75 -> Value of disposed assets, yr ending 2022 | B79: =Inputs_finmod!K75 -> 36.69249561
A80: =Inputs_finmod!A76 -> Value of disposed assets, yr ending 2023 | B80: =Inputs_finmod!K76 -> 37.53642301 | C80: 1st BBAR year
A81: =Inputs_finmod!A77 -> Value of disposed assets, yr ending 2024 | B81: =Inputs_finmod!K77 -> 38.28715147
A82: =Inputs_finmod!A78 -> Value of disposed assets, yr ending 2025 | B82: =Inputs_finmod!K78 -> 39.0528945
A83: =Inputs_finmod!A79 -> Value of disposed assets, yr ending 2026 | B83: =Inputs_finmod!K79 -> 39.83395239
A84: =Inputs_finmod!A80 -> Value of disposed assets, yr ending 2027 | B84: =Inputs_finmod!K80 -> 40.63063143
A85: =Inputs_finmod!A81 -> Value of disposed assets, yr ending 2028 | B85: =Inputs_finmod!K81 -> 41.44324406
A86: Value of disposed assets in each year | C86: =TRANSPOSE(B77:B84) -> 53.00725 | D86: 35.28124578 | E86: 36.69249561 | F86: 37.53642301 | G86: 38.28715147 | H86: 39.0528945 | I86: 39.83395239 | J86: 40.63063143
A87: Other regulated income
A88: =Inputs_finmod!A83 -> Other regulated income, yr ending 2023 | B88: =Inputs_finmod!K83 -> 0 | C88: 1st BBAR year
A89: =Inputs_finmod!A84 -> Other regulated income, yr ending 2024 | B89: =Inputs_finmod!K84 -> 0
A90: =Inputs_finmod!A85 -> Other regulated income, yr ending 2025 | B90: =Inputs_finmod!K85 -> 0
A91: =Inputs_finmod!A86 -> Other regulated income, yr ending 2026 | B91: =Inputs_finmod!K86 -> 0
A92: =Inputs_finmod!A87 -> Other regulated income, yr ending 2027 | B92: =Inputs_finmod!K87 -> 0
A93: =Inputs_finmod!A88 -> Other regulated income, yr ending 2028 | B93: =Inputs_finmod!K88 -> 0
A94: Other regulated income in each year | F94: =TRANSPOSE(B88:B93) -> 0 | G94: 0 | H94: 0 | I94: 0 | J94: 0

Sheet Timing
A1: Timing | F1: 1st BBAR year | G1: 2nd BBAR year | H1: 3rd BBAR year | I1: 4th BBAR year | J1: 5th BBAR year
A2: Calculations related to timing | J2: =GPB_name -> First Gas transmission
A3: Inputs
A4: Days from mid-year to year-end | C4: ='GPB data'!B12 -> 182
A5: Days from revenue date to year-end | C5: ='GPB data'!B13 -> 148
A6: Vanilla WACC (67th percentile) | C6: =WACC -> 0.0607
A7: ='GPB data'!A17 -> Last day in the standard base year | C7: ='GPB data'!B17 -> 2021-09-30
A8: ='GPB data'!A14 -> Day prior to start of the regulatory period | C8: ='GPB data'!B14 -> 2022-09-30
A9: Calculations
A10: Year-end of 1st BBAR year | C10: =EOMONTH(C7,24) -> 2023-09-30
A11: TFrev for MAR calculations | C11: =(1+$C$6)^(C5/365) -> 1.024182288 | D11: Intra-year timing factor: discount from revenue date to end of year values
A12: Number of days between mid-period and revenue date | C12: =C4-C5 -> 34
F13: 1st BBAR year | G13: 2nd BBAR year | H13: 3rd BBAR year | I13: 4th BBAR year | J13: 5th BBAR year
A14: BBAR year ending in calendar year: | F14: ='GPB data'!F18 -> 2023 | G14: ='GPB data'!G18 -> 2024 | H14: ='GPB data'!H18 -> 2025 | I14: ='GPB data'!I18 -> 2026 | J14: ='GPB data'!J18 -> 2027
A15: Date of the end of the BBAR year | F15: =EOMONTH(C$7,24) -> 2023-09-30 | G15: =EOMONTH(F15,12) -> 2024-09-30 | H15: 2025-09-30 | I15: 2026-09-30 | J15: 2027-09-30
A16: Date of the start of the BBAR year | F16: =EOMONTH(C$7,12) -> 2022-09-30 | G16: 2023-09-30 | H16: 2024-09-30 | I16: 2025-09-30 | J16: 2026-09-30
A17: Number of days in the BBAR year | F17: =F15-F16 -> 365 | G17: 366 | H17: 365 | I17: 365 | J17: 365
A18: Date of the end of the BBAR period | F18: =EOMONTH(C7,24) -> 2023-09-30 | G18: =EOMONTH(F18,12) -> 2024-09-30 | H18: =EOMONTH(G18,12) -> 2025-09-30 | I18: =EOMONTH(H18,12) -> 2026-09-30 | J18: =EOMONTH(C8,48) -> 2026-09-30
A19: Date of the start of the BBAR period | F19: =C8 -> 2022-09-30 | G19: =F18 -> 2023-09-30 | H19: =G18 -> 2024-09-30 | I19: =H18 -> 2025-09-30 | J19: =I18 -> 2026-09-30
A20: Number of days in the BBAR period | F20: =F18-F19 -> 365 | G20: 366 | H20: 365 | I20: 365 | J20: 0
A21: Number of days in the latter half of the BBAR period | F21: =ROUNDDOWN(F20/2,0) -> 182 | G21: 183 | H21: 182 | I21: 182 | J21: 0
A22: Mid period date | F22: =F18-F21 -> 2023-04-01 | G22: 2024-03-31 | H22: 2025-04-01 | I22: 2026-04-01 | J22: 2026-09-30
A23: Tax date | F23: =F18-F21 -> 2023-04-01 | G23: 2024-03-31 | H23: 2025-04-01 | I23: 2026-04-01 | J23: 2026-09-30
A24: Number days between tax date and period-end | F24: =F18-F23 -> 182 | G24: 183 | H24: 182 | I24: 182 | J24: 0
A25: Number days between revenue date and period-end | F25: =F21-$C$12 -> 148 | G25: 149 | H25: 148 | I25: 148 | J25: -34
A26: Outputs
A27: TFrev for MAR calculations | C27: =$C$11 -> 1.024182288
A28: Number of days in the BBAR period | F28: =F20 -> 365 | G28: 366 | H28: 365 | I28: 365 | J28: 0
A29: Proportion of building blocks year that is in PV period | F29: =F28/F17 -> 1 | G29: 1 | H29: 1 | I29: 1 | J29: 0
A30: TFmid | F30: =(1+$C$6)^(F21/F17) -> 1.029819773 | G30: 1.029902908 | H30: 1.029819773 | I30: 1.029819773 | J30: 1
A31: TFtax | F31: =(1+$C$6)^(F24/F17) -> 1.029819773 | G31: 1.029902908 | H31: 1.029819773 | I31: 1.029819773 | J31: 1
A32: TFrev | F32: =(1+$C$6)^(F25/F17) -> 1.024182288 | G32: 1.02428033 | H32: 1.024182288 | I32: 1.024182288 | J32: 0.9945257556

Sheet RAB
A1: Regulatory asset base | B1: Values, not time series | C1: Early base year | D1: Standard base year | E1: Gap year | F1: 1st BBAR year | G1: 2nd BBAR year | H1: 3rd BBAR year | I1: 4th BBAR year | J1: 5th BBAR year
A2: Calculations relating to RAB values for full years
A3: Inputs | J3: =GPB_name -> First Gas transmission
A4: BBAR year ending in calendar year: | C4: ='GPB data'!C18 -> 2020 | D4: ='GPB data'!D18 -> 2021 | E4: ='GPB data'!E18 -> 2022 | F4: ='GPB data'!F18 -> 2023 | G4: ='GPB data'!G18 -> 2024 | H4: ='GPB data'!H18 -> 2025 | I4: ='GPB data'!I18 -> 2026 | J4: ='GPB data'!J18 -> 2027
A5: Opening RAB | C5: ='GPB data'!C32 -> 834976.3319 | D5: ='GPB data'!D32 -> ~
A6: Total depreciation | C6: ='GPB data'!C33 -> 34953.91567 | D6: ='GPB data'!D33 -> ~
A7: Closing RAB | C7: ='GPB data'!C34 -> 849688.0929 | D7: ='GPB data'!D34 -> ~
A8: Value of disposed assets | D8: ='GPB data'!D86 -> 35.28124578 | E8: ='GPB data'!E86 -> 36.69249561 | F8: ='GPB data'!F86 -> 37.53642301 | G8: ='GPB data'!G86 -> 38.28715147 | H8: ='GPB data'!H86 -> 39.0528945 | I8: ='GPB data'!I86 -> 39.83395239 | J8: ='GPB data'!J86 -> 40.63063143
A9: Value of commissioned assets | D9: ='GPB data'!D75 -> 35101.66749 | E9: ='GPB data'!E75 -> 53794.2602 | F9: ='GPB data'!F75 -> 58641.39746 | G9: ='GPB data'!G75 -> 48315.70818 | H9: ='GPB data'!H75 -> 41557.54469 | I9: ='GPB data'!I75 -> 43513.37103 | J9: ='GPB data'!J75 -> 45771.86572
A10: Remaining life for additional assets before adjustment factor | B10: ='GPB data'!B10 -> 45
A11: Forecast changes in CPI used for revaluations | D11: ='GPB data'!D25 -> 0.04933586338 | E11: ='GPB data'!E25 -> 0.04 | F11: ='GPB data'!F25 -> 0.023 | G11: ='GPB data'!G25 -> 0.02 | H11: ='GPB data'!H25 -> 0.02 | I11: ='GPB data'!I25 -> 0.02 | J11: ='GPB data'!J25 -> 0.02
A12: Adjustment factor (for accelerated depreciation) existing | B12: ='GPB data'!B29 -> 0.812895939
A13: Adjustment factor (for accelerated depreciation) additional | B13: ='GPB data'!B30 -> 0.812895939
A14: Remaining life for additional assets after adjustment | B14: =B10*B13 -> 36.58031725 | F14: 2023 | G14: 2024 | H14: 2025 | I14: 2026 | J14: 2027
A15: Proportion of building blocks year that is in PV period | F15: =Timing!F29 -> 1 | J15: =Timing!J29 -> 0
A17: Calculations
A18: Roll forward of existing assets | C18: Early base year | D18: Base year | E18: Gap year | F18: First year of reg period
A19: BBAR year ending in calendar year: | C19: =C$4 -> 2020 | D19: 2021 | E19: 2022 | F19: 2023 | G19: 2024 | H19: 2025 | I19: 2026 | J19: 2027
A20: Remaining asset life for existing assets | C20: =IF(EarlyBaseYear,100%*C5/C6,"~") -> 23.88791974 | D20: =IF(EarlyBaseYear,C20-1,100%*D5/D6) -> 22.88791974 | E20: =D20-1 -> 21.88791974 | F20: =IF(EarlyBaseYear,B12*C5/C6-3,B12*D5/D6-2) -> 16.41839294 | G20: =F20-1 -> 15.41839294 | H20: =G20-1 -> 14.41839294 | I20: =H20-1 -> 13.41839294 | J20: =I20-1 -> 12.41839294
A21: Opening RAB value for existing assets | C21: =IF(EarlyBaseYear,C5,"~") -> 834976.3319 | D21: =IF(EarlyBaseYear,C25,D5) -> 849688.0929 | E21: =D25 -> 854405.3794 | F21: 849473.7815 | G21: 817214.5856 | H21: 780500.9014 | I21: 741923.1665 | J21: 701414.6538
A22: Value of disposed assets | D22: =D8 -> 35.28124578 | E22: 36.69249561 | F22: 37.53642301 | G22: 38.28715147 | H22: 39.0528945 | I22: 39.83395239 | J22: 40.63063143
A23: Revaluation for existing assets | D23: =(D21*0.999-D22)*D11 -> 41876.43494 | E23: 34140.57126 | F23: 19517.49574 | G23: 16327.18168 | H23: 15593.62695 | I23: 14822.82819 | J23: 14013.45217
A24: Depreciation for existing assets | D24: =D21/D20 -> 37123.86721 | E24: 39035.47663 | F24: 51739.15525 | G24: 53002.57871 | H24: 54132.30895 | I24: 55291.50694 | J24: 56481.91815
A25: Closing RAB value for existing assets | C25: =IF(EarlyBaseYear,C7,"~") -> 849688.0929 | D25: =IF(EarlyBaseYear,D21-D22+D23-D24,D7) -> 854405.3794 | E25: =E21-E22+E23-E24 -> 849473.7815 | F25: 817214.5856 | G25: 780500.9014 | H25: 741923.1665 | I25: 701414.6538 | J25: 658905.5572
A26: Individual roll forward of additional assets
A27: BBAR year ending in calendar year: | D27: =D$4 -> 2021 | E27: 2022 | F27: 2023 | G27: 2024 | H27: 2025 | I27: 2026 | J27: 2027
A28: Value of commissioned assets | D28: =D$9 -> 35101.66749 | E28: =E$9 -> 53794.2602 | F28: 58641.39746 | G28: 48315.70818 | H28: 41557.54469 | I28: 43513.37103 | J28: 45771.86572
A29: =" Assets commissioned in yr ending " & C30 -> Assets commissioned in yr ending 2021
A30: Year asset is added during modelling period | C30: =D27 -> 2021
A31: Opening RAB | D31: 0 | E31: =D36 -> 35101.66749 | F31: 35707.96902 | G31: 35507.69734 | H31: 35172.10858 | I31: 34808.25853 | J31: 34415.11763
A32: Years of remaining life | D32: =B10 -> 45 | E32: =D32-1 -> 44 | F32: =(E32-1)*$B$13 -> 34.95452538 | G32: 33.95452538 | H32: 32.95452538 | I32: 31.95452538 | J32: 30.95452538
A33: Revaluation of assets | D33: =D31*D$11 -> 0 | E33: 1404.0667 | F33: 821.2832876 | G33: 710.1539469 | H33: 703.4421717 | I33: 696.1651707 | J33: 688.3023526
A34: Depreciation of assets | D34: =D31/D32 -> 0 | E34: 797.7651703 | F34: 1021.554967 | G34: 1045.742709 | H34: 1067.292221 | I34: 1089.306072 | J34: 1111.796004
A35: ="RAB of asset commissioned in year ending " & C30 -> RAB of asset commissioned in year ending 2021 | D35: =IF(EarlyBaseYear,D$28,0) -> 35101.66749 | E35: =IF($C30=E$27,E$28,0) -> 0 | F35: 0 | G35: 0 | H35: 0 | I35: 0 | J35: 0
A36: Closing RAB | D36: =D31+D33-D34+D35 -> 35101.66749 | E36: 35707.96902 | F36: 35507.69734 | G36: 35172.10858 | H36: 34808.25853 | I36: 34415.11763 | J36: 33991.62398
A37: =" Assets commissioned in yr ending " & C38 -> Assets commissioned in yr ending 2022
A38: Year asset is added during modelling period | C38: =E27 -> 2022
A39: Opening RAB | D39: 0 | E39: =D44 -> 0 | F39: 53794.2602 | G39: 53527.52655 | H39: 53058.48845 | I39: 52548.36594 | J39: 51995.65608
A40: Years of remaining life | D40: =$B$10+$C38-D$27 -> 46 | E40: =D40-1 -> 45 | F40: =(E40-1)*$B$13 -> 35.76742132 | G40: 34.76742132 | H40: 33.76742132 | I40: 32.76742132 | J40: 31.76742132
A41: Revaluation of assets | D41: =D39*D$11 -> 0 | E41: 0 | F41: 1237.267985 | G41: 1070.550531 | H41: 1061.169769 | I41: 1050.967319 | J41: 1039.913122
A42: Depreciation of assets | D42: =D39/D40 -> 0 | E42: 0 | F42: 1504.001637 | G42: 1539.58863 | H42: 1571.292281 | I42: 1603.677184 | J42: 1636.760364
A43: ="RAB of asset commissioned in year ending " & C38 -> RAB of asset commissioned in year ending 2022 | D43: =IF($C38=D$27,D$28,0) -> 0 | E43: 53794.2602 | F43: 0 | G43: 0 | H43: 0 | I43: 0 | J43: 0
A44: Closing RAB | D44: =D39+D41-D42+D43 -> 0 | E44: 53794.2602 | F44: 53527.52655 | G44: 53058.48845 | H44: 52548.36594 | I44: 51995.65608 | J44: 51398.80883
A45: =" Assets commissioned in yr ending " & C46 -> Assets commissioned in yr ending 2023
A46: Year asset is added during modelling period | C46: =F27 -> 2023
A47: Opening RAB | D47: 0 | E47: =D52 -> 0 | F47: 0 | G47: 58641.39746 | H47: 58166.08391 | I47: 57647.34804 | J47: 57083.59448
A48: Years of remaining life | D48: =$B$10+$C46-D$27 -> 47 | E48: =D48-1 -> 46 | F48: =(E48-1)*$B$13 -> 36.58031725 | G48: 35.58031725 | H48: 34.58031725 | I48: 33.58031725 | J48: 32.58031725
A49: Revaluation of assets | D49: =D47*D$11 -> 0 | E49: 0 | F49: 0 | G49: 1172.827949 | H49: 1163.321678 | I49: 1152.946961 | J49: 1141.67189
A50: Depreciation of assets | D50: =D47/D48 -> 0 | E50: 0 | F50: 0 | G50: 1648.1415 | H50: 1682.057556 | I50: 1716.700518 | J50: 1752.088355
A51: ="RAB of asset commissioned in year ending " & C46 -> RAB of asset commissioned in year ending 2023 | D51: =IF($C46=D$27,D$28,0) -> 0 | E51: 0 | F51: 58641.39746 | G51: 0 | H51: 0 | I51: 0 | J51: 0
A52: Closing RAB | D52: =D47+D49-D50+D51 -> 0 | E52: 0 | F52: 58641.39746 | G52: 58166.08391 | H52: 57647.34804 | I52: 57083.59448 | J52: 56473.17801
A53: =" Assets commissioned in yr ending " & C54 -> Assets commissioned in yr ending 2024
A54: Year asset is added during modelling period | C54: =G27 -> 2024
A55: Opening RAB | D55: 0 | E55: =D60 -> 0 | F55: 0 | G55: 0 | H55: 48315.70818 | I55: 47916.91012 | J55: 47482.04002
A56: Years of remaining life | D56: =$B$10+$C54-D$27 -> 48 | E56: =D56-1 -> 47 | F56: =(E56-1)*$B$13 -> 37.39321319 | G56: 36.39321319 | H56: 35.39321319 | I56: 34.39321319 | J56: 33.39321319
A57: Revaluation of assets | D57: =D55*D$11 -> 0 | E57: 0 | F57: 0 | G57: 0 | H57: 966.3141637 | I57: 958.3382023 | J57: 949.6408004
A58: Depreciation of assets | D58: =D55/D56 -> 0 | E58: 0 | F58: 0 | G58: 0 | H58: 1365.11223 | I58: 1393.208301 | J58: 1421.906893
A59: ="RAB of asset commissioned in year ending " & C54 -> RAB of asset commissioned in year ending 2024 | D59: =IF($C54=D$27,D$28,0) -> 0 | E59: 0 | F59: 0 | G59: 48315.70818 | H59: 0 | I59: 0 | J59: 0
A60: Closing RAB | D60: =D55+D57-D58+D59 -> 0 | E60: 0 | F60: 0 | G60: 48315.70818 | H60: 47916.91012 | I60: 47482.04002 | J60: 47009.77393
A61: =" Assets commissioned in yr ending " & C62 -> Assets commissioned in yr ending 2025
A62: Year asset is added during modelling period | C62: =H27 -> 2025
A63: Opening RAB | D63: 0 | E63: =D68 -> 0 | F63: 0 | G63: 0 | H63: 0 | I63: 41557.54469 | J63: 41208.28838
A64: Years of remaining life | D64: =$B$10+$C62-D$27 -> 49 | E64: =D64-1 -> 48 | F64: =(E64-1)*$B$13 -> 38.20610913 | G64: 37.20610913 | H64: 36.20610913 | I64: 35.20610913 | J64: 34.20610913
A65: Revaluation of assets | D65: =D63*D$11 -> 0 | E65: 0 | F65: 0 | G65: 0 | H65: 0 | I65: 831.1508937 | J65: 824.1657676
A66: Depreciation of assets | D66: =D63/D64 -> 0 | E66: 0 | F66: 0 | G66: 0 | H66: 0 | I66: 1180.407199 | J66: 1204.705517
A67: ="RAB of asset commissioned in year ending " & C62 -> RAB of asset commissioned in year ending 2025 | D67: =IF($C62=D$27,D$28,0) -> 0 | E67: 0 | F67: 0 | G67: 0 | H67: 41557.54469 | I67: 0 | J67: 0
A68: Closing RAB | D68: =D63+D65-D66+D67 -> 0 | E68: 0 | F68: 0 | G68: 0 | H68: 41557.54469 | I68: 41208.28838 | J68: 40827.74863
A69: =" Assets commissioned in yr ending " & C70 -> Assets commissioned in yr ending 2026
A70: Year asset is added during modelling period | C70: =I27 -> 2026
A71: Opening RAB | D71: 0 | E71: =D76 -> 0 | F71: 0 | G71: 0 | H71: 0 | I71: 0 | J71: 43513.37103
A72: Years of remaining life | D72: =$B$10+$C70-D$27 -> 50 | E72: =D72-1 -> 49 | F72: =(E72-1)*$B$13 -> 39.01900507 | G72: 38.01900507 | H72: 37.01900507 | I72: 36.01900507 | J72: 35.01900507
A73: Revaluation of assets | D73: =D71*D$11 -> 0 | E73: 0 | F73: 0 | G73: 0 | H73: 0 | I73: 0 | J73: 870.2674205
A74: Depreciation of assets | D74: =D71/D72 -> 0 | E74: 0 | F74: 0 | G74: 0 | H74: 0 | I74: 0 | J74: 1242.564457
A75: ="RAB of asset commissioned in year ending " & C70 -> RAB of asset commissioned in year ending 2026 | D75: =IF($C70=D$27,D$28,0) -> 0 | E75: 0 | F75: 0 | G75: 0 | H75: 0 | I75: 43513.37103 | J75: 0
A76: Closing RAB | D76: =D71+D73-D74+D75 -> 0 | E76: 0 | F76: 0 | G76: 0 | H76: 0 | I76: 43513.37103 | J76: 43141.07399
A77: =" Assets commissioned in yr ending " & C78 -> Assets commissioned in yr ending 2027
A78: Year asset is added during modelling period | C78: =J27 -> 2027
A79: Opening RAB | D79: 0 | E79: =D84 -> 0 | F79: 0 | G79: 0 | H79: 0 | I79: 0 | J79: 0
A80: Years of remaining life | D80: =$B$10+$C78-D$27 -> 51 | E80: =D80-1 -> 50 | F80: =(E80-1)*$B$13 -> 39.83190101 | G80: 38.83190101 | H80: 37.83190101 | I80: 36.83190101 | J80: 35.83190101
A81: Revaluation of assets | D81: =D79*D$11 -> 0 | E81: 0 | F81: 0 | G81: 0 | H81: 0 | I81: 0 | J81: 0
A82: Depreciation of assets | D82: =D79/D80 -> 0 | E82: 0 | F82: 0 | G82: 0 | H82: 0 | I82: 0 | J82: 0
A83: ="RAB of asset commissioned in year ending " & C78 -> RAB of asset commissioned in year ending 2027 | D83: =IF($C78=D$27,D$28,0) -> 0 | E83: 0 | F83: 0 | G83: 0 | H83: 0 | I83: 0 | J83: 45771.86572
A84: Closing RAB | D84: =D79+D81-D82+D83 -> 0 | E84: 0 | F84: 0 | G84: 0 | H84: 0 | I84: 0 | J84: 45771.86572
A85: Aggregate roll forward of additional assets
A86: Opening RAB of commissioned additional assets | D86: =D31+D39+D47+D55+D63+D71+D79 -> 0 | E86: =D89 -> 35101.66749 | F86: 89502.22923 | G86: 147676.6214 | H86: 194712.3891 | I86: 234478.4273 | J86: 275698.0676
A87: Revaluation of commissioned additional assets | D87: =D33+D41+D49+D57+D65+D73+D81 -> 0 | E87: 1404.0667 | F87: 2058.551272 | G87: 2953.532427 | H87: 3894.247783 | I87: 4689.568546 | J87: 5513.961352
A88: Depreciation of commissioned additional assets | D88: 0 | E88: 797.7651703 | F88: 2525.556604 | G88: 4233.472839 | H88: 5685.754287 | I88: 6983.299275 | J88: 8369.821591
A89: Closing RAB of commissioned additional assets | D89: =D36+D44+D52+D60+D68+D76+D84 -> 35101.66749 | E89: 89502.22923 | F89: 147676.6214 | G89: 194712.3891 | H89: 234478.4273 | I89: 275698.0676 | J89: 318614.0731
A90: Combined roll forward of existing and additional assets
A91: BBAR year ending in calendar year: | D91: =D$4 -> 2021 | E91: 2022 | F91: 2023 | G91: 2024 | H91: 2025 | I91: 2026 | J91: 2027
A92: Aggregate opening RAB value | D92: =D21+D86 -> 849688.0929 | E92: 889507.0469 | F92: 938976.0108 | G92: 964891.207 | H92: 975213.2905 | I92: 976401.5938 | J92: 977112.7214
A93: Total revaluation | D93: =D23+D87 -> 41876.43494 | E93: 35544.63796 | F93: 21576.04701 | G93: 19280.7141 | H93: 19487.87473 | I93: 19512.39673 | J93: 19527.41352
A94: Total depreciation | D94: 37123.86721 | E94: 39833.2418 | F94: 54264.71186 | G94: 57236.05155 | H94: 59818.06324 | I94: 62274.80621 | J94: 64851.73974
A95: Aggregate closing RAB value | E95: =E25+E89 -> 938976.0108 | F95: 964891.207 | G95: 975213.2905 | H95: 976401.5938 | I95: 977112.7214 | J95: 977519.6303
A96: Check that closing value is as expected. Should = 0 | E96: =E92+E28+E93-E94-E22-E95 -> 0 | F96: 0 | G96: 0 | H96: 0 | I96: 0 | J96: 0
A97: Sum of depreciation less sum of revals, 2024 - 2027 | B97: =(F94-F93)*F15+(G94-G93)+(H94-H93)+(I94-I93)+(J94-J93)*J15 -> 153736.6003
A98: Outputs
A99: BBAR year ending in calendar year: | C99: =C$4 -> 2020 | D99: 2021 | E99: 2022 | F99: 2023 | G99: 2024 | H99: 2025 | I99: 2026 | J99: 2027
A100: Value of commissioned assets
A101: Remaining asset life for existing assets | D101: =D20 -> 22.88791974 | E101: 21.88791974 | F101: 16.41839294 | G101: 15.41839294 | H101: 14.41839294 | I101: 13.41839294 | J101: 12.41839294
A102: Total depreciation | D102: =D94 -> 37123.86721 | E102: 39833.2418 | F102: 54264.71186 | G102: 57236.05155 | H102: 59818.06324 | I102: 62274.80621 | J102: 64851.73974
A103: Aggregate opening RAB value | C103: =C21 -> 834976.3319 | D103: =D92 -> 849688.0929 | E103: 889507.0469 | F103: 938976.0108 | G103: 964891.207 | H103: 975213.2905 | I103: 976401.5938 | J103: 977112.7214
A104: Total revaluation | F104: =F93 -> 21576.04701 | G104: 19280.7141 | H104: 19487.87473 | I104: 19512.39673 | J104: 19527.41352
A105: Closing RAB value, 6th BBAR year | B105: =J95 -> 977519.6303

Sheet Tax
A1: Tax calculations | B1: Values, not time series | C1: Early base year | D1: Standard base year | E1: Gap year | F1: 1st BBAR year | G1: 2nd BBAR year | H1: 3rd BBAR year | I1: 4th BBAR year | J1: 5th BBAR year
A2: Calculation of adjusted depreciation, tax depreciation, deferred tax, notional deductible interest and regulatory tax adjustments.
A3: Inputs | J3: =GPB_name -> First Gas transmission
A4: BBAR year ending in calendar year: | C4: ='GPB data'!C18 -> 2020 | D4: ='GPB data'!D18 -> 2021 | E4: ='GPB data'!E18 -> 2022 | F4: ='GPB data'!F18 -> 2023 | G4: ='GPB data'!G18 -> 2024 | H4: ='GPB data'!H18 -> 2025 | I4: ='GPB data'!I18 -> 2026 | J4: ='GPB data'!J18 -> 2027
A5: Corporate tax rate | C5: ='GPB data'!C22 -> 0.28 | D5: ='GPB data'!D22 -> 0.28 | E5: ='GPB data'!E22 -> 0.28 | F5: ='GPB data'!F22 -> 0.28 | G5: ='GPB data'!G22 -> 0.28 | H5: ='GPB data'!H22 -> 0.28 | I5: ='GPB data'!I22 -> 0.28 | J5: ='GPB data'!J22 -> 0.28
A6: Value of commissioned assets | C6: ='GPB data'!C75 -> 37682.30302 | D6: ='GPB data'!D75 -> 35101.66749 | E6: ='GPB data'!E75 -> 53794.2602 | F6: ='GPB data'!F75 -> 58641.39746 | G6: ='GPB data'!G75 -> 48315.70818 | H6: ='GPB data'!H75 -> 41557.54469 | I6: ='GPB data'!I75 -> 43513.37103 | J6: ='GPB data'!J75 -> 45771.86572
A7: Remaining life for additional assets | D7: =RAB!D20 -> 22.88791974 | E7: =RAB!E20 -> 21.88791974 | F7: =RAB!F20 -> 16.41839294 | G7: =RAB!G20 -> 15.41839294 | H7: =RAB!H20 -> 14.41839294 | I7: =RAB!I20 -> 13.41839294 | J7: =RAB!J20 -> 12.41839294
A8: Amortisation of initial differences in asset values | B8: ='GPB data'!B41 -> 0
A9: Value of disposed assets | D9: ='GPB data'!D86 -> 35.28124578 | E9: ='GPB data'!E86 -> 36.69249561 | F9: ='GPB data'!F86 -> 37.53642301 | G9: ='GPB data'!G86 -> 38.28715147 | H9: ='GPB data'!H86 -> 39.0528945 | I9: ='GPB data'!I86 -> 39.83395239 | J9: ='GPB data'!J86 -> 40.63063143
A10: Opening RAB excluding revaluations | C10: ='GPB data'!C35 -> 0 | D10: ='GPB data'!D35 -> ~
A11: Adjusted depreciation | C11: ='GPB data'!C36 -> 0 | D11: ='GPB data'!D36 -> ~
A12: Tax depreciation | C12: ='GPB data'!C37 -> 26642.70332 | D12: ='GPB data'!D37 -> ~
A13: Opening regulatory tax asset value | C13: ='GPB data'!C38 -> 198250 | D13: ='GPB data'!D38 -> ~
A14: Opening deferred tax balance | C14: ='GPB data'!C40 -> 0 | D14: ='GPB data'!D40 -> ~
A15: Cost of debt | D15: ='GPB data'!B8 -> 0.0401
A16: Leverage | D16: ='GPB data'!B9 -> 0.42
A17: Remaining asset life for existing assets | D17: =RAB!D101 -> 22.88791974 | E17: =RAB!E101 -> 21.88791974 | F17: =RAB!F101 -> 16.41839294 | G17: =RAB!G101 -> 15.41839294 | H17: =RAB!H101 -> 14.41839294 | I17: =RAB!I101 -> 13.41839294 | J17: =RAB!J101 -> 12.41839294
A18: Total depreciation | F18: =RAB!F102 -> 54264.71186 | G18: =RAB!G102 -> 57236.05155 | H18: =RAB!H102 -> 59818.06324 | I18: =RAB!I102 -> 62274.80621 | J18: =RAB!J102 -> 64851.73974
A19: Term credit spread differential allowance, full BBAR years | F19: =BBAR!F92 -> 0 | G19: =BBAR!G92 -> 0 | H19: =BBAR!H92 -> 0 | I19: =BBAR!I92 -> 0 | J19: =BBAR!J92 -> 0
A20: Opening investment value | F20: =BBAR!F94 -> 938976.0108 | G20: =BBAR!G94 -> 964891.207 | H20: =BBAR!H94 -> 975213.2905 | I20: =BBAR!I94 -> 976401.5938 | J20: =BBAR!J94 -> 977112.7214
A21: Calculations
A22: Adjusted RAB & depreciation of assets commissioned
A23: BBAR year ending in calendar year: | D23: =D$4 -> 2021 | E23: =E$4 -> 2022 | F23: 2023 | G23: 2024 | H23: =H$4 -> 2025 | I23: 2026 | J23: 2027
A24: Value of commissioned assets | D24: =D6 -> 35101.66749 | E24: 53794.2602 | F24: 58641.39746 | G24: 48315.70818 | H24: 41557.54469 | I24: 43513.37103 | J24: 45771.86572
A25: ="Assets commissioned in year ending " & C25 -> Assets commissioned in year ending 2021 | C25: =D23 -> 2021
A26: Opening RAB, adjusted depreciation | D26: 0 | E26: =D30 -> 35101.66749 | F26: 34303.90232 | G26: 33322.51574 | H26: =G30 -> 32341.12915 | I26: 31359.74257 | J26: 30378.35598
A27: Years of remaining life | D27: =RAB!D32 -> 45 | E27: =RAB!E32 -> 44 | F27: =RAB!F32 -> 34.95452538 | G27: =RAB!G32 -> 33.95452538 | H27: =RAB!H32 -> 32.95452538 | I27: =RAB!I32 -> 31.95452538 | J27: =RAB!J32 -> 30.95452538
A28: Adjusted depreciation | D28: =D26/D27 -> 0 | E28: 797.7651703 | F28: 981.386586 | G28: 981.386586 | H28: =H26/H27 -> 981.386586 | I28: 981.386586 | J28: 981.386586
A29: ="RAB of asset commissioned in year ending " & C25 -> RAB of asset commissioned in year ending 2021 | D29: =IF(EarlyBaseYear,D$24,0) -> 35101.66749 | E29: =IF($C25=E$23,E$24,0) -> 0 | F29: =IF($C25=F$23,F$24,0) -> 0 | G29: 0 | H29: =IF($C25=H$23,H$24,0) -> 0 | I29: 0 | J29: 0
A30: Closing RAB, adjusted depreciation | D30: =D26-D28+D29 -> 35101.66749 | E30: =E26-E28+E29 -> 34303.90232 | F30: =F26-F28+F29 -> 33322.51574 | G30: 32341.12915 | H30: =H26-H28+H29 -> 31359.74257 | I30: 30378.35598 | J30: 29396.96939
A31: ="Assets commissioned in year ending " & C31 -> Assets commissioned in year ending 2022 | C31: =E23 -> 2022
A32: Opening RAB, adjusted depreciation | E32: 0 | F32: =E36 -> 53794.2602 | G32: =F36 -> 52290.25857 | H32: =G36 -> 50786.25693 | I32: 49282.25529 | J32: 47778.25366
A33: Years of remaining life | D33: =RAB!D40 -> 46 | E33: =RAB!E40 -> 45 | F33: =RAB!F40 -> 35.76742132 | G33: =RAB!G40 -> 34.76742132 | H33: =RAB!H40 -> 33.76742132 | I33: =RAB!I40 -> 32.76742132 | J33: =RAB!J40 -> 31.76742132
A34: Adjusted depreciation | D34: =D32/D33 -> 0 | E34: 0 | F34: 1504.001637 | G34: 1504.001637 | H34: =H32/H33 -> 1504.001637 | I34: 1504.001637 | J34: 1504.001637
A35: ="RAB of asset commissioned in year ending " & C31 -> RAB of asset commissioned in year ending 2022 | D35: =IF($C31=D$23,D$24,0) -> 0 | E35: =IF($C31=E$23,E$24,0) -> 53794.2602 | F35: =IF($C31=F$23,F$24,0) -> 0 | G35: 0 | H35: =IF($C31=H$23,H$24,0) -> 0 | I35: 0 | J35: 0
A36: Closing RAB, adjusted depreciation | D36: =D32-D34+D35 -> 0 | E36: =E32-E34+E35 -> 53794.2602 | F36: 52290.25857 | G36: 50786.25693 | H36: =H32-H34+H35 -> 49282.25529 | I36: 47778.25366 | J36: 46274.25202
A37: ="Assets commissioned in year ending " & C37 -> Assets commissioned in year ending 2023 | C37: =F23 -> 2023
A38: Opening RAB, adjusted depreciation | F38: 0 | G38: =F42 -> 58641.39746 | H38: =G42 -> 56993.25596 | I38: 55345.11446 | J38: 53696.97296
A39: Years of remaining life | D39: =RAB!D48 -> 47 | E39: =RAB!E48 -> 46 | F39: =RAB!F48 -> 36.58031725 | G39: =RAB!G48 -> 35.58031725 | H39: =RAB!H48 -> 34.58031725 | I39: =RAB!I48 -> 33.58031725 | J39: =RAB!J48 -> 32.58031725
A40: Adjusted depreciation | D40: =D38/D39 -> 0 | E40: 0 | F40: 0 | G40: 1648.1415 | H40: =H38/H39 -> 1648.1415 | I40: 1648.1415 | J40: 1648.1415
A41: ="RAB of asset commissioned in year ending " & C37 -> RAB of asset commissioned in year ending 2023 | D41: =IF($C37=D$23,D$24,0) -> 0 | E41: =IF($C37=E$23,E$24,0) -> 0 | F41: =IF($C37=F$23,F$24,0) -> 58641.39746 | G41: 0 | H41: =IF($C37=H$23,H$24,0) -> 0 | I41: 0 | J41: 0
A42: Closing RAB, adjusted depreciation | D42: =D38-D40+D41 -> 0 | E42: 0 | F42: 58641.39746 | G42: 56993.25596 | H42: =H38-H40+H41 -> 55345.11446 | I42: 53696.97296 | J42: 52048.83146
A43: ="Assets commissioned in year ending " & C43 -> Assets commissioned in year ending 2024 | C43: =G23 -> 2024
A44: Opening RAB, adjusted depreciation | G44: 0 | H44: =G48 -> 48315.70818 | I44: =H48 -> 46950.59595 | J44: 45585.48372
A45: Years of remaining life | D45: =RAB!D56 -> 48 | E45: =RAB!E56 -> 47 | F45: =RAB!F56 -> 37.39321319 | G45: =RAB!G56 -> 36.39321319 | H45: =RAB!H56 -> 35.39321319 | I45: =RAB!I56 -> 34.39321319 | J45: =RAB!J56 -> 33.39321319
A46: Adjusted depreciation | D46: =D44/D45 -> 0 | E46: 0 | F46: 0 | G46: 0 | H46: =H44/H45 -> 1365.11223 | I46: 1365.11223 | J46: 1365.11223
A47: ="RAB of asset commissioned in year ending " & C43 -> RAB of asset commissioned in year ending 2024 | D47: =IF($C43=D$23,D$24,0) -> 0 | E47: =IF($C43=E$23,E$24,0) -> 0 | F47: =IF($C43=F$23,F$24,0) -> 0 | G47: 48315.70818 | H47: =IF($C43=H$23,H$24,0) -> 0 | I47: 0 | J47: 0
A48: Closing RAB, adjusted depreciation | D48: =D44-D46+D47 -> 0 | E48: 0 | F48: 0 | G48: 48315.70818 | H48: =H44-H46+H47 -> 46950.59595 | I48: 45585.48372 | J48: 44220.37149
A49: ="Assets commissioned in year ending " & C49 -> Assets commissioned in year ending 2025 | C49: =H23 -> 2025
A50: Opening RAB, adjusted depreciation | H50: 0 | I50: =H54 -> 41557.54469 | J50: 40377.13749
A51: Years of remaining life | D51: =RAB!D64 -> 49 | E51: =RAB!E64 -> 48 | F51: =RAB!F64 -> 38.20610913 | G51: =RAB!G64 -> 37.20610913 | H51: =RAB!H64 -> 36.20610913 | I51: =RAB!I64 -> 35.20610913 | J51: =RAB!J64 -> 34.20610913
A52: Adjusted depreciation | D52: =D50/D51 -> 0 | E52: 0 | F52: 0 | G52: 0 | H52: =H50/H51 -> 0 | I52: 1180.407199 | J52: 1180.407199
A53: ="RAB of asset commissioned in year ending " & C49 -> RAB of asset commissioned in year ending 2025 | D53: =IF($C49=D$23,D$24,0) -> 0 | E53: =IF($C49=E$23,E$24,0) -> 0 | F53: =IF($C49=F$23,F$24,0) -> 0 | G53: 0 | H53: =IF($C49=H$23,H$24,0) -> 41557.54469 | I53: 0 | J53: 0
A54: Closing RAB, adjusted depreciation | D54: =D50-D52+D53 -> 0 | E54: 0 | F54: 0 | G54: 0 | H54: =H50-H52+H53 -> 41557.54469 | I54: 40377.13749 | J54: 39196.73029
A55: ="Assets commissioned in year ending " & C55 -> Assets commissioned in year ending 2026 | C55: =I23 -> 2026
A56: Opening RAB, adjusted depreciation | I56: 0 | J56: =I60 -> 43513.37103
A57: Years of remaining life | D57: =RAB!D72 -> 50 | E57: =RAB!E72 -> 49 | F57: =RAB!F72 -> 39.01900507 | G57: =RAB!G72 -> 38.01900507 | H57: =RAB!H72 -> 37.01900507 | I57: =RAB!I72 -> 36.01900507 | J57: =RAB!J72 -> 35.01900507
A58: Adjusted depreciation | D58: =D56/D57 -> 0 | E58: 0 | F58: 0 | G58: 0 | H58: =H56/H57 -> 0 | I58: 0 | J58: 1242.564457
A59: ="RAB of asset commissioned in year ending " & C55 -> RAB of asset commissioned in year ending 2026 | D59: =IF($C55=D$23,D$24,0) -> 0 | E59: =IF($C55=E$23,E$24,0) -> 0 | F59: =IF($C55=F$23,F$24,0) -> 0 | G59: 0 | H59: =IF($C55=H$23,H$24,0) -> 0 | I59: 43513.37103 | J59: 0
A60: Closing RAB, adjusted depreciation | D60: =D56-D58+D59 -> 0 | E60: 0 | F60: 0 | G60: 0 | H60: =H56-H58+H59 -> 0 | I60: 43513.37103 | J60: 42270.80657
A61: ="Assets commissioned in year ending " & C61 -> Assets commissioned in year ending 2027 | C61: =J23 -> 2027
A62: Opening RAB, adjusted depreciation | J62: 0
A63: Years of remaining life | D63: =RAB!D80 -> 51 | E63: =RAB!E80 -> 50 | F63: =RAB!F80 -> 39.83190101 | G63: =RAB!G80 -> 38.83190101 | H63: =RAB!H80 -> 37.83190101 | I63: =RAB!I80 -> 36.83190101 | J63: =RAB!J80 -> 35.83190101
A64: Adjusted depreciation | J64: =J62/J63 -> 0
A65: ="RAB of asset commissioned in year ending " & C61 -> RAB of asset commissioned in year ending 2027 | J65: =IF($C61=J$23,J$24,0) -> 45771.86572
A66: Closing RAB, adjusted depreciation | J66: =J62-J64+J65 -> 45771.86572
A67: Total assets commissioned
A68: Total adjusted depreciation of commissioned assets | D68: =D28+D34+D40+D46+D52+D58+D64 -> 0 | E68: =E28+E34+E40+E46+E52+E58+E64 -> 797.7651703 | F68: 2485.388223 | G68: 4133.529723 | H68: =H28+H34+H40+H46+H52+H58+H64 -> 5498.641953 | I68: 6679.049153 | J68: 7921.61361
A69: Adjusted depreciation of existing assets
A70: BBAR year ending in calendar year: | C70: =C$4 -> 2020 | D70: =D$4 -> 2021 | E70: =E$4 -> 2022 | F70: 2023 | G70: 2024 | H70: =H$4 -> 2025 | I70: 2026 | J70: 2027
A71: Opening RAB value of existing assets, adjusted depreciation | C71: =IF(EarlyBaseYear,C10,"~") -> 0 | D71: =IF(EarlyBaseYear,C75,D10) -> 0 | E71: =D75 -> 35066.38625 | F71: =E75 -> 33427.60517 | G71: 31354.08354 | H71: =G75 -> 29282.24571 | I71: 27212.29756 | J71: 25144.47876
A72: Disposed assets | D72: =D9 -> 35.28124578 | E72: 36.69249561 | F72: 37.53642301 | G72: 38.28715147 | H72: =H9 -> 39.0528945 | I72: 39.83395239 | J72: 40.63063143
A73: Adjusted depreciation of existing assets | C73: =IF(EarlyBaseYear,C11,"~") -> 0 | D73: =IF(EarlyBaseYear,D71/D17,D11) -> 0 | E73: =E71/E17 -> 1602.08858 | F73: 2035.985208 | G73: 2033.550686 | H73: 2030.895247 | I73: 2027.984847 | J73: 2024.77719
A74: Base year commissioned assets | D74: =D6 -> 35101.66749
A75: Closing RAB value of existing assets, adjusted depreciation | C75: =IF(EarlyBaseYear,C71-C72-C73+C74,"~") -> 0 | D75: =D71-D72-D73+D74 -> 35066.38625 | E75: =E71-E72-E73 -> 33427.60517 | F75: 31354.08354 | G75: 29282.24571 | H75: 27212.29756 | I75: 25144.47876 | J75: 23079.07094
A76: Regulatory tax asset value
A77: BBAR year ending in calendar year: | C77: =C$4 -> 2020 | D77: =D$4 -> 2021 | E77: =E$4 -> 2022 | F77: 2023 | G77: 2024 | H77: =H$4 -> 2025 | I77: 2026 | J77: 2027
A78: Average DV rate | C78: =IF(EarlyBaseYear,C12/C13,"~") -> 0.134389424 | D78: =IF(EarlyBaseYear,C78,D12/D13) -> 0.134389424
A79: Opening regulatory tax asset value | C79: =IF(EarlyBaseYear,C13,"~") -> 198250 | D79: =IF(EarlyBaseYear,C82,D13) -> 209289.5997 | E79: =D82 -> 216264.9584 | F79: =E82 -> 240995.4954 | G79: 267249.6471 | H79: =G82 -> 279649.8291 | I79: 283625.3943 | J79: 289022.512
A80: Tax depreciation | C80: =IF(EarlyBaseYear,C12,"~") -> 26642.70332 | D80: =D79*$D78 -> 28126.30876 | E80: =E79*$D78 -> 29063.72321 | F80: 32387.24583 | G80: 35915.52615 | H80: =H79*$D78 -> 37581.97947 | I80: 38116.25339 | J80: 38841.56892
A81: Value of commissioned assets | C81: =IF(EarlyBaseYear,C6,"~") -> 37682.30302 | D81: =D6 -> 35101.66749 | E81: 53794.2602 | F81: 58641.39746 | G81: 48315.70818 | H81: 41557.54469 | I81: 43513.37103 | J81: 45771.86572
A82: Closing regulatory tax asset value | C82: =IF(EarlyBaseYear,C79-C80+C81,"~") -> 209289.5997 | D82: =D79-D80+D81 -> 216264.9584 | E82: =E79-E80+E81 -> 240995.4954 | F82: 267249.6471 | G82: 279649.8291 | H82: =H79-H80+H81 -> 283625.3943 | I82: 289022.512 | J82: 295952.8088
A83: Depreciation temporary differences
A84: BBAR year ending in calendar year: | C84: =C$4 -> 2020 | D84: =D$4 -> 2021 | E84: =E$4 -> 2022 | F84: 2023 | G84: 2024 | H84: =H$4 -> 2025 | I84: 2026 | J84: 2027
A85: Total adjusted depreciation of assets | C85: =IF(EarlyBaseYear,C68+C73,"~") -> 0 | D85: =D68+D73 -> 0 | E85: 2399.85375 | F85: 4521.373431 | G85: 6167.080409 | H85: 7529.537201 | I85: 8707.034 | J85: 9946.390799
A86: Tax depreciation | C86: =C80 -> 26642.70332 | D86: 28126.30876 | E86: 29063.72321 | F86: 32387.24583 | G86: 35915.52615 | H86: 37581.97947 | I86: 38116.25339 | J86: 38841.56892
A87: Depreciation temporary differences, deferred tax approach | C87: =IF(EarlyBaseYear,C85-C86,"~") -> -26642.70332 | D87: =D85-D86 -> -28126.30876 | E87: -26663.86945 | F87: -27865.8724 | G87: -29748.44574 | H87: =H85-H86 -> -30052.44227 | I87: -29409.21939 | J87: -28895.17812
A88: Deductions for regulatory tax purposes
A89: Amortisation of initial differences in asset values | C89: =IF(EarlyBaseYear,B8,"~") -> 0 | D89: =$B$8 -> 0 | E89: 0 | F89: 0 | G89: 0 | H89: =$B$8 -> 0 | I89: 0 | J89: 0
A90: Notional deductible interest | F90: =(F20*$D$16*$D$15+F19)/(1+$D$15)^0.5 -> 15506.38675 | G90: 15934.35408 | H90: 16104.81448 | I90: 16124.43829 | J90: 16136.18195
A91: Amortisation of revaluations | F91: =F18-F85 -> 49743.33843 | G91: 51068.97114 | H91: 52288.52604 | I91: 53567.77221 | J91: 54905.34894
A92: Regulatory tax adjustments | F92: =F89+F91-F90 -> 34236.95167 | G92: 35134.61706 | H92: =H89+H91-H90 -> 36183.71156 | I92: 37443.33392 | J92: 38769.16699
A93: Deferred tax asset value
A94: BBAR year ending in calendar year: | C94: =C$4 -> 2020 | D94: =D$4 -> 2021 | E94: =E$4 -> 2022 | F94: 2023 | G94: 2024 | H94: =H$4 -> 2025 | I94: 2026 | J94: 2027
A95: Opening deferred tax | C95: =IF(EarlyBaseYear,C14,"~") -> 0 | D95: =IF(EarlyBaseYear,C98,D14) -> -7459.956929 | E95: =D98 -> -15335.32338 | F95: =E98 -> -22801.20683 | G95: -30603.6511 | H95: =G98 -> -38933.21591 | I95: -47347.89974 | J95: -55582.48117
A96: Depreciation temporary differences, deferred tax approach | C96: =C87 -> -26642.70332 | D96: -28126.30876 | E96: -26663.86945 | F96: -27865.8724 | G96: -29748.44574 | H96: -30052.44227 | I96: -29409.21939 | J96: -28895.17812
A97: Amortisation of initial differences in asset values | C97: =C89 -> 0 | D97: 0 | E97: 0 | F97: 0 | G97: 0 | H97: 0 | I97: 0 | J97: 0
A98: Closing deferred tax | C98: =IF(EarlyBaseYear,C95+(C96-C97)*C5,"~") -> -7459.956929 | D98: =D95+(D96-D97)*D5 -> -15335.32338 | E98: -22801.20683 | F98: -30603.6511 | G98: -38933.21591 | H98: -47347.89974 | I98: -55582.48117 | J98: -63673.13104
A99: Outputs
A100: BBAR year ending in calendar year: | C100: =C$4 -> 2020 | D100: =D$4 -> 2021 | E100: =E$4 -> 2022 | F100: 2023 | G100: 2024 | H100: =H$4 -> 2025 | I100: 2026 | J100: 2027
A101: Opening deferred tax | E101: =E95 -> -15335.32338 | F101: -22801.20683 | G101: -30603.6511 | H101: =H95 -> -38933.21591 | I101: -47347.89974 | J101: -55582.48117
A102: Closing deferred tax | F102: =F98 -> -30603.6511 | G102: -38933.21591 | H102: -47347.89974 | I102: -55582.48117 | J102: -63673.13104
A103: Regulatory tax adjustments | F103: =F92 -> 34236.95167 | G103: 35134.61706 | H103: 36183.71156 | I103: 37443.33392 | J103: 38769.16699
A104: Tax depreciation | F104: =F80 -> 32387.24583 | G104: 35915.52615 | H104: 37581.97947 | I104: 38116.25339 | J104: 38841.56892
A105: Notional deductible interest | F105: =F90 -> 15506.38675 | G105: 15934.35408 | H105: =H90 -> 16104.81448 | I105: 16124.43829 | J105: 16136.18195
A106: Opening 2021 tax asset value | D106: =D79 -> 209289.5997
A107: DV rate | D107: =D78 -> 0.134389424

Sheet BBAR
A1: Building blocks allowable revenue | B1: Values, not time series | C1: Early base year | D1: Std base year | E1: Gap year | F1: 1st BBAR year | G1: 2nd BBAR year | H1: 3rd BBAR year | I1: 4th BBAR year | J1: 5th BBAR year
A2: Calculation of BBAR present value, opening investment value, and TCSD allowance.
A3: Inputs | J3: =GPB_name -> First Gas transmission
A4: Tax payable (payable) or deferred tax (deferred) | B4: ='GPB data'!B27 -> payable
A5: Vanilla WACC (67th percentile) | B5: =WACC -> 0.0607
A6: Term credit spread differential allowance | C6: ='GPB data'!C39 -> 0 | D6: ='GPB data'!D39 -> ~
A7: BBAR year ending in calendar year: | D7: ='GPB data'!D18 -> 2021 | E7: ='GPB data'!E18 -> 2022 | F7: ='GPB data'!F18 -> 2023 | G7: ='GPB data'!G18 -> 2024 | H7: ='GPB data'!H18 -> 2025 | I7: ='GPB data'!I18 -> 2026 | J7: ='GPB data'!J18 -> 2027
A8: Corporate tax rate | F8: ='GPB data'!F22 -> 0.28 | G8: ='GPB data'!G22 -> 0.28 | H8: ='GPB data'!H22 -> 0.28 | I8: ='GPB data'!I22 -> 0.28 | J8: ='GPB data'!J22 -> 0.28
A9: Other regulated income | F9: ='GPB data'!F94 -> 0 | G9: ='GPB data'!G94 -> 0 | H9: ='GPB data'!H94 -> 0 | I9: ='GPB data'!I94 -> 0 | J9: ='GPB data'!J94 -> 0
A11: Value of commissioned assets | F11: ='GPB data'!F75 -> 58641.39746 | G11: ='GPB data'!G75 -> 48315.70818 | H11: ='GPB data'!H75 -> 41557.54469 | I11: ='GPB data'!I75 -> 43513.37103 | J11: ='GPB data'!J75 -> 45771.86572
A12: Operating expenditure | F12: ='GPB data'!F52 -> 53479.72467 | G12: ='GPB data'!G52 -> 55287.28331 | H12: ='GPB data'!H52 -> 56850.15601 | I12: ='GPB data'!I52 -> 58702.29709 | J12: ='GPB data'!J52 -> 59873.53087
A13: Day prior to start of the regulatory period | B13: ='GPB data'!B14 -> 2022-09-30
A14: TFmid | F14: =Timing!F30 -> 1.029819773 | G14: =Timing!G30 -> 1.029902908 | H14: =Timing!H30 -> 1.029819773 | I14: =Timing!I30 -> 1.029819773 | J14: =Timing!J30 -> 1
A15: TFtax | F15: =Timing!F31 -> 1.029819773 | G15: =Timing!G31 -> 1.029902908 | H15: =Timing!H31 -> 1.029819773 | I15: =Timing!I31 -> 1.029819773 | J15: =Timing!J31 -> 1
A16: TFrev | F16: =Timing!F32 -> 1.024182288 | G16: =Timing!G32 -> 1.02428033 | H16: =Timing!H32 -> 1.024182288 | I16: =Timing!I32 -> 1.024182288 | J16: =Timing!J32 -> 0.9945257556
A17: Aggregate opening RAB value | C17: =RAB!C103 -> 834976.3319 | D17: =RAB!D103 -> 849688.0929 | E17: =RAB!E103 -> 889507.0469 | F17: =RAB!F103 -> 938976.0108 | G17: =RAB!G103 -> 964891.207 | H17: =RAB!H103 -> 975213.2905 | I17: =RAB!I103 -> 976401.5938 | J17: =RAB!J103 -> 977112.7214
A18: Closing RAB, 5th BBAR year | B18: =RAB!B105 -> 977519.6303
A19: Total revaluation | F19: =RAB!F104 -> 21576.04701 | G19: =RAB!G104 -> 19280.7141 | H19: =RAB!H104 -> 19487.87473 | I19: =RAB!I104 -> 19512.39673 | J19: =RAB!J104 -> 19527.41352
A20: Total depreciation | F20: =RAB!F102 -> 54264.71186 | G20: =RAB!G102 -> 57236.05155 | H20: =RAB!H102 -> 59818.06324 | I20: =RAB!I102 -> 62274.80621 | J20: =RAB!J102 -> 64851.73974
A21: Opening deferred tax | E21: =Tax!E101 -> -15335.32338 | F21: =Tax!F101 -> -22801.20683 | G21: =Tax!G101 -> -30603.6511 | H21: =Tax!H101 -> -38933.21591 | I21: =Tax!I101 -> -47347.89974 | J21: =Tax!J101 -> -55582.48117
A22: Closing deferred tax | F22: =Tax!F102 -> -30603.6511 | G22: =Tax!G102 -> -38933.21591 | H22: =Tax!H102 -> -47347.89974 | I22: =Tax!I102 -> -55582.48117 | J22: =Tax!J102 -> -63673.13104
A23: Regulatory tax adjustments | F23: =Tax!F103 -> 34236.95167 | G23: =Tax!G103 -> 35134.61706 | H23: =Tax!H103 -> 36183.71156 | I23: =Tax!I103 -> 37443.33392 | J23: =Tax!J103 -> 38769.16699
A24: Tax depreciation | F24: =Tax!F104 -> 32387.24583 | G24: =Tax!G104 -> 35915.52615 | H24: =Tax!H104 -> 37581.97947 | I24: =Tax!I104 -> 38116.25339 | J24: =Tax!J104 -> 38841.56892
A25: Notional deductible interest | F25: =Tax!F105 -> 15506.38675 | G25: =Tax!G105 -> 15934.35408 | H25: =Tax!H105 -> 16104.81448 | I25: =Tax!I105 -> 16124.43829 | J25: =Tax!J105 -> 16136.18195
A26: Proportion of BBAR year in the regulatory period | F26: =Timing!F29 -> 1 | G26: =Timing!G29 -> 1 | H26: =Timing!H29 -> 1 | I26: =Timing!I29 -> 1 | J26: =Timing!J29 -> 0
A27: Number of BBAR days in the BBAR period | F27: =Timing!F28 -> 365 | G27: =Timing!G28 -> 366 | H27: =Timing!H28 -> 365 | I27: =Timing!I28 -> 365 | J27: =Timing!J28 -> 0
A28: Calculations
A29: BBAR year ending in calendar year: | D29: =D$7 -> 2021 | E29: =E$7 -> 2022 | F29: 2023 | G29: 2024 | H29: =H$7 -> 2025 | I29: 2026 | J29: 2027
A30: Cumulative number of days from start of regulatory period to end of BBAR period | E30: 0 | F30: =E30+F27 -> 365 | G30: 731 | H30: 1096 | I30: 1461 | J30: 1461
A31: PV factor from end of each BBAR period | F31: =(1+WACC)^(-1*F30/365) -> 0.94277364 | G31: 0.8886786481 | H31: =(1+WACC)^(-1*H30/365) -> 0.8378228039 | I31: 0.7898772545 | J31: 0.7898772545
A32: Term credit spread differential allowance
A34: Asset base scaling factor | D34: =IF(EarlyBaseYear,D17/$C$17,D17/$D$17) -> 1.017619375 | E34: 1.065308097 | F34: 1.124554044 | G34: 1.155591087 | H34: 1.167953214 | I34: 1.169376372 | J34: 1.170228046
A35: Term credit spread differential allowance, full BBAR years | C35: =C6 -> 0 | D35: =IF(EarlyBaseYear,$C35*D34,D6) -> 0 | E35: =IF(EarlyBaseYear,$C35,$D35)*E34 -> 0 | F35: 0 | G35: 0 | H35: 0 | I35: 0 | J35: 0
A36: Return on capital
A37: BBAR year ending in calendar year: | D37: =D$7 -> 2021 | E37: =E$7 -> 2022 | F37: 2023 | G37: 2024 | H37: =H$7 -> 2025 | I37: 2026 | J37: 2027
A38: Opening investment value (full BBAR year values) | E38: =E17+IF($B$4="deferred",E21,0) -> 889507.0469 | F38: 938976.0108 | G38: 964891.207 | H38: 975213.2905 | I38: 976401.5938 | J38: 977112.7214
A39: Opening investment value, start of regulatory period | B39: =G38-F26*(G38-F38) -> 938976.0108
A40: Closing investment value, end of 5th BBAR year | B40: =B18+IF($B$4="deferred",J22,0) -> 977519.6303
A41: Closing investment value, end of regulatory period | B41: =J38+J26*(B40-J38) -> 977112.7214
A42: Opening investment value for each BBAR period | F42: =B39 -> 938976.0108 | G42: =G38 -> 964891.207 | H42: =H38 -> 975213.2905 | I42: =I38 -> 976401.5938 | J42: =J38 -> 977112.7214
A43: Value of commissioned assets, after accounting for part year effects | F43: =F11*F26 -> 58641.39746 | G43: 48315.70818 | H43: 41557.54469 | I43: 43513.37103 | J43: 0
A44: Term credit spread differential allowance, after accounting for part year effects | F44: =F35*F26 -> 0 | G44: 0 | H44: 0 | I44: 0 | J44: 0
A45: Total revaluation, after accounting for part year effects | F45: =F19*F26 -> 21576.04701 | G45: 19280.7141 | H45: 19487.87473 | I45: 19512.39673 | J45: 0
A46: WACC adjusted for full and part years | F46: =(1+WACC)^(F27/365)-1 -> 0.0607 | G46: 0.06087126331 | H46: 0.0607 | I46: 0.0607 | J46: 0
A47: Return on capital, after accounting for part year effects | F47: =F42*F46+F43*(F$14-1)+F44-F45 -> 37168.46999 | G47: 40898.2128 | H47: =H42*H46+H43*(H$14-1)+H44-H45 -> 40946.80854 | I47: 41052.73885 | J47: 0
A48: Operating expenditure
A49: BBAR year ending in calendar year: | F49: =F$7 -> 2023 | G49: 2024 | H49: =H$7 -> 2025 | I49: 2026 | J49: 2027
A50: Operating expenditure, after accounting for part year effects | F50: =F12*F26 -> 53479.72467 | G50: 55287.28331 | H50: 56850.15601 | I50: 58702.29709 | J50: 0
A51: Building block allowable revenue before tax, after accounting for part year effects, deferred tax approach | G51: The next 12 lines are greyed out when a supplier to which a deferred tax approach does not apply.
A52: BBAR year ending in calendar year: | F52: =F$7 -> 2023 | G52: 2024 | H52: =H$7 -> 2025 | I52: 2026 | J52: 2027
A53: Increase in deferred tax asset, ΔDT | F53: =F22-F21 -> -7802.444271 | G53: -8329.564806 | H53: -8414.683835 | I53: -8234.581429 | J53: -8090.649873
A54: Increase in deferred tax asset, ΔDT, after accounting for part year effects | F54: =F53*F26 -> -7802.444271 | G54: -8329.564806 | H54: -8414.683835 | I54: -8234.581429 | J54: 0
A55: Other regulated income, after accounting for part year effects | F55: =F9*F26 -> 0 | G55: 0 | H55: 0 | I55: 0 | J55: 0
A56: Depreciation, after accounting for part year effects | F56: =F20*F26 -> 54264.71186 | G56: 57236.05155 | H56: 59818.06324 | I56: 62274.80621 | J56: 0
A57: Regulatory tax adjustments, after accounting for part year effects | F57: =F23*F26 -> 34236.95167 | G57: 35134.61706 | H57: 36183.71156 | I57: 37443.33392 | J57: 0
A58: BBAR before tax in revenue date terms, calculation not referencing tax | F58: =(F47+F56*(1-F8*F15)+F50*(F14-F8*F15)-F55*(F14-F8*F15)+F54*(F15-1)+F57*F8*F15)/(F16-F8*F15) -> 169983.1154 | G58: 180061.9165 | H58: 184623.0572 | I58: 189510.2577 | J58: 0
A59: Regulatory tax allowance before considering possibility of tax losses | F59: =(F58+F55-F50-F56+F57)*F8 -> 27013.17655 | G59: 28748.49564 | H59: =(H58+H55-H50-H56+H57)*H8 -> 29158.79385 | I59: 29673.41672 | J59: 0
A60: Regulatory tax allowance | F60: =IF(AND(F59<0,$B$4="deferred"),#N/A,F59) -> 27013.17655 | G60: 28748.49564 | H60: =IF(AND(H59<0,$B$4="deferred"),#N/A,H59) -> 29158.79385 | I60: 29673.41672 | J60: 0
A61: BBAR before tax in BBAR period-end terms, direct simple calculation | F61: =F47+F56+F50*F14+(F60+F54)*F$15-F55*F$14-F54 -> 174093.696 | G61: 184433.8793 | H61: 189087.665 | I61: 194093.0492 | J61: 0
A62: BBAR before tax in revenue date terms | F62: =F61/F$16 -> 169983.1154 | G62: 180061.9165 | H62: =H61/H$16 -> 184623.0572 | I62: 189510.2577 | J62: 0
A63: Difference between the two BBAR calculations (should = 0) | F63: =F58-F62 -> 0 | G63: 0 | H63: =H58-H62 -> 0 | I63: 0 | J63: 0
A64: Building block allowable revenue before tax, after accounting for part year effects, tax payable approach | G64: The next 12 lines are greyed out when a supplier to which a tax payable approach does not apply.
A65: BBAR year ending in calendar year: | F65: =F$7 -> 2023 | G65: 2024 | H65: =H$7 -> 2025 | I65: 2026 | J65: 2027
A66: Other regulated income, after accounting for part year effects | F66: =F9*F26 -> 0 | G66: 0 | H66: 0 | I66: 0 | J66: 0
A67: Depreciation, after accounting for part year effects | F67: =F20*F26 -> 54264.71186 | G67: 57236.05155 | H67: 59818.06324 | I67: 62274.80621 | J67: 0
A68: Tax depreciation | F68: =F24*F26 -> 32387.24583 | G68: 35915.52615 | H68: 37581.97947 | I68: 38116.25339 | J68: 0
A69: Notional deductible interest | F69: =F25*F26 -> 15506.38675 | G69: 15934.35408 | H69: 16104.81448 | I69: 16124.43829 | J69: 0
A70: Depreciation temporary differences, tax payable approach | F70: =F67-F68 -> 21877.46603 | G70: 21320.5254 | H70: =H67-H68 -> 22236.08377 | I70: 24158.55282 | J70: 0
A71: BBAR before tax in revenue date terms, calculation not referencing tax | F71: =(F47+F67*(1-F8*F15)+F50*(F14-F8*F15)-F66*(F14-F8*F15)+(F70-F69)*F8*F15)/(F16-F8*F15) -> 159379.5587 | G71: 168743.1508 | H71: 173187.4642 | I71: 178319.4247 | J71: 0
A72: Regulatory tax allowance before considering possibility of tax losses | F72: =(F71+F66-F50-F67+F70-F69)*F8 -> 16241.73641 | G72: 17249.67642 | H72: 17542.14398 | I72: 18305.40205 | J72: 0
A73: Regulatory tax allowance | F73: =IF(AND(F72<0,$B$4="payable"),#N/A,F72) -> 16241.73641 | G73: 17249.67642 | H73: =IF(AND(H72<0,$B$4="payable"),#N/A,H72) -> 17542.14398 | I73: 18305.40205 | J73: 0
A74: BBAR before tax in BBAR period-end terms, direct simple calculation | F74: =F47+F67+F50*F14+(F73)*F$15-F66*F$14 -> 163233.721 | G74: 172840.2901 | H74: 177375.5333 | I74: 182631.5963 | J74: 0
A75: BBAR before tax in revenue date terms | F75: =F74/F$16 -> 159379.5587 | G75: 168743.1508 | H75: =H74/H$16 -> 173187.4642 | I75: 178319.4247 | J75: 0
A76: Difference between the two BBAR calculations (should = 0) | F76: =F71-F75 -> 0 | G76: 0 | H76: 0 | I76: 0 | J76: 0
A77: Parameters dependent on whether a deferred tax or tax payable approach applied
A78: BBAR before tax in BBAR period-end terms | F78: =IF($B$4="deferred",F61,F74) -> 163233.721 | G78: 172840.2901 | H78: =IF($B$4="deferred",H61,H74) -> 177375.5333 | I78: =IF($B$4="deferred",I61,I74) -> 182631.5963 | J78: 0
A79: BBAR before tax in revenue date terms | F79: =IF($B$4="deferred",F58,F71) -> 159379.5587 | G79: 168743.1508 | H79: 173187.4642 | I79: 178319.4247 | J79: 0
A80: Tax allowance in period-end terms | F80: =IF($B$4="deferred",F60,F73)*F15 -> 16726.0613 | G80: 17765.49191 | H80: 18065.24673 | I80: 18851.26498 | J80: 0
A81: Tax payable | F81: =IF($B$4="deferred",F54+F60,F73) -> 16241.73641 | G81: 17249.67642 | H81: =IF($B$4="deferred",H54+H60,H73) -> 17542.14398 | I81: 18305.40205 | J81: 0
A82: Present value of the building block allowable revenue before tax
A83: BBAR year ending in calendar year: | B83: Value | F83: =F$7 -> 2023 | G83: 2024 | H83: =H$7 -> 2025 | I83: 2026 | J83: 2027
A84: BBAR before tax in BBAR period-end terms | F84: =F78 -> 163233.721 | G84: 172840.2901 | H84: 177375.5333 | I84: 182631.5963 | J84: 0
A85: ="PV at " & TEXT(B13, "dd-mmm-yy") & " BBAR before tax for each BBAR period" -> PV at 30-Sep-22 BBAR before tax for each BBAR period | F85: =F84*F31 -> 153892.4494 | G85: 153599.4754 | H85: 148609.2666 | I85: 144256.5439 | J85: 0
A86: ="PV at " & TEXT(B13, "dd-mmm-yy") & " of total BBAR before tax" -> PV at 30-Sep-22 of total BBAR before tax | B86: =SUM(F85:J85) -> 600357.7352
A87: Outputs
A88: BBAR year ending in calendar year: | B88: Value | F88: =F$7 -> 2023 | G88: 2024 | H88: =H$7 -> 2025 | I88: 2026 | J88: 2027
A89: Present value of BBAR as at the start of the regulatory period | B89: =B86 -> 600357.7352
A90: Opening investment value at start of regulatory period | B90: =B39 -> 938976.0108
A91: Closing investment value at end of regulatory period | B91: =B41 -> 977112.7214
A92: Term credit spread differential allowance, full BBAR years | F92: =F35 -> 0 | G92: 0 | H92: 0 | I92: 0 | J92: 0
A93: BBAR before tax in revenue date terms | F93: =F79 -> 159379.5587 | G93: 168743.1508 | H93: 173187.4642 | I93: 178319.4247 | J93: 0
A94: Opening investment value (full BBAR year values) | E94: =E38 -> 889507.0469 | F94: 938976.0108 | G94: 964891.207 | H94: 975213.2905 | I94: 976401.5938 | J94: 977112.7214
A95: Annualised BBAR in revenue date terms | F95: =F93/F26 -> 159379.5587 | G95: =G93/G26 -> 168743.1508 | H95: =H93/H26 -> 173187.4642 | I95: =I93/I26 -> 178319.4247 | J95: =J93/J26 -> 

Sheet Rev
A1: Revenue growth index | D1: Values, not time series | F1: 1st revenue year | G1: 2nd revenue year | H1: 3rd revenue year | I1: 4th revenue year
A2: Calculation of the normalised profile of the maximum allowable revenue before tax values. | I2: =GPB_name -> First Gas transmission
A3: Inputs
A4: Pricing year ending in calendar year: | E4: 2022 | F4: 2023 | G4: 2024 | H4: 2025 | I4: 2026
A5: Constant price revenue growth | G5: ='GPB data'!G63 -> 0 | H5: ='GPB data'!H63 -> 0 | I5: ='GPB data'!I63 -> 0
A6: Industry-wide X factor | D6: ='GPB data'!B11 -> 0
A7: Alternative X factor | D7: ='GPB data'!B42 -> -0.08172267235
A9: Forecast changes in the CPI element of the price path, no lag | G9: ='GPB data'!G21 -> 0.02074756236 | H9: ='GPB data'!H21 -> 0.02 | I9: ='GPB data'!I21 -> 0.02
A10: Total revenue cap (TRC) or weighted average price cap (WAPC) | D10: ='GPB data'!B28 -> TRC_FQ
A11: Calculations
A12: =D10 -> TRC_FQ
A13: ="Index of price path with industry-wide X factor of "&TEXT(D6,"#0.0%") -> Index of price path with industry-wide X factor of 0.0%
A14: Pricing year ending in calendar year: | F14: =F$4 -> 2023 | G14: =G$4 -> 2024 | H14: =H$4 -> 2025 | I14: =I$4 -> 2026
A15: X value applied, i.e. industry-wide X factor | D15: =D6 -> 0
A16: Index of cumulative CPI minus X changes | F16: 1 | G16: =F16*(1+G$9)*(1-$D$15) -> 1.020747562 | H16: =G16*(1+H$9)*(1-$D$15) -> 1.041162514 | I16: =H16*(1+I$9)*(1-$D$15) -> 1.061985764
A17: Index of cumulative constant price growth for weighted average price cap | F17: 1 | G17: =F17*(1+G$5) -> 1 | H17: =G17*(1+H$5) -> 1 | I17: =H17*(1+I$5) -> 1
A18: Indexed maximum allowable revenue before tax | F18: 1 | G18: =IF($D$10="WAPC",G16*G17,IF($D$10="TRC_FQ",G16,#N/A)) -> 1.020747562 | H18: =IF($D$10="WAPC",H16*H17,IF($D$10="TRC_FQ",H16,#N/A)) -> 1.041162514 | I18: =IF($D$10="WAPC",I16*I17,IF($D$10="TRC_FQ",I16,#N/A)) -> 1.061985764
A19: ="CPI minus X revenues with applicable X factor (" & IF(ISNUMBER(D7),"alternate X factor of " & TEXT(D7,"#0.0%"), "industry-wide X factor of " & TEXT(D6,"#0.0%"))&")" -> CPI minus X revenues with applicable X factor (alternate X factor of -8.2%)
A20: Pricing year ending in calendar year: | F20: =F$4 -> 2023 | G20: =G$4 -> 2024 | H20: =H$4 -> 2025 | I20: =I$4 -> 2026
A21: X value applied, i.e. alternative X factor if applicable | D21: =IF(D7="blank",D6,D7) -> -0.08172267235
A22: Index of cumulative CPI minus X changes | F22: 1 | G22: =F22*(1+G$9)*(1-$D$21) -> 1.104165781 | H22: =G22*(1+H$9)*(1-$D$21) -> 1.218289182 | I22: =H22*(1+I$9)*(1-$D$21) -> 1.344208051
A23: Index of constant price growth for weighted average price cap | F23: 1 | G23: =F23*(1+G$5) -> 1 | H23: =G23*(1+H$5) -> 1 | I23: =H23*(1+I$5) -> 1
A24: Indexed maximum allowable revenue before tax | F24: 1 | G24: =IF($D$10="WAPC",G22*G23,IF($D$10="TRC_FQ",G22,#N/A)) -> 1.104165781 | H24: =IF($D$10="WAPC",H22*H23,IF($D$10="TRC_FQ",H22,#N/A)) -> 1.218289182 | I24: =IF($D$10="WAPC",I22*I23,IF($D$10="TRC_FQ",I22,#N/A)) -> 1.344208051
A25: Outputs
A26: Pricing year ending in calendar year: | F26: =F$4 -> 2023 | G26: =G$4 -> 2024 | H26: =H$4 -> 2025 | I26: =I$4 -> 2026
A27: Indexed maximum allowable revenue before tax—industry wide X factor | F27: =F18 -> 1 | G27: =G18 -> 1.020747562 | H27: =H18 -> 1.041162514 | I27: =I18 -> 1.061985764
A28: Indexed maximum allowable revenue before tax—applicable X factor | F28: =F24 -> 1 | G28: =G24 -> 1.104165781 | H28: =H24 -> 1.218289182 | I28: =I24 -> 1.344208051

Sheet MAR
A1: Maximum allowable revenue | C1: Values, not time series | F1: 1st Revenue year | G1: 2nd Revenue year | H1: 3rd Revenue year | I1: 4th Revenue year
A2: Calculation of starting prices. | I2: =GPB_name -> First Gas transmission
A3: Inputs
A4: Pricing year ending in calendar year: | F4: 2023 | G4: 2024 | H4: 2025 | I4: 2026
A5: Year in regulatory period | F5: 1 | G5: =F5+1 -> 2 | H5: =G5+1 -> 3 | I5: =H5+1 -> 4
A6: Industry-wide X factor | C6: =Inputs_finmod!B19 -> 0
A7: Alternative X factor | C7: ='GPB data'!B42 -> -0.08172267235
A8: Vanilla WACC (67th percentile) | C8: =WACC -> 0.0607
A9: TFrev | C9: =Timing!C27 -> 1.024182288
A10: Constant price revenue growth in year ending 2022 | C10: ='GPB data'!E63 -> 0
A11: Constant price revenue growth in year ending 2023 | C11: ='GPB data'!F63 -> 0
A12: PV at 30 Sep 2017 of BBAR before tax over the regulatory period | C12: =BBAR!B89 -> 600357.7352
A13: Indexed maximum allowable revenue before tax—industry wide X factor | F13: =Rev!F27 -> 1 | G13: =Rev!G27 -> 1.020747562 | H13: =Rev!H27 -> 1.041162514 | I13: =Rev!I27 -> 1.061985764
A14: Indexed maximum allowable revenue before tax—applicable X factor | F14: =Rev!F28 -> 1 | G14: =Rev!G28 -> 1.104165781 | H14: =Rev!H28 -> 1.218289182 | I14: =Rev!I28 -> 1.344208051
A15: Total revenue cap (TRC) or weighted avg price cap (WAPC) | C15: ='GPB data'!B28 -> TRC_FQ
A16: Calculations
A17: ="CPI minus X revenues with industry-wide X factor of "&TEXT(C6,"#0.0%") -> CPI minus X revenues with industry-wide X factor of 0.0%
A18: Pricing year ending in calendar year: | F18: =F$4 -> 2023 | G18: =G$4 -> 2024 | H18: =H$4 -> 2025 | I18: =I$4 -> 2026
A19: PV at 30 Sep 2022 of BBAR before tax over the regulatory period | C19: =C12 -> 600357.7352
A20: PV at 30 Sep 2022 of maximum allowable revenue before tax | C20: =C19 -> 600357.7352
A21: Indexed maximum allowable revenue before tax | F21: =F13 -> 1 | G21: =G13 -> 1.020747562 | H21: =H13 -> 1.041162514 | I21: =I13 -> 1.061985764
A22: Present value of indexed maximum allowable revenue for each year | F22: =F21/(1+$C$8)^F$5 -> 0.94277364 | G22: =G21/(1+$C$8)^G$5 -> 0.9072630291 | H22: =H21/(1+$C$8)^H$5 -> 0.8724505418 | I22: =I21/(1+$C$8)^I$5 -> 0.8389738405
A23: Present value of indexed revenue | C23: =SUM(F22:I22) -> 3.561461051
A24: Maximum allowable revenue before tax in first year of the regulatory period | C24: =C20/C23 -> 168570.6306
A25: Maximum allowable revenue before tax in year-end terms | F25: =$C24*F21 -> 168570.6306 | G25: =$C24*G21 -> 172068.0602 | H25: =$C24*H21 -> 175509.4214 | I25: =$C24*I21 -> 179019.6099
A26: Maximum allowable revenue before tax in revenue-date terms | F26: =F25/$C$9 -> 164590.4568 | G26: =G25/$C$9 -> 168005.3076 | H26: =H25/$C$9 -> 171365.4137 | I26: =I25/$C$9 -> 174792.722
A27: PV at 30 Sep 2022 of maximum allowable revenue before tax in year-end terms in each year | F27: =F25/(1+$C$8)^F5 -> 158923.947 | G27: =G25/(1+$C$8)^G5 -> 152937.9009 | H27: =H25/(1+$C$8)^H5 -> 147069.538 | I27: =I25/(1+$C$8)^I5 -> 141426.3493
A28: PV at 30 Sep 2022 of maximum allowable revenue before tax | C28: =SUM(F27:I27) -> 600357.7352
A29: Error check for PV equivalence (should = 0) | C29: =C20-C28 -> 0
A30: ΔD | C30: =IF(C15="WAPC",(1+$C$10)*(1+$C$11),#N/A) -> 
A31: ANR (industry-wide X-factor) pricing year ending Sep 2018, GDBs only | C31: =F26/C30 -> 
A32: ="CPI minus X revenues with applicable X factor (" & IF(ISNUMBER(C7),"alternate X factor of " & TEXT(C7,"#0.0%"), "industry-wide X factor of " & TEXT(C6,"#0.0%"))&")" -> CPI minus X revenues with applicable X factor (alternate X factor of -8.2%)
A33: Pricing year ending in calendar year: | F33: =F$4 -> 2023 | G33: =G$4 -> 2024 | H33: =H$4 -> 2025 | I33: =I$4 -> 2026
A34: Present value of BBAR as at the start of the regulatory period | C34: =C12 -> 600357.7352
A35: PV at 30-Sep-22 of Maximum Allowable Revenue before tax | C35: =C34 -> 600357.7352
A36: Indexed maximum allowable revenue before tax | F36: =F14 -> 1 | G36: =G14 -> 1.104165781 | H36: =H14 -> 1.218289182 | I36: =I14 -> 1.344208051
A37: Present value of indexed maximum allowable revenue for each year | F37: =F36/(1+$C$8)^F$5 -> 0.94277364 | G37: =G36/(1+$C$8)^G$5 -> 0.9814069883 | H37: =H36/(1+$C$8)^H$5 -> 1.020875265 | I37: =I36/(1+$C$8)^I$5 -> 1.061930799
A38: Present value of indexed revenue | C38: =SUM(F37:I37) -> 4.006986693
A39: Maximum allowable revenue before tax in first year of the regulatory period | C39: =C35/C38 -> 149827.7337
A40: Maximum allowable revenue before tax in year-end terms | F40: =$C39*F36 -> 149827.7337 | G40: =$C39*G36 -> 165434.6566 | H40: =$C39*H36 -> 182533.5072 | I40: =$C39*I36 -> 201399.6459
A41: Maximum allowable revenue before tax in revenue-date terms | F41: =F40/$C$9 -> 146290.1043 | G41: =G40/$C$9 -> 161528.5273 | H41: =H40/$C$9 -> 178223.6516 | I41: =I40/$C$9 -> 196644.336
A42: PV at 30-Sep-22 of maximum allowable revenue before tax in year-end terms in each year | F42: =F40/(1+$C$8)^F$5 -> 141253.6379 | G42: =G40/(1+$C$8)^G$5 -> 147041.9849 | H42: =H40/(1+$C$8)^H$5 -> 152955.4274 | I42: =I40/(1+$C$8)^I$5 -> 159106.685
A43: PV at 30-Sep-22 of maximum allowable revenue before tax | C43: =SUM(F42:I42) -> 600357.7352
A44: Error check for PV equivalence (should = 0) | C44: =C35-C43 -> 0
A45: ΔD | C45: =IF(C15="WAPC",(1+$C$10)*(1+$C$11),#N/A) -> 
A46: ANR (industry-wide X-factor) pricing year ending Sep 2023, GDBs only | C46: =F41/C45 -> 
A47: This data block uses the applicable 2014/15 X factor to calculate the maximum allowable revenues for the regulatory period. These allowed
A48: revenues are PV-equivalent to the corresponding revenues calculated with the industry-wide X factor in the previous data block.
A49: Outputs
A50: Pricing year ending in calendar year: | F50: =F$4 -> 2023 | G50: =G$4 -> 2024 | H50: =H$4 -> 2025 | I50: =I$4 -> 2026
A51: Maximum allowable revenue before tax in revenue-date terms for industry wide X factor | F51: =F26 -> 164590.4568 | G51: =G26 -> 168005.3076 | H51: =H26 -> 171365.4137 | I51: =I26 -> 174792.722
A52: Maximum allowable revenue before tax in revenue-date terms for applicable X factor | F52: =F41 -> 146290.1043 | G52: =G41 -> 161528.5273 | H52: =H41 -> 178223.6516 | I52: =I41 -> 196644.336
A53: Starting price for industry-wide X factor | F53: =F26 -> 164590.4568
A54: Starting price for applicable X factor | F54: =F41 -> 146290.1043
A55: PV at 30-Sep-22 of MAR before tax over the regulatory period (applicable X ) | F55: =C35 -> 600357.7352
A56: ΔD | F56: =C45 -> 
A57: ANR (industry-wide X-factor) pricing year ending Sep 2023, GDBs only | F57: =C46 -> 

Sheet Reporting
A1: Reporting
A2: Inputs
A3: GPB: | B3: =GPB_name -> First Gas transmission | E3: Short name: | G3: =IF(B3="GasNet","Gnt",IF(B3="Powerco","Pco",IF(B3="Vector","Vct",IF(B3="First Gas Distribution","FGD",IF(B3="First Gas Transmission","FGT","Wrong GPB name"))))) -> FGT
A4: Stranding year | B4: =StrandingYear -> 2070
E5: GasNet | F5: Powerco | G5: Vector | H5: First Gas distribution | I5: First Gas transmission
A6: 2022 MAR from 2017 financial model | E6: =Inputs_AS!D16 -> 4383.998268 | F6: =Inputs_AS!E16 -> 51435.56862 | G6: =Inputs_AS!F16 -> 50702.2772 | H6: =Inputs_AS!G16 -> 24646.15131 | I6: =Inputs_AS!H16 -> 131623.3864
E8: 2022 | F8: 2023 | G8: 2024 | H8: 2025 | I8: 2026
A9: Price path CPI increase | F9: =Inputs_AS!G25 -> 0.02746210288 | G9: =Inputs_AS!H25 -> 0.02074756236 | H9: =Inputs_AS!I25 -> 0.02 | I9: =Inputs_AS!J25 -> 0.02
A10: Constant price revenue growth | F10: ='GPB data'!F63 -> 0 | G10: ='GPB data'!G63 -> 0 | H10: ='GPB data'!H63 -> 0 | I10: ='GPB data'!I63 -> 0
A11: X factor | D11: =X_factor -> -0.08172267235
A12: MAR for nil X factor | F12: 164590.4568 | G12: 168005.3076 | H12: 171365.4137 | I12: 174792.722
A13: MAR for non-zero X factor | F13: 146290.1043 | G13: 161528.5273 | H13: 178223.6516 | I13: 196644.336
A15: Calculations
A16: Unrecovered RAB for unmitigated stranding risk
E17: GasNet | F17: Powerco | G17: Vector | H17: First Gas distribution | I17: First Gas transmission
A18: Unrecovered closing RAB in 2040 | E18: 18715.99951 | F18: 262397.6224 | G18: 316209.8696 | H18: 177432.8682 | I18: 784885.2675
A19: Unrecovered closing RAB in 2050 | E19: 12693.68894 | F19: 183570.3874 | G19: 222163.5462 | H19: 139820.4754 | I19: 517230.293
A20: Unrecovered closing RAB in 2060 | E20: 8293.573435 | F20: 127546.8209 | G20: 141217.7642 | H20: 105901.7944 | I20: 345603.7571
A21: Unrecovered closing RAB in 2070 | E21: 3717.931371 | F21: 62339.63441 | G21: 63262.28375 | H21: 52124.57713 | I21: 162741.4102
A23: Calculate values for each case in main table
A24: 2022 MAR for chosen supplier | D24: =INDEX(E6:I6,MATCH($B$3,$E$5:$I$5,0)) -> 131623.3864
E25: 2022 | F25: 2023 | G25: 2024 | H25: 2025 | I25: 2026
A26: MAR for nil X factor | E26: =$D$24 -> 131623.3864 | F26: =F12 -> 164590.4568 | G26: =G12 -> 168005.3076 | H26: =H12 -> 171365.4137 | I26: =I12 -> 174792.722
A27: Real price growth for non-zero X | F27: =(F26/E26)/(1+F10)/(1+F9)-1 -> 0.2170425948 | G27: =(G26/F26)/(1+G10)/(1+G9)-1 -> 0 | H27: =(H26/G26)/(1+H10)/(1+H9)-1 -> 0 | I27: =(I26/H26)/(1+I10)/(1+I9)-1 -> 0
A28: MAR for non-zero X factor | E28: =$D$24 -> 131623.3864 | F28: =F13 -> 146290.1043 | G28: =G13 -> 161528.5273 | H28: =H13 -> 178223.6516 | I28: =I13 -> 196644.336
A29: Real price growth for nil X factor | F29: =(F28/E28)/(1+F10)/(1+F9)-1 -> 0.08172303326 | G29: =(G28/F28)/(1+G10)/(1+G9)-1 -> 0.08172267235 | H29: =(H28/G28)/(1+H10)/(1+H9)-1 -> 0.08172267235 | I29: =(I28/H28)/(1+I10)/(1+I9)-1 -> 0.08172267235
A31: Produce main table
B32: GPB short name | C32: Stranding year | D32: Adjustment factor | E32: X factor | F32: Real price % increase to 2023 | G32: Real price % increase to 2024 | H32: Real price % increase to 2025 | I32: Real price % increase to 2026 | J32: Equiv real SPA increase from 2022 | K32: Real price % increase to 2024 | L32: Real price % increase to 2025 | M32: Real price % increase to 2026 | N32: Nominal MAR $, 2023 | O32: Nominal MAR $, 2024 | P32: Nominal MAR $, 2025 | Q32: Nominal MAR $, 2026 | R32: Non-convergence
B33: =G3 -> FGT | C33: =B4 -> 2070 | D33: =AdjFactor -> 0.812895939 | E33: =D11 -> -0.08172267235 | F33: =F27 -> 0.2170425948 | G33: =G27 -> 0 | H33: =H27 -> 0 | I33: =I27 -> 0 | J33: =F29 -> 0.08172303326 | K33: =G29 -> 0.08172267235 | L33: =H29 -> 0.08172267235 | M33: =I29 -> 0.08172267235 | N33: =F12 -> 164590.4568 | O33: =G12 -> 168005.3076 | P33: =H12 -> 171365.4137 | Q33: =I12 -> 174792.722 | R33: 28147.27942
F35: Real MAR incr to 2023 then approx constant from 2024 | J35: Real MAR incr, approx. constant from 2022 | N35: Nom. MAR, 2023 | O35: Nom. MAR, 2024 | P35: Nom. MAR, 2025 | Q35: Nom. MAR, 2026 | R35: Non-convergence | S35: Panel below records values from a previous running of the main table routine. Difference table to the right of this.
B37: Gnt | C37: 2040 | D37: 0.5563189329 | E37: -0.07440086432 | F37: 0.1968790305 | G37: 0 | H37: 0 | I37: 0 | J37: 0.07440108802 | K37: 0.07440086432 | L37: 0.07440086432 | M37: 0.07440086432 | N37: 5509.651597 | O37: 5723.978098 | P37: 5854.487315 | Q37: 5973.656823 | R37: 1.051441359e-06 | S37: 0.1968790305 | T37: 0 | U37: 0 | V37: 0 | W37: 0.07440108802 | X37: 0.07440086432 | Y37: 0.07440086432 | Z37: 0.07440086432 | AA37: 5509.651597 | AB37: 5723.978098 | AC37: 5854.487315 | AD37: 5973.656823 | AF37: =ABS(F37-S37) -> 0 | AG37: =ABS(G37-T37) -> 0 | AH37: 0 | AI37: 0 | AJ37: 0 | AK37: 0 | AL37: 0 | AM37: 0 | AN37: 0 | AO37: 0 | AP37: 0 | AQ37: 0
B38: Gnt | C38: 2050 | D38: 0.6379706969 | E38: -0.05114540505 | F38: 0.1322835769 | G38: 0 | H38: 0 | I38: 0 | J38: 0.05114543129 | K38: 0.05114540505 | L38: 0.05114540505 | M38: 0.05114540505 | N38: 5212.296196 | O38: 5415.055515 | P38: 5538.521162 | Q38: 5651.259102 | R38: 4.062385415e-07 | S38: 0.1322835769 | T38: 0 | U38: 0 | V38: 0 | W38: 0.05114543129 | X38: 0.05114540505 | Y38: 0.05114540505 | Z38: 0.05114540505 | AA38: 5212.296196 | AB38: 5415.055515 | AC38: 5538.521162 | AD38: 5651.259102 | AF38: =ABS(F38-S38) -> 0 | AG38: =ABS(G38-T38) -> 0 | AH38: =ABS(H38-U38) -> 0 | AI38: =ABS(I38-V38) -> 0 | AJ38: =ABS(J38-W38) -> 0 | AK38: =ABS(K38-X38) -> 0 | AL38: =ABS(L38-Y38) -> 0 | AM38: =ABS(M38-Z38) -> 0 | AN38: =ABS(N38-AA38) -> 0 | AO38: =ABS(O38-AB38) -> 0 | AP38: =ABS(P38-AC38) -> 0 | AQ38: =ABS(Q38-AD38) -> 0
B39: Gnt | C39: 2060 | D39: 0.6963115122 | E39: -0.03797911345 | F39: 0.09696729004 | G39: 0 | H39: 0 | I39: 0 | J39: 0.03797911786 | K39: 0.03797911345 | L39: 0.03797911345 | M39: 0.03797911345 | N39: 5049.723011 | O39: 5246.158202 | P39: 5365.772916 | Q39: 5474.994523 | R39: 2.868546289e-07 | S39: 0.09696729004 | T39: 0 | U39: 0 | V39: 0 | W39: 0.03797911786 | X39: 0.03797911345 | Y39: 0.03797911345 | Z39: 0.03797911345 | AA39: 5049.723011 | AB39: 5246.158202 | AC39: 5365.772916 | AD39: 5474.994523 | AF39: 0 | AG39: 0 | AH39: 0 | AI39: 0 | AJ39: 0 | AK39: 0 | AL39: 0 | AM39: 0 | AN39: 0 | AO39: 0 | AP39: 0 | AQ39: 0
B40: Gnt | C40: 2070 | D40: 0.7506419868 | E40: -0.02760564702 | F40: 0.06977233678 | G40: 0 | H40: 0 | I40: 0 | J40: 0.02761063866 | K40: 0.02760564702 | L40: 0.02760564702 | M40: 0.02760564702 | N40: 4924.535157 | O40: 5116.100516 | P40: 5232.749857 | Q40: 5339.263748 | R40: 1.48464161 | S40: 0.06977233678 | T40: 0 | U40: 0 | V40: 0 | W40: 0.02761063866 | X40: 0.02760564702 | Y40: 0.02760564702 | Z40: 0.02760564702 | AA40: 4924.535157 | AB40: 5116.100516 | AC40: 5232.749857 | AD40: 5339.263748 | AF40: 0 | AG40: 0 | AH40: 0 | AI40: 0 | AJ40: 0 | AK40: 0 | AL40: 0 | AM40: 0 | AN40: 0 | AO40: 0 | AP40: 0 | AQ40: 0
B41: Pco | C41: 2040 | D41: 0.762393594 | E41: -0.1039541756 | F41: 0.2852704161 | G41: 0 | H41: 0 | I41: 0 | J41: 0.1039557316 | K41: 0.1039541756 | L41: 0.1039541756 | M41: 0.1039541756 | N41: 70400.45491 | O41: 74144.50177 | P41: 76844.24586 | Q41: 79416.99343 | R41: 0 | S41: 0.2852704161 | T41: 0 | U41: 0 | V41: 0 | W41: 0.1039557316 | X41: 0.1039541756 | Y41: 0.1039541756 | Z41: 0.1039541756 | AA41: 70400.45491 | AB41: 74144.50177 | AC41: 76844.24586 | AD41: 79416.99343 | AF41: 0 | AG41: 0 | AH41: 0 | AI41: 0 | AJ41: 0 | AK41: 0 | AL41: 0 | AM41: 0 | AN41: 0 | AO41: 0 | AP41: 0 | AQ41: 0
B42: Pco | C42: 2050 | D42: 0.8712376753 | E42: -0.07485632177 | F42: 0.1995967433 | G42: 0 | H42: 0 | I42: 0 | J42: 0.07485657325 | K42: 0.07485632177 | L42: 0.07485632177 | M42: 0.07485632177 | N42: 65707.69495 | O42: 69202.1708 | P42: 71721.9551 | Q42: 74123.20822 | R42: 0 | S42: 0.1995967433 | T42: 0 | U42: 0 | V42: 0 | W42: 0.07485657325 | X42: 0.07485632177 | Y42: 0.07485632177 | Z42: 0.07485632177 | AA42: 65707.69495 | AB42: 69202.1708 | AC42: 71721.9551 | AD42: 74123.20822 | AF42: 0 | AG42: 0 | AH42: 0 | AI42: 0 | AJ42: 0 | AK42: 0 | AL42: 0 | AM42: 0 | AN42: 0 | AO42: 0 | AP42: 0 | AQ42: 0
B43: Pco | C43: 2060 | D43: 0.9358167748 | E43: -0.06080692688 | F43: 0.1598986145 | G43: 0 | H43: 0 | I43: 0 | J43: 0.06080700443 | K43: 0.06080692688 | L43: 0.06080692688 | M43: 0.06080692688 | N43: 63533.23712 | O43: 66912.07065 | P43: 69348.46799 | Q43: 71670.25669 | R43: 3.608874977e-09 | S43: 0.1598986145 | T43: 0 | U43: 0 | V43: 0 | W43: 0.06080700443 | X43: 0.06080692688 | Y43: 0.06080692688 | Z43: 0.06080692688 | AA43: 63533.23712 | AB43: 66912.07065 | AC43: 69348.46799 | AD43: 71670.25669 | AF43: 0 | AG43: 0 | AH43: 0 | AI43: 0 | AJ43: 0 | AK43: 0 | AL43: 0 | AM43: 0 | AN43: 0 | AO43: 0 | AP43: 0 | AQ43: 0
B44: Pco | C44: 2070 | D44: 0.9840318868 | E44: -0.05151961032 | F44: 0.1342378759 | G44: 0 | H44: 0 | I44: 0 | J44: 0.05151964012 | K44: 0.05151961032 | L44: 0.05151961032 | M44: 0.05151961032 | N44: 62127.67479 | O44: 65431.75751 | P44: 67814.2538 | Q44: 70084.67697 | R44: -9.134178981e-06 | S44: 0.1342378759 | T44: 0 | U44: 0 | V44: 0 | W44: 0.05151964012 | X44: 0.05151961032 | Y44: 0.05151961032 | Z44: 0.05151961032 | AA44: 62127.67479 | AB44: 65431.75751 | AC44: 67814.2538 | AD44: 70084.67697 | AF44: 0 | AG44: 0 | AH44: 0 | AI44: 0 | AJ44: 0 | AK44: 0 | AL44: 0 | AM44: 0 | AN44: 0 | AO44: 0 | AP44: 0 | AQ44: 0
B45: Vct | C45: 2040 | D45: 0.5201787955 | E45: -0.08313828317 | F45: 0.2231065654 | G45: 0 | H45: 0 | I45: 0 | J45: 0.08313872606 | K45: 0.08313828317 | L45: 0.08313828317 | M45: 0.08313828317 | N45: 66090.84247 | O45: 69346.97317 | P45: 71638.38801 | Q45: 73830.29878 | R45: 0 | S45: 0.2231065654 | T45: 0 | U45: 0 | V45: 0 | W45: 0.08313872606 | X45: 0.08313828317 | Y45: 0.08313828317 | Z45: 0.08313828317 | AA45: 66090.84247 | AB45: 69346.97317 | AC45: 71638.38801 | AD45: 73830.29878 | AF45: 0 | AG45: 0 | AH45: 0 | AI45: 0 | AJ45: 0 | AK45: 0 | AL45: 0 | AM45: 0 | AN45: 0 | AO45: 0 | AP45: 0 | AQ45: 0
B46: Vct | C46: 2050 | D46: 0.5999520724 | E46: -0.0522027492 | F46: 0.1358753724 | G46: 0 | H46: 0 | I46: 0 | J46: 0.05220278071 | K46: 0.0522027492 | L46: 0.0522027492 | M46: 0.0522027492 | N46: 61377.28504 | O46: 64401.19054 | P46: 66529.18311 | Q46: 68564.76819 | R46: 0 | S46: 0.1358753724 | T46: 0 | U46: 0 | V46: 0 | W46: 0.05220278071 | X46: 0.0522027492 | Y46: 0.0522027492 | Z46: 0.0522027492 | AA46: 61377.28504 | AB46: 64401.19054 | AC46: 66529.18311 | AD46: 68564.76819 | AF46: 0 | AG46: 0 | AH46: 0 | AI46: 0 | AJ46: 0 | AK46: 0 | AL46: 0 | AM46: 0 | AN46: 0 | AO46: 0 | AP46: 0 | AQ46: 0
B47: Vct | C47: 2060 | D47: 0.6613953861 | E47: -0.03333275094 | F47: 0.08515785427 | G47: 0 | H47: 0 | I47: 0 | J47: 0.03333275302 | K47: 0.03333275094 | L47: 0.03333275094 | M47: 0.03333275094 | N47: 58636.75237 | O47: 61525.63868 | P47: 63558.6151 | Q47: 65503.31007 | R47: 9.871052909 | S47: 0.08515785427 | T47: 0 | U47: 0 | V47: 0 | W47: 0.03333275302 | X47: 0.03333275094 | Y47: 0.03333275094 | Z47: 0.03333275094 | AA47: 58636.75237 | AB47: 61525.63868 | AC47: 63558.6151 | AD47: 65503.31007 | AF47: 0 | AG47: 0 | AH47: 0 | AI47: 0 | AJ47: 0 | AK47: 0 | AL47: 0 | AM47: 0 | AN47: 0 | AO47: 0 | AP47: 0 | AQ47: 0
B48: Vct | C48: 2070 | D48: 0.7198391935 | E48: -0.0182859147 | F48: 0.0460280459 | G48: 0 | H48: 0 | I48: 0 | J48: 0.01828666275 | K48: 0.0182859147 | L48: 0.0182859147 | M48: 0.0182859147 | N48: 56522.36425 | O48: 59307.07993 | P48: 61266.74906 | Q48: 63141.3201 | R48: 23.50354985 | S48: 0.0460280459 | T48: 0 | U48: 0 | V48: 0 | W48: 0.01828666275 | X48: 0.0182859147 | Y48: 0.0182859147 | Z48: 0.0182859147 | AA48: 56522.36425 | AB48: 59307.07993 | AC48: 61266.74906 | AD48: 63141.3201 | AF48: 0 | AG48: 0 | AH48: 0 | AI48: 0 | AJ48: 0 | AK48: 0 | AL48: 0 | AM48: 0 | AN48: 0 | AO48: 0 | AP48: 0 | AQ48: 0
B49: FGD | C49: 2040 | D49: 0.6114086183 | E49: -0.1651930407 | F49: 0.4756683463 | G49: 0 | H49: 0 | I49: 0 | J49: 0.1651937289 | K49: 0.1651930407 | L49: 0.1651930407 | M49: 0.1651930407 | N49: 37897.80773 | O49: 39069.99264 | P49: 39652.41663 | Q49: 40145.25146 | R49: 0 | S49: 0.4756683463 | T49: 0 | U49: 0 | V49: 0 | W49: 0.1651937289 | X49: 0.1651930407 | Y49: 0.1651930407 | Z49: 0.1651930407 | AA49: 37897.80773 | AB49: 39069.99264 | AC49: 39652.41663 | AD49: 40145.25146 | AF49: 0 | AG49: 0 | AH49: 0 | AI49: 0 | AJ49: 0 | AK49: 0 | AL49: 0 | AM49: 0 | AN49: 0 | AO49: 0 | AP49: 0 | AQ49: 0
B50: FGD | C50: 2050 | D50: 0.6897693654 | E50: -0.13850535 | F50: 0.3885696307 | G50: 0 | H50: 0 | I50: 0 | J50: 0.1385054123 | K50: 0.13850535 | L50: 0.13850535 | M50: 0.13850535 | N50: 35660.95662 | O50: 36763.95539 | P50: 37312.00283 | Q50: 37775.74896 | R50: 0 | S50: 0.3885696307 | T50: 0 | U50: 0 | V50: 0 | W50: 0.1385054123 | X50: 0.13850535 | Y50: 0.13850535 | Z50: 0.13850535 | AA50: 35660.95662 | AB50: 36763.95539 | AC50: 37312.00283 | AD50: 37775.74896 | AF50: 0 | AG50: 0 | AH50: 0 | AI50: 0 | AJ50: 0 | AK50: 0 | AL50: 0 | AM50: 0 | AN50: 0 | AO50: 0 | AP50: 0 | AQ50: 0
B51: FGD | C51: 2060 | D51: 0.7320267986 | E51: -0.1265025339 | F51: 0.350760534 | G51: 0 | H51: 0 | I51: 0 | J51: 0.1265025437 | K51: 0.1265025339 | L51: 0.1265025339 | M51: 0.1265025339 | N51: 34689.95126 | O51: 35762.91668 | P51: 36296.04145 | Q51: 36747.16032 | R51: 0 | S51: 0.350760534 | T51: 0 | U51: 0 | V51: 0 | W51: 0.1265025437 | X51: 0.1265025339 | Y51: 0.1265025339 | Z51: 0.1265025339 | AA51: 34689.95126 | AB51: 35762.91668 | AC51: 36296.04145 | AD51: 36747.16032 | AF51: 0 | AG51: 0 | AH51: 0 | AI51: 0 | AJ51: 0 | AK51: 0 | AL51: 0 | AM51: 0 | AN51: 0 | AO51: 0 | AP51: 0 | AQ51: 0
B52: FGD | C52: 2070 | D52: 0.777158039 | E52: -0.1151270272 | F52: 0.315693643 | G52: 0 | H52: 0 | I52: 0 | J52: 0.1151294262 | K52: 0.1151270272 | L52: 0.1151270272 | M52: 0.1151270272 | N52: 33789.37065 | O52: 34834.48098 | P52: 35353.76538 | Q52: 35793.17282 | R52: 3.498546122 | S52: 0.315693643 | T52: 0 | U52: 0 | V52: 0 | W52: 0.1151294262 | X52: 0.1151270272 | Y52: 0.1151270272 | Z52: 0.1151270272 | AA52: 33789.37065 | AB52: 34834.48098 | AC52: 35353.76538 | AD52: 35793.17282 | AF52: 0 | AG52: 0 | AH52: 0 | AI52: 0 | AJ52: 0 | AK52: 0 | AL52: 0 | AM52: 0 | AN52: 0 | AO52: 0 | AP52: 0 | AQ52: 0
B53: FGT | C53: 2040 | D53: 0.6185393813 | E53: -0.1504253313 | F53: 0.4272901461 | G53: 0 | H53: 0 | I53: 0 | J53: 0.1504255484 | K53: 0.1504253313 | L53: 0.1504253313 | M53: 0.1504253313 | N53: 193023.9239 | O53: 197028.6997 | P53: 200969.2737 | Q53: 204988.6592 | R53: 0 | S53: 0.4272901461 | T53: 0 | U53: 0 | V53: 0 | W53: 0.1504255484 | X53: 0.1504253313 | Y53: 0.1504253313 | Z53: 0.1504253313 | AA53: 193023.9239 | AB53: 197028.6997 | AC53: 200969.2737 | AD53: 204988.6592 | AF53: 0 | AG53: 0 | AH53: 0 | AI53: 0 | AJ53: 0 | AK53: 0 | AL53: 0 | AM53: 0 | AN53: 0 | AO53: 0 | AP53: 0 | AQ53: 0
B54: FGT | C54: 2050 | D54: 0.7062570184 | E54: -0.1148578271 | F54: 0.3151067687 | G54: 0 | H54: 0 | I54: 0 | J54: 0.1148602 | K54: 0.1148578271 | L54: 0.1148578271 | M54: 0.1148578271 | N54: 177852.4636 | O54: 181542.4687 | P54: 185173.3181 | Q54: 188876.7844 | R54: -2.328306437e-09 | S54: 0.3151067687 | T54: 0 | U54: 0 | V54: 0 | W54: 0.1148602 | X54: 0.1148578271 | Y54: 0.1148578271 | Z54: 0.1148578271 | AA54: 177852.4636 | AB54: 181542.4687 | AC54: 185173.3181 | AD54: 188876.7844 | AF54: 0 | AG54: 0 | AH54: 0 | AI54: 0 | AJ54: 0 | AK54: 0 | AL54: 0 | AM54: 0 | AN54: 0 | AO54: 0 | AP54: 0 | AQ54: 0
B55: FGT | C55: 2060 | D55: 0.7629302861 | E55: -0.09613004791 | F55: 0.2589352866 | G55: 0 | H55: 0 | I55: 0 | J55: 0.09613093767 | K55: 0.09613004791 | L55: 0.09613004791 | M55: 0.09613004791 | N55: 170255.9424 | O55: 173788.3382 | P55: 177264.1049 | Q55: 180809.387 | R55: 3.112480044e-06 | S55: 0.2589352866 | T55: 0 | U55: 0 | V55: 0 | W55: 0.09613093767 | X55: 0.09613004791 | Y55: 0.09613004791 | Z55: 0.09613004791 | AA55: 170255.9424 | AB55: 173788.3382 | AC55: 177264.1049 | AD55: 180809.387 | AF55: 0 | AG55: 0 | AH55: 0 | AI55: 0 | AJ55: 0 | AK55: 0 | AL55: 0 | AM55: 0 | AN55: 0 | AO55: 0 | AP55: 0 | AQ55: 0
B56: FGT | C56: 2070 | D56: 0.812895939 | E56: -0.08172267235 | F56: 0.2170425948 | G56: 0 | H56: 0 | I56: 0 | J56: 0.08172303326 | K56: 0.08172267235 | L56: 0.08172267235 | M56: 0.08172267235 | N56: 164590.4568 | O56: 168005.3076 | P56: 171365.4137 | Q56: 174792.722 | R56: 28147.27942 | S56: 0.2170425948 | T56: 0 | U56: 0 | V56: 0 | W56: 0.08172303326 | X56: 0.08172267235 | Y56: 0.08172267235 | Z56: 0.08172267235 | AA56: 164590.4568 | AB56: 168005.3076 | AC56: 171365.4137 | AD56: 174792.722 | AF56: 0 | AG56: 0 | AH56: 0 | AI56: 0 | AJ56: 0 | AK56: 0 | AL56: 0 | AM56: 0 | AN56: 0 | AO56: 0 | AP56: 0 | AQ56: 0
P57: =AF57 -> 0 | AF57: =MAX(AF37:AQ56) -> 0 | AG57: =MAX(AG37:AM56) -> 0
A58: MAR increase charts for X = 0
A71: MAR increase charts for X such that the percentage MAR increase from 2022 to 2023 is equal to the average increase from 2023 to 2026

Sheet Dashboard
A1: Dashboard | O1: Working area
A2: Case selection | B2: Option selected | D2: Results, single case | P2: Cessation and stranding years
A3: GPB: | B3: First Gas transmission | P3: 2040 | R3: Stranding years | T3: 2040
P4: 2050 | T4: 2050
A5: Stranding year | B5: 2070 | F5: Closing RAB | P5: 2060 | T5: 2060
A6: Max Stranding Year | B6: 2070 | D6: 2040 closing RAB | F6: =Total!D36 -> 904157.4851 | P6: 2070 | T6: 2070
A7: Years in MAR ramp-up | B7: 6 | D7: 2050 closing RAB | F7: =Total!D37 -> 592575.132
A8: MAR ramp-down start | B8: 2029 | D8: 2060 closing RAB | F8: =Total!D38 -> 334853.2317 | N8: The panel below in this box is for the goal-seeks done by the vba routine "Three
A9: Mitigation | B9: TRUE | D9: 2070 closing RAB | F9: =Total!D39 -> 0 | N9: goal seeks". The named ranges (green fill colour) "DiffInDepn",
A10: Stranding year MAR ÷ 2023 MAR | B10: 0.2 | N10: "DiffTotalAssetsAndTotalDMR" and "MARincDiff" have a green fill colour,
A11: Apply revals from 2023 | B11: TRUE | N11: and are goal-sought to nil. The three named ranges for the changing cells
N12: have a grey fill colour.
S14: Difference in (∑ depreciation less ∑ revals), nil after goal-seek | T14: =SumofDepn-RAB!B97 -> 0
S15: Adjustment factor (changing value in goal seek) | T15: 0.812895939
A16: Capex low or high | B16: low
S17: DiffTotalAssetsAndTotalDMR | T17: =Total!D65 -> 28147.27942
S18: Real MAR increase | T18: 0.07202364924
S20: Percent MAR increase to 2023 - average %age increases to 2024 to 2027 | T20: =Q30-AVERAGE(R30:T30) -> 3.609103159e-07
S21: X factor in financial model (changing cell for goal-seek) | T21: -0.08172267235
N24: The calculation panel below is a working area for the goal-seeking of the named
N25: range "MARincDiff". Run the "Update results" macro for valid results.
P26: 2022 | Q26: 2023 | R26: 2024 | S26: 2025 | T26: 2026
N27: MAR ex MAR sheet | P27: =Reporting!D24 -> 131623.3864 | Q27: =MAR!F52 -> 146290.1043 | R27: =MAR!G52 -> 161528.5273 | S27: =MAR!H52 -> 178223.6516 | T27: =MAR!I52 -> 196644.336
N28: Price path CPI increase | Q28: =Inputs_AS!G25 -> 0.02746210288 | R28: =Inputs_AS!H25 -> 0.02074756236 | S28: =Inputs_AS!I25 -> 0.02 | T28: =Inputs_AS!J25 -> 0.02
N29: Constant price revenue growth | Q29: ='GPB data'!F63 -> 0 | R29: ='GPB data'!G63 -> 0 | S29: ='GPB data'!H63 -> 0 | T29: ='GPB data'!I63 -> 0
N30: Real price growth for non-zero X | Q30: =(Q27/P27)/(1+Q29)/(1+Q28)-1 -> 0.08172303326 | R30: =(R27/Q27)/(1+R29)/(1+R28)-1 -> 0.08172267235 | S30: =(S27/R27)/(1+S29)/(1+S28)-1 -> 0.08172267235 | T30: 0.08172267235

Sheet Outputs to Chartbook
A1: Outputs to chartbook
A3: Chapter 6
A5: Table 6.1 | B5: RAB under current policy settings ($ Million) – 2020 existing assets only
A6: Supplier | B6: 2020 Existing | C6: 2040 | D6: 2050 | E6: 2060 | F6: 2070
A7: GasNet | B7: 24.056 | C7: 16.25205968 | D7: 10.27017561 | E7: 5.83468323 | F7: 2.300680777
A8: Powerco | B8: 387.5054907 | C8: 177.1359191 | D8: 86.40259054 | E8: 27.73897561 | F8: 5.561416967
A9: Vector | B9: 434.256 | C9: 346.8524432 | D9: 248.2942165 | E9: 139.0402346 | F9: 50.00583958
A10: First Gas distribution | B10: 174.4053018 | C10: 113.7470255 | D10: 81.3867634 | E10: 58.20586361 | F10: 29.89703779
A11: First Gas transmission | B11: 849.6880929 | C11: 398.8135742 | D11: 138.5199652 | E11: 35.39407302 | F11: 21.19830565
A12: Total | B12: =SUM(B7:B11) -> 1869.910885 | C12: =SUM(C7:C11) -> 1052.801022 | D12: =SUM(D7:D11) -> 564.8737113 | E12: =SUM(E7:E11) -> 266.2138301 | F12: =SUM(F7:F11) -> 108.9632808
A14: Table 6.2 | B14: Depreciation Adjustment Factors to be applied in DPP3
A15: Supplier | B15: Adjustment Factor
A16: GasNet | B16: =TRANSPOSE([5]Inputs!$B$28:$F$28) -> 0.6379706969
A17: Powerco | B17: 0.8712376753
A18: Vector | B18: 0.5999520724
A19: First Gas distribution | B19: 0.846556341
A20: First Gas transmission | B20: 0.750509227
A23: Table 6.3 | B23: Modelled real average annual MAR increases - 2050 reference scenario and sensitivity to cessation years
A24: Supplier | B24: 2040 Sensitivity | C24: 2050 Reference Scenario | D24: 2060 Sensitivity | E24: 2070 Sensitivity
A25: GasNet | B25: =Reporting!$J$37 -> 0.07440108802 | C25: =Reporting!$J$38 -> 0.05114543129 | D25: =Reporting!$J$39 -> 0.03797911786 | E25: =Reporting!$J$40 -> 0.02761063866
A26: Powerco | B26: =Reporting!$J$41 -> 0.1039557316 | C26: =Reporting!$J$42 -> 0.07485657325 | D26: =Reporting!$J$43 -> 0.06080700443 | E26: =Reporting!$J$44 -> 0.05151964012
A27: Vector | B27: =Reporting!$J$45 -> 0.08313872606 | C27: =Reporting!$J$46 -> 0.05220278071 | D27: =Reporting!$J$47 -> 0.03333275302 | E27: =Reporting!$J$48 -> 0.01828666275
A28: First Gas distribution | B28: =Reporting!$J$49 -> 0.1651937289 | C28: =Reporting!$J$50 -> 0.1385054123 | D28: =Reporting!$J$51 -> 0.1265025437 | E28: =Reporting!$J$52 -> 0.1151294262
A29: First Gas transmission | B29: =Reporting!$J$53 -> 0.1504255484 | C29: =Reporting!$J$54 -> 0.1148602 | D29: =Reporting!$J$55 -> 0.09613093767 | E29: =Reporting!$J$56 -> 0.08172303326
A32: Table 6.4 | B32: Implied adjustment factors applied to asset lives - 2050 reference scenario and sensitivity to cessation years
A33: Supplier | B33: 2040 Sensitivity | C33: 2050 Reference Scenario | D33: 2060 Sensitivity | E33: 2070 Sensitivity
A34: GasNet | B34: =Reporting!$D$37 -> 0.5563189329 | C34: =Reporting!$D$38 -> 0.6379706969 | D34: =Reporting!$D$39 -> 0.6963115122 | E34: =Reporting!$D$40 -> 0.7506419868
A35: Powerco | B35: =Reporting!$D$41 -> 0.762393594 | C35: =Reporting!$D$42 -> 0.8712376753 | D35: =Reporting!$D$43 -> 0.9358167748 | E35: =Reporting!$D$44 -> 0.9840318868
A36: Vector | B36: =Reporting!$D$45 -> 0.5201787955 | C36: =Reporting!$D$46 -> 0.5999520724 | D36: =Reporting!$D$47 -> 0.6613953861 | E36: =Reporting!$D$48 -> 0.7198391935
A37: First Gas distribution | B37: =Reporting!$D$49 -> 0.6114086183 | C37: =Reporting!$D$50 -> 0.6897693654 | D37: =Reporting!$D$51 -> 0.7320267986 | E37: =Reporting!$D$52 -> 0.777158039
A38: First Gas transmission | B38: =Reporting!$D$53 -> 0.6185393813 | C38: =Reporting!$D$54 -> 0.7062570184 | D38: =Reporting!$D$55 -> 0.7629302861 | E38: =Reporting!$D$56 -> 0.812895939
